Workbook

Sheet INTRO
B2: Formulaire de Rapport Commun v.3
B4: Le but de ce formulaire de rapport commun - disponible sous forme de fichier Excel - est de mettre à disposition des autorités sanitaires nationales et des gestionnaires de données un outil standardisé qui réponde aux défis, facilite l'intégration et par conséquent contribue à améliorer la gestion de programme. Ce formulaire tend à standardiser le rapport de résultats des programmes nationaux, améliore la disponibilité et la coordination des données de chimioprévention à travers les Bureaux des Régions de l'Organisation mondiale de la Santé. Les autorités nationales sont priées de compléter ce formulaire et de le soumettre à l'Organisation mondiale de la Santé avant le 15 août de l'année en cours pour rapporter les données des activités de chimioprévention mises en oeuvre l'année précédente.
B6: Structure de l'application (feuilles de travail) :
B8: INTRO | C8: Cette feuille contient des instructions pour compléter le formulaire de rapport commun et des informations sur le statut de la chimioprévention pour les maladies d'endémie du pays.
B9: COUNTRY_INFO | C9: Cette feuille contient des informations sur la structure administrative du pays, la population par groupe d'âge, le statut d'endémicité pour chaque maladie, la population devant être traitée par chimioprévention, les interventions prévues et les interventions mises en oeuvre.
B10: MDA1, MDA2, MDA3, T1, T2 et T3 | C10: Ces feuilles contiennent des informations sur l'endémicité des districts ciblés pour le traitement aux médicaments spécifiques pour la chimioprévention, les plans de traitement, et le nombre de personnes traitées par groupe d'âge.
B11: DISTRICT | C11: Cette feuille contient un résumé sur les personnes traitées, par maladie, au niveau de mise en oeuvre. Si les données par genre (sexe) sont disponibles, merci de les saisir.
B12: SUMMARY | C12: Cette feuille contient un résumé sur les personnes traitées, par maladie et par type d'intervention de chimioprévention. Avant de générer le rapport (exécuter macro), veuillez sélectionner la maladie pour laquelle vous souhaitez un rapport. Veuillez suivre le même processus pour générer les divers rapports. Cette feuille doit être imprimée et soumise comme formulaire de rapport commun (voir les instructions pour la soumission du formulaire sous la feuille SUMMARY).
B14: Instructions pour la saisie des données
B16: La plupart des cellules des feuilles de travail mentionnées ci-dessus contiennent des formules calculées automatiquement en fonction du protocole de traitement recommandé par l'OMS pour chaque maladie. Voir : http://www.who.int/neglected_diseases/preventive_chemotherapy/pct_manual/en/index.html
B18: Veuillez entrer vos données dans les cellules en fonction de leur code de couleur :
C20: Blanc - la cellule n'est pas protégée. Veuillez entrer la valeur de l'indicateur demandé.
C22: Jaune - la cellule est protégée et inclut le nom de l'indicateur. Aucune entrée de données requise.
C24: Orange - la cellule n'est pas protégée et contient un menu déroulant. Veuillez sélectionner la valeur dans le menu déroulant.
C27: Vert - la cellule n'est pas protégée et contient des formules. Veuillez changer la valeur indiquée uniquement si vos données sont différentes de celles calculées automatiquement.
C30: Bleu - la cellule est protégée et contient des formules. Aucune entrée de données requise.
B32: Données pays
B34: PAYS | E34: Burkina Faso
B36: Année de rapport des données | E36: 2017
B38: Le pays est-il endémique à la filariose lymphatique (FL) ? | E38: Endémique
B40: Le pays est-il endémique à l'onchocercose (ONCHO) ? | E40: Endémique
B42: Le pays est-il endémique aux géohelminthiases (STH) ? | E42: Endémique
B44: Le pays est-il endémique à la schistosomiase (SCH) ? | E44: Endémique
B46: Combien d'unités administratives compte le pays ? | E46: 70
B47: Si les données démographiques par groupe d'âge ne sont pas disponibles au second niveau administratif, veuillez entrer la proportion (%) de population, par groupe d'âge, du pays. Si les données sont disponibles, veuillez laisser les cellules vierges.
B48: 1-4 ans | C48: Enfants d'âge pré-scolaire (EAPréS)
B49: 5-14 ans | C49: Enfants d'âge scolaire (EAS)
B50: 15 ans et plus | C50: Adultes

Sheet COUNTRY_INFO
A1: INFORMATIONS PAYS
A2: Structure administrative, population par groupe d'âge, statut d'endémicité, interventions planifiées et interventions mises en oeuvre
A4: TOTAL | D4: =SUM(D$9:D$1000) -> 19632147 | E4: =SUM(E$9:E$1000) -> 2768820 | F4: =SUM(F$9:F$1000) -> 5720162 | G4: =SUM(G$9:G$1000) -> 10386296 | L4: =SUM(L$9:L$1000) -> 5530123 | M4: =SUM(M$9:M$1000) -> 260001 | N4: =SUM(N$9:N$1000) -> 0 | O4: =SUM(O$9:O$1000) -> 4332546.81
A6: Structure administrative du pays | D6: Population | H6: Endémicité | L6: Population nécessitant la CP | P6: Nombre de tournées de traitement prévues pour l'année | T6: Mise en oeuvre de la chimioprévention | V6: Cliquer ci-dessous pour voir la stratégie recommandée
A7: Pays | B7: Région/Département | C7: District | D7: Total | E7: EAPréS | F7: EAS | G7: Adultes | H7: FL | I7: Oncho | J7: STH | K7: SCH | L7: FL | M7: Oncho | N7: STH | O7: SCH | P7: FL | Q7: Oncho | R7: STH | S7: SCH | T7: TOURNEE 1 | U7: TOURNEE 2 | X7: IU_ID | Y7: IU_Name
A9: =IF(INTRO!$E$34<>0,INTRO!$E$34,"") -> Burkina Faso | B9: Boucle du Mouhoun | C9: Boromo | D9: 288516 | E9: 42377 | F9: 86360 | G9: 148031 | H9: 99 | I9: 0 | J9: 1 | K9: 2 | L9: =IF(INTRO!$E$38="Endémique", IF($H9>0, IF($H9=4,"Inconnu", IF($H9=99,"Interrompu", $D9)), 0),"Non requis") -> Interrompu | M9: =IF(INTRO!$E$40="Endémique", IF($I9>0, IF($I9=4,"Inconnu",IF($I9=99,"Interrompu", $D9)), 0),"Non requis") -> 0 | N9: =IF(INTRO!$E$42="Endémique", IF(AND($J9>1,$J9<5), IF($J9=4, "Inconnu", E9+F9), 0),"Non requis") -> 0 | O9: =IF(INTRO!$E$44="Endémique", IF(AND($K9>0,$K9<5), IF($K9=4,"Inconnu", IF($K9=1, $F9*0.33, IF($K9=2, $F9*0.5+$G9*0.2, SUM(F9:G9)))), 0),"Non requis") -> 72786.2 | P9: 0 | Q9: 0 | R9: 1 | S9: 1 | T9: T1 (PZQ+ALB/MBD) | X9: 5312 | Y9: Boromo | Z9: =Y9=C9 -> TRUE
A10: =IF(INTRO!$E$34<>0,INTRO!$E$34,"") -> Burkina Faso | B10: Boucle du Mouhoun | C10: Dédougou | D10: 401168 | E10: 58920 | F10: 120073 | G10: 205840 | H10: 99 | I10: 0 | J10: 1 | K10: 2 | L10: =IF(INTRO!$E$38="Endémique", IF($H10>0, IF($H10=4,"Inconnu", IF($H10=99,"Interrompu", $D10)), 0),"Non requis") -> Interrompu | M10: =IF(INTRO!$E$40="Endémique", IF($I10>0, IF($I10=4,"Inconnu",IF($I10=99,"Interrompu", $D10)), 0),"Non requis") -> 0 | N10: =IF(INTRO!$E$42="Endémique", IF(AND($J10>1,$J10<5), IF($J10=4, "Inconnu", E10+F10), 0),"Non requis") -> 0 | O10: =IF(INTRO!$E$44="Endémique", IF(AND($K10>0,$K10<5), IF($K10=4,"Inconnu", IF($K10=1, $F10*0.33, IF($K10=2, $F10*0.5+$G10*0.2, SUM(F10:G10)))), 0),"Non requis") -> 101204.5 | P10: 0 | Q10: 0 | R10: 1 | S10: 1 | T10: T1 (PZQ+ALB/MBD) | X10: 5313 | Y10: Dédougou | Z10: =Y10=C10 -> TRUE
A11: =IF(INTRO!$E$34<>0,INTRO!$E$34,"") -> Burkina Faso | B11: Boucle du Mouhoun | C11: Nouna | D11: 368395 | E11: 54109 | F11: 110267 | G11: 189018 | H11: 99 | I11: 0 | J11: 1 | K11: 2 | L11: =IF(INTRO!$E$38="Endémique", IF($H11>0, IF($H11=4,"Inconnu", IF($H11=99,"Interrompu", $D11)), 0),"Non requis") -> Interrompu | M11: =IF(INTRO!$E$40="Endémique", IF($I11>0, IF($I11=4,"Inconnu",IF($I11=99,"Interrompu", $D11)), 0),"Non requis") -> 0 | N11: =IF(INTRO!$E$42="Endémique", IF(AND($J11>1,$J11<5), IF($J11=4, "Inconnu", E11+F11), 0),"Non requis") -> 0 | O11: =IF(INTRO!$E$44="Endémique", IF(AND($K11>0,$K11<5), IF($K11=4,"Inconnu", IF($K11=1, $F11*0.33, IF($K11=2, $F11*0.5+$G11*0.2, SUM(F11:G11)))), 0),"Non requis") -> 92937.1 | P11: 0 | Q11: 0 | R11: 1 | S11: 1 | T11: T1 (PZQ+ALB/MBD) | X11: 5314 | Y11: Nouna | Z11: TRUE
A12: =IF(INTRO!$E$34<>0,INTRO!$E$34,"") -> Burkina Faso | B12: Boucle du Mouhoun | C12: Solenzo | D12: 361883 | E12: 53154 | F12: 108320 | G12: 185672 | H12: 99 | I12: 0 | J12: 1 | K12: 2 | L12: =IF(INTRO!$E$38="Endémique", IF($H12>0, IF($H12=4,"Inconnu", IF($H12=99,"Interrompu", $D12)), 0),"Non requis") -> Interrompu | M12: =IF(INTRO!$E$40="Endémique", IF($I12>0, IF($I12=4,"Inconnu",IF($I12=99,"Interrompu", $D12)), 0),"Non requis") -> 0 | N12: =IF(INTRO!$E$42="Endémique", IF(AND($J12>1,$J12<5), IF($J12=4, "Inconnu", E12+F12), 0),"Non requis") -> 0 | O12: =IF(INTRO!$E$44="Endémique", IF(AND($K12>0,$K12<5), IF($K12=4,"Inconnu", IF($K12=1, $F12*0.33, IF($K12=2, $F12*0.5+$G12*0.2, SUM(F12:G12)))), 0),"Non requis") -> 91294.4 | P12: 0 | Q12: 0 | R12: 1 | S12: 1 | T12: T1 (PZQ+ALB/MBD) | X12: 5315 | Y12: Solenzo | Z12: TRUE
A13: =IF(INTRO!$E$34<>0,INTRO!$E$34,"") -> Burkina Faso | B13: Boucle du Mouhoun | C13: Toma | D13: 215429 | E13: 31641 | F13: 64480 | G13: 110536 | H13: 99 | I13: 0 | J13: 1 | K13: 2 | L13: =IF(INTRO!$E$38="Endémique", IF($H13>0, IF($H13=4,"Inconnu", IF($H13=99,"Interrompu", $D13)), 0),"Non requis") -> Interrompu | M13: =IF(INTRO!$E$40="Endémique", IF($I13>0, IF($I13=4,"Inconnu",IF($I13=99,"Interrompu", $D13)), 0),"Non requis") -> 0 | N13: =IF(INTRO!$E$42="Endémique", IF(AND($J13>1,$J13<5), IF($J13=4, "Inconnu", E13+F13), 0),"Non requis") -> 0 | O13: =IF(INTRO!$E$44="Endémique", IF(AND($K13>0,$K13<5), IF($K13=4,"Inconnu", IF($K13=1, $F13*0.33, IF($K13=2, $F13*0.5+$G13*0.2, SUM(F13:G13)))), 0),"Non requis") -> 54347.2 | P13: 0 | Q13: 0 | R13: 1 | S13: 1 | T13: T1 (PZQ+ALB/MBD) | X13: 5316 | Y13: Toma | Z13: TRUE
A14: =IF(INTRO!$E$34<>0,INTRO!$E$34,"") -> Burkina Faso | B14: Boucle du Mouhoun | C14: Tougan | D14: 287801 | E14: 42273 | F14: 86142 | G14: 147666 | H14: 99 | I14: 0 | J14: 1 | K14: 2 | L14: =IF(INTRO!$E$38="Endémique", IF($H14>0, IF($H14=4,"Inconnu", IF($H14=99,"Interrompu", $D14)), 0),"Non requis") -> Interrompu | M14: =IF(INTRO!$E$40="Endémique", IF($I14>0, IF($I14=4,"Inconnu",IF($I14=99,"Interrompu", $D14)), 0),"Non requis") -> 0 | N14: =IF(INTRO!$E$42="Endémique", IF(AND($J14>1,$J14<5), IF($J14=4, "Inconnu", E14+F14), 0),"Non requis") -> 0 | O14: =IF(INTRO!$E$44="Endémique", IF(AND($K14>0,$K14<5), IF($K14=4,"Inconnu", IF($K14=1, $F14*0.33, IF($K14=2, $F14*0.5+$G14*0.2, SUM(F14:G14)))), 0),"Non requis") -> 72604.2 | P14: 0 | Q14: 0 | R14: 1 | S14: 1 | T14: T1 (PZQ+ALB/MBD) | X14: 5317 | Y14: Tougan | Z14: TRUE
A15: =IF(INTRO!$E$34<>0,INTRO!$E$34,"") -> Burkina Faso | B15: Cascades | C15: Banfora | D15: 392498 | E15: 50817 | F15: 113716 | G15: 213834 | H15: 99 | I15: 1 | J15: 1 | K15: 2 | L15: =IF(INTRO!$E$38="Endémique", IF($H15>0, IF($H15=4,"Inconnu", IF($H15=99,"Interrompu", $D15)), 0),"Non requis") -> Interrompu | M15: 56955 | N15: =IF(INTRO!$E$42="Endémique", IF(AND($J15>1,$J15<5), IF($J15=4, "Inconnu", E15+F15), 0),"Non requis") -> 0 | O15: =IF(INTRO!$E$44="Endémique", IF(AND($K15>0,$K15<5), IF($K15=4,"Inconnu", IF($K15=1, $F15*0.33, IF($K15=2, $F15*0.5+$G15*0.2, SUM(F15:G15)))), 0),"Non requis") -> 99624.8 | P15: 0 | Q15: 2 | R15: 0 | S15: 0 | T15: MDA3 (IVM) | X15: 5318 | Y15: Banfora | Z15: TRUE
A16: =IF(INTRO!$E$34<>0,INTRO!$E$34,"") -> Burkina Faso | B16: Cascades | C16: Mangodara | D16: 230318 | E16: 34952 | F16: 70250 | G16: 115920 | H16: 99 | I16: 1 | J16: 1 | K16: 2 | L16: =IF(INTRO!$E$38="Endémique", IF($H16>0, IF($H16=4,"Inconnu", IF($H16=99,"Interrompu", $D16)), 0),"Non requis") -> Interrompu | M16: 9182 | N16: =IF(INTRO!$E$42="Endémique", IF(AND($J16>1,$J16<5), IF($J16=4, "Inconnu", E16+F16), 0),"Non requis") -> 0 | O16: =IF(INTRO!$E$44="Endémique", IF(AND($K16>0,$K16<5), IF($K16=4,"Inconnu", IF($K16=1, $F16*0.33, IF($K16=2, $F16*0.5+$G16*0.2, SUM(F16:G16)))), 0),"Non requis") -> 58309 | P16: 0 | Q16: 2 | R16: 0 | S16: 0 | T16: MDA3 (IVM) | X16: 5319 | Y16: Mangodara | Z16: TRUE
A17: =IF(INTRO!$E$34<>0,INTRO!$E$34,"") -> Burkina Faso | B17: Cascades | C17: Sindou | D17: 171376 | E17: 23601 | F17: 50619 | G17: 90737 | H17: 99 | I17: 0 | J17: 1 | K17: 2 | L17: =IF(INTRO!$E$38="Endémique", IF($H17>0, IF($H17=4,"Inconnu", IF($H17=99,"Interrompu", $D17)), 0),"Non requis") -> Interrompu | M17: =IF(INTRO!$E$40="Endémique", IF($I17>0, IF($I17=4,"Inconnu",IF($I17=99,"Interrompu", $D17)), 0),"Non requis") -> 0 | N17: =IF(INTRO!$E$42="Endémique", IF(AND($J17>1,$J17<5), IF($J17=4, "Inconnu", E17+F17), 0),"Non requis") -> 0 | O17: =IF(INTRO!$E$44="Endémique", IF(AND($K17>0,$K17<5), IF($K17=4,"Inconnu", IF($K17=1, $F17*0.33, IF($K17=2, $F17*0.5+$G17*0.2, SUM(F17:G17)))), 0),"Non requis") -> 43456.9 | P17: 0 | Q17: 0 | R17: 0 | S17: 0 | X17: 5320 | Y17: Sindou | Z17: TRUE
A18: =IF(INTRO!$E$34<>0,INTRO!$E$34,"") -> Burkina Faso | B18: Centre | C18: Baskuy | D18: 311208 | E18: 26169 | F18: 61589 | G18: 216393 | H18: 99 | I18: 0 | J18: 1 | K18: 2 | L18: =IF(INTRO!$E$38="Endémique", IF($H18>0, IF($H18=4,"Inconnu", IF($H18=99,"Interrompu", $D18)), 0),"Non requis") -> Interrompu | M18: =IF(INTRO!$E$40="Endémique", IF($I18>0, IF($I18=4,"Inconnu",IF($I18=99,"Interrompu", $D18)), 0),"Non requis") -> 0 | N18: =IF(INTRO!$E$42="Endémique", IF(AND($J18>1,$J18<5), IF($J18=4, "Inconnu", E18+F18), 0),"Non requis") -> 0 | O18: =IF(INTRO!$E$44="Endémique", IF(AND($K18>0,$K18<5), IF($K18=4,"Inconnu", IF($K18=1, $F18*0.33, IF($K18=2, $F18*0.5+$G18*0.2, SUM(F18:G18)))), 0),"Non requis") -> 74073.1 | P18: 0 | Q18: 0 | R18: 0 | S18: 0 | X18: 5321 | Y18: Baskuy | Z18: TRUE
A19: =IF(INTRO!$E$34<>0,INTRO!$E$34,"") -> Burkina Faso | B19: Centre | C19: Bogodogo | D19: 828114 | E19: 89137 | F19: 206876 | G19: 510161 | H19: 1 | I19: 0 | J19: 1 | K19: 2 | L19: 217102 | M19: =IF(INTRO!$E$40="Endémique", IF($I19>0, IF($I19=4,"Inconnu",IF($I19=99,"Interrompu", $D19)), 0),"Non requis") -> 0 | N19: =IF(INTRO!$E$42="Endémique", IF(AND($J19>1,$J19<5), IF($J19=4, "Inconnu", E19+F19), 0),"Non requis") -> 0 | O19: =IF(INTRO!$E$44="Endémique", IF(AND($K19>0,$K19<5), IF($K19=4,"Inconnu", IF($K19=1, $F19*0.33, IF($K19=2, $F19*0.5+$G19*0.2, SUM(F19:G19)))), 0),"Non requis") -> 205470.2 | P19: 1 | Q19: 0 | R19: 1 | S19: 0 | T19: MDA1 (IVM+ALB) | X19: 5322 | Y19: Bogodogo | Z19: TRUE
A20: =IF(INTRO!$E$34<>0,INTRO!$E$34,"") -> Burkina Faso | B20: Centre | C20: Boulmiougou | D20: 919292 | E20: 106038 | F20: 250686 | G20: 533981 | H20: 1 | I20: 0 | J20: 1 | K20: 2 | L20: 370010 | M20: =IF(INTRO!$E$40="Endémique", IF($I20>0, IF($I20=4,"Inconnu",IF($I20=99,"Interrompu", $D20)), 0),"Non requis") -> 0 | N20: =IF(INTRO!$E$42="Endémique", IF(AND($J20>1,$J20<5), IF($J20=4, "Inconnu", E20+F20), 0),"Non requis") -> 0 | O20: =IF(INTRO!$E$44="Endémique", IF(AND($K20>0,$K20<5), IF($K20=4,"Inconnu", IF($K20=1, $F20*0.33, IF($K20=2, $F20*0.5+$G20*0.2, SUM(F20:G20)))), 0),"Non requis") -> 232139.2 | P20: 1 | Q20: 0 | R20: 1 | S20: 0 | T20: MDA1 (IVM+ALB) | X20: 5323 | Y20: Boulmiougou | Z20: TRUE
A21: =IF(INTRO!$E$34<>0,INTRO!$E$34,"") -> Burkina Faso | B21: Centre | C21: Nongre-Massom | D21: 351101 | E21: 36027 | F21: 88312 | G21: 217112 | H21: 1 | I21: 0 | J21: 1 | K21: 2 | L21: 17507 | M21: =IF(INTRO!$E$40="Endémique", IF($I21>0, IF($I21=4,"Inconnu",IF($I21=99,"Interrompu", $D21)), 0),"Non requis") -> 0 | N21: =IF(INTRO!$E$42="Endémique", IF(AND($J21>1,$J21<5), IF($J21=4, "Inconnu", E21+F21), 0),"Non requis") -> 0 | O21: =IF(INTRO!$E$44="Endémique", IF(AND($K21>0,$K21<5), IF($K21=4,"Inconnu", IF($K21=1, $F21*0.33, IF($K21=2, $F21*0.5+$G21*0.2, SUM(F21:G21)))), 0),"Non requis") -> 87578.4 | P21: 1 | Q21: 0 | R21: 1 | S21: 0 | T21: MDA1 (IVM+ALB) | X21: 5325 | Y21: Nongre-Massom | Z21: TRUE
A22: =IF(INTRO!$E$34<>0,INTRO!$E$34,"") -> Burkina Faso | B22: Centre | C22: Sig-Nonghin | D22: 334951 | E22: 38632 | F22: 88896 | G22: 196800 | H22: 1 | I22: 0 | J22: 1 | K22: 2 | L22: 134350 | M22: =IF(INTRO!$E$40="Endémique", IF($I22>0, IF($I22=4,"Inconnu",IF($I22=99,"Interrompu", $D22)), 0),"Non requis") -> 0 | N22: =IF(INTRO!$E$42="Endémique", IF(AND($J22>1,$J22<5), IF($J22=4, "Inconnu", E22+F22), 0),"Non requis") -> 0 | O22: =IF(INTRO!$E$44="Endémique", IF(AND($K22>0,$K22<5), IF($K22=4,"Inconnu", IF($K22=1, $F22*0.33, IF($K22=2, $F22*0.5+$G22*0.2, SUM(F22:G22)))), 0),"Non requis") -> 83808 | P22: 1 | Q22: 0 | R22: 1 | S22: 0 | T22: MDA1 (IVM+ALB) | X22: 5324 | Y22: Sig-Nonghin | Z22: TRUE
A23: =IF(INTRO!$E$34<>0,INTRO!$E$34,"") -> Burkina Faso | B23: Centre-Est | C23: Bittou | D23: 131213 | E23: 21533 | F23: 38638 | G23: 65214 | H23: 1 | I23: 0 | J23: 1 | K23: 2 | L23: =IF(INTRO!$E$38="Endémique", IF($H23>0, IF($H23=4,"Inconnu", IF($H23=99,"Interrompu", $D23)), 0),"Non requis") -> 131213 | M23: =IF(INTRO!$E$40="Endémique", IF($I23>0, IF($I23=4,"Inconnu",IF($I23=99,"Interrompu", $D23)), 0),"Non requis") -> 0 | N23: =IF(INTRO!$E$42="Endémique", IF(AND($J23>1,$J23<5), IF($J23=4, "Inconnu", E23+F23), 0),"Non requis") -> 0 | O23: =IF(INTRO!$E$44="Endémique", IF(AND($K23>0,$K23<5), IF($K23=4,"Inconnu", IF($K23=1, $F23*0.33, IF($K23=2, $F23*0.5+$G23*0.2, SUM(F23:G23)))), 0),"Non requis") -> 32361.8 | P23: 1 | Q23: 0 | R23: 1 | S23: 2 | T23: MDA1 (IVM+ALB) | U23: T2 (PZQ) | X23: 5326 | Y23: Bittou | Z23: TRUE
A24: =IF(INTRO!$E$34<>0,INTRO!$E$34,"") -> Burkina Faso | B24: Centre-Est | C24: Garango | D24: 218189 | E24: 30265 | F24: 64544 | G24: 114317 | H24: 1 | I24: 0 | J24: 1 | K24: 2 | L24: =IF(INTRO!$E$38="Endémique", IF($H24>0, IF($H24=4,"Inconnu", IF($H24=99,"Interrompu", $D24)), 0),"Non requis") -> 218189 | M24: =IF(INTRO!$E$40="Endémique", IF($I24>0, IF($I24=4,"Inconnu",IF($I24=99,"Interrompu", $D24)), 0),"Non requis") -> 0 | N24: =IF(INTRO!$E$42="Endémique", IF(AND($J24>1,$J24<5), IF($J24=4, "Inconnu", E24+F24), 0),"Non requis") -> 0 | O24: =IF(INTRO!$E$44="Endémique", IF(AND($K24>0,$K24<5), IF($K24=4,"Inconnu", IF($K24=1, $F24*0.33, IF($K24=2, $F24*0.5+$G24*0.2, SUM(F24:G24)))), 0),"Non requis") -> 55135.4 | P24: 1 | Q24: 0 | R24: 1 | S24: 2 | T24: MDA1 (IVM+ALB) | U24: T2 (PZQ) | X24: 5327 | Y24: Garango | Z24: TRUE
A25: =IF(INTRO!$E$34<>0,INTRO!$E$34,"") -> Burkina Faso | B25: Centre-Est | C25: Koupela | D25: 243440 | E25: 35774 | F25: 75121 | G25: 122837 | H25: 1 | I25: 0 | J25: 1 | K25: 2 | L25: =IF(INTRO!$E$38="Endémique", IF($H25>0, IF($H25=4,"Inconnu", IF($H25=99,"Interrompu", $D25)), 0),"Non requis") -> 243440 | M25: =IF(INTRO!$E$40="Endémique", IF($I25>0, IF($I25=4,"Inconnu",IF($I25=99,"Interrompu", $D25)), 0),"Non requis") -> 0 | N25: =IF(INTRO!$E$42="Endémique", IF(AND($J25>1,$J25<5), IF($J25=4, "Inconnu", E25+F25), 0),"Non requis") -> 0 | O25: =IF(INTRO!$E$44="Endémique", IF(AND($K25>0,$K25<5), IF($K25=4,"Inconnu", IF($K25=1, $F25*0.33, IF($K25=2, $F25*0.5+$G25*0.2, SUM(F25:G25)))), 0),"Non requis") -> 62127.9 | P25: 1 | Q25: 0 | R25: 1 | S25: 2 | T25: MDA1 (IVM+ALB) | U25: T2 (PZQ) | X25: 5328 | Y25: Koupela | Z25: TRUE
A26: =IF(INTRO!$E$34<>0,INTRO!$E$34,"") -> Burkina Faso | B26: Centre-Est | C26: Ouargaye | D26: 362918 | E26: 54351 | F26: 108503 | G26: 184892 | H26: 1 | I26: 0 | J26: 1 | K26: 2 | L26: =IF(INTRO!$E$38="Endémique", IF($H26>0, IF($H26=4,"Inconnu", IF($H26=99,"Interrompu", $D26)), 0),"Non requis") -> 362918 | M26: =IF(INTRO!$E$40="Endémique", IF($I26>0, IF($I26=4,"Inconnu",IF($I26=99,"Interrompu", $D26)), 0),"Non requis") -> 0 | N26: =IF(INTRO!$E$42="Endémique", IF(AND($J26>1,$J26<5), IF($J26=4, "Inconnu", E26+F26), 0),"Non requis") -> 0 | O26: =IF(INTRO!$E$44="Endémique", IF(AND($K26>0,$K26<5), IF($K26=4,"Inconnu", IF($K26=1, $F26*0.33, IF($K26=2, $F26*0.5+$G26*0.2, SUM(F26:G26)))), 0),"Non requis") -> 91229.9 | P26: 1 | Q26: 0 | R26: 1 | S26: 2 | T26: MDA1 (IVM+ALB) | U26: T2 (PZQ) | X26: 5329 | Y26: Ouargaye | Z26: TRUE
A27: =IF(INTRO!$E$34<>0,INTRO!$E$34,"") -> Burkina Faso | B27: Centre-Est | C27: Pouytenga | D27: 210027 | E27: 32138 | F27: 60452 | G27: 108187 | H27: 1 | I27: 0 | J27: 1 | K27: 2 | L27: =IF(INTRO!$E$38="Endémique", IF($H27>0, IF($H27=4,"Inconnu", IF($H27=99,"Interrompu", $D27)), 0),"Non requis") -> 210027 | M27: =IF(INTRO!$E$40="Endémique", IF($I27>0, IF($I27=4,"Inconnu",IF($I27=99,"Interrompu", $D27)), 0),"Non requis") -> 0 | N27: =IF(INTRO!$E$42="Endémique", IF(AND($J27>1,$J27<5), IF($J27=4, "Inconnu", E27+F27), 0),"Non requis") -> 0 | O27: =IF(INTRO!$E$44="Endémique", IF(AND($K27>0,$K27<5), IF($K27=4,"Inconnu", IF($K27=1, $F27*0.33, IF($K27=2, $F27*0.5+$G27*0.2, SUM(F27:G27)))), 0),"Non requis") -> 51863.4 | P27: 1 | Q27: 0 | R27: 1 | S27: 2 | T27: MDA1 (IVM+ALB) | U27: T2 (PZQ) | X27: 5330 | Y27: Pouytenga | Z27: TRUE
A28: =IF(INTRO!$E$34<>0,INTRO!$E$34,"") -> Burkina Faso | B28: Centre-Est | C28: Tenkodogo | D28: 239993 | E28: 35238 | F28: 70072 | G28: 124547 | H28: 1 | I28: 0 | J28: 1 | K28: 2 | L28: =IF(INTRO!$E$38="Endémique", IF($H28>0, IF($H28=4,"Inconnu", IF($H28=99,"Interrompu", $D28)), 0),"Non requis") -> 239993 | M28: =IF(INTRO!$E$40="Endémique", IF($I28>0, IF($I28=4,"Inconnu",IF($I28=99,"Interrompu", $D28)), 0),"Non requis") -> 0 | N28: =IF(INTRO!$E$42="Endémique", IF(AND($J28>1,$J28<5), IF($J28=4, "Inconnu", E28+F28), 0),"Non requis") -> 0 | O28: =IF(INTRO!$E$44="Endémique", IF(AND($K28>0,$K28<5), IF($K28=4,"Inconnu", IF($K28=1, $F28*0.33, IF($K28=2, $F28*0.5+$G28*0.2, SUM(F28:G28)))), 0),"Non requis") -> 59945.4 | P28: 1 | Q28: 0 | R28: 1 | S28: 2 | T28: MDA1 (IVM+ALB) | U28: T2 (PZQ) | X28: 5331 | Y28: Tenkodogo | Z28: TRUE
A29: =IF(INTRO!$E$34<>0,INTRO!$E$34,"") -> Burkina Faso | B29: Centre-Est | C29: Zabré | D29: 155428 | E29: 24508 | F29: 49426 | G29: 75384 | H29: 99 | I29: 0 | J29: 1 | K29: 2 | L29: =IF(INTRO!$E$38="Endémique", IF($H29>0, IF($H29=4,"Inconnu", IF($H29=99,"Interrompu", $D29)), 0),"Non requis") -> Interrompu | M29: =IF(INTRO!$E$40="Endémique", IF($I29>0, IF($I29=4,"Inconnu",IF($I29=99,"Interrompu", $D29)), 0),"Non requis") -> 0 | N29: =IF(INTRO!$E$42="Endémique", IF(AND($J29>1,$J29<5), IF($J29=4, "Inconnu", E29+F29), 0),"Non requis") -> 0 | O29: =IF(INTRO!$E$44="Endémique", IF(AND($K29>0,$K29<5), IF($K29=4,"Inconnu", IF($K29=1, $F29*0.33, IF($K29=2, $F29*0.5+$G29*0.2, SUM(F29:G29)))), 0),"Non requis") -> 39789.8 | P29: 0 | Q29: 0 | R29: 1 | S29: 2 | U29: T2 (PZQ) | X29: 5332 | Y29: Zabré | Z29: TRUE
A30: =IF(INTRO!$E$34<>0,INTRO!$E$34,"") -> Burkina Faso | B30: Centre-Nord | C30: Barsalogo | D30: 198146 | E30: 33288 | F30: 61739 | G30: 93969 | H30: 99 | I30: 0 | J30: 1 | K30: 2 | L30: =IF(INTRO!$E$38="Endémique", IF($H30>0, IF($H30=4,"Inconnu", IF($H30=99,"Interrompu", $D30)), 0),"Non requis") -> Interrompu | M30: =IF(INTRO!$E$40="Endémique", IF($I30>0, IF($I30=4,"Inconnu",IF($I30=99,"Interrompu", $D30)), 0),"Non requis") -> 0 | N30: =IF(INTRO!$E$42="Endémique", IF(AND($J30>1,$J30<5), IF($J30=4, "Inconnu", E30+F30), 0),"Non requis") -> 0 | O30: =IF(INTRO!$E$44="Endémique", IF(AND($K30>0,$K30<5), IF($K30=4,"Inconnu", IF($K30=1, $F30*0.33, IF($K30=2, $F30*0.5+$G30*0.2, SUM(F30:G30)))), 0),"Non requis") -> 49663.3 | P30: 0 | Q30: 0 | R30: 0 | S30: 0 | X30: 5333 | Y30: Barsalogo | Z30: TRUE
A31: =IF(INTRO!$E$34<>0,INTRO!$E$34,"") -> Burkina Faso | B31: Centre-Nord | C31: Boulsa | D31: 216180 | E31: 32617 | F31: 66676 | G31: 108345 | H31: 99 | I31: 0 | J31: 1 | K31: 2 | L31: =IF(INTRO!$E$38="Endémique", IF($H31>0, IF($H31=4,"Inconnu", IF($H31=99,"Interrompu", $D31)), 0),"Non requis") -> Interrompu | M31: =IF(INTRO!$E$40="Endémique", IF($I31>0, IF($I31=4,"Inconnu",IF($I31=99,"Interrompu", $D31)), 0),"Non requis") -> 0 | N31: =IF(INTRO!$E$42="Endémique", IF(AND($J31>1,$J31<5), IF($J31=4, "Inconnu", E31+F31), 0),"Non requis") -> 0 | O31: =IF(INTRO!$E$44="Endémique", IF(AND($K31>0,$K31<5), IF($K31=4,"Inconnu", IF($K31=1, $F31*0.33, IF($K31=2, $F31*0.5+$G31*0.2, SUM(F31:G31)))), 0),"Non requis") -> 55007 | P31: 0 | Q31: 0 | R31: 0 | S31: 0 | X31: 5334 | Y31: Boulsa | Z31: TRUE
A32: =IF(INTRO!$E$34<>0,INTRO!$E$34,"") -> Burkina Faso | B32: Centre-Nord | C32: Boussouma | D32: 220233 | E32: 32641 | F32: 65567 | G32: 112707 | H32: 99 | I32: 0 | J32: 1 | K32: 2 | L32: =IF(INTRO!$E$38="Endémique", IF($H32>0, IF($H32=4,"Inconnu", IF($H32=99,"Interrompu", $D32)), 0),"Non requis") -> Interrompu | M32: =IF(INTRO!$E$40="Endémique", IF($I32>0, IF($I32=4,"Inconnu",IF($I32=99,"Interrompu", $D32)), 0),"Non requis") -> 0 | N32: =IF(INTRO!$E$42="Endémique", IF(AND($J32>1,$J32<5), IF($J32=4, "Inconnu", E32+F32), 0),"Non requis") -> 0 | O32: =IF(INTRO!$E$44="Endémique", IF(AND($K32>0,$K32<5), IF($K32=4,"Inconnu", IF($K32=1, $F32*0.33, IF($K32=2, $F32*0.5+$G32*0.2, SUM(F32:G32)))), 0),"Non requis") -> 55324.9 | P32: 0 | Q32: 0 | R32: 0 | S32: 0 | X32: 53001 | Y32: Boussouma | Z32: TRUE
A33: =IF(INTRO!$E$34<>0,INTRO!$E$34,"") -> Burkina Faso | B33: Centre-Nord | C33: Kaya | D33: 395812 | E33: 58168 | F33: 119046 | G33: 202365 | H33: 99 | I33: 0 | J33: 1 | K33: 2 | L33: =IF(INTRO!$E$38="Endémique", IF($H33>0, IF($H33=4,"Inconnu", IF($H33=99,"Interrompu", $D33)), 0),"Non requis") -> Interrompu | M33: =IF(INTRO!$E$40="Endémique", IF($I33>0, IF($I33=4,"Inconnu",IF($I33=99,"Interrompu", $D33)), 0),"Non requis") -> 0 | N33: =IF(INTRO!$E$42="Endémique", IF(AND($J33>1,$J33<5), IF($J33=4, "Inconnu", E33+F33), 0),"Non requis") -> 0 | O33: =IF(INTRO!$E$44="Endémique", IF(AND($K33>0,$K33<5), IF($K33=4,"Inconnu", IF($K33=1, $F33*0.33, IF($K33=2, $F33*0.5+$G33*0.2, SUM(F33:G33)))), 0),"Non requis") -> 99996 | P33: 0 | Q33: 0 | R33: 0 | S33: 0 | X33: 5335 | Y33: Kaya | Z33: TRUE
A34: =IF(INTRO!$E$34<>0,INTRO!$E$34,"") -> Burkina Faso | B34: Centre-Nord | C34: Kongoussi | D34: 376211 | E34: 57339 | F34: 113831 | G34: 189007 | H34: 99 | I34: 0 | J34: 1 | K34: 2 | L34: =IF(INTRO!$E$38="Endémique", IF($H34>0, IF($H34=4,"Inconnu", IF($H34=99,"Interrompu", $D34)), 0),"Non requis") -> Interrompu | M34: =IF(INTRO!$E$40="Endémique", IF($I34>0, IF($I34=4,"Inconnu",IF($I34=99,"Interrompu", $D34)), 0),"Non requis") -> 0 | N34: =IF(INTRO!$E$42="Endémique", IF(AND($J34>1,$J34<5), IF($J34=4, "Inconnu", E34+F34), 0),"Non requis") -> 0 | O34: =IF(INTRO!$E$44="Endémique", IF(AND($K34>0,$K34<5), IF($K34=4,"Inconnu", IF($K34=1, $F34*0.33, IF($K34=2, $F34*0.5+$G34*0.2, SUM(F34:G34)))), 0),"Non requis") -> 94716.9 | P34: 0 | Q34: 0 | R34: 0 | S34: 0 | X34: 5336 | Y34: Kongoussi | Z34: TRUE
A35: =IF(INTRO!$E$34<>0,INTRO!$E$34,"") -> Burkina Faso | B35: Centre-Nord | C35: Tougouri | D35: 233384 | E35: 35902 | F35: 69347 | G35: 117516 | H35: 99 | I35: 0 | J35: 1 | K35: 2 | L35: =IF(INTRO!$E$38="Endémique", IF($H35>0, IF($H35=4,"Inconnu", IF($H35=99,"Interrompu", $D35)), 0),"Non requis") -> Interrompu | M35: =IF(INTRO!$E$40="Endémique", IF($I35>0, IF($I35=4,"Inconnu",IF($I35=99,"Interrompu", $D35)), 0),"Non requis") -> 0 | N35: =IF(INTRO!$E$42="Endémique", IF(AND($J35>1,$J35<5), IF($J35=4, "Inconnu", E35+F35), 0),"Non requis") -> 0 | O35: =IF(INTRO!$E$44="Endémique", IF(AND($K35>0,$K35<5), IF($K35=4,"Inconnu", IF($K35=1, $F35*0.33, IF($K35=2, $F35*0.5+$G35*0.2, SUM(F35:G35)))), 0),"Non requis") -> 58176.7 | P35: 0 | Q35: 0 | R35: 0 | S35: 0 | X35: 53002 | Y35: Tougouri | Z35: TRUE
A36: =IF(INTRO!$E$34<>0,INTRO!$E$34,"") -> Burkina Faso | B36: Centre-Ouest | C36: Koudougou | D36: 384340 | E36: 53833 | F36: 109476 | G36: 205832 | H36: 99 | I36: 0 | J36: 1 | K36: 2 | L36: =IF(INTRO!$E$38="Endémique", IF($H36>0, IF($H36=4,"Inconnu", IF($H36=99,"Interrompu", $D36)), 0),"Non requis") -> Interrompu | M36: =IF(INTRO!$E$40="Endémique", IF($I36>0, IF($I36=4,"Inconnu",IF($I36=99,"Interrompu", $D36)), 0),"Non requis") -> 0 | N36: =IF(INTRO!$E$42="Endémique", IF(AND($J36>1,$J36<5), IF($J36=4, "Inconnu", E36+F36), 0),"Non requis") -> 0 | O36: =IF(INTRO!$E$44="Endémique", IF(AND($K36>0,$K36<5), IF($K36=4,"Inconnu", IF($K36=1, $F36*0.33, IF($K36=2, $F36*0.5+$G36*0.2, SUM(F36:G36)))), 0),"Non requis") -> 95904.4 | P36: 0 | Q36: 0 | R36: 0 | S36: 0 | X36: 5337 | Y36: Koudougou | Z36: TRUE
A37: =IF(INTRO!$E$34<>0,INTRO!$E$34,"") -> Burkina Faso | B37: Centre-Ouest | C37: Léo | D37: 289793 | E37: 42320 | F37: 86229 | G37: 149523 | H37: 99 | I37: 0 | J37: 1 | K37: 2 | L37: =IF(INTRO!$E$38="Endémique", IF($H37>0, IF($H37=4,"Inconnu", IF($H37=99,"Interrompu", $D37)), 0),"Non requis") -> Interrompu | M37: =IF(INTRO!$E$40="Endémique", IF($I37>0, IF($I37=4,"Inconnu",IF($I37=99,"Interrompu", $D37)), 0),"Non requis") -> 0 | N37: =IF(INTRO!$E$42="Endémique", IF(AND($J37>1,$J37<5), IF($J37=4, "Inconnu", E37+F37), 0),"Non requis") -> 0 | O37: =IF(INTRO!$E$44="Endémique", IF(AND($K37>0,$K37<5), IF($K37=4,"Inconnu", IF($K37=1, $F37*0.33, IF($K37=2, $F37*0.5+$G37*0.2, SUM(F37:G37)))), 0),"Non requis") -> 73019.1 | P37: 0 | Q37: 0 | R37: 0 | S37: 0 | X37: 5338 | Y37: Léo | Z37: TRUE
A38: =IF(INTRO!$E$34<>0,INTRO!$E$34,"") -> Burkina Faso | B38: Centre-Ouest | C38: Nanoro | D38: 171119 | E38: 26517 | F38: 54093 | G38: 83648 | H38: 99 | I38: 0 | J38: 1 | K38: 2 | L38: =IF(INTRO!$E$38="Endémique", IF($H38>0, IF($H38=4,"Inconnu", IF($H38=99,"Interrompu", $D38)), 0),"Non requis") -> Interrompu | M38: =IF(INTRO!$E$40="Endémique", IF($I38>0, IF($I38=4,"Inconnu",IF($I38=99,"Interrompu", $D38)), 0),"Non requis") -> 0 | N38: =IF(INTRO!$E$42="Endémique", IF(AND($J38>1,$J38<5), IF($J38=4, "Inconnu", E38+F38), 0),"Non requis") -> 0 | O38: =IF(INTRO!$E$44="Endémique", IF(AND($K38>0,$K38<5), IF($K38=4,"Inconnu", IF($K38=1, $F38*0.33, IF($K38=2, $F38*0.5+$G38*0.2, SUM(F38:G38)))), 0),"Non requis") -> 43776.1 | P38: 0 | Q38: 0 | R38: 0 | S38: 0 | X38: 5339 | Y38: Nanoro | Z38: TRUE
A39: =IF(INTRO!$E$34<>0,INTRO!$E$34,"") -> Burkina Faso | B39: Centre-Ouest | C39: Réo | D39: 203824 | E39: 29292 | F39: 60846 | G39: 105568 | H39: 99 | I39: 0 | J39: 1 | K39: 2 | L39: =IF(INTRO!$E$38="Endémique", IF($H39>0, IF($H39=4,"Inconnu", IF($H39=99,"Interrompu", $D39)), 0),"Non requis") -> Interrompu | M39: =IF(INTRO!$E$40="Endémique", IF($I39>0, IF($I39=4,"Inconnu",IF($I39=99,"Interrompu", $D39)), 0),"Non requis") -> 0 | N39: =IF(INTRO!$E$42="Endémique", IF(AND($J39>1,$J39<5), IF($J39=4, "Inconnu", E39+F39), 0),"Non requis") -> 0 | O39: =IF(INTRO!$E$44="Endémique", IF(AND($K39>0,$K39<5), IF($K39=4,"Inconnu", IF($K39=1, $F39*0.33, IF($K39=2, $F39*0.5+$G39*0.2, SUM(F39:G39)))), 0),"Non requis") -> 51536.6 | P39: 0 | Q39: 0 | R39: 0 | S39: 0 | X39: 5340 | Y39: Réo | Z39: TRUE
A40: =IF(INTRO!$E$34<>0,INTRO!$E$34,"") -> Burkina Faso | B40: Centre-Ouest | C40: Sabou | D40: 109569 | E40: 16775 | F40: 34316 | G40: 53642 | H40: 99 | I40: 0 | J40: 1 | K40: 2 | L40: =IF(INTRO!$E$38="Endémique", IF($H40>0, IF($H40=4,"Inconnu", IF($H40=99,"Interrompu", $D40)), 0),"Non requis") -> Interrompu | M40: =IF(INTRO!$E$40="Endémique", IF($I40>0, IF($I40=4,"Inconnu",IF($I40=99,"Interrompu", $D40)), 0),"Non requis") -> 0 | N40: =IF(INTRO!$E$42="Endémique", IF(AND($J40>1,$J40<5), IF($J40=4, "Inconnu", E40+F40), 0),"Non requis") -> 0 | O40: =IF(INTRO!$E$44="Endémique", IF(AND($K40>0,$K40<5), IF($K40=4,"Inconnu", IF($K40=1, $F40*0.33, IF($K40=2, $F40*0.5+$G40*0.2, SUM(F40:G40)))), 0),"Non requis") -> 27886.4 | P40: 0 | Q40: 0 | R40: 0 | S40: 0 | X40: 53003 | Y40: Sabou | Z40: TRUE
A41: =IF(INTRO!$E$34<>0,INTRO!$E$34,"") -> Burkina Faso | B41: Centre-Ouest | C41: Sapouy | D41: 253641 | E41: 37042 | F41: 75473 | G41: 130868 | H41: 99 | I41: 0 | J41: 1 | K41: 2 | L41: =IF(INTRO!$E$38="Endémique", IF($H41>0, IF($H41=4,"Inconnu", IF($H41=99,"Interrompu", $D41)), 0),"Non requis") -> Interrompu | M41: =IF(INTRO!$E$40="Endémique", IF($I41>0, IF($I41=4,"Inconnu",IF($I41=99,"Interrompu", $D41)), 0),"Non requis") -> 0 | N41: =IF(INTRO!$E$42="Endémique", IF(AND($J41>1,$J41<5), IF($J41=4, "Inconnu", E41+F41), 0),"Non requis") -> 0 | O41: =IF(INTRO!$E$44="Endémique", IF(AND($K41>0,$K41<5), IF($K41=4,"Inconnu", IF($K41=1, $F41*0.33, IF($K41=2, $F41*0.5+$G41*0.2, SUM(F41:G41)))), 0),"Non requis") -> 63910.1 | P41: 0 | Q41: 0 | R41: 0 | S41: 0 | X41: 5341 | Y41: Sapouy | Z41: TRUE
A42: =IF(INTRO!$E$34<>0,INTRO!$E$34,"") -> Burkina Faso | B42: Centre-Ouest | C42: Tenado | D42: 185873 | E42: 27618 | F42: 55113 | G42: 95499 | H42: 99 | I42: 0 | J42: 1 | K42: 2 | L42: =IF(INTRO!$E$38="Endémique", IF($H42>0, IF($H42=4,"Inconnu", IF($H42=99,"Interrompu", $D42)), 0),"Non requis") -> Interrompu | M42: =IF(INTRO!$E$40="Endémique", IF($I42>0, IF($I42=4,"Inconnu",IF($I42=99,"Interrompu", $D42)), 0),"Non requis") -> 0 | N42: =IF(INTRO!$E$42="Endémique", IF(AND($J42>1,$J42<5), IF($J42=4, "Inconnu", E42+F42), 0),"Non requis") -> 0 | O42: =IF(INTRO!$E$44="Endémique", IF(AND($K42>0,$K42<5), IF($K42=4,"Inconnu", IF($K42=1, $F42*0.33, IF($K42=2, $F42*0.5+$G42*0.2, SUM(F42:G42)))), 0),"Non requis") -> 46656.3 | P42: 0 | Q42: 0 | R42: 0 | S42: 0 | X42: 53004 | Y42: Tenado | Z42: TRUE
A43: =IF(INTRO!$E$34<>0,INTRO!$E$34,"") -> Burkina Faso | B43: Centre-Sud | C43: Kombissiri | D43: 195026 | E43: 28608 | F43: 54929 | G43: 103404 | H43: 1 | I43: 0 | J43: 1 | K43: 2 | L43: =IF(INTRO!$E$38="Endémique", IF($H43>0, IF($H43=4,"Inconnu", IF($H43=99,"Interrompu", $D43)), 0),"Non requis") -> 195026 | M43: =IF(INTRO!$E$40="Endémique", IF($I43>0, IF($I43=4,"Inconnu",IF($I43=99,"Interrompu", $D43)), 0),"Non requis") -> 0 | N43: =IF(INTRO!$E$42="Endémique", IF(AND($J43>1,$J43<5), IF($J43=4, "Inconnu", E43+F43), 0),"Non requis") -> 0 | O43: =IF(INTRO!$E$44="Endémique", IF(AND($K43>0,$K43<5), IF($K43=4,"Inconnu", IF($K43=1, $F43*0.33, IF($K43=2, $F43*0.5+$G43*0.2, SUM(F43:G43)))), 0),"Non requis") -> 48145.3 | P43: 1 | Q43: 0 | R43: 1 | S43: 0 | T43: MDA1 (IVM+ALB) | X43: 5342 | Y43: Kombissiri | Z43: TRUE
A44: =IF(INTRO!$E$34<>0,INTRO!$E$34,"") -> Burkina Faso | B44: Centre-Sud | C44: Manga | D44: 329623 | E44: 47354 | F44: 95347 | G44: 173732 | H44: 1 | I44: 0 | J44: 1 | K44: 2 | L44: =IF(INTRO!$E$38="Endémique", IF($H44>0, IF($H44=4,"Inconnu", IF($H44=99,"Interrompu", $D44)), 0),"Non requis") -> 329623 | M44: =IF(INTRO!$E$40="Endémique", IF($I44>0, IF($I44=4,"Inconnu",IF($I44=99,"Interrompu", $D44)), 0),"Non requis") -> 0 | N44: =IF(INTRO!$E$42="Endémique", IF(AND($J44>1,$J44<5), IF($J44=4, "Inconnu", E44+F44), 0),"Non requis") -> 0 | O44: =IF(INTRO!$E$44="Endémique", IF(AND($K44>0,$K44<5), IF($K44=4,"Inconnu", IF($K44=1, $F44*0.33, IF($K44=2, $F44*0.5+$G44*0.2, SUM(F44:G44)))), 0),"Non requis") -> 82419.9 | P44: 1 | Q44: 0 | R44: 1 | S44: 0 | T44: MDA1 (IVM+ALB) | X44: 5343 | Y44: Manga | Z44: TRUE
A45: =IF(INTRO!$E$34<>0,INTRO!$E$34,"") -> Burkina Faso | B45: Centre-Sud | C45: Pô | D45: 215197 | E45: 30917 | F45: 62247 | G45: 113422 | H45: 1 | I45: 0 | J45: 1 | K45: 2 | L45: =IF(INTRO!$E$38="Endémique", IF($H45>0, IF($H45=4,"Inconnu", IF($H45=99,"Interrompu", $D45)), 0),"Non requis") -> 215197 | M45: =IF(INTRO!$E$40="Endémique", IF($I45>0, IF($I45=4,"Inconnu",IF($I45=99,"Interrompu", $D45)), 0),"Non requis") -> 0 | N45: =IF(INTRO!$E$42="Endémique", IF(AND($J45>1,$J45<5), IF($J45=4, "Inconnu", E45+F45), 0),"Non requis") -> 0 | O45: =IF(INTRO!$E$44="Endémique", IF(AND($K45>0,$K45<5), IF($K45=4,"Inconnu", IF($K45=1, $F45*0.33, IF($K45=2, $F45*0.5+$G45*0.2, SUM(F45:G45)))), 0),"Non requis") -> 53807.9 | P45: 1 | Q45: 0 | R45: 1 | S45: 0 | T45: MDA1 (IVM+ALB) | X45: 5344 | Y45: Pô | Z45: TRUE
A46: =IF(INTRO!$E$34<>0,INTRO!$E$34,"") -> Burkina Faso | B46: Centre-Sud | C46: Saponé | D46: 109094 | E46: 15084 | F46: 33040 | G46: 56886 | H46: 1 | I46: 0 | J46: 1 | K46: 2 | L46: =IF(INTRO!$E$38="Endémique", IF($H46>0, IF($H46=4,"Inconnu", IF($H46=99,"Interrompu", $D46)), 0),"Non requis") -> 109094 | M46: =IF(INTRO!$E$40="Endémique", IF($I46>0, IF($I46=4,"Inconnu",IF($I46=99,"Interrompu", $D46)), 0),"Non requis") -> 0 | N46: =IF(INTRO!$E$42="Endémique", IF(AND($J46>1,$J46<5), IF($J46=4, "Inconnu", E46+F46), 0),"Non requis") -> 0 | O46: =IF(INTRO!$E$44="Endémique", IF(AND($K46>0,$K46<5), IF($K46=4,"Inconnu", IF($K46=1, $F46*0.33, IF($K46=2, $F46*0.5+$G46*0.2, SUM(F46:G46)))), 0),"Non requis") -> 27897.2 | P46: 1 | Q46: 0 | R46: 1 | S46: 0 | T46: MDA1 (IVM+ALB) | X46: 5345 | Y46: Saponé | Z46: TRUE
A47: =IF(INTRO!$E$34<>0,INTRO!$E$34,"") -> Burkina Faso | B47: Est | C47: Bogandé | D47: 378151 | E47: 59184 | F47: 119728 | G47: 182443 | H47: 1 | I47: 0 | J47: 1 | K47: 2 | L47: =IF(INTRO!$E$38="Endémique", IF($H47>0, IF($H47=4,"Inconnu", IF($H47=99,"Interrompu", $D47)), 0),"Non requis") -> 378151 | M47: =IF(INTRO!$E$40="Endémique", IF($I47>0, IF($I47=4,"Inconnu",IF($I47=99,"Interrompu", $D47)), 0),"Non requis") -> 0 | N47: =IF(INTRO!$E$42="Endémique", IF(AND($J47>1,$J47<5), IF($J47=4, "Inconnu", E47+F47), 0),"Non requis") -> 0 | O47: =IF(INTRO!$E$44="Endémique", IF(AND($K47>0,$K47<5), IF($K47=4,"Inconnu", IF($K47=1, $F47*0.33, IF($K47=2, $F47*0.5+$G47*0.2, SUM(F47:G47)))), 0),"Non requis") -> 96352.6 | P47: 1 | Q47: 0 | R47: 1 | S47: 0 | T47: MDA1 (IVM+ALB) | X47: 5346 | Y47: Bogandé | Z47: TRUE
A48: =IF(INTRO!$E$34<>0,INTRO!$E$34,"") -> Burkina Faso | B48: Est | C48: Diapaga | D48: 490847 | E48: 77834 | F48: 152846 | G48: 238275 | H48: 1 | I48: 0 | J48: 1 | K48: 2 | L48: =IF(INTRO!$E$38="Endémique", IF($H48>0, IF($H48=4,"Inconnu", IF($H48=99,"Interrompu", $D48)), 0),"Non requis") -> 490847 | M48: =IF(INTRO!$E$40="Endémique", IF($I48>0, IF($I48=4,"Inconnu",IF($I48=99,"Interrompu", $D48)), 0),"Non requis") -> 0 | N48: =IF(INTRO!$E$42="Endémique", IF(AND($J48>1,$J48<5), IF($J48=4, "Inconnu", E48+F48), 0),"Non requis") -> 0 | O48: =IF(INTRO!$E$44="Endémique", IF(AND($K48>0,$K48<5), IF($K48=4,"Inconnu", IF($K48=1, $F48*0.33, IF($K48=2, $F48*0.5+$G48*0.2, SUM(F48:G48)))), 0),"Non requis") -> 124078 | P48: 1 | Q48: 0 | R48: 1 | S48: 0 | T48: MDA1 (IVM+ALB) | X48: 5347 | Y48: Diapaga | Z48: TRUE
A49: =IF(INTRO!$E$34<>0,INTRO!$E$34,"") -> Burkina Faso | B49: Est | C49: Fada N'gourma | D49: 429709 | E49: 68139 | F49: 133809 | G49: 208596 | H49: 1 | I49: 0 | J49: 1 | K49: 2 | L49: =IF(INTRO!$E$38="Endémique", IF($H49>0, IF($H49=4,"Inconnu", IF($H49=99,"Interrompu", $D49)), 0),"Non requis") -> 429709 | M49: =IF(INTRO!$E$40="Endémique", IF($I49>0, IF($I49=4,"Inconnu",IF($I49=99,"Interrompu", $D49)), 0),"Non requis") -> 0 | N49: =IF(INTRO!$E$42="Endémique", IF(AND($J49>1,$J49<5), IF($J49=4, "Inconnu", E49+F49), 0),"Non requis") -> 0 | O49: =IF(INTRO!$E$44="Endémique", IF(AND($K49>0,$K49<5), IF($K49=4,"Inconnu", IF($K49=1, $F49*0.33, IF($K49=2, $F49*0.5+$G49*0.2, SUM(F49:G49)))), 0),"Non requis") -> 108623.7 | P49: 1 | Q49: 0 | R49: 1 | S49: 0 | T49: MDA1 (IVM+ALB) | X49: 5348 | Y49: Fada N'gourma | Z49: TRUE
A50: =IF(INTRO!$E$34<>0,INTRO!$E$34,"") -> Burkina Faso | B50: Est | C50: Gayeri | D50: 117973 | E50: 18707 | F50: 36736 | G50: 57269 | H50: 1 | I50: 0 | J50: 1 | K50: 2 | L50: =IF(INTRO!$E$38="Endémique", IF($H50>0, IF($H50=4,"Inconnu", IF($H50=99,"Interrompu", $D50)), 0),"Non requis") -> 117973 | M50: =IF(INTRO!$E$40="Endémique", IF($I50>0, IF($I50=4,"Inconnu",IF($I50=99,"Interrompu", $D50)), 0),"Non requis") -> 0 | N50: =IF(INTRO!$E$42="Endémique", IF(AND($J50>1,$J50<5), IF($J50=4, "Inconnu", E50+F50), 0),"Non requis") -> 0 | O50: =IF(INTRO!$E$44="Endémique", IF(AND($K50>0,$K50<5), IF($K50=4,"Inconnu", IF($K50=1, $F50*0.33, IF($K50=2, $F50*0.5+$G50*0.2, SUM(F50:G50)))), 0),"Non requis") -> 29821.8 | P50: 1 | Q50: 0 | R50: 1 | S50: 0 | T50: MDA1 (IVM+ALB) | X50: 5349 | Y50: Gayeri | Z50: TRUE
A51: =IF(INTRO!$E$34<>0,INTRO!$E$34,"") -> Burkina Faso | B51: Est | C51: Manni | D51: 184741 | E51: 30076 | F51: 55559 | G51: 90798 | H51: 1 | I51: 0 | J51: 1 | K51: 2 | L51: =IF(INTRO!$E$38="Endémique", IF($H51>0, IF($H51=4,"Inconnu", IF($H51=99,"Interrompu", $D51)), 0),"Non requis") -> 184741 | M51: =IF(INTRO!$E$40="Endémique", IF($I51>0, IF($I51=4,"Inconnu",IF($I51=99,"Interrompu", $D51)), 0),"Non requis") -> 0 | N51: =IF(INTRO!$E$42="Endémique", IF(AND($J51>1,$J51<5), IF($J51=4, "Inconnu", E51+F51), 0),"Non requis") -> 0 | O51: =IF(INTRO!$E$44="Endémique", IF(AND($K51>0,$K51<5), IF($K51=4,"Inconnu", IF($K51=1, $F51*0.33, IF($K51=2, $F51*0.5+$G51*0.2, SUM(F51:G51)))), 0),"Non requis") -> 45939.1 | P51: 1 | Q51: 0 | R51: 1 | S51: 0 | T51: MDA1 (IVM+ALB) | X51: 5350 | Y51: Manni | Z51: TRUE
A52: =IF(INTRO!$E$34<>0,INTRO!$E$34,"") -> Burkina Faso | B52: Est | C52: Pama | D52: 121092 | E52: 19200 | F52: 37706 | G52: 58785 | H52: 1 | I52: 0 | J52: 1 | K52: 2 | L52: =IF(INTRO!$E$38="Endémique", IF($H52>0, IF($H52=4,"Inconnu", IF($H52=99,"Interrompu", $D52)), 0),"Non requis") -> 121092 | M52: =IF(INTRO!$E$40="Endémique", IF($I52>0, IF($I52=4,"Inconnu",IF($I52=99,"Interrompu", $D52)), 0),"Non requis") -> 0 | N52: =IF(INTRO!$E$42="Endémique", IF(AND($J52>1,$J52<5), IF($J52=4, "Inconnu", E52+F52), 0),"Non requis") -> 0 | O52: =IF(INTRO!$E$44="Endémique", IF(AND($K52>0,$K52<5), IF($K52=4,"Inconnu", IF($K52=1, $F52*0.33, IF($K52=2, $F52*0.5+$G52*0.2, SUM(F52:G52)))), 0),"Non requis") -> 30610 | P52: 1 | Q52: 0 | R52: 1 | S52: 0 | T52: MDA1 (IVM+ALB) | X52: 5351 | Y52: Pama | Z52: TRUE
A53: =IF(INTRO!$E$34<>0,INTRO!$E$34,"") -> Burkina Faso | B53: Hauts-Bassins | C53: Dafra | D53: 348032 | E53: 37961 | F53: 94333 | G53: 205522 | H53: 99 | I53: 0 | J53: 1 | K53: 1 | L53: =IF(INTRO!$E$38="Endémique", IF($H53>0, IF($H53=4,"Inconnu", IF($H53=99,"Interrompu", $D53)), 0),"Non requis") -> Interrompu | M53: =IF(INTRO!$E$40="Endémique", IF($I53>0, IF($I53=4,"Inconnu",IF($I53=99,"Interrompu", $D53)), 0),"Non requis") -> 0 | N53: =IF(INTRO!$E$42="Endémique", IF(AND($J53>1,$J53<5), IF($J53=4, "Inconnu", E53+F53), 0),"Non requis") -> 0 | O53: =IF(INTRO!$E$44="Endémique", IF(AND($K53>0,$K53<5), IF($K53=4,"Inconnu", IF($K53=1, $F53*0.33, IF($K53=2, $F53*0.5+$G53*0.2, SUM(F53:G53)))), 0),"Non requis") -> 31129.89 | P53: 0 | Q53: 0 | R53: 0 | S53: 0 | X53: 5352 | Y53: Dafra | Z53: TRUE
A54: =IF(INTRO!$E$34<>0,INTRO!$E$34,"") -> Burkina Faso | B54: Hauts-Bassins | C54: Dandé | D54: 277817 | E54: 42578 | F54: 86232 | G54: 137953 | H54: 99 | I54: 0 | J54: 1 | K54: 1 | L54: =IF(INTRO!$E$38="Endémique", IF($H54>0, IF($H54=4,"Inconnu", IF($H54=99,"Interrompu", $D54)), 0),"Non requis") -> Interrompu | M54: =IF(INTRO!$E$40="Endémique", IF($I54>0, IF($I54=4,"Inconnu",IF($I54=99,"Interrompu", $D54)), 0),"Non requis") -> 0 | N54: =IF(INTRO!$E$42="Endémique", IF(AND($J54>1,$J54<5), IF($J54=4, "Inconnu", E54+F54), 0),"Non requis") -> 0 | O54: =IF(INTRO!$E$44="Endémique", IF(AND($K54>0,$K54<5), IF($K54=4,"Inconnu", IF($K54=1, $F54*0.33, IF($K54=2, $F54*0.5+$G54*0.2, SUM(F54:G54)))), 0),"Non requis") -> 28456.56 | P54: 0 | Q54: 0 | R54: 0 | S54: 0 | X54: 5353 | Y54: Dandé | Z54: TRUE
A55: =IF(INTRO!$E$34<>0,INTRO!$E$34,"") -> Burkina Faso | B55: Hauts-Bassins | C55: Dô | D55: 548046 | E55: 62993 | F55: 149214 | G55: 318624 | H55: 99 | I55: 0 | J55: 1 | K55: 1 | L55: =IF(INTRO!$E$38="Endémique", IF($H55>0, IF($H55=4,"Inconnu", IF($H55=99,"Interrompu", $D55)), 0),"Non requis") -> Interrompu | M55: =IF(INTRO!$E$40="Endémique", IF($I55>0, IF($I55=4,"Inconnu",IF($I55=99,"Interrompu", $D55)), 0),"Non requis") -> 0 | N55: =IF(INTRO!$E$42="Endémique", IF(AND($J55>1,$J55<5), IF($J55=4, "Inconnu", E55+F55), 0),"Non requis") -> 0 | O55: =IF(INTRO!$E$44="Endémique", IF(AND($K55>0,$K55<5), IF($K55=4,"Inconnu", IF($K55=1, $F55*0.33, IF($K55=2, $F55*0.5+$G55*0.2, SUM(F55:G55)))), 0),"Non requis") -> 49240.62 | P55: 0 | Q55: 0 | R55: 0 | S55: 0 | X55: 5354 | Y55: Dô | Z55: TRUE
A56: =IF(INTRO!$E$34<>0,INTRO!$E$34,"") -> Burkina Faso | B56: Hauts-Bassins | C56: Houndé | D56: 324750 | E56: 40929 | F56: 92542 | G56: 180404 | H56: 99 | I56: 0 | J56: 1 | K56: 1 | L56: =IF(INTRO!$E$38="Endémique", IF($H56>0, IF($H56=4,"Inconnu", IF($H56=99,"Interrompu", $D56)), 0),"Non requis") -> Interrompu | M56: =IF(INTRO!$E$40="Endémique", IF($I56>0, IF($I56=4,"Inconnu",IF($I56=99,"Interrompu", $D56)), 0),"Non requis") -> 0 | N56: =IF(INTRO!$E$42="Endémique", IF(AND($J56>1,$J56<5), IF($J56=4, "Inconnu", E56+F56), 0),"Non requis") -> 0 | O56: =IF(INTRO!$E$44="Endémique", IF(AND($K56>0,$K56<5), IF($K56=4,"Inconnu", IF($K56=1, $F56*0.33, IF($K56=2, $F56*0.5+$G56*0.2, SUM(F56:G56)))), 0),"Non requis") -> 30538.86 | P56: 0 | Q56: 0 | R56: 0 | S56: 0 | X56: 5355 | Y56: Houndé | Z56: TRUE
A57: =IF(INTRO!$E$34<>0,INTRO!$E$34,"") -> Burkina Faso | B57: Hauts-Bassins | C57: Karangasso-Vigué | D57: 107300 | E57: 16189 | F57: 32283 | G57: 54619 | H57: 99 | I57: 0 | J57: 1 | K57: 1 | L57: =IF(INTRO!$E$38="Endémique", IF($H57>0, IF($H57=4,"Inconnu", IF($H57=99,"Interrompu", $D57)), 0),"Non requis") -> Interrompu | M57: =IF(INTRO!$E$40="Endémique", IF($I57>0, IF($I57=4,"Inconnu",IF($I57=99,"Interrompu", $D57)), 0),"Non requis") -> 0 | N57: =IF(INTRO!$E$42="Endémique", IF(AND($J57>1,$J57<5), IF($J57=4, "Inconnu", E57+F57), 0),"Non requis") -> 0 | O57: =IF(INTRO!$E$44="Endémique", IF(AND($K57>0,$K57<5), IF($K57=4,"Inconnu", IF($K57=1, $F57*0.33, IF($K57=2, $F57*0.5+$G57*0.2, SUM(F57:G57)))), 0),"Non requis") -> 10653.39 | P57: 0 | Q57: 0 | R57: 0 | S57: 0 | X57: 5356 | Y57: Karangasso-Vigué | Z57: TRUE
A58: =IF(INTRO!$E$34<>0,INTRO!$E$34,"") -> Burkina Faso | B58: Hauts-Bassins | C58: Lena | D58: 77029 | E58: 11456 | F58: 24980 | G58: 37806 | H58: 99 | I58: 0 | J58: 1 | K58: 1 | L58: =IF(INTRO!$E$38="Endémique", IF($H58>0, IF($H58=4,"Inconnu", IF($H58=99,"Interrompu", $D58)), 0),"Non requis") -> Interrompu | M58: =IF(INTRO!$E$40="Endémique", IF($I58>0, IF($I58=4,"Inconnu",IF($I58=99,"Interrompu", $D58)), 0),"Non requis") -> 0 | N58: =IF(INTRO!$E$42="Endémique", IF(AND($J58>1,$J58<5), IF($J58=4, "Inconnu", E58+F58), 0),"Non requis") -> 0 | O58: =IF(INTRO!$E$44="Endémique", IF(AND($K58>0,$K58<5), IF($K58=4,"Inconnu", IF($K58=1, $F58*0.33, IF($K58=2, $F58*0.5+$G58*0.2, SUM(F58:G58)))), 0),"Non requis") -> 8243.4 | P58: 0 | Q58: 0 | R58: 0 | S58: 0 | X58: 5357 | Y58: Lena | Z58: TRUE
A59: =IF(INTRO!$E$34<>0,INTRO!$E$34,"") -> Burkina Faso | B59: Hauts-Bassins | C59: N'Dorola | D59: 151050 | E59: 19733 | F59: 43874 | G59: 82032 | H59: 99 | I59: 0 | J59: 1 | K59: 1 | L59: =IF(INTRO!$E$38="Endémique", IF($H59>0, IF($H59=4,"Inconnu", IF($H59=99,"Interrompu", $D59)), 0),"Non requis") -> Interrompu | M59: =IF(INTRO!$E$40="Endémique", IF($I59>0, IF($I59=4,"Inconnu",IF($I59=99,"Interrompu", $D59)), 0),"Non requis") -> 0 | N59: =IF(INTRO!$E$42="Endémique", IF(AND($J59>1,$J59<5), IF($J59=4, "Inconnu", E59+F59), 0),"Non requis") -> 0 | O59: =IF(INTRO!$E$44="Endémique", IF(AND($K59>0,$K59<5), IF($K59=4,"Inconnu", IF($K59=1, $F59*0.33, IF($K59=2, $F59*0.5+$G59*0.2, SUM(F59:G59)))), 0),"Non requis") -> 14478.42 | P59: 0 | Q59: 0 | R59: 0 | S59: 0 | X59: 53005 | Y59: N'Dorola | Z59: TRUE
A60: =IF(INTRO!$E$34<>0,INTRO!$E$34,"") -> Burkina Faso | B60: Hauts-Bassins | C60: Orodara | D60: 257258 | E60: 31725 | F60: 72478 | G60: 144793 | H60: 99 | I60: 0 | J60: 1 | K60: 1 | L60: =IF(INTRO!$E$38="Endémique", IF($H60>0, IF($H60=4,"Inconnu", IF($H60=99,"Interrompu", $D60)), 0),"Non requis") -> Interrompu | M60: =IF(INTRO!$E$40="Endémique", IF($I60>0, IF($I60=4,"Inconnu",IF($I60=99,"Interrompu", $D60)), 0),"Non requis") -> 0 | N60: =IF(INTRO!$E$42="Endémique", IF(AND($J60>1,$J60<5), IF($J60=4, "Inconnu", E60+F60), 0),"Non requis") -> 0 | O60: =IF(INTRO!$E$44="Endémique", IF(AND($K60>0,$K60<5), IF($K60=4,"Inconnu", IF($K60=1, $F60*0.33, IF($K60=2, $F60*0.5+$G60*0.2, SUM(F60:G60)))), 0),"Non requis") -> 23917.74 | P60: 0 | Q60: 0 | R60: 0 | S60: 0 | X60: 5358 | Y60: Orodara | Z60: TRUE
A61: =IF(INTRO!$E$34<>0,INTRO!$E$34,"") -> Burkina Faso | B61: Nord | C61: Gourcy | D61: 227912 | E61: 34523 | F61: 68781 | G61: 114971 | H61: 99 | I61: 0 | J61: 1 | K61: 2 | L61: =IF(INTRO!$E$38="Endémique", IF($H61>0, IF($H61=4,"Inconnu", IF($H61=99,"Interrompu", $D61)), 0),"Non requis") -> Interrompu | M61: =IF(INTRO!$E$40="Endémique", IF($I61>0, IF($I61=4,"Inconnu",IF($I61=99,"Interrompu", $D61)), 0),"Non requis") -> 0 | N61: =IF(INTRO!$E$42="Endémique", IF(AND($J61>1,$J61<5), IF($J61=4, "Inconnu", E61+F61), 0),"Non requis") -> 0 | O61: =IF(INTRO!$E$44="Endémique", IF(AND($K61>0,$K61<5), IF($K61=4,"Inconnu", IF($K61=1, $F61*0.33, IF($K61=2, $F61*0.5+$G61*0.2, SUM(F61:G61)))), 0),"Non requis") -> 57384.7 | P61: 0 | Q61: 0 | R61: 1 | S61: 1 | T61: T1 (PZQ+ALB/MBD) | X61: 5359 | Y61: Gourcy | Z61: TRUE
A62: =IF(INTRO!$E$34<>0,INTRO!$E$34,"") -> Burkina Faso | B62: Nord | C62: Ouahigouya | D62: 342578 | E62: 48089 | F62: 101791 | G62: 179257 | H62: 99 | I62: 0 | J62: 1 | K62: 2 | L62: =IF(INTRO!$E$38="Endémique", IF($H62>0, IF($H62=4,"Inconnu", IF($H62=99,"Interrompu", $D62)), 0),"Non requis") -> Interrompu | M62: =IF(INTRO!$E$40="Endémique", IF($I62>0, IF($I62=4,"Inconnu",IF($I62=99,"Interrompu", $D62)), 0),"Non requis") -> 0 | N62: =IF(INTRO!$E$42="Endémique", IF(AND($J62>1,$J62<5), IF($J62=4, "Inconnu", E62+F62), 0),"Non requis") -> 0 | O62: =IF(INTRO!$E$44="Endémique", IF(AND($K62>0,$K62<5), IF($K62=4,"Inconnu", IF($K62=1, $F62*0.33, IF($K62=2, $F62*0.5+$G62*0.2, SUM(F62:G62)))), 0),"Non requis") -> 86746.9 | P62: 0 | Q62: 0 | R62: 1 | S62: 1 | T62: T1 (PZQ+ALB/MBD) | X62: 5360 | Y62: Ouahigouya | Z62: TRUE
A63: =IF(INTRO!$E$34<>0,INTRO!$E$34,"") -> Burkina Faso | B63: Nord | C63: Seguenega | D63: 218585 | E63: 34648 | F63: 67116 | G63: 106497 | H63: 99 | I63: 0 | J63: 1 | K63: 2 | L63: =IF(INTRO!$E$38="Endémique", IF($H63>0, IF($H63=4,"Inconnu", IF($H63=99,"Interrompu", $D63)), 0),"Non requis") -> Interrompu | M63: =IF(INTRO!$E$40="Endémique", IF($I63>0, IF($I63=4,"Inconnu",IF($I63=99,"Interrompu", $D63)), 0),"Non requis") -> 0 | N63: =IF(INTRO!$E$42="Endémique", IF(AND($J63>1,$J63<5), IF($J63=4, "Inconnu", E63+F63), 0),"Non requis") -> 0 | O63: =IF(INTRO!$E$44="Endémique", IF(AND($K63>0,$K63<5), IF($K63=4,"Inconnu", IF($K63=1, $F63*0.33, IF($K63=2, $F63*0.5+$G63*0.2, SUM(F63:G63)))), 0),"Non requis") -> 54857.4 | P63: 0 | Q63: 0 | R63: 1 | S63: 1 | T63: T1 (PZQ+ALB/MBD) | X63: 5361 | Y63: Seguenega | Z63: TRUE
A64: =IF(INTRO!$E$34<>0,INTRO!$E$34,"") -> Burkina Faso | B64: Nord | C64: Thiou | D64: 180174 | E64: 29555 | F64: 54816 | G64: 88222 | H64: 99 | I64: 0 | J64: 1 | K64: 2 | L64: =IF(INTRO!$E$38="Endémique", IF($H64>0, IF($H64=4,"Inconnu", IF($H64=99,"Interrompu", $D64)), 0),"Non requis") -> Interrompu | M64: =IF(INTRO!$E$40="Endémique", IF($I64>0, IF($I64=4,"Inconnu",IF($I64=99,"Interrompu", $D64)), 0),"Non requis") -> 0 | N64: =IF(INTRO!$E$42="Endémique", IF(AND($J64>1,$J64<5), IF($J64=4, "Inconnu", E64+F64), 0),"Non requis") -> 0 | O64: =IF(INTRO!$E$44="Endémique", IF(AND($K64>0,$K64<5), IF($K64=4,"Inconnu", IF($K64=1, $F64*0.33, IF($K64=2, $F64*0.5+$G64*0.2, SUM(F64:G64)))), 0),"Non requis") -> 45052.4 | P64: 0 | Q64: 0 | R64: 1 | S64: 1 | T64: T1 (PZQ+ALB/MBD) | X64: 53006 | Y64: Thiou | Z64: TRUE
A65: =IF(INTRO!$E$34<>0,INTRO!$E$34,"") -> Burkina Faso | B65: Nord | C65: Titao | D65: 194040 | E65: 29393 | F65: 58556 | G65: 97887 | H65: 99 | I65: 0 | J65: 1 | K65: 2 | L65: =IF(INTRO!$E$38="Endémique", IF($H65>0, IF($H65=4,"Inconnu", IF($H65=99,"Interrompu", $D65)), 0),"Non requis") -> Interrompu | M65: =IF(INTRO!$E$40="Endémique", IF($I65>0, IF($I65=4,"Inconnu",IF($I65=99,"Interrompu", $D65)), 0),"Non requis") -> 0 | N65: =IF(INTRO!$E$42="Endémique", IF(AND($J65>1,$J65<5), IF($J65=4, "Inconnu", E65+F65), 0),"Non requis") -> 0 | O65: =IF(INTRO!$E$44="Endémique", IF(AND($K65>0,$K65<5), IF($K65=4,"Inconnu", IF($K65=1, $F65*0.33, IF($K65=2, $F65*0.5+$G65*0.2, SUM(F65:G65)))), 0),"Non requis") -> 48855.4 | P65: 0 | Q65: 0 | R65: 1 | S65: 1 | T65: T1 (PZQ+ALB/MBD) | X65: 5362 | Y65: Titao | Z65: TRUE
A66: =IF(INTRO!$E$34<>0,INTRO!$E$34,"") -> Burkina Faso | B66: Nord | C66: Yako | D66: 424577 | E66: 64311 | F66: 128127 | G66: 214187 | H66: 99 | I66: 0 | J66: 1 | K66: 2 | L66: =IF(INTRO!$E$38="Endémique", IF($H66>0, IF($H66=4,"Inconnu", IF($H66=99,"Interrompu", $D66)), 0),"Non requis") -> Interrompu | M66: =IF(INTRO!$E$40="Endémique", IF($I66>0, IF($I66=4,"Inconnu",IF($I66=99,"Interrompu", $D66)), 0),"Non requis") -> 0 | N66: =IF(INTRO!$E$42="Endémique", IF(AND($J66>1,$J66<5), IF($J66=4, "Inconnu", E66+F66), 0),"Non requis") -> 0 | O66: =IF(INTRO!$E$44="Endémique", IF(AND($K66>0,$K66<5), IF($K66=4,"Inconnu", IF($K66=1, $F66*0.33, IF($K66=2, $F66*0.5+$G66*0.2, SUM(F66:G66)))), 0),"Non requis") -> 106900.9 | P66: 0 | Q66: 0 | R66: 1 | S66: 1 | T66: T1 (PZQ+ALB/MBD) | X66: 5363 | Y66: Yako | Z66: TRUE
A67: =IF(INTRO!$E$34<>0,INTRO!$E$34,"") -> Burkina Faso | B67: Plateau Central | C67: Boussé | D67: 180393 | E67: 26851 | F67: 53562 | G67: 92481 | H67: 99 | I67: 0 | J67: 1 | K67: 1 | L67: =IF(INTRO!$E$38="Endémique", IF($H67>0, IF($H67=4,"Inconnu", IF($H67=99,"Interrompu", $D67)), 0),"Non requis") -> Interrompu | M67: =IF(INTRO!$E$40="Endémique", IF($I67>0, IF($I67=4,"Inconnu",IF($I67=99,"Interrompu", $D67)), 0),"Non requis") -> 0 | N67: =IF(INTRO!$E$42="Endémique", IF(AND($J67>1,$J67<5), IF($J67=4, "Inconnu", E67+F67), 0),"Non requis") -> 0 | O67: =IF(INTRO!$E$44="Endémique", IF(AND($K67>0,$K67<5), IF($K67=4,"Inconnu", IF($K67=1, $F67*0.33, IF($K67=2, $F67*0.5+$G67*0.2, SUM(F67:G67)))), 0),"Non requis") -> 17675.46 | P67: 0 | Q67: 0 | R67: 0 | S67: 0 | X67: 5364 | Y67: Boussé | Z67: TRUE
A68: =IF(INTRO!$E$34<>0,INTRO!$E$34,"") -> Burkina Faso | B68: Plateau Central | C68: Ziniaré | D68: 316189 | E68: 47064 | F68: 93882 | G68: 162100 | H68: 99 | I68: 0 | J68: 1 | K68: 1 | L68: =IF(INTRO!$E$38="Endémique", IF($H68>0, IF($H68=4,"Inconnu", IF($H68=99,"Interrompu", $D68)), 0),"Non requis") -> Interrompu | M68: =IF(INTRO!$E$40="Endémique", IF($I68>0, IF($I68=4,"Inconnu",IF($I68=99,"Interrompu", $D68)), 0),"Non requis") -> 0 | N68: =IF(INTRO!$E$42="Endémique", IF(AND($J68>1,$J68<5), IF($J68=4, "Inconnu", E68+F68), 0),"Non requis") -> 0 | O68: =IF(INTRO!$E$44="Endémique", IF(AND($K68>0,$K68<5), IF($K68=4,"Inconnu", IF($K68=1, $F68*0.33, IF($K68=2, $F68*0.5+$G68*0.2, SUM(F68:G68)))), 0),"Non requis") -> 30981.06 | P68: 0 | Q68: 0 | R68: 0 | S68: 0 | X68: 5365 | Y68: Ziniaré | Z68: TRUE
A69: =IF(INTRO!$E$34<>0,INTRO!$E$34,"") -> Burkina Faso | B69: Plateau Central | C69: Zorgho | D69: 427892 | E69: 63690 | F69: 127049 | G69: 219367 | H69: 99 | I69: 0 | J69: 1 | K69: 1 | L69: =IF(INTRO!$E$38="Endémique", IF($H69>0, IF($H69=4,"Inconnu", IF($H69=99,"Interrompu", $D69)), 0),"Non requis") -> Interrompu | M69: =IF(INTRO!$E$40="Endémique", IF($I69>0, IF($I69=4,"Inconnu",IF($I69=99,"Interrompu", $D69)), 0),"Non requis") -> 0 | N69: =IF(INTRO!$E$42="Endémique", IF(AND($J69>1,$J69<5), IF($J69=4, "Inconnu", E69+F69), 0),"Non requis") -> 0 | O69: =IF(INTRO!$E$44="Endémique", IF(AND($K69>0,$K69<5), IF($K69=4,"Inconnu", IF($K69=1, $F69*0.33, IF($K69=2, $F69*0.5+$G69*0.2, SUM(F69:G69)))), 0),"Non requis") -> 41926.17 | P69: 0 | Q69: 0 | R69: 0 | S69: 0 | X69: 5366 | Y69: Zorgho | Z69: TRUE
A70: =IF(INTRO!$E$34<>0,INTRO!$E$34,"") -> Burkina Faso | B70: Sahel | C70: Djibo | D70: 485935 | E70: 71421 | F70: 143572 | G70: 251024 | H70: 99 | I70: 0 | J70: 1 | K70: 2 | L70: =IF(INTRO!$E$38="Endémique", IF($H70>0, IF($H70=4,"Inconnu", IF($H70=99,"Interrompu", $D70)), 0),"Non requis") -> Interrompu | M70: =IF(INTRO!$E$40="Endémique", IF($I70>0, IF($I70=4,"Inconnu",IF($I70=99,"Interrompu", $D70)), 0),"Non requis") -> 0 | N70: =IF(INTRO!$E$42="Endémique", IF(AND($J70>1,$J70<5), IF($J70=4, "Inconnu", E70+F70), 0),"Non requis") -> 0 | O70: =IF(INTRO!$E$44="Endémique", IF(AND($K70>0,$K70<5), IF($K70=4,"Inconnu", IF($K70=1, $F70*0.33, IF($K70=2, $F70*0.5+$G70*0.2, SUM(F70:G70)))), 0),"Non requis") -> 121990.8 | P70: 0 | Q70: 0 | R70: 1 | S70: 1 | T70: T1 (PZQ+ALB/MBD) | X70: 5367 | Y70: Djibo | Z70: TRUE
A71: =IF(INTRO!$E$34<>0,INTRO!$E$34,"") -> Burkina Faso | B71: Sahel | C71: Dori | D71: 364080 | E71: 53501 | F71: 107555 | G71: 188107 | H71: 99 | I71: 0 | J71: 1 | K71: 2 | L71: =IF(INTRO!$E$38="Endémique", IF($H71>0, IF($H71=4,"Inconnu", IF($H71=99,"Interrompu", $D71)), 0),"Non requis") -> Interrompu | M71: =IF(INTRO!$E$40="Endémique", IF($I71>0, IF($I71=4,"Inconnu",IF($I71=99,"Interrompu", $D71)), 0),"Non requis") -> 0 | N71: =IF(INTRO!$E$42="Endémique", IF(AND($J71>1,$J71<5), IF($J71=4, "Inconnu", E71+F71), 0),"Non requis") -> 0 | O71: =IF(INTRO!$E$44="Endémique", IF(AND($K71>0,$K71<5), IF($K71=4,"Inconnu", IF($K71=1, $F71*0.33, IF($K71=2, $F71*0.5+$G71*0.2, SUM(F71:G71)))), 0),"Non requis") -> 91398.9 | P71: 0 | Q71: 0 | R71: 1 | S71: 1 | T71: T1 (PZQ+ALB/MBD) | X71: 5368 | Y71: Dori | Z71: TRUE
A72: =IF(INTRO!$E$34<>0,INTRO!$E$34,"") -> Burkina Faso | B72: Sahel | C72: Gorom-Gorom | D72: 279047 | E72: 41013 | F72: 82446 | G72: 144150 | H72: 99 | I72: 0 | J72: 1 | K72: 2 | L72: =IF(INTRO!$E$38="Endémique", IF($H72>0, IF($H72=4,"Inconnu", IF($H72=99,"Interrompu", $D72)), 0),"Non requis") -> Interrompu | M72: =IF(INTRO!$E$40="Endémique", IF($I72>0, IF($I72=4,"Inconnu",IF($I72=99,"Interrompu", $D72)), 0),"Non requis") -> 0 | N72: =IF(INTRO!$E$42="Endémique", IF(AND($J72>1,$J72<5), IF($J72=4, "Inconnu", E72+F72), 0),"Non requis") -> 0 | O72: =IF(INTRO!$E$44="Endémique", IF(AND($K72>0,$K72<5), IF($K72=4,"Inconnu", IF($K72=1, $F72*0.33, IF($K72=2, $F72*0.5+$G72*0.2, SUM(F72:G72)))), 0),"Non requis") -> 70053 | P72: 0 | Q72: 0 | R72: 1 | S72: 1 | T72: T1 (PZQ+ALB/MBD) | X72: 5369 | Y72: Gorom-Gorom | Z72: TRUE
A73: =IF(INTRO!$E$34<>0,INTRO!$E$34,"") -> Burkina Faso | B73: Sahel | C73: Sebba | D73: 224245 | E73: 32959 | F73: 66254 | G73: 115840 | H73: 1 | I73: 0 | J73: 1 | K73: 2 | L73: =IF(INTRO!$E$38="Endémique", IF($H73>0, IF($H73=4,"Inconnu", IF($H73=99,"Interrompu", $D73)), 0),"Non requis") -> 224245 | M73: =IF(INTRO!$E$40="Endémique", IF($I73>0, IF($I73=4,"Inconnu",IF($I73=99,"Interrompu", $D73)), 0),"Non requis") -> 0 | N73: =IF(INTRO!$E$42="Endémique", IF(AND($J73>1,$J73<5), IF($J73=4, "Inconnu", E73+F73), 0),"Non requis") -> 0 | O73: =IF(INTRO!$E$44="Endémique", IF(AND($K73>0,$K73<5), IF($K73=4,"Inconnu", IF($K73=1, $F73*0.33, IF($K73=2, $F73*0.5+$G73*0.2, SUM(F73:G73)))), 0),"Non requis") -> 56295 | P73: 0 | Q73: 0 | R73: 1 | S73: 1 | T73: MDA1 (IVM+ALB) | U73: T2 (PZQ) | X73: 5370 | Y73: Sebba | Z73: TRUE
A74: =IF(INTRO!$E$34<>0,INTRO!$E$34,"") -> Burkina Faso | B74: Sud-Ouest | C74: Batié | D74: 97614 | E74: 14243 | F74: 28237 | G74: 51136 | H74: 1 | I74: 1 | J74: 1 | K74: 1 | L74: =IF(INTRO!$E$38="Endémique", IF($H74>0, IF($H74=4,"Inconnu", IF($H74=99,"Interrompu", $D74)), 0),"Non requis") -> 97614 | M74: 40508 | N74: =IF(INTRO!$E$42="Endémique", IF(AND($J74>1,$J74<5), IF($J74=4, "Inconnu", E74+F74), 0),"Non requis") -> 0 | O74: =IF(INTRO!$E$44="Endémique", IF(AND($K74>0,$K74<5), IF($K74=4,"Inconnu", IF($K74=1, $F74*0.33, IF($K74=2, $F74*0.5+$G74*0.2, SUM(F74:G74)))), 0),"Non requis") -> 9318.21 | P74: 2 | Q74: 2 | R74: 1 | S74: 1 | T74: MDA1 (IVM+ALB) | U74: T2 (PZQ) | X74: 5371 | Y74: Batié | Z74: =Y74=C74 -> TRUE
A75: =IF(INTRO!$E$34<>0,INTRO!$E$34,"") -> Burkina Faso | B75: Sud-Ouest | C75: Dano | D75: 252706 | E75: 36876 | F75: 73100 | G75: 132379 | H75: 99 | I75: 1 | J75: 1 | K75: 1 | L75: =IF(INTRO!$E$38="Endémique", IF($H75>0, IF($H75=4,"Inconnu", IF($H75=99,"Interrompu", $D75)), 0),"Non requis") -> Interrompu | M75: 88660 | N75: =IF(INTRO!$E$42="Endémique", IF(AND($J75>1,$J75<5), IF($J75=4, "Inconnu", E75+F75), 0),"Non requis") -> 0 | O75: =IF(INTRO!$E$44="Endémique", IF(AND($K75>0,$K75<5), IF($K75=4,"Inconnu", IF($K75=1, $F75*0.33, IF($K75=2, $F75*0.5+$G75*0.2, SUM(F75:G75)))), 0),"Non requis") -> 24123 | P75: 0 | Q75: 2 | R75: 1 | S75: 1 | T75: MDA3 (IVM) | U75: T1 (PZQ+ALB/MBD) | X75: 5372 | Y75: Dano | Z75: TRUE
A76: =IF(INTRO!$E$34<>0,INTRO!$E$34,"") -> Burkina Faso | B76: Sud-Ouest | C76: Diébougou | D76: 139824 | E76: 20405 | F76: 40446 | G76: 73246 | H76: 1 | I76: 1 | J76: 1 | K76: 1 | L76: =IF(INTRO!$E$38="Endémique", IF($H76>0, IF($H76=4,"Inconnu", IF($H76=99,"Interrompu", $D76)), 0),"Non requis") -> 139824 | M76: 34086 | N76: =IF(INTRO!$E$42="Endémique", IF(AND($J76>1,$J76<5), IF($J76=4, "Inconnu", E76+F76), 0),"Non requis") -> 0 | O76: =IF(INTRO!$E$44="Endémique", IF(AND($K76>0,$K76<5), IF($K76=4,"Inconnu", IF($K76=1, $F76*0.33, IF($K76=2, $F76*0.5+$G76*0.2, SUM(F76:G76)))), 0),"Non requis") -> 13347.18 | P76: 2 | Q76: 2 | R76: 1 | S76: 1 | T76: MDA1 (IVM+ALB) | U76: T2 (PZQ) | X76: 5373 | Y76: Diébougou | Z76: TRUE
A77: =IF(INTRO!$E$34<>0,INTRO!$E$34,"") -> Burkina Faso | B77: Sud-Ouest | C77: Gaoua | D77: 252385 | E77: 40907 | F77: 75590 | G77: 131166 | H77: 1 | I77: 1 | J77: 1 | K77: 1 | L77: =IF(INTRO!$E$38="Endémique", IF($H77>0, IF($H77=4,"Inconnu", IF($H77=99,"Interrompu", $D77)), 0),"Non requis") -> 252385 | M77: 30610 | N77: =IF(INTRO!$E$42="Endémique", IF(AND($J77>1,$J77<5), IF($J77=4, "Inconnu", E77+F77), 0),"Non requis") -> 0 | O77: =IF(INTRO!$E$44="Endémique", IF(AND($K77>0,$K77<5), IF($K77=4,"Inconnu", IF($K77=1, $F77*0.33, IF($K77=2, $F77*0.5+$G77*0.2, SUM(F77:G77)))), 0),"Non requis") -> 24944.7 | P77: 2 | Q77: 2 | R77: 1 | S77: 1 | T77: MDA1 (IVM+ALB) | U77: T2 (PZQ) | X77: 5374 | Y77: Gaoua | Z77: TRUE
A78: =IF(INTRO!$E$34<>0,INTRO!$E$34,"") -> Burkina Faso | B78: Sud-Ouest | C78: Kampti | D78: 99853 | E78: 15698 | F78: 26305 | G78: 53348 | H78: 1 | I78: 0 | J78: 1 | K78: 1 | L78: =IF(INTRO!$E$38="Endémique", IF($H78>0, IF($H78=4,"Inconnu", IF($H78=99,"Interrompu", $D78)), 0),"Non requis") -> 99853 | M78: =IF(INTRO!$E$40="Endémique", IF($I78>0, IF($I78=4,"Inconnu",IF($I78=99,"Interrompu", $D78)), 0),"Non requis") -> 0 | N78: =IF(INTRO!$E$42="Endémique", IF(AND($J78>1,$J78<5), IF($J78=4, "Inconnu", E78+F78), 0),"Non requis") -> 0 | O78: =IF(INTRO!$E$44="Endémique", IF(AND($K78>0,$K78<5), IF($K78=4,"Inconnu", IF($K78=1, $F78*0.33, IF($K78=2, $F78*0.5+$G78*0.2, SUM(F78:G78)))), 0),"Non requis") -> 8680.65 | P78: 2 | Q78: 0 | R78: 1 | S78: 1 | T78: MDA1 (IVM+ALB) | U78: T2 (PZQ) | X78: 53007 | Y78: Kampti | Z78: TRUE

Sheet MDA1
A1: MDA 1 - Ivermectine (IVM) et Albendazole (ALB)
A2: Structure administrative, population nécessitant une chimioprévention par groupe d'âge, population traitée par groupe d'âge et couverture
A4: TOTAL | G4: =SUM(G$9:G$1000) -> 1609737 | H4: =SUM(H$9:H$1000) -> 2845886 | I4: =SUM(I$9:I$1000) -> 4455623 | K4: =SUM(K$9:K$1000) -> 1564409.443 | L4: =SUM(L$9:L$1000) -> 2664988.557 | M4: =SUM(M$9:M$1000) -> 4229398 | O4: =IF(G4<>0, IF(K4/G4*100=0, "-", K4/G4*100), " ") -> 97.18416379 | P4: =IF(H4<>0, IF(L4/H4*100=0, "-", L4/H4*100), " ") -> 93.64354571 | Q4: =IF(I4<>0, IF(M4/I4*100=0, "-", M4/I4*100), " ") -> 94.92270778
A6: Structure administrative du pays | D6: Mise en oeuvre de la CP | E6: Date | F6: Population ciblée pour MDA 1 | J6: Population traitée | N6: Couverture du Programme (%)
A7: Pays | B7: Région/Département | C7: District | F7: EAPréS | G7: EAS | H7: Adultes | I7: Total | J7: EAPréS | K7: EAS | L7: Adultes | M7: Total | N7: EAPréS | O7: EAS | P7: Adultes | Q7: Total
A9: =IF(COUNTRY_INFO!A9=0," ",COUNTRY_INFO!A9) -> Burkina Faso | B9: =IF(COUNTRY_INFO!B9=0," ",COUNTRY_INFO!B9) -> Boucle du Mouhoun | C9: =IF(COUNTRY_INFO!C9=0," ",COUNTRY_INFO!C9) -> Boromo | D9: =IF(COUNTRY_INFO!$T$9:$T$1000="MDA1 (IVM+ALB)", COUNTRY_INFO!$T$9:$T$1000, " ") ->  | I9: =SUM(F9:H9) -> 0 | M9: =SUM(J9:L9) -> 0 | O9: =IF(G9<>0, IF(K9/G9*100=0, "-", K9/G9*100), " ") ->  | P9: =IF(H9<>0, IF(L9/H9*100=0, "-", L9/H9*100), " ") -> 
A10: =IF(COUNTRY_INFO!A10=0," ",COUNTRY_INFO!A10) -> Burkina Faso | B10: =IF(COUNTRY_INFO!B10=0," ",COUNTRY_INFO!B10) -> Boucle du Mouhoun | C10: =IF(COUNTRY_INFO!C10=0," ",COUNTRY_INFO!C10) -> Dédougou | D10: =IF(COUNTRY_INFO!$T$9:$T$1000="MDA1 (IVM+ALB)", COUNTRY_INFO!$T$9:$T$1000, " ") ->  | I10: =SUM(F10:H10) -> 0 | M10: =SUM(J10:L10) -> 0 | O10: =IF(G10<>0, IF(K10/G10*100=0, "-", K10/G10*100), " ") ->  | P10: =IF(H10<>0, IF(L10/H10*100=0, "-", L10/H10*100), " ") ->  | Q10: =IF(I10<>0, IF(M10/I10*100=0, "-", M10/I10*100), " ") -> 
A11: =IF(COUNTRY_INFO!A11=0," ",COUNTRY_INFO!A11) -> Burkina Faso | B11: =IF(COUNTRY_INFO!B11=0," ",COUNTRY_INFO!B11) -> Boucle du Mouhoun | C11: =IF(COUNTRY_INFO!C11=0," ",COUNTRY_INFO!C11) -> Nouna | D11: =IF(COUNTRY_INFO!$T$9:$T$1000="MDA1 (IVM+ALB)", COUNTRY_INFO!$T$9:$T$1000, " ") ->  | I11: 0 | M11: 0
A12: =IF(COUNTRY_INFO!A12=0," ",COUNTRY_INFO!A12) -> Burkina Faso | B12: =IF(COUNTRY_INFO!B12=0," ",COUNTRY_INFO!B12) -> Boucle du Mouhoun | C12: =IF(COUNTRY_INFO!C12=0," ",COUNTRY_INFO!C12) -> Solenzo | D12: =IF(COUNTRY_INFO!$T$9:$T$1000="MDA1 (IVM+ALB)", COUNTRY_INFO!$T$9:$T$1000, " ") ->  | I12: 0 | M12: 0
A13: =IF(COUNTRY_INFO!A13=0," ",COUNTRY_INFO!A13) -> Burkina Faso | B13: =IF(COUNTRY_INFO!B13=0," ",COUNTRY_INFO!B13) -> Boucle du Mouhoun | C13: =IF(COUNTRY_INFO!C13=0," ",COUNTRY_INFO!C13) -> Toma | D13: =IF(COUNTRY_INFO!$T$9:$T$1000="MDA1 (IVM+ALB)", COUNTRY_INFO!$T$9:$T$1000, " ") ->  | I13: 0 | M13: 0
A14: =IF(COUNTRY_INFO!A14=0," ",COUNTRY_INFO!A14) -> Burkina Faso | B14: =IF(COUNTRY_INFO!B14=0," ",COUNTRY_INFO!B14) -> Boucle du Mouhoun | C14: =IF(COUNTRY_INFO!C14=0," ",COUNTRY_INFO!C14) -> Tougan | D14: =IF(COUNTRY_INFO!$T$9:$T$1000="MDA1 (IVM+ALB)", COUNTRY_INFO!$T$9:$T$1000, " ") ->  | I14: 0 | M14: 0
A15: =IF(COUNTRY_INFO!A15=0," ",COUNTRY_INFO!A15) -> Burkina Faso | B15: =IF(COUNTRY_INFO!B15=0," ",COUNTRY_INFO!B15) -> Cascades | C15: =IF(COUNTRY_INFO!C15=0," ",COUNTRY_INFO!C15) -> Banfora | D15: =IF(COUNTRY_INFO!$T$9:$T$1000="MDA1 (IVM+ALB)", COUNTRY_INFO!$T$9:$T$1000, " ") ->  | I15: 0 | M15: 0
A16: =IF(COUNTRY_INFO!A16=0," ",COUNTRY_INFO!A16) -> Burkina Faso | B16: =IF(COUNTRY_INFO!B16=0," ",COUNTRY_INFO!B16) -> Cascades | C16: =IF(COUNTRY_INFO!C16=0," ",COUNTRY_INFO!C16) -> Mangodara | D16: =IF(COUNTRY_INFO!$T$9:$T$1000="MDA1 (IVM+ALB)", COUNTRY_INFO!$T$9:$T$1000, " ") ->  | I16: 0 | M16: 0
A17: =IF(COUNTRY_INFO!A17=0," ",COUNTRY_INFO!A17) -> Burkina Faso | B17: =IF(COUNTRY_INFO!B17=0," ",COUNTRY_INFO!B17) -> Cascades | C17: =IF(COUNTRY_INFO!C17=0," ",COUNTRY_INFO!C17) -> Sindou | D17: =IF(COUNTRY_INFO!$T$9:$T$1000="MDA1 (IVM+ALB)", COUNTRY_INFO!$T$9:$T$1000, " ") ->  | I17: 0 | M17: 0
A18: =IF(COUNTRY_INFO!A18=0," ",COUNTRY_INFO!A18) -> Burkina Faso | B18: =IF(COUNTRY_INFO!B18=0," ",COUNTRY_INFO!B18) -> Centre | C18: =IF(COUNTRY_INFO!C18=0," ",COUNTRY_INFO!C18) -> Baskuy | D18: =IF(COUNTRY_INFO!$T$9:$T$1000="MDA1 (IVM+ALB)", COUNTRY_INFO!$T$9:$T$1000, " ") ->  | I18: 0 | M18: 0
A19: =IF(COUNTRY_INFO!A19=0," ",COUNTRY_INFO!A19) -> Burkina Faso | B19: =IF(COUNTRY_INFO!B19=0," ",COUNTRY_INFO!B19) -> Centre | C19: =IF(COUNTRY_INFO!C19=0," ",COUNTRY_INFO!C19) -> Bogodogo | D19: =IF(COUNTRY_INFO!$T$9:$T$1000="MDA1 (IVM+ALB)", COUNTRY_INFO!$T$9:$T$1000, " ") -> MDA1 (IVM+ALB) | E19: 18-22/12/17 | G19: 51010 | H19: 122671 | I19: 173681 | K19: 54651 | L19: 117697 | M19: 172348 | O19: 107.1378161 | P19: 95.94525193 | Q19: 99.23250096
A20: =IF(COUNTRY_INFO!A20=0," ",COUNTRY_INFO!A20) -> Burkina Faso | B20: =IF(COUNTRY_INFO!B20=0," ",COUNTRY_INFO!B20) -> Centre | C20: =IF(COUNTRY_INFO!C20=0," ",COUNTRY_INFO!C20) -> Boulmiougou | D20: =IF(COUNTRY_INFO!$T$9:$T$1000="MDA1 (IVM+ALB)", COUNTRY_INFO!$T$9:$T$1000, " ") -> MDA1 (IVM+ALB) | E20: 18-22/12/17 | G20: 86938 | H20: 209070 | I20: 296008 | K20: 94899 | L20: 201663 | M20: 296562 | O20: 109.1571005 | P20: 96.45716746 | Q20: 100.1871571
A21: =IF(COUNTRY_INFO!A21=0," ",COUNTRY_INFO!A21) -> Burkina Faso | B21: =IF(COUNTRY_INFO!B21=0," ",COUNTRY_INFO!B21) -> Centre | C21: =IF(COUNTRY_INFO!C21=0," ",COUNTRY_INFO!C21) -> Nongre-Massom | D21: =IF(COUNTRY_INFO!$T$9:$T$1000="MDA1 (IVM+ALB)", COUNTRY_INFO!$T$9:$T$1000, " ") -> MDA1 (IVM+ALB) | E21: 18-22/12/17 | G21: 4113 | H21: 9892 | I21: 14005 | K21: 4299 | L21: 9256 | M21: 13555 | O21: 104.5222465 | P21: 93.57056207 | Q21: 96.78686184
A22: =IF(COUNTRY_INFO!A22=0," ",COUNTRY_INFO!A22) -> Burkina Faso | B22: =IF(COUNTRY_INFO!B22=0," ",COUNTRY_INFO!B22) -> Centre | C22: =IF(COUNTRY_INFO!C22=0," ",COUNTRY_INFO!C22) -> Sig-Nonghin | D22: =IF(COUNTRY_INFO!$T$9:$T$1000="MDA1 (IVM+ALB)", COUNTRY_INFO!$T$9:$T$1000, " ") -> MDA1 (IVM+ALB) | E22: 18-22/12/17 | G22: 31567 | H22: 75913 | I22: 107480 | K22: 34479 | L22: 74254 | M22: 108733 | O22: 109.2248234 | P22: 97.81460356 | Q22: 101.1657983
A23: =IF(COUNTRY_INFO!A23=0," ",COUNTRY_INFO!A23) -> Burkina Faso | B23: =IF(COUNTRY_INFO!B23=0," ",COUNTRY_INFO!B23) -> Centre-Est | C23: =IF(COUNTRY_INFO!C23=0," ",COUNTRY_INFO!C23) -> Bittou | D23: =IF(COUNTRY_INFO!$T$9:$T$1000="MDA1 (IVM+ALB)", COUNTRY_INFO!$T$9:$T$1000, " ") -> MDA1 (IVM+ALB) | E23: 18-22/12/17 | G23: 38638 | H23: 65214 | I23: 103852 | K23: 39021 | L23: 65397 | M23: 104418 | O23: 100.9912521 | P23: 100.2806146 | Q23: 100.5450064
A24: =IF(COUNTRY_INFO!A24=0," ",COUNTRY_INFO!A24) -> Burkina Faso | B24: =IF(COUNTRY_INFO!B24=0," ",COUNTRY_INFO!B24) -> Centre-Est | C24: =IF(COUNTRY_INFO!C24=0," ",COUNTRY_INFO!C24) -> Garango | D24: =IF(COUNTRY_INFO!$T$9:$T$1000="MDA1 (IVM+ALB)", COUNTRY_INFO!$T$9:$T$1000, " ") -> MDA1 (IVM+ALB) | E24: 18-22/12/17 | G24: 64544 | H24: 114317 | I24: 178861 | K24: 63580 | L24: 106557 | M24: 170137 | O24: 98.50644522 | P24: 93.21185825 | Q24: 95.1224694
A25: =IF(COUNTRY_INFO!A25=0," ",COUNTRY_INFO!A25) -> Burkina Faso | B25: =IF(COUNTRY_INFO!B25=0," ",COUNTRY_INFO!B25) -> Centre-Est | C25: =IF(COUNTRY_INFO!C25=0," ",COUNTRY_INFO!C25) -> Koupela | D25: =IF(COUNTRY_INFO!$T$9:$T$1000="MDA1 (IVM+ALB)", COUNTRY_INFO!$T$9:$T$1000, " ") -> MDA1 (IVM+ALB) | E25: 18-22/12/17 | G25: 75121 | H25: 122837 | I25: 197958 | K25: 68267 | L25: 114412 | M25: 182679 | O25: 90.8760533 | P25: 93.14131736 | Q25: 92.28169612
A26: =IF(COUNTRY_INFO!A26=0," ",COUNTRY_INFO!A26) -> Burkina Faso | B26: =IF(COUNTRY_INFO!B26=0," ",COUNTRY_INFO!B26) -> Centre-Est | C26: =IF(COUNTRY_INFO!C26=0," ",COUNTRY_INFO!C26) -> Ouargaye | D26: =IF(COUNTRY_INFO!$T$9:$T$1000="MDA1 (IVM+ALB)", COUNTRY_INFO!$T$9:$T$1000, " ") -> MDA1 (IVM+ALB) | E26: 18-22/12/17 | G26: 108503 | H26: 184892 | I26: 293395 | K26: 107139 | L26: 179558 | M26: 286697 | O26: 98.7428919 | P26: 97.11507258 | Q26: 97.71707084
A27: =IF(COUNTRY_INFO!A27=0," ",COUNTRY_INFO!A27) -> Burkina Faso | B27: =IF(COUNTRY_INFO!B27=0," ",COUNTRY_INFO!B27) -> Centre-Est | C27: =IF(COUNTRY_INFO!C27=0," ",COUNTRY_INFO!C27) -> Pouytenga | D27: =IF(COUNTRY_INFO!$T$9:$T$1000="MDA1 (IVM+ALB)", COUNTRY_INFO!$T$9:$T$1000, " ") -> MDA1 (IVM+ALB) | E27: 18-22/12/17 | G27: 60452 | H27: 108187 | I27: 168639 | K27: 0 | L27: 0 | M27: 0 | O27: - | P27: - | Q27: -
A28: =IF(COUNTRY_INFO!A28=0," ",COUNTRY_INFO!A28) -> Burkina Faso | B28: =IF(COUNTRY_INFO!B28=0," ",COUNTRY_INFO!B28) -> Centre-Est | C28: =IF(COUNTRY_INFO!C28=0," ",COUNTRY_INFO!C28) -> Tenkodogo | D28: =IF(COUNTRY_INFO!$T$9:$T$1000="MDA1 (IVM+ALB)", COUNTRY_INFO!$T$9:$T$1000, " ") -> MDA1 (IVM+ALB) | E28: 18-22/12/17 | G28: 70072 | H28: 124547 | I28: 194619 | K28: 74295 | L28: 124513 | M28: 198808 | O28: 106.0266583 | P28: 99.97270107 | Q28: 102.1524106
A29: =IF(COUNTRY_INFO!A29=0," ",COUNTRY_INFO!A29) -> Burkina Faso | B29: =IF(COUNTRY_INFO!B29=0," ",COUNTRY_INFO!B29) -> Centre-Est | C29: =IF(COUNTRY_INFO!C29=0," ",COUNTRY_INFO!C29) -> Zabré | D29: =IF(COUNTRY_INFO!$T$9:$T$1000="MDA1 (IVM+ALB)", COUNTRY_INFO!$T$9:$T$1000, " ") ->  | I29: 0 | K29: 0 | L29: 0 | M29: 0
A30: =IF(COUNTRY_INFO!A30=0," ",COUNTRY_INFO!A30) -> Burkina Faso | B30: =IF(COUNTRY_INFO!B30=0," ",COUNTRY_INFO!B30) -> Centre-Nord | C30: =IF(COUNTRY_INFO!C30=0," ",COUNTRY_INFO!C30) -> Barsalogo | D30: =IF(COUNTRY_INFO!$T$9:$T$1000="MDA1 (IVM+ALB)", COUNTRY_INFO!$T$9:$T$1000, " ") ->  | I30: 0 | K30: 0 | L30: 0 | M30: 0
A31: =IF(COUNTRY_INFO!A31=0," ",COUNTRY_INFO!A31) -> Burkina Faso | B31: =IF(COUNTRY_INFO!B31=0," ",COUNTRY_INFO!B31) -> Centre-Nord | C31: =IF(COUNTRY_INFO!C31=0," ",COUNTRY_INFO!C31) -> Boulsa | D31: =IF(COUNTRY_INFO!$T$9:$T$1000="MDA1 (IVM+ALB)", COUNTRY_INFO!$T$9:$T$1000, " ") ->  | I31: 0 | K31: 0 | L31: 0 | M31: 0
A32: =IF(COUNTRY_INFO!A32=0," ",COUNTRY_INFO!A32) -> Burkina Faso | B32: =IF(COUNTRY_INFO!B32=0," ",COUNTRY_INFO!B32) -> Centre-Nord | C32: =IF(COUNTRY_INFO!C32=0," ",COUNTRY_INFO!C32) -> Boussouma | D32: =IF(COUNTRY_INFO!$T$9:$T$1000="MDA1 (IVM+ALB)", COUNTRY_INFO!$T$9:$T$1000, " ") ->  | I32: 0 | K32: 0 | L32: 0 | M32: 0
A33: =IF(COUNTRY_INFO!A33=0," ",COUNTRY_INFO!A33) -> Burkina Faso | B33: =IF(COUNTRY_INFO!B33=0," ",COUNTRY_INFO!B33) -> Centre-Nord | C33: =IF(COUNTRY_INFO!C33=0," ",COUNTRY_INFO!C33) -> Kaya | D33: =IF(COUNTRY_INFO!$T$9:$T$1000="MDA1 (IVM+ALB)", COUNTRY_INFO!$T$9:$T$1000, " ") ->  | I33: 0 | K33: 0 | L33: 0 | M33: 0
A34: =IF(COUNTRY_INFO!A34=0," ",COUNTRY_INFO!A34) -> Burkina Faso | B34: =IF(COUNTRY_INFO!B34=0," ",COUNTRY_INFO!B34) -> Centre-Nord | C34: =IF(COUNTRY_INFO!C34=0," ",COUNTRY_INFO!C34) -> Kongoussi | D34: =IF(COUNTRY_INFO!$T$9:$T$1000="MDA1 (IVM+ALB)", COUNTRY_INFO!$T$9:$T$1000, " ") ->  | I34: 0 | K34: 0 | L34: 0 | M34: 0
A35: =IF(COUNTRY_INFO!A35=0," ",COUNTRY_INFO!A35) -> Burkina Faso | B35: =IF(COUNTRY_INFO!B35=0," ",COUNTRY_INFO!B35) -> Centre-Nord | C35: =IF(COUNTRY_INFO!C35=0," ",COUNTRY_INFO!C35) -> Tougouri | D35: =IF(COUNTRY_INFO!$T$9:$T$1000="MDA1 (IVM+ALB)", COUNTRY_INFO!$T$9:$T$1000, " ") ->  | I35: 0 | K35: 0 | L35: 0 | M35: 0
A36: =IF(COUNTRY_INFO!A36=0," ",COUNTRY_INFO!A36) -> Burkina Faso | B36: =IF(COUNTRY_INFO!B36=0," ",COUNTRY_INFO!B36) -> Centre-Ouest | C36: =IF(COUNTRY_INFO!C36=0," ",COUNTRY_INFO!C36) -> Koudougou | D36: =IF(COUNTRY_INFO!$T$9:$T$1000="MDA1 (IVM+ALB)", COUNTRY_INFO!$T$9:$T$1000, " ") ->  | I36: 0 | K36: 0 | L36: 0 | M36: 0
A37: =IF(COUNTRY_INFO!A37=0," ",COUNTRY_INFO!A37) -> Burkina Faso | B37: =IF(COUNTRY_INFO!B37=0," ",COUNTRY_INFO!B37) -> Centre-Ouest | C37: =IF(COUNTRY_INFO!C37=0," ",COUNTRY_INFO!C37) -> Léo | D37: =IF(COUNTRY_INFO!$T$9:$T$1000="MDA1 (IVM+ALB)", COUNTRY_INFO!$T$9:$T$1000, " ") ->  | I37: 0 | K37: 0 | L37: 0 | M37: 0
A38: =IF(COUNTRY_INFO!A38=0," ",COUNTRY_INFO!A38) -> Burkina Faso | B38: =IF(COUNTRY_INFO!B38=0," ",COUNTRY_INFO!B38) -> Centre-Ouest | C38: =IF(COUNTRY_INFO!C38=0," ",COUNTRY_INFO!C38) -> Nanoro | D38: =IF(COUNTRY_INFO!$T$9:$T$1000="MDA1 (IVM+ALB)", COUNTRY_INFO!$T$9:$T$1000, " ") ->  | I38: 0 | K38: 0 | L38: 0 | M38: 0
A39: =IF(COUNTRY_INFO!A39=0," ",COUNTRY_INFO!A39) -> Burkina Faso | B39: =IF(COUNTRY_INFO!B39=0," ",COUNTRY_INFO!B39) -> Centre-Ouest | C39: =IF(COUNTRY_INFO!C39=0," ",COUNTRY_INFO!C39) -> Réo | D39: =IF(COUNTRY_INFO!$T$9:$T$1000="MDA1 (IVM+ALB)", COUNTRY_INFO!$T$9:$T$1000, " ") ->  | I39: 0 | K39: 0 | L39: 0 | M39: 0
A40: =IF(COUNTRY_INFO!A40=0," ",COUNTRY_INFO!A40) -> Burkina Faso | B40: =IF(COUNTRY_INFO!B40=0," ",COUNTRY_INFO!B40) -> Centre-Ouest | C40: =IF(COUNTRY_INFO!C40=0," ",COUNTRY_INFO!C40) -> Sabou | D40: =IF(COUNTRY_INFO!$T$9:$T$1000="MDA1 (IVM+ALB)", COUNTRY_INFO!$T$9:$T$1000, " ") ->  | I40: 0 | K40: 0 | L40: 0 | M40: 0
A41: =IF(COUNTRY_INFO!A41=0," ",COUNTRY_INFO!A41) -> Burkina Faso | B41: =IF(COUNTRY_INFO!B41=0," ",COUNTRY_INFO!B41) -> Centre-Ouest | C41: =IF(COUNTRY_INFO!C41=0," ",COUNTRY_INFO!C41) -> Sapouy | D41: =IF(COUNTRY_INFO!$T$9:$T$1000="MDA1 (IVM+ALB)", COUNTRY_INFO!$T$9:$T$1000, " ") ->  | I41: 0 | K41: 0 | L41: 0 | M41: 0
A42: =IF(COUNTRY_INFO!A42=0," ",COUNTRY_INFO!A42) -> Burkina Faso | B42: =IF(COUNTRY_INFO!B42=0," ",COUNTRY_INFO!B42) -> Centre-Ouest | C42: =IF(COUNTRY_INFO!C42=0," ",COUNTRY_INFO!C42) -> Tenado | D42: =IF(COUNTRY_INFO!$T$9:$T$1000="MDA1 (IVM+ALB)", COUNTRY_INFO!$T$9:$T$1000, " ") ->  | I42: 0 | K42: 0 | L42: 0 | M42: 0
A43: =IF(COUNTRY_INFO!A43=0," ",COUNTRY_INFO!A43) -> Burkina Faso | B43: =IF(COUNTRY_INFO!B43=0," ",COUNTRY_INFO!B43) -> Centre-Sud | C43: =IF(COUNTRY_INFO!C43=0," ",COUNTRY_INFO!C43) -> Kombissiri | D43: =IF(COUNTRY_INFO!$T$9:$T$1000="MDA1 (IVM+ALB)", COUNTRY_INFO!$T$9:$T$1000, " ") -> MDA1 (IVM+ALB) | E43: 18-22/12/17 | G43: 54929 | H43: 103404 | I43: 158333 | K43: 54611 | L43: 96415 | M43: 151026 | O43: 99.42107084 | P43: 93.24107385 | Q43: 95.38504292
A44: =IF(COUNTRY_INFO!A44=0," ",COUNTRY_INFO!A44) -> Burkina Faso | B44: =IF(COUNTRY_INFO!B44=0," ",COUNTRY_INFO!B44) -> Centre-Sud | C44: =IF(COUNTRY_INFO!C44=0," ",COUNTRY_INFO!C44) -> Manga | D44: =IF(COUNTRY_INFO!$T$9:$T$1000="MDA1 (IVM+ALB)", COUNTRY_INFO!$T$9:$T$1000, " ") -> MDA1 (IVM+ALB) | E44: 18-22/12/17 | G44: 95347 | H44: 173732 | I44: 269079 | K44: 92569 | L44: 163427 | M44: 255996 | O44: 97.08643167 | P44: 94.06845026 | Q44: 95.13785914
A45: =IF(COUNTRY_INFO!A45=0," ",COUNTRY_INFO!A45) -> Burkina Faso | B45: =IF(COUNTRY_INFO!B45=0," ",COUNTRY_INFO!B45) -> Centre-Sud | C45: =IF(COUNTRY_INFO!C45=0," ",COUNTRY_INFO!C45) -> Pô | D45: =IF(COUNTRY_INFO!$T$9:$T$1000="MDA1 (IVM+ALB)", COUNTRY_INFO!$T$9:$T$1000, " ") -> MDA1 (IVM+ALB) | E45: 18-22/12/17 | G45: 62247 | H45: 113422 | I45: 175669 | K45: 60657 | L45: 107088 | M45: 167745 | O45: 97.44566003 | P45: 94.41554549 | Q45: 95.48924398
A46: =IF(COUNTRY_INFO!A46=0," ",COUNTRY_INFO!A46) -> Burkina Faso | B46: =IF(COUNTRY_INFO!B46=0," ",COUNTRY_INFO!B46) -> Centre-Sud | C46: =IF(COUNTRY_INFO!C46=0," ",COUNTRY_INFO!C46) -> Saponé | D46: =IF(COUNTRY_INFO!$T$9:$T$1000="MDA1 (IVM+ALB)", COUNTRY_INFO!$T$9:$T$1000, " ") -> MDA1 (IVM+ALB) | E46: 18-22/12/17 | G46: 33040 | H46: 56886 | I46: 89926 | K46: 31210 | L46: 55101 | M46: 86311 | O46: 94.46125908 | P46: 96.86214534 | Q46: 95.98002802
A47: =IF(COUNTRY_INFO!A47=0," ",COUNTRY_INFO!A47) -> Burkina Faso | B47: =IF(COUNTRY_INFO!B47=0," ",COUNTRY_INFO!B47) -> Est | C47: =IF(COUNTRY_INFO!C47=0," ",COUNTRY_INFO!C47) -> Bogandé | D47: =IF(COUNTRY_INFO!$T$9:$T$1000="MDA1 (IVM+ALB)", COUNTRY_INFO!$T$9:$T$1000, " ") -> MDA1 (IVM+ALB) | E47: 18-22/12/17 | G47: 119728 | H47: 182443 | I47: 302171 | K47: 118152 | L47: 185424 | M47: 303576 | O47: 98.68368301 | P47: 101.633935 | Q47: 100.4649685
A48: =IF(COUNTRY_INFO!A48=0," ",COUNTRY_INFO!A48) -> Burkina Faso | B48: =IF(COUNTRY_INFO!B48=0," ",COUNTRY_INFO!B48) -> Est | C48: =IF(COUNTRY_INFO!C48=0," ",COUNTRY_INFO!C48) -> Diapaga | D48: =IF(COUNTRY_INFO!$T$9:$T$1000="MDA1 (IVM+ALB)", COUNTRY_INFO!$T$9:$T$1000, " ") -> MDA1 (IVM+ALB) | E48: 18-22/12/17 | G48: 152846 | H48: 238275 | I48: 391121 | K48: 150710 | L48: 236520 | M48: 387230 | O48: 98.60251495 | P48: 99.26345609 | Q48: 99.0051672
A49: =IF(COUNTRY_INFO!A49=0," ",COUNTRY_INFO!A49) -> Burkina Faso | B49: =IF(COUNTRY_INFO!B49=0," ",COUNTRY_INFO!B49) -> Est | C49: =IF(COUNTRY_INFO!C49=0," ",COUNTRY_INFO!C49) -> Fada N'gourma | D49: =IF(COUNTRY_INFO!$T$9:$T$1000="MDA1 (IVM+ALB)", COUNTRY_INFO!$T$9:$T$1000, " ") -> MDA1 (IVM+ALB) | E49: 18-22/12/17 | G49: 133809 | H49: 208596 | I49: 342405 | K49: 133812 | L49: 210001 | M49: 343813 | O49: 100.002242 | P49: 100.6735508 | Q49: 100.4112089
A50: =IF(COUNTRY_INFO!A50=0," ",COUNTRY_INFO!A50) -> Burkina Faso | B50: =IF(COUNTRY_INFO!B50=0," ",COUNTRY_INFO!B50) -> Est | C50: =IF(COUNTRY_INFO!C50=0," ",COUNTRY_INFO!C50) -> Gayeri | D50: =IF(COUNTRY_INFO!$T$9:$T$1000="MDA1 (IVM+ALB)", COUNTRY_INFO!$T$9:$T$1000, " ") -> MDA1 (IVM+ALB) | E50: 18-22/12/17 | G50: 36736 | H50: 57269 | I50: 94005 | K50: 36800 | L50: 57752 | M50: 94552 | O50: 100.174216 | P50: 100.8433882 | Q50: 100.5818839
A51: =IF(COUNTRY_INFO!A51=0," ",COUNTRY_INFO!A51) -> Burkina Faso | B51: =IF(COUNTRY_INFO!B51=0," ",COUNTRY_INFO!B51) -> Est | C51: =IF(COUNTRY_INFO!C51=0," ",COUNTRY_INFO!C51) -> Manni | D51: =IF(COUNTRY_INFO!$T$9:$T$1000="MDA1 (IVM+ALB)", COUNTRY_INFO!$T$9:$T$1000, " ") -> MDA1 (IVM+ALB) | E51: 18-22/12/17 | G51: 55559 | H51: 90798 | I51: 146357 | K51: 57593 | L51: 90385 | M51: 147978 | O51: 103.660973 | P51: 99.54514417 | Q51: 101.1075657
A52: =IF(COUNTRY_INFO!A52=0," ",COUNTRY_INFO!A52) -> Burkina Faso | B52: =IF(COUNTRY_INFO!B52=0," ",COUNTRY_INFO!B52) -> Est | C52: =IF(COUNTRY_INFO!C52=0," ",COUNTRY_INFO!C52) -> Pama | D52: =IF(COUNTRY_INFO!$T$9:$T$1000="MDA1 (IVM+ALB)", COUNTRY_INFO!$T$9:$T$1000, " ") -> MDA1 (IVM+ALB) | E52: 18-22/12/17 | G52: 37706 | H52: 58785 | I52: 96491 | K52: 37861 | L52: 59418 | M52: 97279 | O52: 100.4110752 | P52: 101.0768053 | Q52: 100.8166565
A53: =IF(COUNTRY_INFO!A53=0," ",COUNTRY_INFO!A53) -> Burkina Faso | B53: =IF(COUNTRY_INFO!B53=0," ",COUNTRY_INFO!B53) -> Hauts-Bassins | C53: =IF(COUNTRY_INFO!C53=0," ",COUNTRY_INFO!C53) -> Dafra | D53: =IF(COUNTRY_INFO!$T$9:$T$1000="MDA1 (IVM+ALB)", COUNTRY_INFO!$T$9:$T$1000, " ") ->  | I53: 0 | K53: 0 | L53: 0 | M53: 0
A54: =IF(COUNTRY_INFO!A54=0," ",COUNTRY_INFO!A54) -> Burkina Faso | B54: =IF(COUNTRY_INFO!B54=0," ",COUNTRY_INFO!B54) -> Hauts-Bassins | C54: =IF(COUNTRY_INFO!C54=0," ",COUNTRY_INFO!C54) -> Dandé | D54: =IF(COUNTRY_INFO!$T$9:$T$1000="MDA1 (IVM+ALB)", COUNTRY_INFO!$T$9:$T$1000, " ") ->  | I54: 0 | K54: 0 | L54: 0 | M54: 0
A55: =IF(COUNTRY_INFO!A55=0," ",COUNTRY_INFO!A55) -> Burkina Faso | B55: =IF(COUNTRY_INFO!B55=0," ",COUNTRY_INFO!B55) -> Hauts-Bassins | C55: =IF(COUNTRY_INFO!C55=0," ",COUNTRY_INFO!C55) -> Dô | D55: =IF(COUNTRY_INFO!$T$9:$T$1000="MDA1 (IVM+ALB)", COUNTRY_INFO!$T$9:$T$1000, " ") ->  | I55: 0 | K55: 0 | L55: 0 | M55: 0
A56: =IF(COUNTRY_INFO!A56=0," ",COUNTRY_INFO!A56) -> Burkina Faso | B56: =IF(COUNTRY_INFO!B56=0," ",COUNTRY_INFO!B56) -> Hauts-Bassins | C56: =IF(COUNTRY_INFO!C56=0," ",COUNTRY_INFO!C56) -> Houndé | D56: =IF(COUNTRY_INFO!$T$9:$T$1000="MDA1 (IVM+ALB)", COUNTRY_INFO!$T$9:$T$1000, " ") ->  | I56: 0 | K56: 0 | L56: 0 | M56: 0
A57: =IF(COUNTRY_INFO!A57=0," ",COUNTRY_INFO!A57) -> Burkina Faso | B57: =IF(COUNTRY_INFO!B57=0," ",COUNTRY_INFO!B57) -> Hauts-Bassins | C57: =IF(COUNTRY_INFO!C57=0," ",COUNTRY_INFO!C57) -> Karangasso-Vigué | D57: =IF(COUNTRY_INFO!$T$9:$T$1000="MDA1 (IVM+ALB)", COUNTRY_INFO!$T$9:$T$1000, " ") ->  | I57: 0 | K57: 0 | L57: 0 | M57: 0
A58: =IF(COUNTRY_INFO!A58=0," ",COUNTRY_INFO!A58) -> Burkina Faso | B58: =IF(COUNTRY_INFO!B58=0," ",COUNTRY_INFO!B58) -> Hauts-Bassins | C58: =IF(COUNTRY_INFO!C58=0," ",COUNTRY_INFO!C58) -> Lena | D58: =IF(COUNTRY_INFO!$T$9:$T$1000="MDA1 (IVM+ALB)", COUNTRY_INFO!$T$9:$T$1000, " ") ->  | I58: 0 | K58: 0 | L58: 0 | M58: 0
A59: =IF(COUNTRY_INFO!A59=0," ",COUNTRY_INFO!A59) -> Burkina Faso | B59: =IF(COUNTRY_INFO!B59=0," ",COUNTRY_INFO!B59) -> Hauts-Bassins | C59: =IF(COUNTRY_INFO!C59=0," ",COUNTRY_INFO!C59) -> N'Dorola | D59: =IF(COUNTRY_INFO!$T$9:$T$1000="MDA1 (IVM+ALB)", COUNTRY_INFO!$T$9:$T$1000, " ") ->  | I59: 0 | K59: 0 | L59: 0 | M59: 0
A60: =IF(COUNTRY_INFO!A60=0," ",COUNTRY_INFO!A60) -> Burkina Faso | B60: =IF(COUNTRY_INFO!B60=0," ",COUNTRY_INFO!B60) -> Hauts-Bassins | C60: =IF(COUNTRY_INFO!C60=0," ",COUNTRY_INFO!C60) -> Orodara | D60: =IF(COUNTRY_INFO!$T$9:$T$1000="MDA1 (IVM+ALB)", COUNTRY_INFO!$T$9:$T$1000, " ") ->  | I60: 0 | K60: 0 | L60: 0 | M60: 0
A61: =IF(COUNTRY_INFO!A61=0," ",COUNTRY_INFO!A61) -> Burkina Faso | B61: =IF(COUNTRY_INFO!B61=0," ",COUNTRY_INFO!B61) -> Nord | C61: =IF(COUNTRY_INFO!C61=0," ",COUNTRY_INFO!C61) -> Gourcy | D61: =IF(COUNTRY_INFO!$T$9:$T$1000="MDA1 (IVM+ALB)", COUNTRY_INFO!$T$9:$T$1000, " ") ->  | I61: 0 | K61: 0 | L61: 0 | M61: 0
A62: =IF(COUNTRY_INFO!A62=0," ",COUNTRY_INFO!A62) -> Burkina Faso | B62: =IF(COUNTRY_INFO!B62=0," ",COUNTRY_INFO!B62) -> Nord | C62: =IF(COUNTRY_INFO!C62=0," ",COUNTRY_INFO!C62) -> Ouahigouya | D62: =IF(COUNTRY_INFO!$T$9:$T$1000="MDA1 (IVM+ALB)", COUNTRY_INFO!$T$9:$T$1000, " ") ->  | I62: 0 | K62: 0 | L62: 0 | M62: 0
A63: =IF(COUNTRY_INFO!A63=0," ",COUNTRY_INFO!A63) -> Burkina Faso | B63: =IF(COUNTRY_INFO!B63=0," ",COUNTRY_INFO!B63) -> Nord | C63: =IF(COUNTRY_INFO!C63=0," ",COUNTRY_INFO!C63) -> Seguenega | D63: =IF(COUNTRY_INFO!$T$9:$T$1000="MDA1 (IVM+ALB)", COUNTRY_INFO!$T$9:$T$1000, " ") ->  | I63: 0 | K63: 0 | L63: 0 | M63: 0
A64: =IF(COUNTRY_INFO!A64=0," ",COUNTRY_INFO!A64) -> Burkina Faso | B64: =IF(COUNTRY_INFO!B64=0," ",COUNTRY_INFO!B64) -> Nord | C64: =IF(COUNTRY_INFO!C64=0," ",COUNTRY_INFO!C64) -> Thiou | D64: =IF(COUNTRY_INFO!$T$9:$T$1000="MDA1 (IVM+ALB)", COUNTRY_INFO!$T$9:$T$1000, " ") ->  | I64: 0 | K64: 0 | L64: 0 | M64: 0
A65: =IF(COUNTRY_INFO!A65=0," ",COUNTRY_INFO!A65) -> Burkina Faso | B65: =IF(COUNTRY_INFO!B65=0," ",COUNTRY_INFO!B65) -> Nord | C65: =IF(COUNTRY_INFO!C65=0," ",COUNTRY_INFO!C65) -> Titao | D65: =IF(COUNTRY_INFO!$T$9:$T$1000="MDA1 (IVM+ALB)", COUNTRY_INFO!$T$9:$T$1000, " ") ->  | I65: 0 | K65: 0 | L65: 0 | M65: 0
A66: =IF(COUNTRY_INFO!A66=0," ",COUNTRY_INFO!A66) -> Burkina Faso | B66: =IF(COUNTRY_INFO!B66=0," ",COUNTRY_INFO!B66) -> Nord | C66: =IF(COUNTRY_INFO!C66=0," ",COUNTRY_INFO!C66) -> Yako | D66: =IF(COUNTRY_INFO!$T$9:$T$1000="MDA1 (IVM+ALB)", COUNTRY_INFO!$T$9:$T$1000, " ") ->  | I66: 0 | K66: 0 | L66: 0 | M66: 0
A67: =IF(COUNTRY_INFO!A67=0," ",COUNTRY_INFO!A67) -> Burkina Faso | B67: =IF(COUNTRY_INFO!B67=0," ",COUNTRY_INFO!B67) -> Plateau Central | C67: =IF(COUNTRY_INFO!C67=0," ",COUNTRY_INFO!C67) -> Boussé | D67: =IF(COUNTRY_INFO!$T$9:$T$1000="MDA1 (IVM+ALB)", COUNTRY_INFO!$T$9:$T$1000, " ") ->  | I67: 0 | K67: 0 | L67: 0 | M67: 0
A68: =IF(COUNTRY_INFO!A68=0," ",COUNTRY_INFO!A68) -> Burkina Faso | B68: =IF(COUNTRY_INFO!B68=0," ",COUNTRY_INFO!B68) -> Plateau Central | C68: =IF(COUNTRY_INFO!C68=0," ",COUNTRY_INFO!C68) -> Ziniaré | D68: =IF(COUNTRY_INFO!$T$9:$T$1000="MDA1 (IVM+ALB)", COUNTRY_INFO!$T$9:$T$1000, " ") ->  | I68: 0 | K68: 0 | L68: 0 | M68: 0
A69: =IF(COUNTRY_INFO!A69=0," ",COUNTRY_INFO!A69) -> Burkina Faso | B69: =IF(COUNTRY_INFO!B69=0," ",COUNTRY_INFO!B69) -> Plateau Central | C69: =IF(COUNTRY_INFO!C69=0," ",COUNTRY_INFO!C69) -> Zorgho | D69: =IF(COUNTRY_INFO!$T$9:$T$1000="MDA1 (IVM+ALB)", COUNTRY_INFO!$T$9:$T$1000, " ") ->  | I69: 0 | K69: 0 | L69: 0 | M69: 0
A70: =IF(COUNTRY_INFO!A70=0," ",COUNTRY_INFO!A70) -> Burkina Faso | B70: =IF(COUNTRY_INFO!B70=0," ",COUNTRY_INFO!B70) -> Sahel | C70: =IF(COUNTRY_INFO!C70=0," ",COUNTRY_INFO!C70) -> Djibo | D70: =IF(COUNTRY_INFO!$T$9:$T$1000="MDA1 (IVM+ALB)", COUNTRY_INFO!$T$9:$T$1000, " ") ->  | I70: 0 | K70: 0 | L70: 0 | M70: 0
A71: =IF(COUNTRY_INFO!A71=0," ",COUNTRY_INFO!A71) -> Burkina Faso | B71: =IF(COUNTRY_INFO!B71=0," ",COUNTRY_INFO!B71) -> Sahel | C71: =IF(COUNTRY_INFO!C71=0," ",COUNTRY_INFO!C71) -> Dori | D71: =IF(COUNTRY_INFO!$T$9:$T$1000="MDA1 (IVM+ALB)", COUNTRY_INFO!$T$9:$T$1000, " ") ->  | I71: 0 | K71: 0 | L71: 0 | M71: 0
A72: =IF(COUNTRY_INFO!A72=0," ",COUNTRY_INFO!A72) -> Burkina Faso | B72: =IF(COUNTRY_INFO!B72=0," ",COUNTRY_INFO!B72) -> Sahel | C72: =IF(COUNTRY_INFO!C72=0," ",COUNTRY_INFO!C72) -> Gorom-Gorom | D72: =IF(COUNTRY_INFO!$T$9:$T$1000="MDA1 (IVM+ALB)", COUNTRY_INFO!$T$9:$T$1000, " ") ->  | I72: 0 | K72: 0 | L72: 0 | M72: 0
A73: =IF(COUNTRY_INFO!A73=0," ",COUNTRY_INFO!A73) -> Burkina Faso | B73: =IF(COUNTRY_INFO!B73=0," ",COUNTRY_INFO!B73) -> Sahel | C73: =IF(COUNTRY_INFO!C73=0," ",COUNTRY_INFO!C73) -> Sebba | D73: =IF(COUNTRY_INFO!$T$9:$T$1000="MDA1 (IVM+ALB)", COUNTRY_INFO!$T$9:$T$1000, " ") -> MDA1 (IVM+ALB) | E73: 6-10/10/17 | G73: 66254 | H73: 115840 | I73: 182094 | K73: 65457.4426 | L73: 114469.5574 | M73: 179927 | O73: 98.7977218 | P73: 98.81695218 | Q73: 98.8099553
A74: =IF(COUNTRY_INFO!A74=0," ",COUNTRY_INFO!A74) -> Burkina Faso | B74: =IF(COUNTRY_INFO!B74=0," ",COUNTRY_INFO!B74) -> Sud-Ouest | C74: =IF(COUNTRY_INFO!C74=0," ",COUNTRY_INFO!C74) -> Batié | D74: =IF(COUNTRY_INFO!$T$9:$T$1000="MDA1 (IVM+ALB)", COUNTRY_INFO!$T$9:$T$1000, " ") -> MDA1 (IVM+ALB) | E74: 17-22/07/17 | G74: 28237 | H74: 51136 | I74: =SUM(F74:H74) -> 79373 | K74: 28291 | L74: 49948 | M74: =SUM(J74:L74) -> 78239 | O74: =IF(G74<>0, IF(K74/G74*100=0, "-", K74/G74*100), " ") -> 100.1912384 | P74: =IF(H74<>0, IF(L74/H74*100=0, "-", L74/H74*100), " ") -> 97.67678348 | Q74: =IF(I74<>0, IF(M74/I74*100=0, "-", M74/I74*100), " ") -> 98.57130258
A75: =IF(COUNTRY_INFO!A75=0," ",COUNTRY_INFO!A75) -> Burkina Faso | B75: =IF(COUNTRY_INFO!B75=0," ",COUNTRY_INFO!B75) -> Sud-Ouest | C75: =IF(COUNTRY_INFO!C75=0," ",COUNTRY_INFO!C75) -> Dano | D75: =IF(COUNTRY_INFO!$T$9:$T$1000="MDA1 (IVM+ALB)", COUNTRY_INFO!$T$9:$T$1000, " ") ->  | I75: 0 | K75: 0 | L75: 0 | M75: 0
A76: =IF(COUNTRY_INFO!A76=0," ",COUNTRY_INFO!A76) -> Burkina Faso | B76: =IF(COUNTRY_INFO!B76=0," ",COUNTRY_INFO!B76) -> Sud-Ouest | C76: =IF(COUNTRY_INFO!C76=0," ",COUNTRY_INFO!C76) -> Diébougou | D76: =IF(COUNTRY_INFO!$T$9:$T$1000="MDA1 (IVM+ALB)", COUNTRY_INFO!$T$9:$T$1000, " ") -> MDA1 (IVM+ALB) | E76: 17-22/07/17 | G76: 40446 | H76: 73246 | I76: 113692 | K76: 42522 | L76: 72539 | M76: 115061 | O76: 105.1327696 | P76: 99.03475958 | Q76: 101.2041305
A77: =IF(COUNTRY_INFO!A77=0," ",COUNTRY_INFO!A77) -> Burkina Faso | B77: =IF(COUNTRY_INFO!B77=0," ",COUNTRY_INFO!B77) -> Sud-Ouest | C77: =IF(COUNTRY_INFO!C77=0," ",COUNTRY_INFO!C77) -> Gaoua | D77: =IF(COUNTRY_INFO!$T$9:$T$1000="MDA1 (IVM+ALB)", COUNTRY_INFO!$T$9:$T$1000, " ") -> MDA1 (IVM+ALB) | E77: 17-22/07/17 | G77: 75590 | H77: 131166 | I77: 206756 | K77: 90365 | L77: 116413 | M77: 206778 | O77: 119.5462363 | P77: 88.7524206 | Q77: 100.0106406
A78: =IF(COUNTRY_INFO!A78=0," ",COUNTRY_INFO!A78) -> Burkina Faso | B78: =IF(COUNTRY_INFO!B78=0," ",COUNTRY_INFO!B78) -> Sud-Ouest | C78: =IF(COUNTRY_INFO!C78=0," ",COUNTRY_INFO!C78) -> Kampti | D78: =IF(COUNTRY_INFO!$T$9:$T$1000="MDA1 (IVM+ALB)", COUNTRY_INFO!$T$9:$T$1000, " ") -> MDA1 (IVM+ALB) | E78: 17-22/07/17 | G78: 26305 | H78: 53348 | I78: 79653 | K78: 23169 | L78: 56781 | M78: 79950 | O78: 88.07831211 | P78: 106.4351053 | Q78: 100.3728673

Sheet MDA2 (hidden)
A1: MDA 2 - Diethylcarbamazine (DEC) + Albendazole (ALB)
A2: Structure administrative, population nécessitant une chimioprévention par groupe d'âge, population traitée par groupe d'âge et couverture
A4: TOTAL | F4: =SUM(F$9:F$1000) -> 0 | G4: =SUM(G$9:G$1000) -> 0 | H4: 0 | I4: 0 | J4: 0 | K4: 0 | L4: 0 | M4: 0 | N4: =IF(F4<>0, IF(J4/F4*100=0, "-", J4/F4*100), " ") ->  | O4: =IF(G4<>0, IF(K4/G4*100=0, "-", K4/G4*100), " ") ->  | P4: =IF(H4<>0, IF(L4/H4*100=0, "-", L4/H4*100), " ") ->  | Q4: =IF(I4<>0, IF(M4/I4*100=0, "-", M4/I4*100), " ") -> 
A6: Structure administrative du pays | D6: Mise en oeuvre de la CP | E6: Date | F6: Population ciblée pour MDA 2 | J6: Population traitée | N6: Couverture du Programme (%)
A7: Pays | B7: Région/Département | C7: District | F7: EAPréS | G7: EAS | H7: Adultes | I7: Total | J7: EAPréS | K7: EAS | L7: Adultes | M7: Total | N7: EAPréS | O7: EAS | P7: Adultes | Q7: Total
A9: =IF(COUNTRY_INFO!A9=0," ",COUNTRY_INFO!A9) -> Burkina Faso | B9: =IF(COUNTRY_INFO!B9=0," ",COUNTRY_INFO!B9) -> Boucle du Mouhoun | C9: =IF(COUNTRY_INFO!C9=0," ",COUNTRY_INFO!C9) -> Boromo | D9: =IF(COUNTRY_INFO!$T$9:$T$1000="MDA2 (DEC+ALB)", COUNTRY_INFO!$T$9:$T$1000, " ") ->  | I9: =SUM(F9:H9) -> 0 | M9: =SUM(J9:L9) -> 0 | N9: =IF(F9<>0, IF(J9/F9*100=0, "-", J9/F9*100), " ") -> 
A10: =IF(COUNTRY_INFO!A10=0," ",COUNTRY_INFO!A10) -> Burkina Faso | B10: =IF(COUNTRY_INFO!B10=0," ",COUNTRY_INFO!B10) -> Boucle du Mouhoun | C10: =IF(COUNTRY_INFO!C10=0," ",COUNTRY_INFO!C10) -> Dédougou | D10: =IF(COUNTRY_INFO!$T$9:$T$1000="MDA2 (DEC+ALB)", COUNTRY_INFO!$T$9:$T$1000, " ") ->  | I10: =SUM(F10:H10) -> 0 | M10: =SUM(J10:L10) -> 0 | N10: =IF(F10<>0, IF(J10/F10*100=0, "-", J10/F10*100), " ") ->  | O10: =IF(G10<>0, IF(K10/G10*100=0, "-", K10/G10*100), " ") ->  | P10: =IF(H10<>0, IF(L10/H10*100=0, "-", L10/H10*100), " ") ->  | Q10: =IF(I10<>0, IF(M10/I10*100=0, "-", M10/I10*100), " ") -> 
A11: =IF(COUNTRY_INFO!A11=0," ",COUNTRY_INFO!A11) -> Burkina Faso | B11: =IF(COUNTRY_INFO!B11=0," ",COUNTRY_INFO!B11) -> Boucle du Mouhoun | C11: =IF(COUNTRY_INFO!C11=0," ",COUNTRY_INFO!C11) -> Nouna | D11: =IF(COUNTRY_INFO!$T$9:$T$1000="MDA2 (DEC+ALB)", COUNTRY_INFO!$T$9:$T$1000, " ") ->  | I11: 0 | M11: 0
A12: =IF(COUNTRY_INFO!A12=0," ",COUNTRY_INFO!A12) -> Burkina Faso | B12: =IF(COUNTRY_INFO!B12=0," ",COUNTRY_INFO!B12) -> Boucle du Mouhoun | C12: =IF(COUNTRY_INFO!C12=0," ",COUNTRY_INFO!C12) -> Solenzo | D12: =IF(COUNTRY_INFO!$T$9:$T$1000="MDA2 (DEC+ALB)", COUNTRY_INFO!$T$9:$T$1000, " ") ->  | I12: 0 | M12: 0
A13: =IF(COUNTRY_INFO!A13=0," ",COUNTRY_INFO!A13) -> Burkina Faso | B13: =IF(COUNTRY_INFO!B13=0," ",COUNTRY_INFO!B13) -> Boucle du Mouhoun | C13: =IF(COUNTRY_INFO!C13=0," ",COUNTRY_INFO!C13) -> Toma | D13: =IF(COUNTRY_INFO!$T$9:$T$1000="MDA2 (DEC+ALB)", COUNTRY_INFO!$T$9:$T$1000, " ") ->  | I13: 0 | M13: 0
A14: =IF(COUNTRY_INFO!A14=0," ",COUNTRY_INFO!A14) -> Burkina Faso | B14: =IF(COUNTRY_INFO!B14=0," ",COUNTRY_INFO!B14) -> Boucle du Mouhoun | C14: =IF(COUNTRY_INFO!C14=0," ",COUNTRY_INFO!C14) -> Tougan | D14: =IF(COUNTRY_INFO!$T$9:$T$1000="MDA2 (DEC+ALB)", COUNTRY_INFO!$T$9:$T$1000, " ") ->  | I14: 0 | M14: 0
A15: =IF(COUNTRY_INFO!A15=0," ",COUNTRY_INFO!A15) -> Burkina Faso | B15: =IF(COUNTRY_INFO!B15=0," ",COUNTRY_INFO!B15) -> Cascades | C15: =IF(COUNTRY_INFO!C15=0," ",COUNTRY_INFO!C15) -> Banfora | D15: =IF(COUNTRY_INFO!$T$9:$T$1000="MDA2 (DEC+ALB)", COUNTRY_INFO!$T$9:$T$1000, " ") ->  | I15: 0 | M15: 0
A16: =IF(COUNTRY_INFO!A16=0," ",COUNTRY_INFO!A16) -> Burkina Faso | B16: =IF(COUNTRY_INFO!B16=0," ",COUNTRY_INFO!B16) -> Cascades | C16: =IF(COUNTRY_INFO!C16=0," ",COUNTRY_INFO!C16) -> Mangodara | D16: =IF(COUNTRY_INFO!$T$9:$T$1000="MDA2 (DEC+ALB)", COUNTRY_INFO!$T$9:$T$1000, " ") ->  | I16: 0 | M16: 0
A17: =IF(COUNTRY_INFO!A17=0," ",COUNTRY_INFO!A17) -> Burkina Faso | B17: =IF(COUNTRY_INFO!B17=0," ",COUNTRY_INFO!B17) -> Cascades | C17: =IF(COUNTRY_INFO!C17=0," ",COUNTRY_INFO!C17) -> Sindou | D17: =IF(COUNTRY_INFO!$T$9:$T$1000="MDA2 (DEC+ALB)", COUNTRY_INFO!$T$9:$T$1000, " ") ->  | I17: 0 | M17: 0
A18: =IF(COUNTRY_INFO!A18=0," ",COUNTRY_INFO!A18) -> Burkina Faso | B18: =IF(COUNTRY_INFO!B18=0," ",COUNTRY_INFO!B18) -> Centre | C18: =IF(COUNTRY_INFO!C18=0," ",COUNTRY_INFO!C18) -> Baskuy | D18: =IF(COUNTRY_INFO!$T$9:$T$1000="MDA2 (DEC+ALB)", COUNTRY_INFO!$T$9:$T$1000, " ") ->  | I18: 0 | M18: 0
A19: =IF(COUNTRY_INFO!A19=0," ",COUNTRY_INFO!A19) -> Burkina Faso | B19: =IF(COUNTRY_INFO!B19=0," ",COUNTRY_INFO!B19) -> Centre | C19: =IF(COUNTRY_INFO!C19=0," ",COUNTRY_INFO!C19) -> Bogodogo | D19: =IF(COUNTRY_INFO!$T$9:$T$1000="MDA2 (DEC+ALB)", COUNTRY_INFO!$T$9:$T$1000, " ") ->  | I19: 0 | M19: 0
A20: =IF(COUNTRY_INFO!A20=0," ",COUNTRY_INFO!A20) -> Burkina Faso | B20: =IF(COUNTRY_INFO!B20=0," ",COUNTRY_INFO!B20) -> Centre | C20: =IF(COUNTRY_INFO!C20=0," ",COUNTRY_INFO!C20) -> Boulmiougou | D20: =IF(COUNTRY_INFO!$T$9:$T$1000="MDA2 (DEC+ALB)", COUNTRY_INFO!$T$9:$T$1000, " ") ->  | I20: 0 | M20: 0
A21: =IF(COUNTRY_INFO!A21=0," ",COUNTRY_INFO!A21) -> Burkina Faso | B21: =IF(COUNTRY_INFO!B21=0," ",COUNTRY_INFO!B21) -> Centre | C21: =IF(COUNTRY_INFO!C21=0," ",COUNTRY_INFO!C21) -> Nongre-Massom | D21: =IF(COUNTRY_INFO!$T$9:$T$1000="MDA2 (DEC+ALB)", COUNTRY_INFO!$T$9:$T$1000, " ") ->  | I21: 0 | M21: 0
A22: =IF(COUNTRY_INFO!A22=0," ",COUNTRY_INFO!A22) -> Burkina Faso | B22: =IF(COUNTRY_INFO!B22=0," ",COUNTRY_INFO!B22) -> Centre | C22: =IF(COUNTRY_INFO!C22=0," ",COUNTRY_INFO!C22) -> Sig-Nonghin | D22: =IF(COUNTRY_INFO!$T$9:$T$1000="MDA2 (DEC+ALB)", COUNTRY_INFO!$T$9:$T$1000, " ") ->  | I22: 0 | M22: 0
A23: =IF(COUNTRY_INFO!A23=0," ",COUNTRY_INFO!A23) -> Burkina Faso | B23: =IF(COUNTRY_INFO!B23=0," ",COUNTRY_INFO!B23) -> Centre-Est | C23: =IF(COUNTRY_INFO!C23=0," ",COUNTRY_INFO!C23) -> Bittou | D23: =IF(COUNTRY_INFO!$T$9:$T$1000="MDA2 (DEC+ALB)", COUNTRY_INFO!$T$9:$T$1000, " ") ->  | I23: 0 | M23: 0
A24: =IF(COUNTRY_INFO!A24=0," ",COUNTRY_INFO!A24) -> Burkina Faso | B24: =IF(COUNTRY_INFO!B24=0," ",COUNTRY_INFO!B24) -> Centre-Est | C24: =IF(COUNTRY_INFO!C24=0," ",COUNTRY_INFO!C24) -> Garango | D24: =IF(COUNTRY_INFO!$T$9:$T$1000="MDA2 (DEC+ALB)", COUNTRY_INFO!$T$9:$T$1000, " ") ->  | I24: 0 | M24: 0
A25: =IF(COUNTRY_INFO!A25=0," ",COUNTRY_INFO!A25) -> Burkina Faso | B25: =IF(COUNTRY_INFO!B25=0," ",COUNTRY_INFO!B25) -> Centre-Est | C25: =IF(COUNTRY_INFO!C25=0," ",COUNTRY_INFO!C25) -> Koupela | D25: =IF(COUNTRY_INFO!$T$9:$T$1000="MDA2 (DEC+ALB)", COUNTRY_INFO!$T$9:$T$1000, " ") ->  | I25: 0 | M25: 0
A26: =IF(COUNTRY_INFO!A26=0," ",COUNTRY_INFO!A26) -> Burkina Faso | B26: =IF(COUNTRY_INFO!B26=0," ",COUNTRY_INFO!B26) -> Centre-Est | C26: =IF(COUNTRY_INFO!C26=0," ",COUNTRY_INFO!C26) -> Ouargaye | D26: =IF(COUNTRY_INFO!$T$9:$T$1000="MDA2 (DEC+ALB)", COUNTRY_INFO!$T$9:$T$1000, " ") ->  | I26: 0 | M26: 0
A27: =IF(COUNTRY_INFO!A27=0," ",COUNTRY_INFO!A27) -> Burkina Faso | B27: =IF(COUNTRY_INFO!B27=0," ",COUNTRY_INFO!B27) -> Centre-Est | C27: =IF(COUNTRY_INFO!C27=0," ",COUNTRY_INFO!C27) -> Pouytenga | D27: =IF(COUNTRY_INFO!$T$9:$T$1000="MDA2 (DEC+ALB)", COUNTRY_INFO!$T$9:$T$1000, " ") ->  | I27: 0 | M27: 0
A28: =IF(COUNTRY_INFO!A28=0," ",COUNTRY_INFO!A28) -> Burkina Faso | B28: =IF(COUNTRY_INFO!B28=0," ",COUNTRY_INFO!B28) -> Centre-Est | C28: =IF(COUNTRY_INFO!C28=0," ",COUNTRY_INFO!C28) -> Tenkodogo | D28: =IF(COUNTRY_INFO!$T$9:$T$1000="MDA2 (DEC+ALB)", COUNTRY_INFO!$T$9:$T$1000, " ") ->  | I28: 0 | M28: 0
A29: =IF(COUNTRY_INFO!A29=0," ",COUNTRY_INFO!A29) -> Burkina Faso | B29: =IF(COUNTRY_INFO!B29=0," ",COUNTRY_INFO!B29) -> Centre-Est | C29: =IF(COUNTRY_INFO!C29=0," ",COUNTRY_INFO!C29) -> Zabré | D29: =IF(COUNTRY_INFO!$T$9:$T$1000="MDA2 (DEC+ALB)", COUNTRY_INFO!$T$9:$T$1000, " ") ->  | I29: 0 | M29: 0
A30: =IF(COUNTRY_INFO!A30=0," ",COUNTRY_INFO!A30) -> Burkina Faso | B30: =IF(COUNTRY_INFO!B30=0," ",COUNTRY_INFO!B30) -> Centre-Nord | C30: =IF(COUNTRY_INFO!C30=0," ",COUNTRY_INFO!C30) -> Barsalogo | D30: =IF(COUNTRY_INFO!$T$9:$T$1000="MDA2 (DEC+ALB)", COUNTRY_INFO!$T$9:$T$1000, " ") ->  | I30: 0 | M30: 0
A31: =IF(COUNTRY_INFO!A31=0," ",COUNTRY_INFO!A31) -> Burkina Faso | B31: =IF(COUNTRY_INFO!B31=0," ",COUNTRY_INFO!B31) -> Centre-Nord | C31: =IF(COUNTRY_INFO!C31=0," ",COUNTRY_INFO!C31) -> Boulsa | D31: =IF(COUNTRY_INFO!$T$9:$T$1000="MDA2 (DEC+ALB)", COUNTRY_INFO!$T$9:$T$1000, " ") ->  | I31: 0 | M31: 0
A32: =IF(COUNTRY_INFO!A32=0," ",COUNTRY_INFO!A32) -> Burkina Faso | B32: =IF(COUNTRY_INFO!B32=0," ",COUNTRY_INFO!B32) -> Centre-Nord | C32: =IF(COUNTRY_INFO!C32=0," ",COUNTRY_INFO!C32) -> Boussouma | D32: =IF(COUNTRY_INFO!$T$9:$T$1000="MDA2 (DEC+ALB)", COUNTRY_INFO!$T$9:$T$1000, " ") ->  | I32: 0 | M32: 0
A33: =IF(COUNTRY_INFO!A33=0," ",COUNTRY_INFO!A33) -> Burkina Faso | B33: =IF(COUNTRY_INFO!B33=0," ",COUNTRY_INFO!B33) -> Centre-Nord | C33: =IF(COUNTRY_INFO!C33=0," ",COUNTRY_INFO!C33) -> Kaya | D33: =IF(COUNTRY_INFO!$T$9:$T$1000="MDA2 (DEC+ALB)", COUNTRY_INFO!$T$9:$T$1000, " ") ->  | I33: 0 | M33: 0
A34: =IF(COUNTRY_INFO!A34=0," ",COUNTRY_INFO!A34) -> Burkina Faso | B34: =IF(COUNTRY_INFO!B34=0," ",COUNTRY_INFO!B34) -> Centre-Nord | C34: =IF(COUNTRY_INFO!C34=0," ",COUNTRY_INFO!C34) -> Kongoussi | D34: =IF(COUNTRY_INFO!$T$9:$T$1000="MDA2 (DEC+ALB)", COUNTRY_INFO!$T$9:$T$1000, " ") ->  | I34: 0 | M34: 0
A35: =IF(COUNTRY_INFO!A35=0," ",COUNTRY_INFO!A35) -> Burkina Faso | B35: =IF(COUNTRY_INFO!B35=0," ",COUNTRY_INFO!B35) -> Centre-Nord | C35: =IF(COUNTRY_INFO!C35=0," ",COUNTRY_INFO!C35) -> Tougouri | D35: =IF(COUNTRY_INFO!$T$9:$T$1000="MDA2 (DEC+ALB)", COUNTRY_INFO!$T$9:$T$1000, " ") ->  | I35: 0 | M35: 0
A36: =IF(COUNTRY_INFO!A36=0," ",COUNTRY_INFO!A36) -> Burkina Faso | B36: =IF(COUNTRY_INFO!B36=0," ",COUNTRY_INFO!B36) -> Centre-Ouest | C36: =IF(COUNTRY_INFO!C36=0," ",COUNTRY_INFO!C36) -> Koudougou | D36: =IF(COUNTRY_INFO!$T$9:$T$1000="MDA2 (DEC+ALB)", COUNTRY_INFO!$T$9:$T$1000, " ") ->  | I36: 0 | M36: 0
A37: =IF(COUNTRY_INFO!A37=0," ",COUNTRY_INFO!A37) -> Burkina Faso | B37: =IF(COUNTRY_INFO!B37=0," ",COUNTRY_INFO!B37) -> Centre-Ouest | C37: =IF(COUNTRY_INFO!C37=0," ",COUNTRY_INFO!C37) -> Léo | D37: =IF(COUNTRY_INFO!$T$9:$T$1000="MDA2 (DEC+ALB)", COUNTRY_INFO!$T$9:$T$1000, " ") ->  | I37: 0 | M37: 0
A38: =IF(COUNTRY_INFO!A38=0," ",COUNTRY_INFO!A38) -> Burkina Faso | B38: =IF(COUNTRY_INFO!B38=0," ",COUNTRY_INFO!B38) -> Centre-Ouest | C38: =IF(COUNTRY_INFO!C38=0," ",COUNTRY_INFO!C38) -> Nanoro | D38: =IF(COUNTRY_INFO!$T$9:$T$1000="MDA2 (DEC+ALB)", COUNTRY_INFO!$T$9:$T$1000, " ") ->  | I38: 0 | M38: 0
A39: =IF(COUNTRY_INFO!A39=0," ",COUNTRY_INFO!A39) -> Burkina Faso | B39: =IF(COUNTRY_INFO!B39=0," ",COUNTRY_INFO!B39) -> Centre-Ouest | C39: =IF(COUNTRY_INFO!C39=0," ",COUNTRY_INFO!C39) -> Réo | D39: =IF(COUNTRY_INFO!$T$9:$T$1000="MDA2 (DEC+ALB)", COUNTRY_INFO!$T$9:$T$1000, " ") ->  | I39: 0 | M39: 0
A40: =IF(COUNTRY_INFO!A40=0," ",COUNTRY_INFO!A40) -> Burkina Faso | B40: =IF(COUNTRY_INFO!B40=0," ",COUNTRY_INFO!B40) -> Centre-Ouest | C40: =IF(COUNTRY_INFO!C40=0," ",COUNTRY_INFO!C40) -> Sabou | D40: =IF(COUNTRY_INFO!$T$9:$T$1000="MDA2 (DEC+ALB)", COUNTRY_INFO!$T$9:$T$1000, " ") ->  | I40: 0 | M40: 0
A41: =IF(COUNTRY_INFO!A41=0," ",COUNTRY_INFO!A41) -> Burkina Faso | B41: =IF(COUNTRY_INFO!B41=0," ",COUNTRY_INFO!B41) -> Centre-Ouest | C41: =IF(COUNTRY_INFO!C41=0," ",COUNTRY_INFO!C41) -> Sapouy | D41: =IF(COUNTRY_INFO!$T$9:$T$1000="MDA2 (DEC+ALB)", COUNTRY_INFO!$T$9:$T$1000, " ") ->  | I41: 0 | M41: 0
A42: =IF(COUNTRY_INFO!A42=0," ",COUNTRY_INFO!A42) -> Burkina Faso | B42: =IF(COUNTRY_INFO!B42=0," ",COUNTRY_INFO!B42) -> Centre-Ouest | C42: =IF(COUNTRY_INFO!C42=0," ",COUNTRY_INFO!C42) -> Tenado | D42: =IF(COUNTRY_INFO!$T$9:$T$1000="MDA2 (DEC+ALB)", COUNTRY_INFO!$T$9:$T$1000, " ") ->  | I42: 0 | M42: 0
A43: =IF(COUNTRY_INFO!A43=0," ",COUNTRY_INFO!A43) -> Burkina Faso | B43: =IF(COUNTRY_INFO!B43=0," ",COUNTRY_INFO!B43) -> Centre-Sud | C43: =IF(COUNTRY_INFO!C43=0," ",COUNTRY_INFO!C43) -> Kombissiri | D43: =IF(COUNTRY_INFO!$T$9:$T$1000="MDA2 (DEC+ALB)", COUNTRY_INFO!$T$9:$T$1000, " ") ->  | I43: 0 | M43: 0
A44: =IF(COUNTRY_INFO!A44=0," ",COUNTRY_INFO!A44) -> Burkina Faso | B44: =IF(COUNTRY_INFO!B44=0," ",COUNTRY_INFO!B44) -> Centre-Sud | C44: =IF(COUNTRY_INFO!C44=0," ",COUNTRY_INFO!C44) -> Manga | D44: =IF(COUNTRY_INFO!$T$9:$T$1000="MDA2 (DEC+ALB)", COUNTRY_INFO!$T$9:$T$1000, " ") ->  | I44: 0 | M44: 0
A45: =IF(COUNTRY_INFO!A45=0," ",COUNTRY_INFO!A45) -> Burkina Faso | B45: =IF(COUNTRY_INFO!B45=0," ",COUNTRY_INFO!B45) -> Centre-Sud | C45: =IF(COUNTRY_INFO!C45=0," ",COUNTRY_INFO!C45) -> Pô | D45: =IF(COUNTRY_INFO!$T$9:$T$1000="MDA2 (DEC+ALB)", COUNTRY_INFO!$T$9:$T$1000, " ") ->  | I45: 0 | M45: 0
A46: =IF(COUNTRY_INFO!A46=0," ",COUNTRY_INFO!A46) -> Burkina Faso | B46: =IF(COUNTRY_INFO!B46=0," ",COUNTRY_INFO!B46) -> Centre-Sud | C46: =IF(COUNTRY_INFO!C46=0," ",COUNTRY_INFO!C46) -> Saponé | D46: =IF(COUNTRY_INFO!$T$9:$T$1000="MDA2 (DEC+ALB)", COUNTRY_INFO!$T$9:$T$1000, " ") ->  | I46: 0 | M46: 0
A47: =IF(COUNTRY_INFO!A47=0," ",COUNTRY_INFO!A47) -> Burkina Faso | B47: =IF(COUNTRY_INFO!B47=0," ",COUNTRY_INFO!B47) -> Est | C47: =IF(COUNTRY_INFO!C47=0," ",COUNTRY_INFO!C47) -> Bogandé | D47: =IF(COUNTRY_INFO!$T$9:$T$1000="MDA2 (DEC+ALB)", COUNTRY_INFO!$T$9:$T$1000, " ") ->  | I47: 0 | M47: 0
A48: =IF(COUNTRY_INFO!A48=0," ",COUNTRY_INFO!A48) -> Burkina Faso | B48: =IF(COUNTRY_INFO!B48=0," ",COUNTRY_INFO!B48) -> Est | C48: =IF(COUNTRY_INFO!C48=0," ",COUNTRY_INFO!C48) -> Diapaga | D48: =IF(COUNTRY_INFO!$T$9:$T$1000="MDA2 (DEC+ALB)", COUNTRY_INFO!$T$9:$T$1000, " ") ->  | I48: 0 | M48: 0
A49: =IF(COUNTRY_INFO!A49=0," ",COUNTRY_INFO!A49) -> Burkina Faso | B49: =IF(COUNTRY_INFO!B49=0," ",COUNTRY_INFO!B49) -> Est | C49: =IF(COUNTRY_INFO!C49=0," ",COUNTRY_INFO!C49) -> Fada N'gourma | D49: =IF(COUNTRY_INFO!$T$9:$T$1000="MDA2 (DEC+ALB)", COUNTRY_INFO!$T$9:$T$1000, " ") ->  | I49: 0 | M49: 0
A50: =IF(COUNTRY_INFO!A50=0," ",COUNTRY_INFO!A50) -> Burkina Faso | B50: =IF(COUNTRY_INFO!B50=0," ",COUNTRY_INFO!B50) -> Est | C50: =IF(COUNTRY_INFO!C50=0," ",COUNTRY_INFO!C50) -> Gayeri | D50: =IF(COUNTRY_INFO!$T$9:$T$1000="MDA2 (DEC+ALB)", COUNTRY_INFO!$T$9:$T$1000, " ") ->  | I50: 0 | M50: 0
A51: =IF(COUNTRY_INFO!A51=0," ",COUNTRY_INFO!A51) -> Burkina Faso | B51: =IF(COUNTRY_INFO!B51=0," ",COUNTRY_INFO!B51) -> Est | C51: =IF(COUNTRY_INFO!C51=0," ",COUNTRY_INFO!C51) -> Manni | D51: =IF(COUNTRY_INFO!$T$9:$T$1000="MDA2 (DEC+ALB)", COUNTRY_INFO!$T$9:$T$1000, " ") ->  | I51: 0 | M51: 0
A52: =IF(COUNTRY_INFO!A52=0," ",COUNTRY_INFO!A52) -> Burkina Faso | B52: =IF(COUNTRY_INFO!B52=0," ",COUNTRY_INFO!B52) -> Est | C52: =IF(COUNTRY_INFO!C52=0," ",COUNTRY_INFO!C52) -> Pama | D52: =IF(COUNTRY_INFO!$T$9:$T$1000="MDA2 (DEC+ALB)", COUNTRY_INFO!$T$9:$T$1000, " ") ->  | I52: 0 | M52: 0
A53: =IF(COUNTRY_INFO!A53=0," ",COUNTRY_INFO!A53) -> Burkina Faso | B53: =IF(COUNTRY_INFO!B53=0," ",COUNTRY_INFO!B53) -> Hauts-Bassins | C53: =IF(COUNTRY_INFO!C53=0," ",COUNTRY_INFO!C53) -> Dafra | D53: =IF(COUNTRY_INFO!$T$9:$T$1000="MDA2 (DEC+ALB)", COUNTRY_INFO!$T$9:$T$1000, " ") ->  | I53: 0 | M53: 0
A54: =IF(COUNTRY_INFO!A54=0," ",COUNTRY_INFO!A54) -> Burkina Faso | B54: =IF(COUNTRY_INFO!B54=0," ",COUNTRY_INFO!B54) -> Hauts-Bassins | C54: =IF(COUNTRY_INFO!C54=0," ",COUNTRY_INFO!C54) -> Dandé | D54: =IF(COUNTRY_INFO!$T$9:$T$1000="MDA2 (DEC+ALB)", COUNTRY_INFO!$T$9:$T$1000, " ") ->  | I54: 0 | M54: 0
A55: =IF(COUNTRY_INFO!A55=0," ",COUNTRY_INFO!A55) -> Burkina Faso | B55: =IF(COUNTRY_INFO!B55=0," ",COUNTRY_INFO!B55) -> Hauts-Bassins | C55: =IF(COUNTRY_INFO!C55=0," ",COUNTRY_INFO!C55) -> Dô | D55: =IF(COUNTRY_INFO!$T$9:$T$1000="MDA2 (DEC+ALB)", COUNTRY_INFO!$T$9:$T$1000, " ") ->  | I55: 0 | M55: 0
A56: =IF(COUNTRY_INFO!A56=0," ",COUNTRY_INFO!A56) -> Burkina Faso | B56: =IF(COUNTRY_INFO!B56=0," ",COUNTRY_INFO!B56) -> Hauts-Bassins | C56: =IF(COUNTRY_INFO!C56=0," ",COUNTRY_INFO!C56) -> Houndé | D56: =IF(COUNTRY_INFO!$T$9:$T$1000="MDA2 (DEC+ALB)", COUNTRY_INFO!$T$9:$T$1000, " ") ->  | I56: 0 | M56: 0
A57: =IF(COUNTRY_INFO!A57=0," ",COUNTRY_INFO!A57) -> Burkina Faso | B57: =IF(COUNTRY_INFO!B57=0," ",COUNTRY_INFO!B57) -> Hauts-Bassins | C57: =IF(COUNTRY_INFO!C57=0," ",COUNTRY_INFO!C57) -> Karangasso-Vigué | D57: =IF(COUNTRY_INFO!$T$9:$T$1000="MDA2 (DEC+ALB)", COUNTRY_INFO!$T$9:$T$1000, " ") ->  | I57: 0 | M57: 0
A58: =IF(COUNTRY_INFO!A58=0," ",COUNTRY_INFO!A58) -> Burkina Faso | B58: =IF(COUNTRY_INFO!B58=0," ",COUNTRY_INFO!B58) -> Hauts-Bassins | C58: =IF(COUNTRY_INFO!C58=0," ",COUNTRY_INFO!C58) -> Lena | D58: =IF(COUNTRY_INFO!$T$9:$T$1000="MDA2 (DEC+ALB)", COUNTRY_INFO!$T$9:$T$1000, " ") ->  | I58: 0 | M58: 0
A59: =IF(COUNTRY_INFO!A59=0," ",COUNTRY_INFO!A59) -> Burkina Faso | B59: =IF(COUNTRY_INFO!B59=0," ",COUNTRY_INFO!B59) -> Hauts-Bassins | C59: =IF(COUNTRY_INFO!C59=0," ",COUNTRY_INFO!C59) -> N'Dorola | D59: =IF(COUNTRY_INFO!$T$9:$T$1000="MDA2 (DEC+ALB)", COUNTRY_INFO!$T$9:$T$1000, " ") ->  | I59: 0 | M59: 0
A60: =IF(COUNTRY_INFO!A60=0," ",COUNTRY_INFO!A60) -> Burkina Faso | B60: =IF(COUNTRY_INFO!B60=0," ",COUNTRY_INFO!B60) -> Hauts-Bassins | C60: =IF(COUNTRY_INFO!C60=0," ",COUNTRY_INFO!C60) -> Orodara | D60: =IF(COUNTRY_INFO!$T$9:$T$1000="MDA2 (DEC+ALB)", COUNTRY_INFO!$T$9:$T$1000, " ") ->  | I60: 0 | M60: 0
A61: =IF(COUNTRY_INFO!A61=0," ",COUNTRY_INFO!A61) -> Burkina Faso | B61: =IF(COUNTRY_INFO!B61=0," ",COUNTRY_INFO!B61) -> Nord | C61: =IF(COUNTRY_INFO!C61=0," ",COUNTRY_INFO!C61) -> Gourcy | D61: =IF(COUNTRY_INFO!$T$9:$T$1000="MDA2 (DEC+ALB)", COUNTRY_INFO!$T$9:$T$1000, " ") ->  | I61: 0 | M61: 0
A62: =IF(COUNTRY_INFO!A62=0," ",COUNTRY_INFO!A62) -> Burkina Faso | B62: =IF(COUNTRY_INFO!B62=0," ",COUNTRY_INFO!B62) -> Nord | C62: =IF(COUNTRY_INFO!C62=0," ",COUNTRY_INFO!C62) -> Ouahigouya | D62: =IF(COUNTRY_INFO!$T$9:$T$1000="MDA2 (DEC+ALB)", COUNTRY_INFO!$T$9:$T$1000, " ") ->  | I62: 0 | M62: 0
A63: =IF(COUNTRY_INFO!A63=0," ",COUNTRY_INFO!A63) -> Burkina Faso | B63: =IF(COUNTRY_INFO!B63=0," ",COUNTRY_INFO!B63) -> Nord | C63: =IF(COUNTRY_INFO!C63=0," ",COUNTRY_INFO!C63) -> Seguenega | D63: =IF(COUNTRY_INFO!$T$9:$T$1000="MDA2 (DEC+ALB)", COUNTRY_INFO!$T$9:$T$1000, " ") ->  | I63: 0 | M63: 0
A64: =IF(COUNTRY_INFO!A64=0," ",COUNTRY_INFO!A64) -> Burkina Faso | B64: =IF(COUNTRY_INFO!B64=0," ",COUNTRY_INFO!B64) -> Nord | C64: =IF(COUNTRY_INFO!C64=0," ",COUNTRY_INFO!C64) -> Thiou | D64: =IF(COUNTRY_INFO!$T$9:$T$1000="MDA2 (DEC+ALB)", COUNTRY_INFO!$T$9:$T$1000, " ") ->  | I64: 0 | M64: 0
A65: =IF(COUNTRY_INFO!A65=0," ",COUNTRY_INFO!A65) -> Burkina Faso | B65: =IF(COUNTRY_INFO!B65=0," ",COUNTRY_INFO!B65) -> Nord | C65: =IF(COUNTRY_INFO!C65=0," ",COUNTRY_INFO!C65) -> Titao | D65: =IF(COUNTRY_INFO!$T$9:$T$1000="MDA2 (DEC+ALB)", COUNTRY_INFO!$T$9:$T$1000, " ") ->  | I65: 0 | M65: 0
A66: =IF(COUNTRY_INFO!A66=0," ",COUNTRY_INFO!A66) -> Burkina Faso | B66: =IF(COUNTRY_INFO!B66=0," ",COUNTRY_INFO!B66) -> Nord | C66: =IF(COUNTRY_INFO!C66=0," ",COUNTRY_INFO!C66) -> Yako | D66: =IF(COUNTRY_INFO!$T$9:$T$1000="MDA2 (DEC+ALB)", COUNTRY_INFO!$T$9:$T$1000, " ") ->  | I66: 0 | M66: 0
A67: =IF(COUNTRY_INFO!A67=0," ",COUNTRY_INFO!A67) -> Burkina Faso | B67: =IF(COUNTRY_INFO!B67=0," ",COUNTRY_INFO!B67) -> Plateau Central | C67: =IF(COUNTRY_INFO!C67=0," ",COUNTRY_INFO!C67) -> Boussé | D67: =IF(COUNTRY_INFO!$T$9:$T$1000="MDA2 (DEC+ALB)", COUNTRY_INFO!$T$9:$T$1000, " ") ->  | I67: 0 | M67: 0
A68: =IF(COUNTRY_INFO!A68=0," ",COUNTRY_INFO!A68) -> Burkina Faso | B68: =IF(COUNTRY_INFO!B68=0," ",COUNTRY_INFO!B68) -> Plateau Central | C68: =IF(COUNTRY_INFO!C68=0," ",COUNTRY_INFO!C68) -> Ziniaré | D68: =IF(COUNTRY_INFO!$T$9:$T$1000="MDA2 (DEC+ALB)", COUNTRY_INFO!$T$9:$T$1000, " ") ->  | I68: 0 | M68: 0
A69: =IF(COUNTRY_INFO!A69=0," ",COUNTRY_INFO!A69) -> Burkina Faso | B69: =IF(COUNTRY_INFO!B69=0," ",COUNTRY_INFO!B69) -> Plateau Central | C69: =IF(COUNTRY_INFO!C69=0," ",COUNTRY_INFO!C69) -> Zorgho | D69: =IF(COUNTRY_INFO!$T$9:$T$1000="MDA2 (DEC+ALB)", COUNTRY_INFO!$T$9:$T$1000, " ") ->  | I69: 0 | M69: 0
A70: =IF(COUNTRY_INFO!A70=0," ",COUNTRY_INFO!A70) -> Burkina Faso | B70: =IF(COUNTRY_INFO!B70=0," ",COUNTRY_INFO!B70) -> Sahel | C70: =IF(COUNTRY_INFO!C70=0," ",COUNTRY_INFO!C70) -> Djibo | D70: =IF(COUNTRY_INFO!$T$9:$T$1000="MDA2 (DEC+ALB)", COUNTRY_INFO!$T$9:$T$1000, " ") ->  | I70: 0 | M70: 0
A71: =IF(COUNTRY_INFO!A71=0," ",COUNTRY_INFO!A71) -> Burkina Faso | B71: =IF(COUNTRY_INFO!B71=0," ",COUNTRY_INFO!B71) -> Sahel | C71: =IF(COUNTRY_INFO!C71=0," ",COUNTRY_INFO!C71) -> Dori | D71: =IF(COUNTRY_INFO!$T$9:$T$1000="MDA2 (DEC+ALB)", COUNTRY_INFO!$T$9:$T$1000, " ") ->  | I71: 0 | M71: 0
A72: =IF(COUNTRY_INFO!A72=0," ",COUNTRY_INFO!A72) -> Burkina Faso | B72: =IF(COUNTRY_INFO!B72=0," ",COUNTRY_INFO!B72) -> Sahel | C72: =IF(COUNTRY_INFO!C72=0," ",COUNTRY_INFO!C72) -> Gorom-Gorom | D72: =IF(COUNTRY_INFO!$T$9:$T$1000="MDA2 (DEC+ALB)", COUNTRY_INFO!$T$9:$T$1000, " ") ->  | I72: 0 | M72: 0
A73: =IF(COUNTRY_INFO!A73=0," ",COUNTRY_INFO!A73) -> Burkina Faso | B73: =IF(COUNTRY_INFO!B73=0," ",COUNTRY_INFO!B73) -> Sahel | C73: =IF(COUNTRY_INFO!C73=0," ",COUNTRY_INFO!C73) -> Sebba | D73: =IF(COUNTRY_INFO!$T$9:$T$1000="MDA2 (DEC+ALB)", COUNTRY_INFO!$T$9:$T$1000, " ") ->  | I73: 0 | M73: 0
A74: =IF(COUNTRY_INFO!A74=0," ",COUNTRY_INFO!A74) -> Burkina Faso | B74: =IF(COUNTRY_INFO!B74=0," ",COUNTRY_INFO!B74) -> Sud-Ouest | C74: =IF(COUNTRY_INFO!C74=0," ",COUNTRY_INFO!C74) -> Batié | D74: =IF(COUNTRY_INFO!$T$9:$T$1000="MDA2 (DEC+ALB)", COUNTRY_INFO!$T$9:$T$1000, " ") ->  | I74: =SUM(F74:H74) -> 0 | M74: =SUM(J74:L74) -> 0 | N74: =IF(F74<>0, IF(J74/F74*100=0, "-", J74/F74*100), " ") ->  | O74: =IF(G74<>0, IF(K74/G74*100=0, "-", K74/G74*100), " ") ->  | P74: =IF(H74<>0, IF(L74/H74*100=0, "-", L74/H74*100), " ") ->  | Q74: =IF(I74<>0, IF(M74/I74*100=0, "-", M74/I74*100), " ") -> 
A75: =IF(COUNTRY_INFO!A75=0," ",COUNTRY_INFO!A75) -> Burkina Faso | B75: =IF(COUNTRY_INFO!B75=0," ",COUNTRY_INFO!B75) -> Sud-Ouest | C75: =IF(COUNTRY_INFO!C75=0," ",COUNTRY_INFO!C75) -> Dano | D75: =IF(COUNTRY_INFO!$T$9:$T$1000="MDA2 (DEC+ALB)", COUNTRY_INFO!$T$9:$T$1000, " ") ->  | I75: 0 | M75: 0
A76: =IF(COUNTRY_INFO!A76=0," ",COUNTRY_INFO!A76) -> Burkina Faso | B76: =IF(COUNTRY_INFO!B76=0," ",COUNTRY_INFO!B76) -> Sud-Ouest | C76: =IF(COUNTRY_INFO!C76=0," ",COUNTRY_INFO!C76) -> Diébougou | D76: =IF(COUNTRY_INFO!$T$9:$T$1000="MDA2 (DEC+ALB)", COUNTRY_INFO!$T$9:$T$1000, " ") ->  | I76: 0 | M76: 0
A77: =IF(COUNTRY_INFO!A77=0," ",COUNTRY_INFO!A77) -> Burkina Faso | B77: =IF(COUNTRY_INFO!B77=0," ",COUNTRY_INFO!B77) -> Sud-Ouest | C77: =IF(COUNTRY_INFO!C77=0," ",COUNTRY_INFO!C77) -> Gaoua | D77: =IF(COUNTRY_INFO!$T$9:$T$1000="MDA2 (DEC+ALB)", COUNTRY_INFO!$T$9:$T$1000, " ") ->  | I77: 0 | M77: 0
A78: =IF(COUNTRY_INFO!A78=0," ",COUNTRY_INFO!A78) -> Burkina Faso | B78: =IF(COUNTRY_INFO!B78=0," ",COUNTRY_INFO!B78) -> Sud-Ouest | C78: =IF(COUNTRY_INFO!C78=0," ",COUNTRY_INFO!C78) -> Kampti | D78: =IF(COUNTRY_INFO!$T$9:$T$1000="MDA2 (DEC+ALB)", COUNTRY_INFO!$T$9:$T$1000, " ") ->  | I78: 0 | M78: 0

Sheet MDA3
A1: MDA 3 - Ivermectine (IVM)
A2: Structure administrative, population nécessitant une chimioprévention par groupe d'âge, population traitée par groupe d'âge et couverture
A4: TOTAL | F4: =SUM(F$9:F$1000) -> 75766 | G4: 137151 | H4: 212917 | I4: 68557.225 | J4: 138414.775 | K4: 206972 | L4: 21022 | M4: 30822 | N4: 51844 | O4: 69774.225 | P4: 138414.775 | Q4: 208189 | R4: =IF(F4<>0, IF(O4/F4*100=0, "-", O4/F4*100), " ") -> 92.0917364 | S4: =IF(G4<>0, IF(P4/G4*100=0, "-", P4/G4*100), " ") -> 100.9214479 | T4: =IF(H4<>0, IF(Q4/H4*100=0, "-", Q4/H4*100), " ") -> 97.77941639
A6: Structure administrative du pays | D6: Mise en oeuvre de la CP | E6: Date | F6: Population ciblée pour MDA 3 | I6: Population traitée - tournée 1 | L6: Population traitée - tournée 2 | O6: Population traitée | R6: Couverture du Programme (%)
A7: Pays | B7: Région/Département | C7: District | F7: EAS | G7: Adultes | H7: Total | I7: EAS | J7: Adultes | K7: Total | L7: EAS | M7: Adultes | N7: Total | O7: EAS | P7: Adultes | Q7: Total | R7: EAS | S7: Adultes | T7: Total
A9: =IF(COUNTRY_INFO!A9=0," ",COUNTRY_INFO!A9) -> Burkina Faso | B9: =IF(COUNTRY_INFO!B9=0," ",COUNTRY_INFO!B9) -> Boucle du Mouhoun | C9: =IF(COUNTRY_INFO!C9=0," ",COUNTRY_INFO!C9) -> Boromo | D9: =IF(COUNTRY_INFO!$T$9:$T$1000="MDA3 (IVM)", COUNTRY_INFO!$T$9:$T$1000, " ") ->  | H9: =SUM(F9:G9) -> 0 | K9: =SUM(I9:J9) -> 0 | N9: =SUM(L9:M9) -> 0 | O9: =MAX(I9,L9) -> 0 | P9: 0 | Q9: =SUM(O9:P9) -> 0 | R9: =IF(F9<>0, IF(MAX(I9,L9)/F9*100=0, "-", MAX(I9,L9)/F9*100), " ") ->  | T9: =IF(H9<>0, IF((MAX(I9,L9)+MAX(J9,M9))/H9*100=0, "-",(MAX(I9,L9)+MAX(J9,M9))/H9*100), " ") -> 
A10: =IF(COUNTRY_INFO!A10=0," ",COUNTRY_INFO!A10) -> Burkina Faso | B10: =IF(COUNTRY_INFO!B10=0," ",COUNTRY_INFO!B10) -> Boucle du Mouhoun | C10: =IF(COUNTRY_INFO!C10=0," ",COUNTRY_INFO!C10) -> Dédougou | D10: =IF(COUNTRY_INFO!$T$9:$T$1000="MDA3 (IVM)", COUNTRY_INFO!$T$9:$T$1000, " ") ->  | H10: =SUM(F10:G10) -> 0 | K10: =SUM(I10:J10) -> 0 | N10: =SUM(L10:M10) -> 0 | O10: =MAX(I10,L10) -> 0 | P10: =MAX(J10,M10) -> 0 | Q10: =SUM(O10:P10) -> 0 | R10: =IF(F10<>0, IF(MAX(I10,L10)/F10*100=0, "-", MAX(I10,L10)/F10*100), " ") ->  | S10: =IF(G10<>0, IF(MAX(J10,M10)/G10*100=0, "-", MAX(J10,M10)/G10*100), " ") ->  | T10: =IF(H10<>0, IF((MAX(I10,L10)+MAX(J10,M10))/H10*100=0, "-",(MAX(I10,L10)+MAX(J10,M10))/H10*100), " ") -> 
A11: =IF(COUNTRY_INFO!A11=0," ",COUNTRY_INFO!A11) -> Burkina Faso | B11: =IF(COUNTRY_INFO!B11=0," ",COUNTRY_INFO!B11) -> Boucle du Mouhoun | C11: =IF(COUNTRY_INFO!C11=0," ",COUNTRY_INFO!C11) -> Nouna | D11: =IF(COUNTRY_INFO!$T$9:$T$1000="MDA3 (IVM)", COUNTRY_INFO!$T$9:$T$1000, " ") ->  | H11: 0 | K11: 0 | N11: 0 | O11: 0 | P11: 0 | Q11: 0
A12: =IF(COUNTRY_INFO!A12=0," ",COUNTRY_INFO!A12) -> Burkina Faso | B12: =IF(COUNTRY_INFO!B12=0," ",COUNTRY_INFO!B12) -> Boucle du Mouhoun | C12: =IF(COUNTRY_INFO!C12=0," ",COUNTRY_INFO!C12) -> Solenzo | D12: =IF(COUNTRY_INFO!$T$9:$T$1000="MDA3 (IVM)", COUNTRY_INFO!$T$9:$T$1000, " ") ->  | H12: 0 | K12: 0 | N12: 0 | O12: 0 | P12: 0 | Q12: 0
A13: =IF(COUNTRY_INFO!A13=0," ",COUNTRY_INFO!A13) -> Burkina Faso | B13: =IF(COUNTRY_INFO!B13=0," ",COUNTRY_INFO!B13) -> Boucle du Mouhoun | C13: =IF(COUNTRY_INFO!C13=0," ",COUNTRY_INFO!C13) -> Toma | D13: =IF(COUNTRY_INFO!$T$9:$T$1000="MDA3 (IVM)", COUNTRY_INFO!$T$9:$T$1000, " ") ->  | H13: 0 | K13: 0 | N13: 0 | O13: 0 | P13: 0 | Q13: 0
A14: =IF(COUNTRY_INFO!A14=0," ",COUNTRY_INFO!A14) -> Burkina Faso | B14: =IF(COUNTRY_INFO!B14=0," ",COUNTRY_INFO!B14) -> Boucle du Mouhoun | C14: =IF(COUNTRY_INFO!C14=0," ",COUNTRY_INFO!C14) -> Tougan | D14: =IF(COUNTRY_INFO!$T$9:$T$1000="MDA3 (IVM)", COUNTRY_INFO!$T$9:$T$1000, " ") ->  | H14: 0 | K14: 0 | N14: 0 | O14: 0 | P14: 0 | Q14: 0
A15: =IF(COUNTRY_INFO!A15=0," ",COUNTRY_INFO!A15) -> Burkina Faso | B15: =IF(COUNTRY_INFO!B15=0," ",COUNTRY_INFO!B15) -> Cascades | C15: =IF(COUNTRY_INFO!C15=0," ",COUNTRY_INFO!C15) -> Banfora | D15: =IF(COUNTRY_INFO!$T$9:$T$1000="MDA3 (IVM)", COUNTRY_INFO!$T$9:$T$1000, " ") -> MDA3 (IVM) | E15: Juillet et Dec | F15: 16597 | G15: 30044 | H15: 46641 | I15: 16852 | J15: 27376 | K15: 44228 | L15: 17818 | M15: 26664 | N15: 44482 | O15: 17818 | P15: 27376 | Q15: 45194 | R15: 107.3567512 | S15: 91.11969112 | T15: 96.89757938
A16: =IF(COUNTRY_INFO!A16=0," ",COUNTRY_INFO!A16) -> Burkina Faso | B16: =IF(COUNTRY_INFO!B16=0," ",COUNTRY_INFO!B16) -> Cascades | C16: =IF(COUNTRY_INFO!C16=0," ",COUNTRY_INFO!C16) -> Mangodara | D16: =IF(COUNTRY_INFO!$T$9:$T$1000="MDA3 (IVM)", COUNTRY_INFO!$T$9:$T$1000, " ") -> MDA3 (IVM) | E16: Juillet et Dec | F16: 2676 | G16: 4844 | H16: 7520 | I16: 2953 | J16: 4201 | K16: 7154 | L16: 3204 | M16: 4158 | N16: 7362 | O16: 3204 | P16: 4201 | Q16: 7405 | R16: 119.7309417 | S16: 86.72584641 | T16: 98.47074468
A17: =IF(COUNTRY_INFO!A17=0," ",COUNTRY_INFO!A17) -> Burkina Faso | B17: =IF(COUNTRY_INFO!B17=0," ",COUNTRY_INFO!B17) -> Cascades | C17: =IF(COUNTRY_INFO!C17=0," ",COUNTRY_INFO!C17) -> Sindou | D17: =IF(COUNTRY_INFO!$T$9:$T$1000="MDA3 (IVM)", COUNTRY_INFO!$T$9:$T$1000, " ") ->  | H17: 0 | K17: 0 | N17: 0 | O17: 0 | P17: 0 | Q17: 0
A18: =IF(COUNTRY_INFO!A18=0," ",COUNTRY_INFO!A18) -> Burkina Faso | B18: =IF(COUNTRY_INFO!B18=0," ",COUNTRY_INFO!B18) -> Centre | C18: =IF(COUNTRY_INFO!C18=0," ",COUNTRY_INFO!C18) -> Baskuy | D18: =IF(COUNTRY_INFO!$T$9:$T$1000="MDA3 (IVM)", COUNTRY_INFO!$T$9:$T$1000, " ") ->  | H18: 0 | K18: 0 | N18: 0 | O18: 0 | P18: 0 | Q18: 0
A19: =IF(COUNTRY_INFO!A19=0," ",COUNTRY_INFO!A19) -> Burkina Faso | B19: =IF(COUNTRY_INFO!B19=0," ",COUNTRY_INFO!B19) -> Centre | C19: =IF(COUNTRY_INFO!C19=0," ",COUNTRY_INFO!C19) -> Bogodogo | D19: =IF(COUNTRY_INFO!$T$9:$T$1000="MDA3 (IVM)", COUNTRY_INFO!$T$9:$T$1000, " ") ->  | H19: 0 | K19: 0 | N19: 0 | O19: 0 | P19: 0 | Q19: 0
A20: =IF(COUNTRY_INFO!A20=0," ",COUNTRY_INFO!A20) -> Burkina Faso | B20: =IF(COUNTRY_INFO!B20=0," ",COUNTRY_INFO!B20) -> Centre | C20: =IF(COUNTRY_INFO!C20=0," ",COUNTRY_INFO!C20) -> Boulmiougou | D20: =IF(COUNTRY_INFO!$T$9:$T$1000="MDA3 (IVM)", COUNTRY_INFO!$T$9:$T$1000, " ") ->  | H20: 0 | K20: 0 | N20: 0 | O20: 0 | P20: 0 | Q20: 0
A21: =IF(COUNTRY_INFO!A21=0," ",COUNTRY_INFO!A21) -> Burkina Faso | B21: =IF(COUNTRY_INFO!B21=0," ",COUNTRY_INFO!B21) -> Centre | C21: =IF(COUNTRY_INFO!C21=0," ",COUNTRY_INFO!C21) -> Nongre-Massom | D21: =IF(COUNTRY_INFO!$T$9:$T$1000="MDA3 (IVM)", COUNTRY_INFO!$T$9:$T$1000, " ") ->  | H21: 0 | K21: 0 | N21: 0 | O21: 0 | P21: 0 | Q21: 0
A22: =IF(COUNTRY_INFO!A22=0," ",COUNTRY_INFO!A22) -> Burkina Faso | B22: =IF(COUNTRY_INFO!B22=0," ",COUNTRY_INFO!B22) -> Centre | C22: =IF(COUNTRY_INFO!C22=0," ",COUNTRY_INFO!C22) -> Sig-Nonghin | D22: =IF(COUNTRY_INFO!$T$9:$T$1000="MDA3 (IVM)", COUNTRY_INFO!$T$9:$T$1000, " ") ->  | H22: 0 | K22: 0 | N22: 0 | O22: 0 | P22: 0 | Q22: 0
A23: =IF(COUNTRY_INFO!A23=0," ",COUNTRY_INFO!A23) -> Burkina Faso | B23: =IF(COUNTRY_INFO!B23=0," ",COUNTRY_INFO!B23) -> Centre-Est | C23: =IF(COUNTRY_INFO!C23=0," ",COUNTRY_INFO!C23) -> Bittou | D23: =IF(COUNTRY_INFO!$T$9:$T$1000="MDA3 (IVM)", COUNTRY_INFO!$T$9:$T$1000, " ") ->  | H23: 0 | K23: 0 | N23: 0 | O23: 0 | P23: 0 | Q23: 0
A24: =IF(COUNTRY_INFO!A24=0," ",COUNTRY_INFO!A24) -> Burkina Faso | B24: =IF(COUNTRY_INFO!B24=0," ",COUNTRY_INFO!B24) -> Centre-Est | C24: =IF(COUNTRY_INFO!C24=0," ",COUNTRY_INFO!C24) -> Garango | D24: =IF(COUNTRY_INFO!$T$9:$T$1000="MDA3 (IVM)", COUNTRY_INFO!$T$9:$T$1000, " ") ->  | H24: 0 | K24: 0 | N24: 0 | O24: 0 | P24: 0 | Q24: 0
A25: =IF(COUNTRY_INFO!A25=0," ",COUNTRY_INFO!A25) -> Burkina Faso | B25: =IF(COUNTRY_INFO!B25=0," ",COUNTRY_INFO!B25) -> Centre-Est | C25: =IF(COUNTRY_INFO!C25=0," ",COUNTRY_INFO!C25) -> Koupela | D25: =IF(COUNTRY_INFO!$T$9:$T$1000="MDA3 (IVM)", COUNTRY_INFO!$T$9:$T$1000, " ") ->  | H25: 0 | K25: 0 | N25: 0 | O25: 0 | P25: 0 | Q25: 0
A26: =IF(COUNTRY_INFO!A26=0," ",COUNTRY_INFO!A26) -> Burkina Faso | B26: =IF(COUNTRY_INFO!B26=0," ",COUNTRY_INFO!B26) -> Centre-Est | C26: =IF(COUNTRY_INFO!C26=0," ",COUNTRY_INFO!C26) -> Ouargaye | D26: =IF(COUNTRY_INFO!$T$9:$T$1000="MDA3 (IVM)", COUNTRY_INFO!$T$9:$T$1000, " ") ->  | H26: 0 | K26: 0 | N26: 0 | O26: 0 | P26: 0 | Q26: 0
A27: =IF(COUNTRY_INFO!A27=0," ",COUNTRY_INFO!A27) -> Burkina Faso | B27: =IF(COUNTRY_INFO!B27=0," ",COUNTRY_INFO!B27) -> Centre-Est | C27: =IF(COUNTRY_INFO!C27=0," ",COUNTRY_INFO!C27) -> Pouytenga | D27: =IF(COUNTRY_INFO!$T$9:$T$1000="MDA3 (IVM)", COUNTRY_INFO!$T$9:$T$1000, " ") ->  | H27: 0 | K27: 0 | N27: 0 | O27: 0 | P27: 0 | Q27: 0
A28: =IF(COUNTRY_INFO!A28=0," ",COUNTRY_INFO!A28) -> Burkina Faso | B28: =IF(COUNTRY_INFO!B28=0," ",COUNTRY_INFO!B28) -> Centre-Est | C28: =IF(COUNTRY_INFO!C28=0," ",COUNTRY_INFO!C28) -> Tenkodogo | D28: =IF(COUNTRY_INFO!$T$9:$T$1000="MDA3 (IVM)", COUNTRY_INFO!$T$9:$T$1000, " ") ->  | H28: 0 | K28: 0 | N28: 0 | O28: 0 | P28: 0 | Q28: 0
A29: =IF(COUNTRY_INFO!A29=0," ",COUNTRY_INFO!A29) -> Burkina Faso | B29: =IF(COUNTRY_INFO!B29=0," ",COUNTRY_INFO!B29) -> Centre-Est | C29: =IF(COUNTRY_INFO!C29=0," ",COUNTRY_INFO!C29) -> Zabré | D29: =IF(COUNTRY_INFO!$T$9:$T$1000="MDA3 (IVM)", COUNTRY_INFO!$T$9:$T$1000, " ") ->  | H29: 0 | K29: 0 | N29: 0 | O29: 0 | P29: 0 | Q29: 0
A30: =IF(COUNTRY_INFO!A30=0," ",COUNTRY_INFO!A30) -> Burkina Faso | B30: =IF(COUNTRY_INFO!B30=0," ",COUNTRY_INFO!B30) -> Centre-Nord | C30: =IF(COUNTRY_INFO!C30=0," ",COUNTRY_INFO!C30) -> Barsalogo | D30: =IF(COUNTRY_INFO!$T$9:$T$1000="MDA3 (IVM)", COUNTRY_INFO!$T$9:$T$1000, " ") ->  | H30: 0 | K30: 0 | N30: 0 | O30: 0 | P30: 0 | Q30: 0
A31: =IF(COUNTRY_INFO!A31=0," ",COUNTRY_INFO!A31) -> Burkina Faso | B31: =IF(COUNTRY_INFO!B31=0," ",COUNTRY_INFO!B31) -> Centre-Nord | C31: =IF(COUNTRY_INFO!C31=0," ",COUNTRY_INFO!C31) -> Boulsa | D31: =IF(COUNTRY_INFO!$T$9:$T$1000="MDA3 (IVM)", COUNTRY_INFO!$T$9:$T$1000, " ") ->  | H31: 0 | K31: 0 | N31: 0 | O31: 0 | P31: 0 | Q31: 0
A32: =IF(COUNTRY_INFO!A32=0," ",COUNTRY_INFO!A32) -> Burkina Faso | B32: =IF(COUNTRY_INFO!B32=0," ",COUNTRY_INFO!B32) -> Centre-Nord | C32: =IF(COUNTRY_INFO!C32=0," ",COUNTRY_INFO!C32) -> Boussouma | D32: =IF(COUNTRY_INFO!$T$9:$T$1000="MDA3 (IVM)", COUNTRY_INFO!$T$9:$T$1000, " ") ->  | H32: 0 | K32: 0 | N32: 0 | O32: 0 | P32: 0 | Q32: 0
A33: =IF(COUNTRY_INFO!A33=0," ",COUNTRY_INFO!A33) -> Burkina Faso | B33: =IF(COUNTRY_INFO!B33=0," ",COUNTRY_INFO!B33) -> Centre-Nord | C33: =IF(COUNTRY_INFO!C33=0," ",COUNTRY_INFO!C33) -> Kaya | D33: =IF(COUNTRY_INFO!$T$9:$T$1000="MDA3 (IVM)", COUNTRY_INFO!$T$9:$T$1000, " ") ->  | H33: 0 | K33: 0 | N33: 0 | O33: 0 | P33: 0 | Q33: 0
A34: =IF(COUNTRY_INFO!A34=0," ",COUNTRY_INFO!A34) -> Burkina Faso | B34: =IF(COUNTRY_INFO!B34=0," ",COUNTRY_INFO!B34) -> Centre-Nord | C34: =IF(COUNTRY_INFO!C34=0," ",COUNTRY_INFO!C34) -> Kongoussi | D34: =IF(COUNTRY_INFO!$T$9:$T$1000="MDA3 (IVM)", COUNTRY_INFO!$T$9:$T$1000, " ") ->  | H34: 0 | K34: 0 | N34: 0 | O34: 0 | P34: 0 | Q34: 0
A35: =IF(COUNTRY_INFO!A35=0," ",COUNTRY_INFO!A35) -> Burkina Faso | B35: =IF(COUNTRY_INFO!B35=0," ",COUNTRY_INFO!B35) -> Centre-Nord | C35: =IF(COUNTRY_INFO!C35=0," ",COUNTRY_INFO!C35) -> Tougouri | D35: =IF(COUNTRY_INFO!$T$9:$T$1000="MDA3 (IVM)", COUNTRY_INFO!$T$9:$T$1000, " ") ->  | H35: 0 | K35: 0 | N35: 0 | O35: 0 | P35: 0 | Q35: 0
A36: =IF(COUNTRY_INFO!A36=0," ",COUNTRY_INFO!A36) -> Burkina Faso | B36: =IF(COUNTRY_INFO!B36=0," ",COUNTRY_INFO!B36) -> Centre-Ouest | C36: =IF(COUNTRY_INFO!C36=0," ",COUNTRY_INFO!C36) -> Koudougou | D36: =IF(COUNTRY_INFO!$T$9:$T$1000="MDA3 (IVM)", COUNTRY_INFO!$T$9:$T$1000, " ") ->  | H36: 0 | K36: 0 | N36: 0 | O36: 0 | P36: 0 | Q36: 0
A37: =IF(COUNTRY_INFO!A37=0," ",COUNTRY_INFO!A37) -> Burkina Faso | B37: =IF(COUNTRY_INFO!B37=0," ",COUNTRY_INFO!B37) -> Centre-Ouest | C37: =IF(COUNTRY_INFO!C37=0," ",COUNTRY_INFO!C37) -> Léo | D37: =IF(COUNTRY_INFO!$T$9:$T$1000="MDA3 (IVM)", COUNTRY_INFO!$T$9:$T$1000, " ") ->  | H37: 0 | K37: 0 | N37: 0 | O37: 0 | P37: 0 | Q37: 0
A38: =IF(COUNTRY_INFO!A38=0," ",COUNTRY_INFO!A38) -> Burkina Faso | B38: =IF(COUNTRY_INFO!B38=0," ",COUNTRY_INFO!B38) -> Centre-Ouest | C38: =IF(COUNTRY_INFO!C38=0," ",COUNTRY_INFO!C38) -> Nanoro | D38: =IF(COUNTRY_INFO!$T$9:$T$1000="MDA3 (IVM)", COUNTRY_INFO!$T$9:$T$1000, " ") ->  | H38: 0 | K38: 0 | N38: 0 | O38: 0 | P38: 0 | Q38: 0
A39: =IF(COUNTRY_INFO!A39=0," ",COUNTRY_INFO!A39) -> Burkina Faso | B39: =IF(COUNTRY_INFO!B39=0," ",COUNTRY_INFO!B39) -> Centre-Ouest | C39: =IF(COUNTRY_INFO!C39=0," ",COUNTRY_INFO!C39) -> Réo | D39: =IF(COUNTRY_INFO!$T$9:$T$1000="MDA3 (IVM)", COUNTRY_INFO!$T$9:$T$1000, " ") ->  | H39: 0 | K39: 0 | N39: 0 | O39: 0 | P39: 0 | Q39: 0
A40: =IF(COUNTRY_INFO!A40=0," ",COUNTRY_INFO!A40) -> Burkina Faso | B40: =IF(COUNTRY_INFO!B40=0," ",COUNTRY_INFO!B40) -> Centre-Ouest | C40: =IF(COUNTRY_INFO!C40=0," ",COUNTRY_INFO!C40) -> Sabou | D40: =IF(COUNTRY_INFO!$T$9:$T$1000="MDA3 (IVM)", COUNTRY_INFO!$T$9:$T$1000, " ") ->  | H40: 0 | K40: 0 | N40: 0 | O40: 0 | P40: 0 | Q40: 0
A41: =IF(COUNTRY_INFO!A41=0," ",COUNTRY_INFO!A41) -> Burkina Faso | B41: =IF(COUNTRY_INFO!B41=0," ",COUNTRY_INFO!B41) -> Centre-Ouest | C41: =IF(COUNTRY_INFO!C41=0," ",COUNTRY_INFO!C41) -> Sapouy | D41: =IF(COUNTRY_INFO!$T$9:$T$1000="MDA3 (IVM)", COUNTRY_INFO!$T$9:$T$1000, " ") ->  | H41: 0 | K41: 0 | N41: 0 | O41: 0 | P41: 0 | Q41: 0
A42: =IF(COUNTRY_INFO!A42=0," ",COUNTRY_INFO!A42) -> Burkina Faso | B42: =IF(COUNTRY_INFO!B42=0," ",COUNTRY_INFO!B42) -> Centre-Ouest | C42: =IF(COUNTRY_INFO!C42=0," ",COUNTRY_INFO!C42) -> Tenado | D42: =IF(COUNTRY_INFO!$T$9:$T$1000="MDA3 (IVM)", COUNTRY_INFO!$T$9:$T$1000, " ") ->  | H42: 0 | K42: 0 | N42: 0 | O42: 0 | P42: 0 | Q42: 0
A43: =IF(COUNTRY_INFO!A43=0," ",COUNTRY_INFO!A43) -> Burkina Faso | B43: =IF(COUNTRY_INFO!B43=0," ",COUNTRY_INFO!B43) -> Centre-Sud | C43: =IF(COUNTRY_INFO!C43=0," ",COUNTRY_INFO!C43) -> Kombissiri | D43: =IF(COUNTRY_INFO!$T$9:$T$1000="MDA3 (IVM)", COUNTRY_INFO!$T$9:$T$1000, " ") ->  | H43: 0 | K43: 0 | N43: 0 | O43: 0 | P43: 0 | Q43: 0
A44: =IF(COUNTRY_INFO!A44=0," ",COUNTRY_INFO!A44) -> Burkina Faso | B44: =IF(COUNTRY_INFO!B44=0," ",COUNTRY_INFO!B44) -> Centre-Sud | C44: =IF(COUNTRY_INFO!C44=0," ",COUNTRY_INFO!C44) -> Manga | D44: =IF(COUNTRY_INFO!$T$9:$T$1000="MDA3 (IVM)", COUNTRY_INFO!$T$9:$T$1000, " ") ->  | H44: 0 | K44: 0 | N44: 0 | O44: 0 | P44: 0 | Q44: 0
A45: =IF(COUNTRY_INFO!A45=0," ",COUNTRY_INFO!A45) -> Burkina Faso | B45: =IF(COUNTRY_INFO!B45=0," ",COUNTRY_INFO!B45) -> Centre-Sud | C45: =IF(COUNTRY_INFO!C45=0," ",COUNTRY_INFO!C45) -> Pô | D45: =IF(COUNTRY_INFO!$T$9:$T$1000="MDA3 (IVM)", COUNTRY_INFO!$T$9:$T$1000, " ") ->  | H45: 0 | K45: 0 | N45: 0 | O45: 0 | P45: 0 | Q45: 0
A46: =IF(COUNTRY_INFO!A46=0," ",COUNTRY_INFO!A46) -> Burkina Faso | B46: =IF(COUNTRY_INFO!B46=0," ",COUNTRY_INFO!B46) -> Centre-Sud | C46: =IF(COUNTRY_INFO!C46=0," ",COUNTRY_INFO!C46) -> Saponé | D46: =IF(COUNTRY_INFO!$T$9:$T$1000="MDA3 (IVM)", COUNTRY_INFO!$T$9:$T$1000, " ") ->  | H46: 0 | K46: 0 | N46: 0 | O46: 0 | P46: 0 | Q46: 0
A47: =IF(COUNTRY_INFO!A47=0," ",COUNTRY_INFO!A47) -> Burkina Faso | B47: =IF(COUNTRY_INFO!B47=0," ",COUNTRY_INFO!B47) -> Est | C47: =IF(COUNTRY_INFO!C47=0," ",COUNTRY_INFO!C47) -> Bogandé | D47: =IF(COUNTRY_INFO!$T$9:$T$1000="MDA3 (IVM)", COUNTRY_INFO!$T$9:$T$1000, " ") ->  | H47: 0 | K47: 0 | N47: 0 | O47: 0 | P47: 0 | Q47: 0
A48: =IF(COUNTRY_INFO!A48=0," ",COUNTRY_INFO!A48) -> Burkina Faso | B48: =IF(COUNTRY_INFO!B48=0," ",COUNTRY_INFO!B48) -> Est | C48: =IF(COUNTRY_INFO!C48=0," ",COUNTRY_INFO!C48) -> Diapaga | D48: =IF(COUNTRY_INFO!$T$9:$T$1000="MDA3 (IVM)", COUNTRY_INFO!$T$9:$T$1000, " ") ->  | H48: 0 | K48: 0 | N48: 0 | O48: 0 | P48: 0 | Q48: 0
A49: =IF(COUNTRY_INFO!A49=0," ",COUNTRY_INFO!A49) -> Burkina Faso | B49: =IF(COUNTRY_INFO!B49=0," ",COUNTRY_INFO!B49) -> Est | C49: =IF(COUNTRY_INFO!C49=0," ",COUNTRY_INFO!C49) -> Fada N'gourma | D49: =IF(COUNTRY_INFO!$T$9:$T$1000="MDA3 (IVM)", COUNTRY_INFO!$T$9:$T$1000, " ") ->  | H49: 0 | K49: 0 | N49: 0 | O49: 0 | P49: 0 | Q49: 0
A50: =IF(COUNTRY_INFO!A50=0," ",COUNTRY_INFO!A50) -> Burkina Faso | B50: =IF(COUNTRY_INFO!B50=0," ",COUNTRY_INFO!B50) -> Est | C50: =IF(COUNTRY_INFO!C50=0," ",COUNTRY_INFO!C50) -> Gayeri | D50: =IF(COUNTRY_INFO!$T$9:$T$1000="MDA3 (IVM)", COUNTRY_INFO!$T$9:$T$1000, " ") ->  | H50: 0 | K50: 0 | N50: 0 | O50: 0 | P50: 0 | Q50: 0
A51: =IF(COUNTRY_INFO!A51=0," ",COUNTRY_INFO!A51) -> Burkina Faso | B51: =IF(COUNTRY_INFO!B51=0," ",COUNTRY_INFO!B51) -> Est | C51: =IF(COUNTRY_INFO!C51=0," ",COUNTRY_INFO!C51) -> Manni | D51: =IF(COUNTRY_INFO!$T$9:$T$1000="MDA3 (IVM)", COUNTRY_INFO!$T$9:$T$1000, " ") ->  | H51: 0 | K51: 0 | N51: 0 | O51: 0 | P51: 0 | Q51: 0
A52: =IF(COUNTRY_INFO!A52=0," ",COUNTRY_INFO!A52) -> Burkina Faso | B52: =IF(COUNTRY_INFO!B52=0," ",COUNTRY_INFO!B52) -> Est | C52: =IF(COUNTRY_INFO!C52=0," ",COUNTRY_INFO!C52) -> Pama | D52: =IF(COUNTRY_INFO!$T$9:$T$1000="MDA3 (IVM)", COUNTRY_INFO!$T$9:$T$1000, " ") ->  | H52: 0 | K52: 0 | N52: 0 | O52: 0 | P52: 0 | Q52: 0
A53: =IF(COUNTRY_INFO!A53=0," ",COUNTRY_INFO!A53) -> Burkina Faso | B53: =IF(COUNTRY_INFO!B53=0," ",COUNTRY_INFO!B53) -> Hauts-Bassins | C53: =IF(COUNTRY_INFO!C53=0," ",COUNTRY_INFO!C53) -> Dafra | D53: =IF(COUNTRY_INFO!$T$9:$T$1000="MDA3 (IVM)", COUNTRY_INFO!$T$9:$T$1000, " ") ->  | H53: 0 | K53: 0 | N53: 0 | O53: 0 | P53: 0 | Q53: 0
A54: =IF(COUNTRY_INFO!A54=0," ",COUNTRY_INFO!A54) -> Burkina Faso | B54: =IF(COUNTRY_INFO!B54=0," ",COUNTRY_INFO!B54) -> Hauts-Bassins | C54: =IF(COUNTRY_INFO!C54=0," ",COUNTRY_INFO!C54) -> Dandé | D54: =IF(COUNTRY_INFO!$T$9:$T$1000="MDA3 (IVM)", COUNTRY_INFO!$T$9:$T$1000, " ") ->  | H54: 0 | K54: 0 | N54: 0 | O54: 0 | P54: 0 | Q54: 0
A55: =IF(COUNTRY_INFO!A55=0," ",COUNTRY_INFO!A55) -> Burkina Faso | B55: =IF(COUNTRY_INFO!B55=0," ",COUNTRY_INFO!B55) -> Hauts-Bassins | C55: =IF(COUNTRY_INFO!C55=0," ",COUNTRY_INFO!C55) -> Dô | D55: =IF(COUNTRY_INFO!$T$9:$T$1000="MDA3 (IVM)", COUNTRY_INFO!$T$9:$T$1000, " ") ->  | H55: 0 | K55: 0 | N55: 0 | O55: 0 | P55: 0 | Q55: 0
A56: =IF(COUNTRY_INFO!A56=0," ",COUNTRY_INFO!A56) -> Burkina Faso | B56: =IF(COUNTRY_INFO!B56=0," ",COUNTRY_INFO!B56) -> Hauts-Bassins | C56: =IF(COUNTRY_INFO!C56=0," ",COUNTRY_INFO!C56) -> Houndé | D56: =IF(COUNTRY_INFO!$T$9:$T$1000="MDA3 (IVM)", COUNTRY_INFO!$T$9:$T$1000, " ") ->  | H56: 0 | K56: 0 | N56: 0 | O56: 0 | P56: 0 | Q56: 0
A57: =IF(COUNTRY_INFO!A57=0," ",COUNTRY_INFO!A57) -> Burkina Faso | B57: =IF(COUNTRY_INFO!B57=0," ",COUNTRY_INFO!B57) -> Hauts-Bassins | C57: =IF(COUNTRY_INFO!C57=0," ",COUNTRY_INFO!C57) -> Karangasso-Vigué | D57: =IF(COUNTRY_INFO!$T$9:$T$1000="MDA3 (IVM)", COUNTRY_INFO!$T$9:$T$1000, " ") ->  | H57: 0 | K57: 0 | N57: 0 | O57: 0 | P57: 0 | Q57: 0
A58: =IF(COUNTRY_INFO!A58=0," ",COUNTRY_INFO!A58) -> Burkina Faso | B58: =IF(COUNTRY_INFO!B58=0," ",COUNTRY_INFO!B58) -> Hauts-Bassins | C58: =IF(COUNTRY_INFO!C58=0," ",COUNTRY_INFO!C58) -> Lena | D58: =IF(COUNTRY_INFO!$T$9:$T$1000="MDA3 (IVM)", COUNTRY_INFO!$T$9:$T$1000, " ") ->  | H58: 0 | K58: 0 | N58: 0 | O58: 0 | P58: 0 | Q58: 0
A59: =IF(COUNTRY_INFO!A59=0," ",COUNTRY_INFO!A59) -> Burkina Faso | B59: =IF(COUNTRY_INFO!B59=0," ",COUNTRY_INFO!B59) -> Hauts-Bassins | C59: =IF(COUNTRY_INFO!C59=0," ",COUNTRY_INFO!C59) -> N'Dorola | D59: =IF(COUNTRY_INFO!$T$9:$T$1000="MDA3 (IVM)", COUNTRY_INFO!$T$9:$T$1000, " ") ->  | H59: 0 | K59: 0 | N59: 0 | O59: 0 | P59: 0 | Q59: 0
A60: =IF(COUNTRY_INFO!A60=0," ",COUNTRY_INFO!A60) -> Burkina Faso | B60: =IF(COUNTRY_INFO!B60=0," ",COUNTRY_INFO!B60) -> Hauts-Bassins | C60: =IF(COUNTRY_INFO!C60=0," ",COUNTRY_INFO!C60) -> Orodara | D60: =IF(COUNTRY_INFO!$T$9:$T$1000="MDA3 (IVM)", COUNTRY_INFO!$T$9:$T$1000, " ") ->  | H60: 0 | K60: 0 | N60: 0 | O60: 0 | P60: 0 | Q60: 0
A61: =IF(COUNTRY_INFO!A61=0," ",COUNTRY_INFO!A61) -> Burkina Faso | B61: =IF(COUNTRY_INFO!B61=0," ",COUNTRY_INFO!B61) -> Nord | C61: =IF(COUNTRY_INFO!C61=0," ",COUNTRY_INFO!C61) -> Gourcy | D61: =IF(COUNTRY_INFO!$T$9:$T$1000="MDA3 (IVM)", COUNTRY_INFO!$T$9:$T$1000, " ") ->  | H61: 0 | K61: 0 | N61: 0 | O61: 0 | P61: 0 | Q61: 0
A62: =IF(COUNTRY_INFO!A62=0," ",COUNTRY_INFO!A62) -> Burkina Faso | B62: =IF(COUNTRY_INFO!B62=0," ",COUNTRY_INFO!B62) -> Nord | C62: =IF(COUNTRY_INFO!C62=0," ",COUNTRY_INFO!C62) -> Ouahigouya | D62: =IF(COUNTRY_INFO!$T$9:$T$1000="MDA3 (IVM)", COUNTRY_INFO!$T$9:$T$1000, " ") ->  | H62: 0 | K62: 0 | N62: 0 | O62: 0 | P62: 0 | Q62: 0
A63: =IF(COUNTRY_INFO!A63=0," ",COUNTRY_INFO!A63) -> Burkina Faso | B63: =IF(COUNTRY_INFO!B63=0," ",COUNTRY_INFO!B63) -> Nord | C63: =IF(COUNTRY_INFO!C63=0," ",COUNTRY_INFO!C63) -> Seguenega | D63: =IF(COUNTRY_INFO!$T$9:$T$1000="MDA3 (IVM)", COUNTRY_INFO!$T$9:$T$1000, " ") ->  | H63: 0 | K63: 0 | N63: 0 | O63: 0 | P63: 0 | Q63: 0
A64: =IF(COUNTRY_INFO!A64=0," ",COUNTRY_INFO!A64) -> Burkina Faso | B64: =IF(COUNTRY_INFO!B64=0," ",COUNTRY_INFO!B64) -> Nord | C64: =IF(COUNTRY_INFO!C64=0," ",COUNTRY_INFO!C64) -> Thiou | D64: =IF(COUNTRY_INFO!$T$9:$T$1000="MDA3 (IVM)", COUNTRY_INFO!$T$9:$T$1000, " ") ->  | H64: 0 | K64: 0 | N64: 0 | O64: 0 | P64: 0 | Q64: 0
A65: =IF(COUNTRY_INFO!A65=0," ",COUNTRY_INFO!A65) -> Burkina Faso | B65: =IF(COUNTRY_INFO!B65=0," ",COUNTRY_INFO!B65) -> Nord | C65: =IF(COUNTRY_INFO!C65=0," ",COUNTRY_INFO!C65) -> Titao | D65: =IF(COUNTRY_INFO!$T$9:$T$1000="MDA3 (IVM)", COUNTRY_INFO!$T$9:$T$1000, " ") ->  | H65: 0 | K65: 0 | N65: 0 | O65: 0 | P65: 0 | Q65: 0
A66: =IF(COUNTRY_INFO!A66=0," ",COUNTRY_INFO!A66) -> Burkina Faso | B66: =IF(COUNTRY_INFO!B66=0," ",COUNTRY_INFO!B66) -> Nord | C66: =IF(COUNTRY_INFO!C66=0," ",COUNTRY_INFO!C66) -> Yako | D66: =IF(COUNTRY_INFO!$T$9:$T$1000="MDA3 (IVM)", COUNTRY_INFO!$T$9:$T$1000, " ") ->  | H66: 0 | K66: 0 | N66: 0 | O66: 0 | P66: 0 | Q66: 0
A67: =IF(COUNTRY_INFO!A67=0," ",COUNTRY_INFO!A67) -> Burkina Faso | B67: =IF(COUNTRY_INFO!B67=0," ",COUNTRY_INFO!B67) -> Plateau Central | C67: =IF(COUNTRY_INFO!C67=0," ",COUNTRY_INFO!C67) -> Boussé | D67: =IF(COUNTRY_INFO!$T$9:$T$1000="MDA3 (IVM)", COUNTRY_INFO!$T$9:$T$1000, " ") ->  | H67: 0 | K67: 0 | N67: 0 | O67: 0 | P67: 0 | Q67: 0
A68: =IF(COUNTRY_INFO!A68=0," ",COUNTRY_INFO!A68) -> Burkina Faso | B68: =IF(COUNTRY_INFO!B68=0," ",COUNTRY_INFO!B68) -> Plateau Central | C68: =IF(COUNTRY_INFO!C68=0," ",COUNTRY_INFO!C68) -> Ziniaré | D68: =IF(COUNTRY_INFO!$T$9:$T$1000="MDA3 (IVM)", COUNTRY_INFO!$T$9:$T$1000, " ") ->  | H68: 0 | K68: 0 | N68: 0 | O68: 0 | P68: 0 | Q68: 0
A69: =IF(COUNTRY_INFO!A69=0," ",COUNTRY_INFO!A69) -> Burkina Faso | B69: =IF(COUNTRY_INFO!B69=0," ",COUNTRY_INFO!B69) -> Plateau Central | C69: =IF(COUNTRY_INFO!C69=0," ",COUNTRY_INFO!C69) -> Zorgho | D69: =IF(COUNTRY_INFO!$T$9:$T$1000="MDA3 (IVM)", COUNTRY_INFO!$T$9:$T$1000, " ") ->  | H69: 0 | K69: 0 | N69: 0 | O69: 0 | P69: 0 | Q69: 0
A70: =IF(COUNTRY_INFO!A70=0," ",COUNTRY_INFO!A70) -> Burkina Faso | B70: =IF(COUNTRY_INFO!B70=0," ",COUNTRY_INFO!B70) -> Sahel | C70: =IF(COUNTRY_INFO!C70=0," ",COUNTRY_INFO!C70) -> Djibo | D70: =IF(COUNTRY_INFO!$T$9:$T$1000="MDA3 (IVM)", COUNTRY_INFO!$T$9:$T$1000, " ") ->  | H70: 0 | K70: 0 | N70: 0 | O70: 0 | P70: 0 | Q70: 0
A71: =IF(COUNTRY_INFO!A71=0," ",COUNTRY_INFO!A71) -> Burkina Faso | B71: =IF(COUNTRY_INFO!B71=0," ",COUNTRY_INFO!B71) -> Sahel | C71: =IF(COUNTRY_INFO!C71=0," ",COUNTRY_INFO!C71) -> Dori | D71: =IF(COUNTRY_INFO!$T$9:$T$1000="MDA3 (IVM)", COUNTRY_INFO!$T$9:$T$1000, " ") ->  | H71: 0 | K71: 0 | N71: 0 | O71: 0 | P71: 0 | Q71: 0
A72: =IF(COUNTRY_INFO!A72=0," ",COUNTRY_INFO!A72) -> Burkina Faso | B72: =IF(COUNTRY_INFO!B72=0," ",COUNTRY_INFO!B72) -> Sahel | C72: =IF(COUNTRY_INFO!C72=0," ",COUNTRY_INFO!C72) -> Gorom-Gorom | D72: =IF(COUNTRY_INFO!$T$9:$T$1000="MDA3 (IVM)", COUNTRY_INFO!$T$9:$T$1000, " ") ->  | H72: 0 | K72: 0 | N72: 0 | O72: 0 | P72: 0 | Q72: 0
A73: =IF(COUNTRY_INFO!A73=0," ",COUNTRY_INFO!A73) -> Burkina Faso | B73: =IF(COUNTRY_INFO!B73=0," ",COUNTRY_INFO!B73) -> Sahel | C73: =IF(COUNTRY_INFO!C73=0," ",COUNTRY_INFO!C73) -> Sebba | D73: =IF(COUNTRY_INFO!$T$9:$T$1000="MDA3 (IVM)", COUNTRY_INFO!$T$9:$T$1000, " ") ->  | H73: 0 | K73: 0 | N73: 0 | O73: 0 | P73: 0 | Q73: 0
A74: =IF(COUNTRY_INFO!A74=0," ",COUNTRY_INFO!A74) -> Burkina Faso | B74: =IF(COUNTRY_INFO!B74=0," ",COUNTRY_INFO!B74) -> Sud-Ouest | C74: =IF(COUNTRY_INFO!C74=0," ",COUNTRY_INFO!C74) -> Batié | D74: MDA3 (IVM) | E74: Juillet | F74: 11804 | G74: 21368 | H74: =SUM(F74:G74) -> 33172 | I74: 11948.37 | J74: 18888.63 | K74: =SUM(I74:J74) -> 30837 | N74: =SUM(L74:M74) -> 0 | O74: =MAX(I74,L74) -> 11948.37 | P74: =MAX(J74,M74) -> 18888.63 | Q74: =SUM(O74:P74) -> 30837 | R74: =IF(F74<>0, IF(MAX(I74,L74)/F74*100=0, "-", MAX(I74,L74)/F74*100), " ") -> 101.22306 | S74: =IF(G74<>0, IF(MAX(J74,M74)/G74*100=0, "-", MAX(J74,M74)/G74*100), " ") -> 88.39680831 | T74: =IF(H74<>0, IF((MAX(I74,L74)+MAX(J74,M74))/H74*100=0, "-",(MAX(I74,L74)+MAX(J74,M74))/H74*100), " ") -> 92.96093091
A75: =IF(COUNTRY_INFO!A75=0," ",COUNTRY_INFO!A75) -> Burkina Faso | B75: =IF(COUNTRY_INFO!B75=0," ",COUNTRY_INFO!B75) -> Sud-Ouest | C75: =IF(COUNTRY_INFO!C75=0," ",COUNTRY_INFO!C75) -> Dano | D75: =IF(COUNTRY_INFO!$T$9:$T$1000="MDA3 (IVM)", COUNTRY_INFO!$T$9:$T$1000, " ") -> MDA3 (IVM) | E75: Juillet | F75: 25836 | G75: 46768 | H75: 72604 | I75: 20930.855 | J75: 51419.145 | K75: 72350 | N75: 0 | O75: 20930.855 | P75: 51419.145 | Q75: 72350 | R75: 81.01430175 | S75: 109.9451441 | T75: 99.65015702
A76: =IF(COUNTRY_INFO!A76=0," ",COUNTRY_INFO!A76) -> Burkina Faso | B76: =IF(COUNTRY_INFO!B76=0," ",COUNTRY_INFO!B76) -> Sud-Ouest | C76: =IF(COUNTRY_INFO!C76=0," ",COUNTRY_INFO!C76) -> Diébougou | D76: MDA3 (IVM) | E76: Juillet | F76: 9933 | G76: 17980 | H76: 27913 | I76: 4794 | J76: 22618 | K76: 27412 | N76: 0 | O76: 4794 | P76: 22618 | Q76: 27412 | R76: 48.26336454 | S76: 125.7953281 | T76: 98.20513739
A77: =IF(COUNTRY_INFO!A77=0," ",COUNTRY_INFO!A77) -> Burkina Faso | B77: =IF(COUNTRY_INFO!B77=0," ",COUNTRY_INFO!B77) -> Sud-Ouest | C77: =IF(COUNTRY_INFO!C77=0," ",COUNTRY_INFO!C77) -> Gaoua | D77: MDA3 (IVM) | E77: Juillet | F77: 8920 | G77: 16147 | H77: 25067 | I77: 11079 | J77: 13912 | K77: 24991 | N77: 0 | O77: 11079 | P77: 13912 | Q77: 24991 | R77: 124.2040359 | S77: 86.15841952 | T77: 99.69681254
A78: =IF(COUNTRY_INFO!A78=0," ",COUNTRY_INFO!A78) -> Burkina Faso | B78: =IF(COUNTRY_INFO!B78=0," ",COUNTRY_INFO!B78) -> Sud-Ouest | C78: =IF(COUNTRY_INFO!C78=0," ",COUNTRY_INFO!C78) -> Kampti | D78: =IF(COUNTRY_INFO!$T$9:$T$1000="MDA3 (IVM)", COUNTRY_INFO!$T$9:$T$1000, " ") ->  | H78: 0 | K78: 0 | N78: 0 | O78: 0 | P78: 0 | Q78: 0

Sheet T1
A1: T 1 - Praziquantel (PZQ) et Albendazole (ALB) ou Mebendazole (MBD)
A2: Structure administrative, population nécessitant une chimioprévention par groupe d'âge, population traitée par groupe d'âge et couverture
A4: TOTAL | G4: =SUM(G$9:G$1000) -> 0 | H4: 1461502 | I4: 1461502 | J4: 1570044 | K4: =SUM(K$9:K$1000) -> 3031546 | L4: 0 | M4: 1509369 | N4: 1461638 | O4: 2971007 | P4: =IF(G4<>0, IF(L4/G4*100=0, "-", L4/G4*100), " ") ->  | Q4: =IF(OR(I4<>0,H4<>0), IF(M4/MAX(H4,I4)*100=0, "-", M4/MAX(H4,I4)*100), " ") -> 103.2751922 | R4: =IF(J4<>0, IF(N4/J4*100=0, "-", N4/J4*100), " ") -> 93.09535274 | S4: =IF(K4<>0, IF(O4/K4*100=0, "-", O4/K4*100), " ") -> 98.00303212
A6: Structure administrative du pays | D6: Mise en oeuvre de la CP | E6: Médica-ment | F6: Date | G6: Population ciblée pour T1 | L6: Population traitée | P6: Couverture du Programme (%)
A7: Pays | B7: Région/Département | C7: District | G7: EAPréS (ALB) | H7: EAS (ALB) | I7: EAS (PZQ) | J7: Adultes (PZQ) | K7: Total | L7: EAPréS | M7: EAS | N7: Adultes | O7: Total | P7: EAPréS | Q7: EAS | R7: Adultes | S7: Total
A9: =IF(COUNTRY_INFO!A9=0," ",COUNTRY_INFO!A9) -> Burkina Faso | B9: =IF(COUNTRY_INFO!B9=0," ",COUNTRY_INFO!B9) -> Boucle du Mouhoun | C9: =IF(COUNTRY_INFO!C9=0," ",COUNTRY_INFO!C9) -> Boromo | D9: =IF(OR(COUNTRY_INFO!$T$9:$T$1000="T1 (PZQ+ALB/MBD)",COUNTRY_INFO!$U$9:$U$1000="T1 (PZQ+ALB/MBD)"), "T1 (PZQ+ALB/MBD)", " ") -> T1 (PZQ+ALB/MBD) | E9: PZQ+ALB | F9: 15-19/05/17 | H9: 86360 | I9: 86360 | J9: 148031 | K9: =MAX(H9:I9)+G9+J9 -> 234391 | M9: 89821 | N9: 137560 | O9: =SUM(L9:N9) -> 227381 | P9: =IF(G9<>0, IF(L9/G9*100=0, "-", L9/G9*100), " ") ->  | Q9: =IF(OR(I9<>0,H9<>0), IF(M9/MAX(H9,I9)*100=0, "-", M9/MAX(H9,I9)*100), " ") -> 104.0076424 | R9: =IF(J9<>0, IF(N9/J9*100=0, "-", N9/J9*100), " ") -> 92.92648162 | S9: 97.00927083
A10: =IF(COUNTRY_INFO!A10=0," ",COUNTRY_INFO!A10) -> Burkina Faso | B10: =IF(COUNTRY_INFO!B10=0," ",COUNTRY_INFO!B10) -> Boucle du Mouhoun | C10: =IF(COUNTRY_INFO!C10=0," ",COUNTRY_INFO!C10) -> Dédougou | D10: =IF(OR(COUNTRY_INFO!$T$9:$T$1000="T1 (PZQ+ALB/MBD)",COUNTRY_INFO!$U$9:$U$1000="T1 (PZQ+ALB/MBD)"), "T1 (PZQ+ALB/MBD)", " ") -> T1 (PZQ+ALB/MBD) | E10: PZQ+ALB | F10: 15-19/05/17 | H10: 120073 | I10: 120073 | J10: 205840 | K10: =MAX(H10:I10)+G10+J10 -> 325913 | M10: 123315 | N10: 184502 | O10: =SUM(L10:N10) -> 307817 | P10: =IF(G10<>0, IF(L10/G10*100=0, "-", L10/G10*100), " ") ->  | Q10: =IF(OR(I10<>0,H10<>0), IF(M10/MAX(H10,I10)*100=0, "-", M10/MAX(H10,I10)*100), " ") -> 102.7000242 | R10: =IF(J10<>0, IF(N10/J10*100=0, "-", N10/J10*100), " ") -> 89.63369607 | S10: =IF(K10<>0, IF(O10/K10*100=0, "-", O10/K10*100), " ") -> 94.44759798
A11: =IF(COUNTRY_INFO!A11=0," ",COUNTRY_INFO!A11) -> Burkina Faso | B11: =IF(COUNTRY_INFO!B11=0," ",COUNTRY_INFO!B11) -> Boucle du Mouhoun | C11: =IF(COUNTRY_INFO!C11=0," ",COUNTRY_INFO!C11) -> Nouna | D11: =IF(OR(COUNTRY_INFO!$T$9:$T$1000="T1 (PZQ+ALB/MBD)",COUNTRY_INFO!$U$9:$U$1000="T1 (PZQ+ALB/MBD)"), "T1 (PZQ+ALB/MBD)", " ") -> T1 (PZQ+ALB/MBD) | E11: PZQ+ALB | F11: 15-19/05/17 | H11: 110267 | I11: 110267 | J11: 189018 | K11: 299285 | M11: 113096 | N11: 169999 | O11: 283095 | Q11: 102.5655908 | R11: 89.93799532 | S11: 94.59044055
A12: =IF(COUNTRY_INFO!A12=0," ",COUNTRY_INFO!A12) -> Burkina Faso | B12: =IF(COUNTRY_INFO!B12=0," ",COUNTRY_INFO!B12) -> Boucle du Mouhoun | C12: =IF(COUNTRY_INFO!C12=0," ",COUNTRY_INFO!C12) -> Solenzo | D12: =IF(OR(COUNTRY_INFO!$T$9:$T$1000="T1 (PZQ+ALB/MBD)",COUNTRY_INFO!$U$9:$U$1000="T1 (PZQ+ALB/MBD)"), "T1 (PZQ+ALB/MBD)", " ") -> T1 (PZQ+ALB/MBD) | E12: PZQ+ALB | F12: 15-19/05/17 | H12: 108320 | I12: 108320 | J12: 185672 | K12: 293992 | M12: 109242 | N12: 171913 | O12: 281155 | Q12: 100.8511817 | R12: 92.58962041 | S12: 95.63355465
A13: =IF(COUNTRY_INFO!A13=0," ",COUNTRY_INFO!A13) -> Burkina Faso | B13: =IF(COUNTRY_INFO!B13=0," ",COUNTRY_INFO!B13) -> Boucle du Mouhoun | C13: =IF(COUNTRY_INFO!C13=0," ",COUNTRY_INFO!C13) -> Toma | D13: =IF(OR(COUNTRY_INFO!$T$9:$T$1000="T1 (PZQ+ALB/MBD)",COUNTRY_INFO!$U$9:$U$1000="T1 (PZQ+ALB/MBD)"), "T1 (PZQ+ALB/MBD)", " ") -> T1 (PZQ+ALB/MBD) | E13: PZQ+ALB | F13: 15-19/05/17 | H13: 64480 | I13: 64480 | J13: 110536 | K13: 175016 | M13: 65384 | N13: 109841 | O13: 175225 | Q13: 101.4019851 | R13: 99.37124557 | S13: 100.1194177
A14: =IF(COUNTRY_INFO!A14=0," ",COUNTRY_INFO!A14) -> Burkina Faso | B14: =IF(COUNTRY_INFO!B14=0," ",COUNTRY_INFO!B14) -> Boucle du Mouhoun | C14: =IF(COUNTRY_INFO!C14=0," ",COUNTRY_INFO!C14) -> Tougan | D14: =IF(OR(COUNTRY_INFO!$T$9:$T$1000="T1 (PZQ+ALB/MBD)",COUNTRY_INFO!$U$9:$U$1000="T1 (PZQ+ALB/MBD)"), "T1 (PZQ+ALB/MBD)", " ") -> T1 (PZQ+ALB/MBD) | E14: PZQ+ALB | F14: 15-19/05/17 | H14: 86142 | I14: 86142 | J14: 147666 | K14: 233808 | M14: 91669 | N14: 132358 | O14: 224027 | Q14: 106.4161501 | R14: 89.63336178 | S14: 95.81665298
A15: =IF(COUNTRY_INFO!A15=0," ",COUNTRY_INFO!A15) -> Burkina Faso | B15: =IF(COUNTRY_INFO!B15=0," ",COUNTRY_INFO!B15) -> Cascades | C15: =IF(COUNTRY_INFO!C15=0," ",COUNTRY_INFO!C15) -> Banfora | D15: =IF(OR(COUNTRY_INFO!$T$9:$T$1000="T1 (PZQ+ALB/MBD)",COUNTRY_INFO!$U$9:$U$1000="T1 (PZQ+ALB/MBD)"), "T1 (PZQ+ALB/MBD)", " ") ->  | K15: 0 | O15: 0
A16: =IF(COUNTRY_INFO!A16=0," ",COUNTRY_INFO!A16) -> Burkina Faso | B16: =IF(COUNTRY_INFO!B16=0," ",COUNTRY_INFO!B16) -> Cascades | C16: =IF(COUNTRY_INFO!C16=0," ",COUNTRY_INFO!C16) -> Mangodara | D16: =IF(OR(COUNTRY_INFO!$T$9:$T$1000="T1 (PZQ+ALB/MBD)",COUNTRY_INFO!$U$9:$U$1000="T1 (PZQ+ALB/MBD)"), "T1 (PZQ+ALB/MBD)", " ") ->  | K16: 0 | O16: 0
A17: =IF(COUNTRY_INFO!A17=0," ",COUNTRY_INFO!A17) -> Burkina Faso | B17: =IF(COUNTRY_INFO!B17=0," ",COUNTRY_INFO!B17) -> Cascades | C17: =IF(COUNTRY_INFO!C17=0," ",COUNTRY_INFO!C17) -> Sindou | D17: =IF(OR(COUNTRY_INFO!$T$9:$T$1000="T1 (PZQ+ALB/MBD)",COUNTRY_INFO!$U$9:$U$1000="T1 (PZQ+ALB/MBD)"), "T1 (PZQ+ALB/MBD)", " ") ->  | K17: 0 | O17: 0
A18: =IF(COUNTRY_INFO!A18=0," ",COUNTRY_INFO!A18) -> Burkina Faso | B18: =IF(COUNTRY_INFO!B18=0," ",COUNTRY_INFO!B18) -> Centre | C18: =IF(COUNTRY_INFO!C18=0," ",COUNTRY_INFO!C18) -> Baskuy | D18: =IF(OR(COUNTRY_INFO!$T$9:$T$1000="T1 (PZQ+ALB/MBD)",COUNTRY_INFO!$U$9:$U$1000="T1 (PZQ+ALB/MBD)"), "T1 (PZQ+ALB/MBD)", " ") ->  | K18: 0 | O18: 0
A19: =IF(COUNTRY_INFO!A19=0," ",COUNTRY_INFO!A19) -> Burkina Faso | B19: =IF(COUNTRY_INFO!B19=0," ",COUNTRY_INFO!B19) -> Centre | C19: =IF(COUNTRY_INFO!C19=0," ",COUNTRY_INFO!C19) -> Bogodogo | D19: =IF(OR(COUNTRY_INFO!$T$9:$T$1000="T1 (PZQ+ALB/MBD)",COUNTRY_INFO!$U$9:$U$1000="T1 (PZQ+ALB/MBD)"), "T1 (PZQ+ALB/MBD)", " ") ->  | K19: 0 | O19: 0
A20: =IF(COUNTRY_INFO!A20=0," ",COUNTRY_INFO!A20) -> Burkina Faso | B20: =IF(COUNTRY_INFO!B20=0," ",COUNTRY_INFO!B20) -> Centre | C20: =IF(COUNTRY_INFO!C20=0," ",COUNTRY_INFO!C20) -> Boulmiougou | D20: =IF(OR(COUNTRY_INFO!$T$9:$T$1000="T1 (PZQ+ALB/MBD)",COUNTRY_INFO!$U$9:$U$1000="T1 (PZQ+ALB/MBD)"), "T1 (PZQ+ALB/MBD)", " ") ->  | K20: 0 | O20: 0
A21: =IF(COUNTRY_INFO!A21=0," ",COUNTRY_INFO!A21) -> Burkina Faso | B21: =IF(COUNTRY_INFO!B21=0," ",COUNTRY_INFO!B21) -> Centre | C21: =IF(COUNTRY_INFO!C21=0," ",COUNTRY_INFO!C21) -> Nongre-Massom | D21: =IF(OR(COUNTRY_INFO!$T$9:$T$1000="T1 (PZQ+ALB/MBD)",COUNTRY_INFO!$U$9:$U$1000="T1 (PZQ+ALB/MBD)"), "T1 (PZQ+ALB/MBD)", " ") ->  | K21: 0 | O21: 0
A22: =IF(COUNTRY_INFO!A22=0," ",COUNTRY_INFO!A22) -> Burkina Faso | B22: =IF(COUNTRY_INFO!B22=0," ",COUNTRY_INFO!B22) -> Centre | C22: =IF(COUNTRY_INFO!C22=0," ",COUNTRY_INFO!C22) -> Sig-Nonghin | D22: =IF(OR(COUNTRY_INFO!$T$9:$T$1000="T1 (PZQ+ALB/MBD)",COUNTRY_INFO!$U$9:$U$1000="T1 (PZQ+ALB/MBD)"), "T1 (PZQ+ALB/MBD)", " ") ->  | K22: 0 | O22: 0
A23: =IF(COUNTRY_INFO!A23=0," ",COUNTRY_INFO!A23) -> Burkina Faso | B23: =IF(COUNTRY_INFO!B23=0," ",COUNTRY_INFO!B23) -> Centre-Est | C23: =IF(COUNTRY_INFO!C23=0," ",COUNTRY_INFO!C23) -> Bittou | D23: =IF(OR(COUNTRY_INFO!$T$9:$T$1000="T1 (PZQ+ALB/MBD)",COUNTRY_INFO!$U$9:$U$1000="T1 (PZQ+ALB/MBD)"), "T1 (PZQ+ALB/MBD)", " ") ->  | K23: 0 | O23: 0
A24: =IF(COUNTRY_INFO!A24=0," ",COUNTRY_INFO!A24) -> Burkina Faso | B24: =IF(COUNTRY_INFO!B24=0," ",COUNTRY_INFO!B24) -> Centre-Est | C24: =IF(COUNTRY_INFO!C24=0," ",COUNTRY_INFO!C24) -> Garango | D24: =IF(OR(COUNTRY_INFO!$T$9:$T$1000="T1 (PZQ+ALB/MBD)",COUNTRY_INFO!$U$9:$U$1000="T1 (PZQ+ALB/MBD)"), "T1 (PZQ+ALB/MBD)", " ") ->  | K24: 0 | O24: 0
A25: =IF(COUNTRY_INFO!A25=0," ",COUNTRY_INFO!A25) -> Burkina Faso | B25: =IF(COUNTRY_INFO!B25=0," ",COUNTRY_INFO!B25) -> Centre-Est | C25: =IF(COUNTRY_INFO!C25=0," ",COUNTRY_INFO!C25) -> Koupela | D25: =IF(OR(COUNTRY_INFO!$T$9:$T$1000="T1 (PZQ+ALB/MBD)",COUNTRY_INFO!$U$9:$U$1000="T1 (PZQ+ALB/MBD)"), "T1 (PZQ+ALB/MBD)", " ") ->  | K25: 0 | O25: 0
A26: =IF(COUNTRY_INFO!A26=0," ",COUNTRY_INFO!A26) -> Burkina Faso | B26: =IF(COUNTRY_INFO!B26=0," ",COUNTRY_INFO!B26) -> Centre-Est | C26: =IF(COUNTRY_INFO!C26=0," ",COUNTRY_INFO!C26) -> Ouargaye | D26: =IF(OR(COUNTRY_INFO!$T$9:$T$1000="T1 (PZQ+ALB/MBD)",COUNTRY_INFO!$U$9:$U$1000="T1 (PZQ+ALB/MBD)"), "T1 (PZQ+ALB/MBD)", " ") ->  | K26: 0 | O26: 0
A27: =IF(COUNTRY_INFO!A27=0," ",COUNTRY_INFO!A27) -> Burkina Faso | B27: =IF(COUNTRY_INFO!B27=0," ",COUNTRY_INFO!B27) -> Centre-Est | C27: =IF(COUNTRY_INFO!C27=0," ",COUNTRY_INFO!C27) -> Pouytenga | D27: =IF(OR(COUNTRY_INFO!$T$9:$T$1000="T1 (PZQ+ALB/MBD)",COUNTRY_INFO!$U$9:$U$1000="T1 (PZQ+ALB/MBD)"), "T1 (PZQ+ALB/MBD)", " ") ->  | K27: 0 | O27: 0
A28: =IF(COUNTRY_INFO!A28=0," ",COUNTRY_INFO!A28) -> Burkina Faso | B28: =IF(COUNTRY_INFO!B28=0," ",COUNTRY_INFO!B28) -> Centre-Est | C28: =IF(COUNTRY_INFO!C28=0," ",COUNTRY_INFO!C28) -> Tenkodogo | D28: =IF(OR(COUNTRY_INFO!$T$9:$T$1000="T1 (PZQ+ALB/MBD)",COUNTRY_INFO!$U$9:$U$1000="T1 (PZQ+ALB/MBD)"), "T1 (PZQ+ALB/MBD)", " ") ->  | K28: 0 | O28: 0
A29: =IF(COUNTRY_INFO!A29=0," ",COUNTRY_INFO!A29) -> Burkina Faso | B29: =IF(COUNTRY_INFO!B29=0," ",COUNTRY_INFO!B29) -> Centre-Est | C29: =IF(COUNTRY_INFO!C29=0," ",COUNTRY_INFO!C29) -> Zabré | D29: =IF(OR(COUNTRY_INFO!$T$9:$T$1000="T1 (PZQ+ALB/MBD)",COUNTRY_INFO!$U$9:$U$1000="T1 (PZQ+ALB/MBD)"), "T1 (PZQ+ALB/MBD)", " ") ->  | K29: 0 | O29: 0
A30: =IF(COUNTRY_INFO!A30=0," ",COUNTRY_INFO!A30) -> Burkina Faso | B30: =IF(COUNTRY_INFO!B30=0," ",COUNTRY_INFO!B30) -> Centre-Nord | C30: =IF(COUNTRY_INFO!C30=0," ",COUNTRY_INFO!C30) -> Barsalogo | D30: =IF(OR(COUNTRY_INFO!$T$9:$T$1000="T1 (PZQ+ALB/MBD)",COUNTRY_INFO!$U$9:$U$1000="T1 (PZQ+ALB/MBD)"), "T1 (PZQ+ALB/MBD)", " ") ->  | K30: 0 | O30: 0
A31: =IF(COUNTRY_INFO!A31=0," ",COUNTRY_INFO!A31) -> Burkina Faso | B31: =IF(COUNTRY_INFO!B31=0," ",COUNTRY_INFO!B31) -> Centre-Nord | C31: =IF(COUNTRY_INFO!C31=0," ",COUNTRY_INFO!C31) -> Boulsa | D31: =IF(OR(COUNTRY_INFO!$T$9:$T$1000="T1 (PZQ+ALB/MBD)",COUNTRY_INFO!$U$9:$U$1000="T1 (PZQ+ALB/MBD)"), "T1 (PZQ+ALB/MBD)", " ") ->  | K31: 0 | O31: 0
A32: =IF(COUNTRY_INFO!A32=0," ",COUNTRY_INFO!A32) -> Burkina Faso | B32: =IF(COUNTRY_INFO!B32=0," ",COUNTRY_INFO!B32) -> Centre-Nord | C32: =IF(COUNTRY_INFO!C32=0," ",COUNTRY_INFO!C32) -> Boussouma | D32: =IF(OR(COUNTRY_INFO!$T$9:$T$1000="T1 (PZQ+ALB/MBD)",COUNTRY_INFO!$U$9:$U$1000="T1 (PZQ+ALB/MBD)"), "T1 (PZQ+ALB/MBD)", " ") ->  | K32: 0 | O32: 0
A33: =IF(COUNTRY_INFO!A33=0," ",COUNTRY_INFO!A33) -> Burkina Faso | B33: =IF(COUNTRY_INFO!B33=0," ",COUNTRY_INFO!B33) -> Centre-Nord | C33: =IF(COUNTRY_INFO!C33=0," ",COUNTRY_INFO!C33) -> Kaya | D33: =IF(OR(COUNTRY_INFO!$T$9:$T$1000="T1 (PZQ+ALB/MBD)",COUNTRY_INFO!$U$9:$U$1000="T1 (PZQ+ALB/MBD)"), "T1 (PZQ+ALB/MBD)", " ") ->  | K33: 0 | O33: 0
A34: =IF(COUNTRY_INFO!A34=0," ",COUNTRY_INFO!A34) -> Burkina Faso | B34: =IF(COUNTRY_INFO!B34=0," ",COUNTRY_INFO!B34) -> Centre-Nord | C34: =IF(COUNTRY_INFO!C34=0," ",COUNTRY_INFO!C34) -> Kongoussi | D34: =IF(OR(COUNTRY_INFO!$T$9:$T$1000="T1 (PZQ+ALB/MBD)",COUNTRY_INFO!$U$9:$U$1000="T1 (PZQ+ALB/MBD)"), "T1 (PZQ+ALB/MBD)", " ") ->  | K34: 0 | O34: 0
A35: =IF(COUNTRY_INFO!A35=0," ",COUNTRY_INFO!A35) -> Burkina Faso | B35: =IF(COUNTRY_INFO!B35=0," ",COUNTRY_INFO!B35) -> Centre-Nord | C35: =IF(COUNTRY_INFO!C35=0," ",COUNTRY_INFO!C35) -> Tougouri | D35: =IF(OR(COUNTRY_INFO!$T$9:$T$1000="T1 (PZQ+ALB/MBD)",COUNTRY_INFO!$U$9:$U$1000="T1 (PZQ+ALB/MBD)"), "T1 (PZQ+ALB/MBD)", " ") ->  | K35: 0 | O35: 0
A36: =IF(COUNTRY_INFO!A36=0," ",COUNTRY_INFO!A36) -> Burkina Faso | B36: =IF(COUNTRY_INFO!B36=0," ",COUNTRY_INFO!B36) -> Centre-Ouest | C36: =IF(COUNTRY_INFO!C36=0," ",COUNTRY_INFO!C36) -> Koudougou | D36: =IF(OR(COUNTRY_INFO!$T$9:$T$1000="T1 (PZQ+ALB/MBD)",COUNTRY_INFO!$U$9:$U$1000="T1 (PZQ+ALB/MBD)"), "T1 (PZQ+ALB/MBD)", " ") ->  | K36: 0 | O36: 0
A37: =IF(COUNTRY_INFO!A37=0," ",COUNTRY_INFO!A37) -> Burkina Faso | B37: =IF(COUNTRY_INFO!B37=0," ",COUNTRY_INFO!B37) -> Centre-Ouest | C37: =IF(COUNTRY_INFO!C37=0," ",COUNTRY_INFO!C37) -> Léo | D37: =IF(OR(COUNTRY_INFO!$T$9:$T$1000="T1 (PZQ+ALB/MBD)",COUNTRY_INFO!$U$9:$U$1000="T1 (PZQ+ALB/MBD)"), "T1 (PZQ+ALB/MBD)", " ") ->  | K37: 0 | O37: 0
A38: =IF(COUNTRY_INFO!A38=0," ",COUNTRY_INFO!A38) -> Burkina Faso | B38: =IF(COUNTRY_INFO!B38=0," ",COUNTRY_INFO!B38) -> Centre-Ouest | C38: =IF(COUNTRY_INFO!C38=0," ",COUNTRY_INFO!C38) -> Nanoro | D38: =IF(OR(COUNTRY_INFO!$T$9:$T$1000="T1 (PZQ+ALB/MBD)",COUNTRY_INFO!$U$9:$U$1000="T1 (PZQ+ALB/MBD)"), "T1 (PZQ+ALB/MBD)", " ") ->  | K38: 0 | O38: 0
A39: =IF(COUNTRY_INFO!A39=0," ",COUNTRY_INFO!A39) -> Burkina Faso | B39: =IF(COUNTRY_INFO!B39=0," ",COUNTRY_INFO!B39) -> Centre-Ouest | C39: =IF(COUNTRY_INFO!C39=0," ",COUNTRY_INFO!C39) -> Réo | D39: =IF(OR(COUNTRY_INFO!$T$9:$T$1000="T1 (PZQ+ALB/MBD)",COUNTRY_INFO!$U$9:$U$1000="T1 (PZQ+ALB/MBD)"), "T1 (PZQ+ALB/MBD)", " ") ->  | K39: 0 | O39: 0
A40: =IF(COUNTRY_INFO!A40=0," ",COUNTRY_INFO!A40) -> Burkina Faso | B40: =IF(COUNTRY_INFO!B40=0," ",COUNTRY_INFO!B40) -> Centre-Ouest | C40: =IF(COUNTRY_INFO!C40=0," ",COUNTRY_INFO!C40) -> Sabou | D40: =IF(OR(COUNTRY_INFO!$T$9:$T$1000="T1 (PZQ+ALB/MBD)",COUNTRY_INFO!$U$9:$U$1000="T1 (PZQ+ALB/MBD)"), "T1 (PZQ+ALB/MBD)", " ") ->  | K40: 0 | O40: 0
A41: =IF(COUNTRY_INFO!A41=0," ",COUNTRY_INFO!A41) -> Burkina Faso | B41: =IF(COUNTRY_INFO!B41=0," ",COUNTRY_INFO!B41) -> Centre-Ouest | C41: =IF(COUNTRY_INFO!C41=0," ",COUNTRY_INFO!C41) -> Sapouy | D41: =IF(OR(COUNTRY_INFO!$T$9:$T$1000="T1 (PZQ+ALB/MBD)",COUNTRY_INFO!$U$9:$U$1000="T1 (PZQ+ALB/MBD)"), "T1 (PZQ+ALB/MBD)", " ") ->  | K41: 0 | O41: 0
A42: =IF(COUNTRY_INFO!A42=0," ",COUNTRY_INFO!A42) -> Burkina Faso | B42: =IF(COUNTRY_INFO!B42=0," ",COUNTRY_INFO!B42) -> Centre-Ouest | C42: =IF(COUNTRY_INFO!C42=0," ",COUNTRY_INFO!C42) -> Tenado | D42: =IF(OR(COUNTRY_INFO!$T$9:$T$1000="T1 (PZQ+ALB/MBD)",COUNTRY_INFO!$U$9:$U$1000="T1 (PZQ+ALB/MBD)"), "T1 (PZQ+ALB/MBD)", " ") ->  | K42: 0 | O42: 0
A43: =IF(COUNTRY_INFO!A43=0," ",COUNTRY_INFO!A43) -> Burkina Faso | B43: =IF(COUNTRY_INFO!B43=0," ",COUNTRY_INFO!B43) -> Centre-Sud | C43: =IF(COUNTRY_INFO!C43=0," ",COUNTRY_INFO!C43) -> Kombissiri | D43: =IF(OR(COUNTRY_INFO!$T$9:$T$1000="T1 (PZQ+ALB/MBD)",COUNTRY_INFO!$U$9:$U$1000="T1 (PZQ+ALB/MBD)"), "T1 (PZQ+ALB/MBD)", " ") ->  | K43: 0 | O43: 0
A44: =IF(COUNTRY_INFO!A44=0," ",COUNTRY_INFO!A44) -> Burkina Faso | B44: =IF(COUNTRY_INFO!B44=0," ",COUNTRY_INFO!B44) -> Centre-Sud | C44: =IF(COUNTRY_INFO!C44=0," ",COUNTRY_INFO!C44) -> Manga | D44: =IF(OR(COUNTRY_INFO!$T$9:$T$1000="T1 (PZQ+ALB/MBD)",COUNTRY_INFO!$U$9:$U$1000="T1 (PZQ+ALB/MBD)"), "T1 (PZQ+ALB/MBD)", " ") ->  | K44: 0 | O44: 0
A45: =IF(COUNTRY_INFO!A45=0," ",COUNTRY_INFO!A45) -> Burkina Faso | B45: =IF(COUNTRY_INFO!B45=0," ",COUNTRY_INFO!B45) -> Centre-Sud | C45: =IF(COUNTRY_INFO!C45=0," ",COUNTRY_INFO!C45) -> Pô | D45: =IF(OR(COUNTRY_INFO!$T$9:$T$1000="T1 (PZQ+ALB/MBD)",COUNTRY_INFO!$U$9:$U$1000="T1 (PZQ+ALB/MBD)"), "T1 (PZQ+ALB/MBD)", " ") ->  | K45: 0 | O45: 0
A46: =IF(COUNTRY_INFO!A46=0," ",COUNTRY_INFO!A46) -> Burkina Faso | B46: =IF(COUNTRY_INFO!B46=0," ",COUNTRY_INFO!B46) -> Centre-Sud | C46: =IF(COUNTRY_INFO!C46=0," ",COUNTRY_INFO!C46) -> Saponé | D46: =IF(OR(COUNTRY_INFO!$T$9:$T$1000="T1 (PZQ+ALB/MBD)",COUNTRY_INFO!$U$9:$U$1000="T1 (PZQ+ALB/MBD)"), "T1 (PZQ+ALB/MBD)", " ") ->  | K46: 0 | O46: 0
A47: =IF(COUNTRY_INFO!A47=0," ",COUNTRY_INFO!A47) -> Burkina Faso | B47: =IF(COUNTRY_INFO!B47=0," ",COUNTRY_INFO!B47) -> Est | C47: =IF(COUNTRY_INFO!C47=0," ",COUNTRY_INFO!C47) -> Bogandé | D47: =IF(OR(COUNTRY_INFO!$T$9:$T$1000="T1 (PZQ+ALB/MBD)",COUNTRY_INFO!$U$9:$U$1000="T1 (PZQ+ALB/MBD)"), "T1 (PZQ+ALB/MBD)", " ") ->  | K47: 0 | O47: 0
A48: =IF(COUNTRY_INFO!A48=0," ",COUNTRY_INFO!A48) -> Burkina Faso | B48: =IF(COUNTRY_INFO!B48=0," ",COUNTRY_INFO!B48) -> Est | C48: =IF(COUNTRY_INFO!C48=0," ",COUNTRY_INFO!C48) -> Diapaga | D48: =IF(OR(COUNTRY_INFO!$T$9:$T$1000="T1 (PZQ+ALB/MBD)",COUNTRY_INFO!$U$9:$U$1000="T1 (PZQ+ALB/MBD)"), "T1 (PZQ+ALB/MBD)", " ") ->  | K48: 0 | O48: 0
A49: =IF(COUNTRY_INFO!A49=0," ",COUNTRY_INFO!A49) -> Burkina Faso | B49: =IF(COUNTRY_INFO!B49=0," ",COUNTRY_INFO!B49) -> Est | C49: =IF(COUNTRY_INFO!C49=0," ",COUNTRY_INFO!C49) -> Fada N'gourma | D49: =IF(OR(COUNTRY_INFO!$T$9:$T$1000="T1 (PZQ+ALB/MBD)",COUNTRY_INFO!$U$9:$U$1000="T1 (PZQ+ALB/MBD)"), "T1 (PZQ+ALB/MBD)", " ") ->  | K49: 0 | O49: 0
A50: =IF(COUNTRY_INFO!A50=0," ",COUNTRY_INFO!A50) -> Burkina Faso | B50: =IF(COUNTRY_INFO!B50=0," ",COUNTRY_INFO!B50) -> Est | C50: =IF(COUNTRY_INFO!C50=0," ",COUNTRY_INFO!C50) -> Gayeri | D50: =IF(OR(COUNTRY_INFO!$T$9:$T$1000="T1 (PZQ+ALB/MBD)",COUNTRY_INFO!$U$9:$U$1000="T1 (PZQ+ALB/MBD)"), "T1 (PZQ+ALB/MBD)", " ") ->  | K50: 0 | O50: 0
A51: =IF(COUNTRY_INFO!A51=0," ",COUNTRY_INFO!A51) -> Burkina Faso | B51: =IF(COUNTRY_INFO!B51=0," ",COUNTRY_INFO!B51) -> Est | C51: =IF(COUNTRY_INFO!C51=0," ",COUNTRY_INFO!C51) -> Manni | D51: =IF(OR(COUNTRY_INFO!$T$9:$T$1000="T1 (PZQ+ALB/MBD)",COUNTRY_INFO!$U$9:$U$1000="T1 (PZQ+ALB/MBD)"), "T1 (PZQ+ALB/MBD)", " ") ->  | K51: 0 | O51: 0
A52: =IF(COUNTRY_INFO!A52=0," ",COUNTRY_INFO!A52) -> Burkina Faso | B52: =IF(COUNTRY_INFO!B52=0," ",COUNTRY_INFO!B52) -> Est | C52: =IF(COUNTRY_INFO!C52=0," ",COUNTRY_INFO!C52) -> Pama | D52: =IF(OR(COUNTRY_INFO!$T$9:$T$1000="T1 (PZQ+ALB/MBD)",COUNTRY_INFO!$U$9:$U$1000="T1 (PZQ+ALB/MBD)"), "T1 (PZQ+ALB/MBD)", " ") ->  | K52: 0 | O52: 0
A53: =IF(COUNTRY_INFO!A53=0," ",COUNTRY_INFO!A53) -> Burkina Faso | B53: =IF(COUNTRY_INFO!B53=0," ",COUNTRY_INFO!B53) -> Hauts-Bassins | C53: =IF(COUNTRY_INFO!C53=0," ",COUNTRY_INFO!C53) -> Dafra | D53: =IF(OR(COUNTRY_INFO!$T$9:$T$1000="T1 (PZQ+ALB/MBD)",COUNTRY_INFO!$U$9:$U$1000="T1 (PZQ+ALB/MBD)"), "T1 (PZQ+ALB/MBD)", " ") ->  | K53: 0 | O53: 0
A54: =IF(COUNTRY_INFO!A54=0," ",COUNTRY_INFO!A54) -> Burkina Faso | B54: =IF(COUNTRY_INFO!B54=0," ",COUNTRY_INFO!B54) -> Hauts-Bassins | C54: =IF(COUNTRY_INFO!C54=0," ",COUNTRY_INFO!C54) -> Dandé | D54: =IF(OR(COUNTRY_INFO!$T$9:$T$1000="T1 (PZQ+ALB/MBD)",COUNTRY_INFO!$U$9:$U$1000="T1 (PZQ+ALB/MBD)"), "T1 (PZQ+ALB/MBD)", " ") ->  | K54: 0 | O54: 0
A55: =IF(COUNTRY_INFO!A55=0," ",COUNTRY_INFO!A55) -> Burkina Faso | B55: =IF(COUNTRY_INFO!B55=0," ",COUNTRY_INFO!B55) -> Hauts-Bassins | C55: =IF(COUNTRY_INFO!C55=0," ",COUNTRY_INFO!C55) -> Dô | D55: =IF(OR(COUNTRY_INFO!$T$9:$T$1000="T1 (PZQ+ALB/MBD)",COUNTRY_INFO!$U$9:$U$1000="T1 (PZQ+ALB/MBD)"), "T1 (PZQ+ALB/MBD)", " ") ->  | K55: 0 | O55: 0
A56: =IF(COUNTRY_INFO!A56=0," ",COUNTRY_INFO!A56) -> Burkina Faso | B56: =IF(COUNTRY_INFO!B56=0," ",COUNTRY_INFO!B56) -> Hauts-Bassins | C56: =IF(COUNTRY_INFO!C56=0," ",COUNTRY_INFO!C56) -> Houndé | D56: =IF(OR(COUNTRY_INFO!$T$9:$T$1000="T1 (PZQ+ALB/MBD)",COUNTRY_INFO!$U$9:$U$1000="T1 (PZQ+ALB/MBD)"), "T1 (PZQ+ALB/MBD)", " ") ->  | K56: 0 | O56: 0
A57: =IF(COUNTRY_INFO!A57=0," ",COUNTRY_INFO!A57) -> Burkina Faso | B57: =IF(COUNTRY_INFO!B57=0," ",COUNTRY_INFO!B57) -> Hauts-Bassins | C57: =IF(COUNTRY_INFO!C57=0," ",COUNTRY_INFO!C57) -> Karangasso-Vigué | D57: =IF(OR(COUNTRY_INFO!$T$9:$T$1000="T1 (PZQ+ALB/MBD)",COUNTRY_INFO!$U$9:$U$1000="T1 (PZQ+ALB/MBD)"), "T1 (PZQ+ALB/MBD)", " ") ->  | K57: 0 | O57: 0
A58: =IF(COUNTRY_INFO!A58=0," ",COUNTRY_INFO!A58) -> Burkina Faso | B58: =IF(COUNTRY_INFO!B58=0," ",COUNTRY_INFO!B58) -> Hauts-Bassins | C58: =IF(COUNTRY_INFO!C58=0," ",COUNTRY_INFO!C58) -> Lena | D58: =IF(OR(COUNTRY_INFO!$T$9:$T$1000="T1 (PZQ+ALB/MBD)",COUNTRY_INFO!$U$9:$U$1000="T1 (PZQ+ALB/MBD)"), "T1 (PZQ+ALB/MBD)", " ") ->  | K58: 0 | O58: 0
A59: =IF(COUNTRY_INFO!A59=0," ",COUNTRY_INFO!A59) -> Burkina Faso | B59: =IF(COUNTRY_INFO!B59=0," ",COUNTRY_INFO!B59) -> Hauts-Bassins | C59: =IF(COUNTRY_INFO!C59=0," ",COUNTRY_INFO!C59) -> N'Dorola | D59: =IF(OR(COUNTRY_INFO!$T$9:$T$1000="T1 (PZQ+ALB/MBD)",COUNTRY_INFO!$U$9:$U$1000="T1 (PZQ+ALB/MBD)"), "T1 (PZQ+ALB/MBD)", " ") ->  | K59: 0 | O59: 0
A60: =IF(COUNTRY_INFO!A60=0," ",COUNTRY_INFO!A60) -> Burkina Faso | B60: =IF(COUNTRY_INFO!B60=0," ",COUNTRY_INFO!B60) -> Hauts-Bassins | C60: =IF(COUNTRY_INFO!C60=0," ",COUNTRY_INFO!C60) -> Orodara | D60: =IF(OR(COUNTRY_INFO!$T$9:$T$1000="T1 (PZQ+ALB/MBD)",COUNTRY_INFO!$U$9:$U$1000="T1 (PZQ+ALB/MBD)"), "T1 (PZQ+ALB/MBD)", " ") ->  | K60: 0 | O60: 0
A61: =IF(COUNTRY_INFO!A61=0," ",COUNTRY_INFO!A61) -> Burkina Faso | B61: =IF(COUNTRY_INFO!B61=0," ",COUNTRY_INFO!B61) -> Nord | C61: =IF(COUNTRY_INFO!C61=0," ",COUNTRY_INFO!C61) -> Gourcy | D61: =IF(OR(COUNTRY_INFO!$T$9:$T$1000="T1 (PZQ+ALB/MBD)",COUNTRY_INFO!$U$9:$U$1000="T1 (PZQ+ALB/MBD)"), "T1 (PZQ+ALB/MBD)", " ") -> T1 (PZQ+ALB/MBD) | E61: PZQ+ALB | F61: 15-19/05/17 | H61: 68781 | I61: 68781 | K61: 68781 | M61: 70330 | O61: 70330 | Q61: 102.2520754 | S61: 102.2520754
A62: =IF(COUNTRY_INFO!A62=0," ",COUNTRY_INFO!A62) -> Burkina Faso | B62: =IF(COUNTRY_INFO!B62=0," ",COUNTRY_INFO!B62) -> Nord | C62: =IF(COUNTRY_INFO!C62=0," ",COUNTRY_INFO!C62) -> Ouahigouya | D62: =IF(OR(COUNTRY_INFO!$T$9:$T$1000="T1 (PZQ+ALB/MBD)",COUNTRY_INFO!$U$9:$U$1000="T1 (PZQ+ALB/MBD)"), "T1 (PZQ+ALB/MBD)", " ") -> T1 (PZQ+ALB/MBD) | E62: PZQ+ALB | F62: 15-19/05/17 | H62: 101791 | I62: 101791 | K62: 101791 | M62: 110349 | O62: 110349 | Q62: 108.4074231 | S62: 108.4074231
A63: =IF(COUNTRY_INFO!A63=0," ",COUNTRY_INFO!A63) -> Burkina Faso | B63: =IF(COUNTRY_INFO!B63=0," ",COUNTRY_INFO!B63) -> Nord | C63: =IF(COUNTRY_INFO!C63=0," ",COUNTRY_INFO!C63) -> Seguenega | D63: =IF(OR(COUNTRY_INFO!$T$9:$T$1000="T1 (PZQ+ALB/MBD)",COUNTRY_INFO!$U$9:$U$1000="T1 (PZQ+ALB/MBD)"), "T1 (PZQ+ALB/MBD)", " ") -> T1 (PZQ+ALB/MBD) | E63: PZQ+ALB | F63: 15-19/05/17 | H63: 67116 | I63: 67116 | K63: 67116 | M63: 72194 | O63: 72194 | Q63: 107.5660051 | S63: 107.5660051
A64: =IF(COUNTRY_INFO!A64=0," ",COUNTRY_INFO!A64) -> Burkina Faso | B64: =IF(COUNTRY_INFO!B64=0," ",COUNTRY_INFO!B64) -> Nord | C64: =IF(COUNTRY_INFO!C64=0," ",COUNTRY_INFO!C64) -> Thiou | D64: =IF(OR(COUNTRY_INFO!$T$9:$T$1000="T1 (PZQ+ALB/MBD)",COUNTRY_INFO!$U$9:$U$1000="T1 (PZQ+ALB/MBD)"), "T1 (PZQ+ALB/MBD)", " ") -> T1 (PZQ+ALB/MBD) | E64: PZQ+ALB | F64: 15-19/05/17 | H64: 54816 | I64: 54816 | K64: 54816 | M64: 56726 | O64: 56726 | Q64: 103.4843841 | S64: 103.4843841
A65: =IF(COUNTRY_INFO!A65=0," ",COUNTRY_INFO!A65) -> Burkina Faso | B65: =IF(COUNTRY_INFO!B65=0," ",COUNTRY_INFO!B65) -> Nord | C65: =IF(COUNTRY_INFO!C65=0," ",COUNTRY_INFO!C65) -> Titao | D65: =IF(OR(COUNTRY_INFO!$T$9:$T$1000="T1 (PZQ+ALB/MBD)",COUNTRY_INFO!$U$9:$U$1000="T1 (PZQ+ALB/MBD)"), "T1 (PZQ+ALB/MBD)", " ") -> T1 (PZQ+ALB/MBD) | E65: PZQ+ALB | F65: 15-19/05/17 | H65: 58556 | I65: 58556 | K65: 58556 | M65: 60345 | O65: 60345 | Q65: 103.055195 | S65: 103.055195
A66: =IF(COUNTRY_INFO!A66=0," ",COUNTRY_INFO!A66) -> Burkina Faso | B66: =IF(COUNTRY_INFO!B66=0," ",COUNTRY_INFO!B66) -> Nord | C66: =IF(COUNTRY_INFO!C66=0," ",COUNTRY_INFO!C66) -> Yako | D66: =IF(OR(COUNTRY_INFO!$T$9:$T$1000="T1 (PZQ+ALB/MBD)",COUNTRY_INFO!$U$9:$U$1000="T1 (PZQ+ALB/MBD)"), "T1 (PZQ+ALB/MBD)", " ") -> T1 (PZQ+ALB/MBD) | E66: PZQ+ALB | F66: 15-19/05/17 | H66: 128127 | I66: 128127 | K66: 128127 | M66: 141572 | O66: 141572 | Q66: 110.4934947 | S66: 110.4934947
A67: =IF(COUNTRY_INFO!A67=0," ",COUNTRY_INFO!A67) -> Burkina Faso | B67: =IF(COUNTRY_INFO!B67=0," ",COUNTRY_INFO!B67) -> Plateau Central | C67: =IF(COUNTRY_INFO!C67=0," ",COUNTRY_INFO!C67) -> Boussé | D67: =IF(OR(COUNTRY_INFO!$T$9:$T$1000="T1 (PZQ+ALB/MBD)",COUNTRY_INFO!$U$9:$U$1000="T1 (PZQ+ALB/MBD)"), "T1 (PZQ+ALB/MBD)", " ") ->  | K67: 0 | O67: 0
A68: =IF(COUNTRY_INFO!A68=0," ",COUNTRY_INFO!A68) -> Burkina Faso | B68: =IF(COUNTRY_INFO!B68=0," ",COUNTRY_INFO!B68) -> Plateau Central | C68: =IF(COUNTRY_INFO!C68=0," ",COUNTRY_INFO!C68) -> Ziniaré | D68: =IF(OR(COUNTRY_INFO!$T$9:$T$1000="T1 (PZQ+ALB/MBD)",COUNTRY_INFO!$U$9:$U$1000="T1 (PZQ+ALB/MBD)"), "T1 (PZQ+ALB/MBD)", " ") ->  | K68: 0 | O68: 0
A69: =IF(COUNTRY_INFO!A69=0," ",COUNTRY_INFO!A69) -> Burkina Faso | B69: =IF(COUNTRY_INFO!B69=0," ",COUNTRY_INFO!B69) -> Plateau Central | C69: =IF(COUNTRY_INFO!C69=0," ",COUNTRY_INFO!C69) -> Zorgho | D69: =IF(OR(COUNTRY_INFO!$T$9:$T$1000="T1 (PZQ+ALB/MBD)",COUNTRY_INFO!$U$9:$U$1000="T1 (PZQ+ALB/MBD)"), "T1 (PZQ+ALB/MBD)", " ") ->  | K69: 0 | O69: 0
A70: =IF(COUNTRY_INFO!A70=0," ",COUNTRY_INFO!A70) -> Burkina Faso | B70: =IF(COUNTRY_INFO!B70=0," ",COUNTRY_INFO!B70) -> Sahel | C70: =IF(COUNTRY_INFO!C70=0," ",COUNTRY_INFO!C70) -> Djibo | D70: =IF(OR(COUNTRY_INFO!$T$9:$T$1000="T1 (PZQ+ALB/MBD)",COUNTRY_INFO!$U$9:$U$1000="T1 (PZQ+ALB/MBD)"), "T1 (PZQ+ALB/MBD)", " ") -> T1 (PZQ+ALB/MBD) | E70: PZQ+ALB | F70: 15-19/05/17 | H70: 143572 | I70: 143572 | J70: 251024 | K70: 394596 | M70: 142853 | N70: 240965 | O70: 383818 | Q70: 99.49920597 | R70: 95.99281344 | S70: 97.26859877
A71: =IF(COUNTRY_INFO!A71=0," ",COUNTRY_INFO!A71) -> Burkina Faso | B71: =IF(COUNTRY_INFO!B71=0," ",COUNTRY_INFO!B71) -> Sahel | C71: =IF(COUNTRY_INFO!C71=0," ",COUNTRY_INFO!C71) -> Dori | D71: =IF(OR(COUNTRY_INFO!$T$9:$T$1000="T1 (PZQ+ALB/MBD)",COUNTRY_INFO!$U$9:$U$1000="T1 (PZQ+ALB/MBD)"), "T1 (PZQ+ALB/MBD)", " ") -> T1 (PZQ+ALB/MBD) | E71: PZQ+ALB | F71: 15-19/05/17 | H71: 107555 | I71: 107555 | J71: 188107 | K71: 295662 | M71: 104390 | N71: 170271 | O71: 274661 | Q71: 97.05731951 | R71: 90.51816254 | S71: 92.89695666
A72: =IF(COUNTRY_INFO!A72=0," ",COUNTRY_INFO!A72) -> Burkina Faso | B72: =IF(COUNTRY_INFO!B72=0," ",COUNTRY_INFO!B72) -> Sahel | C72: =IF(COUNTRY_INFO!C72=0," ",COUNTRY_INFO!C72) -> Gorom-Gorom | D72: =IF(OR(COUNTRY_INFO!$T$9:$T$1000="T1 (PZQ+ALB/MBD)",COUNTRY_INFO!$U$9:$U$1000="T1 (PZQ+ALB/MBD)"), "T1 (PZQ+ALB/MBD)", " ") -> T1 (PZQ+ALB/MBD) | E72: PZQ+ALB | F72: 15-19/05/17 | H72: 82446 | I72: 82446 | J72: 144150 | K72: 226596 | M72: 84011 | N72: 144229 | O72: 228240 | Q72: 101.8982122 | R72: 100.054804 | S72: 100.7255203
A73: =IF(COUNTRY_INFO!A73=0," ",COUNTRY_INFO!A73) -> Burkina Faso | B73: =IF(COUNTRY_INFO!B73=0," ",COUNTRY_INFO!B73) -> Sahel | C73: =IF(COUNTRY_INFO!C73=0," ",COUNTRY_INFO!C73) -> Sebba | D73: =IF(OR(COUNTRY_INFO!$T$9:$T$1000="T1 (PZQ+ALB/MBD)",COUNTRY_INFO!$U$9:$U$1000="T1 (PZQ+ALB/MBD)"), "T1 (PZQ+ALB/MBD)", " ") ->  | K73: 0 | O73: 0
A74: =IF(COUNTRY_INFO!A74=0," ",COUNTRY_INFO!A74) -> Burkina Faso | B74: =IF(COUNTRY_INFO!B74=0," ",COUNTRY_INFO!B74) -> Sud-Ouest | C74: =IF(COUNTRY_INFO!C74=0," ",COUNTRY_INFO!C74) -> Batié | D74: =IF(OR(COUNTRY_INFO!$T$9:$T$1000="T1 (PZQ+ALB/MBD)",COUNTRY_INFO!$U$9:$U$1000="T1 (PZQ+ALB/MBD)"), "T1 (PZQ+ALB/MBD)", " ") ->  | K74: =MAX(H74:I74)+G74+J74 -> 0 | O74: =SUM(L74:N74) -> 0 | P74: =IF(G74<>0, IF(L74/G74*100=0, "-", L74/G74*100), " ") ->  | Q74: =IF(OR(I74<>0,H74<>0), IF(M74/MAX(H74,I74)*100=0, "-", M74/MAX(H74,I74)*100), " ") ->  | R74: =IF(J74<>0, IF(N74/J74*100=0, "-", N74/J74*100), " ") ->  | S74: =IF(K74<>0, IF(O74/K74*100=0, "-", O74/K74*100), " ") -> 
A75: =IF(COUNTRY_INFO!A75=0," ",COUNTRY_INFO!A75) -> Burkina Faso | B75: =IF(COUNTRY_INFO!B75=0," ",COUNTRY_INFO!B75) -> Sud-Ouest | C75: =IF(COUNTRY_INFO!C75=0," ",COUNTRY_INFO!C75) -> Dano | D75: =IF(OR(COUNTRY_INFO!$T$9:$T$1000="T1 (PZQ+ALB/MBD)",COUNTRY_INFO!$U$9:$U$1000="T1 (PZQ+ALB/MBD)"), "T1 (PZQ+ALB/MBD)", " ") -> T1 (PZQ+ALB/MBD) | E75: PZQ+ALB | F75: 15-19/05/17 | H75: 73100 | I75: 73100 | K75: 73100 | M75: 74072 | O75: 74072 | Q75: 101.3296854 | S75: 101.3296854
A76: =IF(COUNTRY_INFO!A76=0," ",COUNTRY_INFO!A76) -> Burkina Faso | B76: =IF(COUNTRY_INFO!B76=0," ",COUNTRY_INFO!B76) -> Sud-Ouest | C76: =IF(COUNTRY_INFO!C76=0," ",COUNTRY_INFO!C76) -> Diébougou | D76: =IF(OR(COUNTRY_INFO!$T$9:$T$1000="T1 (PZQ+ALB/MBD)",COUNTRY_INFO!$U$9:$U$1000="T1 (PZQ+ALB/MBD)"), "T1 (PZQ+ALB/MBD)", " ") ->  | K76: 0 | O76: 0
A77: =IF(COUNTRY_INFO!A77=0," ",COUNTRY_INFO!A77) -> Burkina Faso | B77: =IF(COUNTRY_INFO!B77=0," ",COUNTRY_INFO!B77) -> Sud-Ouest | C77: =IF(COUNTRY_INFO!C77=0," ",COUNTRY_INFO!C77) -> Gaoua | D77: =IF(OR(COUNTRY_INFO!$T$9:$T$1000="T1 (PZQ+ALB/MBD)",COUNTRY_INFO!$U$9:$U$1000="T1 (PZQ+ALB/MBD)"), "T1 (PZQ+ALB/MBD)", " ") ->  | K77: 0 | O77: 0
A78: =IF(COUNTRY_INFO!A78=0," ",COUNTRY_INFO!A78) -> Burkina Faso | B78: =IF(COUNTRY_INFO!B78=0," ",COUNTRY_INFO!B78) -> Sud-Ouest | C78: =IF(COUNTRY_INFO!C78=0," ",COUNTRY_INFO!C78) -> Kampti | D78: =IF(OR(COUNTRY_INFO!$T$9:$T$1000="T1 (PZQ+ALB/MBD)",COUNTRY_INFO!$U$9:$U$1000="T1 (PZQ+ALB/MBD)"), "T1 (PZQ+ALB/MBD)", " ") ->  | K78: 0 | O78: 0

Sheet T2
A1: T 2 - Praziquantel (PZQ)
A2: Structure administrative, population nécessitant une chimioprévention par groupe d'âge, population traitée par groupe d'âge et couverture
A4: TOTAL | F4: =SUM(F$9:F$1000) -> 0 | G4: 703588 | H4: 911218 | I4: 1614806 | J4: 0 | K4: 797452 | L4: 777538 | M4: 1574990 | N4: =IF(F4<>0, IF(J4/F4*100=0, "-", J4/F4*100), " ") ->  | O4: =IF(G4<>0, IF(K4/G4*100=0, "-", K4/G4*100), " ") -> 113.3407619 | P4: =IF(H4<>0, IF(L4/H4*100=0, "-", L4/H4*100), " ") -> 85.32952598 | Q4: =IF(I4<>0, IF(M4/I4*100=0, "-", M4/I4*100), " ") -> 97.53431682
A6: Structure administrative du pays | D6: Mise en oeuvre de la CP | E6: Date | F6: Population ciblée pour T2 | J6: Population traitée | N6: Couverture du Programme (%)
A7: Pays | B7: Région/Département | C7: District | F7: EAPréS | G7: EAS | H7: Adultes | I7: Total | J7: EAPréS | K7: EAS | L7: Adultes | M7: Total | N7: EAPréS | O7: EAS | P7: Adultes | Q7: Total
A9: =IF(COUNTRY_INFO!A9=0," ",COUNTRY_INFO!A9) -> Burkina Faso | B9: =IF(COUNTRY_INFO!B9=0," ",COUNTRY_INFO!B9) -> Boucle du Mouhoun | C9: =IF(COUNTRY_INFO!C9=0," ",COUNTRY_INFO!C9) -> Boromo | D9: =IF(OR(COUNTRY_INFO!$T$9:$T$1000="T2 (PZQ)",COUNTRY_INFO!$U$9:$U$1000="T2 (PZQ)"), "T2 (PZQ)", " ") ->  | I9: =SUM(F9:H9) -> 0 | M9: =SUM(J9:L9) -> 0 | N9: =IF(F9<>0, IF(J9/F9*100=0, "-", J9/F9*100), " ") -> 
A10: =IF(COUNTRY_INFO!A10=0," ",COUNTRY_INFO!A10) -> Burkina Faso | B10: =IF(COUNTRY_INFO!B10=0," ",COUNTRY_INFO!B10) -> Boucle du Mouhoun | C10: =IF(COUNTRY_INFO!C10=0," ",COUNTRY_INFO!C10) -> Dédougou | D10: =IF(OR(COUNTRY_INFO!$T$9:$T$1000="T2 (PZQ)",COUNTRY_INFO!$U$9:$U$1000="T2 (PZQ)"), "T2 (PZQ)", " ") ->  | I10: =SUM(F10:H10) -> 0 | M10: =SUM(J10:L10) -> 0 | N10: =IF(F10<>0, IF(J10/F10*100=0, "-", J10/F10*100), " ") ->  | O10: =IF(G10<>0, IF(K10/G10*100=0, "-", K10/G10*100), " ") ->  | P10: =IF(H10<>0, IF(L10/H10*100=0, "-", L10/H10*100), " ") ->  | Q10: =IF(I10<>0, IF(M10/I10*100=0, "-", M10/I10*100), " ") -> 
A11: =IF(COUNTRY_INFO!A11=0," ",COUNTRY_INFO!A11) -> Burkina Faso | B11: =IF(COUNTRY_INFO!B11=0," ",COUNTRY_INFO!B11) -> Boucle du Mouhoun | C11: =IF(COUNTRY_INFO!C11=0," ",COUNTRY_INFO!C11) -> Nouna | D11: =IF(OR(COUNTRY_INFO!$T$9:$T$1000="T2 (PZQ)",COUNTRY_INFO!$U$9:$U$1000="T2 (PZQ)"), "T2 (PZQ)", " ") ->  | I11: 0 | M11: 0
A12: =IF(COUNTRY_INFO!A12=0," ",COUNTRY_INFO!A12) -> Burkina Faso | B12: =IF(COUNTRY_INFO!B12=0," ",COUNTRY_INFO!B12) -> Boucle du Mouhoun | C12: =IF(COUNTRY_INFO!C12=0," ",COUNTRY_INFO!C12) -> Solenzo | D12: =IF(OR(COUNTRY_INFO!$T$9:$T$1000="T2 (PZQ)",COUNTRY_INFO!$U$9:$U$1000="T2 (PZQ)"), "T2 (PZQ)", " ") ->  | I12: 0 | M12: 0
A13: =IF(COUNTRY_INFO!A13=0," ",COUNTRY_INFO!A13) -> Burkina Faso | B13: =IF(COUNTRY_INFO!B13=0," ",COUNTRY_INFO!B13) -> Boucle du Mouhoun | C13: =IF(COUNTRY_INFO!C13=0," ",COUNTRY_INFO!C13) -> Toma | D13: =IF(OR(COUNTRY_INFO!$T$9:$T$1000="T2 (PZQ)",COUNTRY_INFO!$U$9:$U$1000="T2 (PZQ)"), "T2 (PZQ)", " ") ->  | I13: 0 | M13: 0
A14: =IF(COUNTRY_INFO!A14=0," ",COUNTRY_INFO!A14) -> Burkina Faso | B14: =IF(COUNTRY_INFO!B14=0," ",COUNTRY_INFO!B14) -> Boucle du Mouhoun | C14: =IF(COUNTRY_INFO!C14=0," ",COUNTRY_INFO!C14) -> Tougan | D14: =IF(OR(COUNTRY_INFO!$T$9:$T$1000="T2 (PZQ)",COUNTRY_INFO!$U$9:$U$1000="T2 (PZQ)"), "T2 (PZQ)", " ") ->  | I14: 0 | M14: 0
A15: =IF(COUNTRY_INFO!A15=0," ",COUNTRY_INFO!A15) -> Burkina Faso | B15: =IF(COUNTRY_INFO!B15=0," ",COUNTRY_INFO!B15) -> Cascades | C15: =IF(COUNTRY_INFO!C15=0," ",COUNTRY_INFO!C15) -> Banfora | D15: =IF(OR(COUNTRY_INFO!$T$9:$T$1000="T2 (PZQ)",COUNTRY_INFO!$U$9:$U$1000="T2 (PZQ)"), "T2 (PZQ)", " ") ->  | I15: 0 | M15: 0
A16: =IF(COUNTRY_INFO!A16=0," ",COUNTRY_INFO!A16) -> Burkina Faso | B16: =IF(COUNTRY_INFO!B16=0," ",COUNTRY_INFO!B16) -> Cascades | C16: =IF(COUNTRY_INFO!C16=0," ",COUNTRY_INFO!C16) -> Mangodara | D16: =IF(OR(COUNTRY_INFO!$T$9:$T$1000="T2 (PZQ)",COUNTRY_INFO!$U$9:$U$1000="T2 (PZQ)"), "T2 (PZQ)", " ") ->  | I16: 0 | M16: 0
A17: =IF(COUNTRY_INFO!A17=0," ",COUNTRY_INFO!A17) -> Burkina Faso | B17: =IF(COUNTRY_INFO!B17=0," ",COUNTRY_INFO!B17) -> Cascades | C17: =IF(COUNTRY_INFO!C17=0," ",COUNTRY_INFO!C17) -> Sindou | D17: =IF(OR(COUNTRY_INFO!$T$9:$T$1000="T2 (PZQ)",COUNTRY_INFO!$U$9:$U$1000="T2 (PZQ)"), "T2 (PZQ)", " ") ->  | I17: 0 | M17: 0
A18: =IF(COUNTRY_INFO!A18=0," ",COUNTRY_INFO!A18) -> Burkina Faso | B18: =IF(COUNTRY_INFO!B18=0," ",COUNTRY_INFO!B18) -> Centre | C18: =IF(COUNTRY_INFO!C18=0," ",COUNTRY_INFO!C18) -> Baskuy | D18: =IF(OR(COUNTRY_INFO!$T$9:$T$1000="T2 (PZQ)",COUNTRY_INFO!$U$9:$U$1000="T2 (PZQ)"), "T2 (PZQ)", " ") ->  | I18: 0 | M18: 0
A19: =IF(COUNTRY_INFO!A19=0," ",COUNTRY_INFO!A19) -> Burkina Faso | B19: =IF(COUNTRY_INFO!B19=0," ",COUNTRY_INFO!B19) -> Centre | C19: =IF(COUNTRY_INFO!C19=0," ",COUNTRY_INFO!C19) -> Bogodogo | D19: =IF(OR(COUNTRY_INFO!$T$9:$T$1000="T2 (PZQ)",COUNTRY_INFO!$U$9:$U$1000="T2 (PZQ)"), "T2 (PZQ)", " ") ->  | I19: 0 | M19: 0
A20: =IF(COUNTRY_INFO!A20=0," ",COUNTRY_INFO!A20) -> Burkina Faso | B20: =IF(COUNTRY_INFO!B20=0," ",COUNTRY_INFO!B20) -> Centre | C20: =IF(COUNTRY_INFO!C20=0," ",COUNTRY_INFO!C20) -> Boulmiougou | D20: =IF(OR(COUNTRY_INFO!$T$9:$T$1000="T2 (PZQ)",COUNTRY_INFO!$U$9:$U$1000="T2 (PZQ)"), "T2 (PZQ)", " ") ->  | I20: 0 | M20: 0
A21: =IF(COUNTRY_INFO!A21=0," ",COUNTRY_INFO!A21) -> Burkina Faso | B21: =IF(COUNTRY_INFO!B21=0," ",COUNTRY_INFO!B21) -> Centre | C21: =IF(COUNTRY_INFO!C21=0," ",COUNTRY_INFO!C21) -> Nongre-Massom | D21: =IF(OR(COUNTRY_INFO!$T$9:$T$1000="T2 (PZQ)",COUNTRY_INFO!$U$9:$U$1000="T2 (PZQ)"), "T2 (PZQ)", " ") ->  | I21: 0 | M21: 0
A22: =IF(COUNTRY_INFO!A22=0," ",COUNTRY_INFO!A22) -> Burkina Faso | B22: =IF(COUNTRY_INFO!B22=0," ",COUNTRY_INFO!B22) -> Centre | C22: =IF(COUNTRY_INFO!C22=0," ",COUNTRY_INFO!C22) -> Sig-Nonghin | D22: =IF(OR(COUNTRY_INFO!$T$9:$T$1000="T2 (PZQ)",COUNTRY_INFO!$U$9:$U$1000="T2 (PZQ)"), "T2 (PZQ)", " ") ->  | I22: 0 | M22: 0
A23: =IF(COUNTRY_INFO!A23=0," ",COUNTRY_INFO!A23) -> Burkina Faso | B23: =IF(COUNTRY_INFO!B23=0," ",COUNTRY_INFO!B23) -> Centre-Est | C23: =IF(COUNTRY_INFO!C23=0," ",COUNTRY_INFO!C23) -> Bittou | D23: =IF(OR(COUNTRY_INFO!$T$9:$T$1000="T2 (PZQ)",COUNTRY_INFO!$U$9:$U$1000="T2 (PZQ)"), "T2 (PZQ)", " ") -> T2 (PZQ) | E23: 17-21/02/2017 | G23: 38638 | H23: 65214 | I23: 103852 | K23: 47437 | L23: 59288 | M23: 106725 | O23: 122.7729179 | P23: 90.91299414 | Q23: 102.7664369
A24: =IF(COUNTRY_INFO!A24=0," ",COUNTRY_INFO!A24) -> Burkina Faso | B24: =IF(COUNTRY_INFO!B24=0," ",COUNTRY_INFO!B24) -> Centre-Est | C24: =IF(COUNTRY_INFO!C24=0," ",COUNTRY_INFO!C24) -> Garango | D24: =IF(OR(COUNTRY_INFO!$T$9:$T$1000="T2 (PZQ)",COUNTRY_INFO!$U$9:$U$1000="T2 (PZQ)"), "T2 (PZQ)", " ") -> T2 (PZQ) | E24: 17-21/02/2017 | G24: 64544 | H24: 114317 | I24: 178861 | K24: 74495 | L24: 92806 | M24: 167301 | O24: 115.4173897 | P24: 81.18302615 | Q24: 93.53688059
A25: =IF(COUNTRY_INFO!A25=0," ",COUNTRY_INFO!A25) -> Burkina Faso | B25: =IF(COUNTRY_INFO!B25=0," ",COUNTRY_INFO!B25) -> Centre-Est | C25: =IF(COUNTRY_INFO!C25=0," ",COUNTRY_INFO!C25) -> Koupela | D25: =IF(OR(COUNTRY_INFO!$T$9:$T$1000="T2 (PZQ)",COUNTRY_INFO!$U$9:$U$1000="T2 (PZQ)"), "T2 (PZQ)", " ") -> T2 (PZQ) | E25: 17-21/02/2017 | G25: 75121 | H25: 122837 | I25: 197958 | K25: 77223 | L25: 102007 | M25: 179230 | O25: 102.7981523 | P25: 83.04256861 | Q25: 90.53940735
A26: =IF(COUNTRY_INFO!A26=0," ",COUNTRY_INFO!A26) -> Burkina Faso | B26: =IF(COUNTRY_INFO!B26=0," ",COUNTRY_INFO!B26) -> Centre-Est | C26: =IF(COUNTRY_INFO!C26=0," ",COUNTRY_INFO!C26) -> Ouargaye | D26: =IF(OR(COUNTRY_INFO!$T$9:$T$1000="T2 (PZQ)",COUNTRY_INFO!$U$9:$U$1000="T2 (PZQ)"), "T2 (PZQ)", " ") -> T2 (PZQ) | E26: 17-21/02/2017 | G26: 108503 | H26: 184892 | I26: 293395 | K26: 137748 | L26: 150970 | M26: 288718 | O26: 126.9531718 | P26: 81.65307315 | Q26: 98.4059033
A27: =IF(COUNTRY_INFO!A27=0," ",COUNTRY_INFO!A27) -> Burkina Faso | B27: =IF(COUNTRY_INFO!B27=0," ",COUNTRY_INFO!B27) -> Centre-Est | C27: =IF(COUNTRY_INFO!C27=0," ",COUNTRY_INFO!C27) -> Pouytenga | D27: =IF(OR(COUNTRY_INFO!$T$9:$T$1000="T2 (PZQ)",COUNTRY_INFO!$U$9:$U$1000="T2 (PZQ)"), "T2 (PZQ)", " ") -> T2 (PZQ) | E27: 17-21/02/2017 | G27: 60452 | H27: 108187 | I27: 168639 | K27: 69108 | L27: 91505 | M27: 160613 | O27: 114.3187984 | P27: 84.58040245 | Q27: 95.2407213
A28: =IF(COUNTRY_INFO!A28=0," ",COUNTRY_INFO!A28) -> Burkina Faso | B28: =IF(COUNTRY_INFO!B28=0," ",COUNTRY_INFO!B28) -> Centre-Est | C28: =IF(COUNTRY_INFO!C28=0," ",COUNTRY_INFO!C28) -> Tenkodogo | D28: =IF(OR(COUNTRY_INFO!$T$9:$T$1000="T2 (PZQ)",COUNTRY_INFO!$U$9:$U$1000="T2 (PZQ)"), "T2 (PZQ)", " ") -> T2 (PZQ) | E28: 17-21/02/2017 | G28: 70072 | H28: 124547 | I28: 194619 | K28: 90121 | L28: 106344 | M28: 196465 | O28: 128.6119991 | P28: 85.38463391 | Q28: 100.9485199
A29: =IF(COUNTRY_INFO!A29=0," ",COUNTRY_INFO!A29) -> Burkina Faso | B29: =IF(COUNTRY_INFO!B29=0," ",COUNTRY_INFO!B29) -> Centre-Est | C29: =IF(COUNTRY_INFO!C29=0," ",COUNTRY_INFO!C29) -> Zabré | D29: =IF(OR(COUNTRY_INFO!$T$9:$T$1000="T2 (PZQ)",COUNTRY_INFO!$U$9:$U$1000="T2 (PZQ)"), "T2 (PZQ)", " ") -> T2 (PZQ) | E29: 17-21/02/2017 | G29: 49426 | H29: 75384 | I29: 124810 | K29: 60992 | L29: 64040 | M29: 125032 | O29: 123.4006393 | P29: 84.95171389 | Q29: 100.1778704
A30: =IF(COUNTRY_INFO!A30=0," ",COUNTRY_INFO!A30) -> Burkina Faso | B30: =IF(COUNTRY_INFO!B30=0," ",COUNTRY_INFO!B30) -> Centre-Nord | C30: =IF(COUNTRY_INFO!C30=0," ",COUNTRY_INFO!C30) -> Barsalogo | D30: =IF(OR(COUNTRY_INFO!$T$9:$T$1000="T2 (PZQ)",COUNTRY_INFO!$U$9:$U$1000="T2 (PZQ)"), "T2 (PZQ)", " ") ->  | I30: 0 | M30: 0
A31: =IF(COUNTRY_INFO!A31=0," ",COUNTRY_INFO!A31) -> Burkina Faso | B31: =IF(COUNTRY_INFO!B31=0," ",COUNTRY_INFO!B31) -> Centre-Nord | C31: =IF(COUNTRY_INFO!C31=0," ",COUNTRY_INFO!C31) -> Boulsa | D31: =IF(OR(COUNTRY_INFO!$T$9:$T$1000="T2 (PZQ)",COUNTRY_INFO!$U$9:$U$1000="T2 (PZQ)"), "T2 (PZQ)", " ") ->  | I31: 0 | M31: 0
A32: =IF(COUNTRY_INFO!A32=0," ",COUNTRY_INFO!A32) -> Burkina Faso | B32: =IF(COUNTRY_INFO!B32=0," ",COUNTRY_INFO!B32) -> Centre-Nord | C32: =IF(COUNTRY_INFO!C32=0," ",COUNTRY_INFO!C32) -> Boussouma | D32: =IF(OR(COUNTRY_INFO!$T$9:$T$1000="T2 (PZQ)",COUNTRY_INFO!$U$9:$U$1000="T2 (PZQ)"), "T2 (PZQ)", " ") ->  | I32: 0 | M32: 0
A33: =IF(COUNTRY_INFO!A33=0," ",COUNTRY_INFO!A33) -> Burkina Faso | B33: =IF(COUNTRY_INFO!B33=0," ",COUNTRY_INFO!B33) -> Centre-Nord | C33: =IF(COUNTRY_INFO!C33=0," ",COUNTRY_INFO!C33) -> Kaya | D33: =IF(OR(COUNTRY_INFO!$T$9:$T$1000="T2 (PZQ)",COUNTRY_INFO!$U$9:$U$1000="T2 (PZQ)"), "T2 (PZQ)", " ") ->  | I33: 0 | M33: 0
A34: =IF(COUNTRY_INFO!A34=0," ",COUNTRY_INFO!A34) -> Burkina Faso | B34: =IF(COUNTRY_INFO!B34=0," ",COUNTRY_INFO!B34) -> Centre-Nord | C34: =IF(COUNTRY_INFO!C34=0," ",COUNTRY_INFO!C34) -> Kongoussi | D34: =IF(OR(COUNTRY_INFO!$T$9:$T$1000="T2 (PZQ)",COUNTRY_INFO!$U$9:$U$1000="T2 (PZQ)"), "T2 (PZQ)", " ") ->  | I34: 0 | M34: 0
A35: =IF(COUNTRY_INFO!A35=0," ",COUNTRY_INFO!A35) -> Burkina Faso | B35: =IF(COUNTRY_INFO!B35=0," ",COUNTRY_INFO!B35) -> Centre-Nord | C35: =IF(COUNTRY_INFO!C35=0," ",COUNTRY_INFO!C35) -> Tougouri | D35: =IF(OR(COUNTRY_INFO!$T$9:$T$1000="T2 (PZQ)",COUNTRY_INFO!$U$9:$U$1000="T2 (PZQ)"), "T2 (PZQ)", " ") ->  | I35: 0 | M35: 0
A36: =IF(COUNTRY_INFO!A36=0," ",COUNTRY_INFO!A36) -> Burkina Faso | B36: =IF(COUNTRY_INFO!B36=0," ",COUNTRY_INFO!B36) -> Centre-Ouest | C36: =IF(COUNTRY_INFO!C36=0," ",COUNTRY_INFO!C36) -> Koudougou | D36: =IF(OR(COUNTRY_INFO!$T$9:$T$1000="T2 (PZQ)",COUNTRY_INFO!$U$9:$U$1000="T2 (PZQ)"), "T2 (PZQ)", " ") ->  | I36: 0 | M36: 0
A37: =IF(COUNTRY_INFO!A37=0," ",COUNTRY_INFO!A37) -> Burkina Faso | B37: =IF(COUNTRY_INFO!B37=0," ",COUNTRY_INFO!B37) -> Centre-Ouest | C37: =IF(COUNTRY_INFO!C37=0," ",COUNTRY_INFO!C37) -> Léo | D37: =IF(OR(COUNTRY_INFO!$T$9:$T$1000="T2 (PZQ)",COUNTRY_INFO!$U$9:$U$1000="T2 (PZQ)"), "T2 (PZQ)", " ") ->  | I37: 0 | M37: 0
A38: =IF(COUNTRY_INFO!A38=0," ",COUNTRY_INFO!A38) -> Burkina Faso | B38: =IF(COUNTRY_INFO!B38=0," ",COUNTRY_INFO!B38) -> Centre-Ouest | C38: =IF(COUNTRY_INFO!C38=0," ",COUNTRY_INFO!C38) -> Nanoro | D38: =IF(OR(COUNTRY_INFO!$T$9:$T$1000="T2 (PZQ)",COUNTRY_INFO!$U$9:$U$1000="T2 (PZQ)"), "T2 (PZQ)", " ") ->  | I38: 0 | M38: 0
A39: =IF(COUNTRY_INFO!A39=0," ",COUNTRY_INFO!A39) -> Burkina Faso | B39: =IF(COUNTRY_INFO!B39=0," ",COUNTRY_INFO!B39) -> Centre-Ouest | C39: =IF(COUNTRY_INFO!C39=0," ",COUNTRY_INFO!C39) -> Réo | D39: =IF(OR(COUNTRY_INFO!$T$9:$T$1000="T2 (PZQ)",COUNTRY_INFO!$U$9:$U$1000="T2 (PZQ)"), "T2 (PZQ)", " ") ->  | I39: 0 | M39: 0
A40: =IF(COUNTRY_INFO!A40=0," ",COUNTRY_INFO!A40) -> Burkina Faso | B40: =IF(COUNTRY_INFO!B40=0," ",COUNTRY_INFO!B40) -> Centre-Ouest | C40: =IF(COUNTRY_INFO!C40=0," ",COUNTRY_INFO!C40) -> Sabou | D40: =IF(OR(COUNTRY_INFO!$T$9:$T$1000="T2 (PZQ)",COUNTRY_INFO!$U$9:$U$1000="T2 (PZQ)"), "T2 (PZQ)", " ") ->  | I40: 0 | M40: 0
A41: =IF(COUNTRY_INFO!A41=0," ",COUNTRY_INFO!A41) -> Burkina Faso | B41: =IF(COUNTRY_INFO!B41=0," ",COUNTRY_INFO!B41) -> Centre-Ouest | C41: =IF(COUNTRY_INFO!C41=0," ",COUNTRY_INFO!C41) -> Sapouy | D41: =IF(OR(COUNTRY_INFO!$T$9:$T$1000="T2 (PZQ)",COUNTRY_INFO!$U$9:$U$1000="T2 (PZQ)"), "T2 (PZQ)", " ") ->  | I41: 0 | M41: 0
A42: =IF(COUNTRY_INFO!A42=0," ",COUNTRY_INFO!A42) -> Burkina Faso | B42: =IF(COUNTRY_INFO!B42=0," ",COUNTRY_INFO!B42) -> Centre-Ouest | C42: =IF(COUNTRY_INFO!C42=0," ",COUNTRY_INFO!C42) -> Tenado | D42: =IF(OR(COUNTRY_INFO!$T$9:$T$1000="T2 (PZQ)",COUNTRY_INFO!$U$9:$U$1000="T2 (PZQ)"), "T2 (PZQ)", " ") ->  | I42: 0 | M42: 0
A43: =IF(COUNTRY_INFO!A43=0," ",COUNTRY_INFO!A43) -> Burkina Faso | B43: =IF(COUNTRY_INFO!B43=0," ",COUNTRY_INFO!B43) -> Centre-Sud | C43: =IF(COUNTRY_INFO!C43=0," ",COUNTRY_INFO!C43) -> Kombissiri | D43: =IF(OR(COUNTRY_INFO!$T$9:$T$1000="T2 (PZQ)",COUNTRY_INFO!$U$9:$U$1000="T2 (PZQ)"), "T2 (PZQ)", " ") ->  | I43: 0 | M43: 0
A44: =IF(COUNTRY_INFO!A44=0," ",COUNTRY_INFO!A44) -> Burkina Faso | B44: =IF(COUNTRY_INFO!B44=0," ",COUNTRY_INFO!B44) -> Centre-Sud | C44: =IF(COUNTRY_INFO!C44=0," ",COUNTRY_INFO!C44) -> Manga | D44: =IF(OR(COUNTRY_INFO!$T$9:$T$1000="T2 (PZQ)",COUNTRY_INFO!$U$9:$U$1000="T2 (PZQ)"), "T2 (PZQ)", " ") ->  | I44: 0 | M44: 0
A45: =IF(COUNTRY_INFO!A45=0," ",COUNTRY_INFO!A45) -> Burkina Faso | B45: =IF(COUNTRY_INFO!B45=0," ",COUNTRY_INFO!B45) -> Centre-Sud | C45: =IF(COUNTRY_INFO!C45=0," ",COUNTRY_INFO!C45) -> Pô | D45: =IF(OR(COUNTRY_INFO!$T$9:$T$1000="T2 (PZQ)",COUNTRY_INFO!$U$9:$U$1000="T2 (PZQ)"), "T2 (PZQ)", " ") ->  | I45: 0 | M45: 0
A46: =IF(COUNTRY_INFO!A46=0," ",COUNTRY_INFO!A46) -> Burkina Faso | B46: =IF(COUNTRY_INFO!B46=0," ",COUNTRY_INFO!B46) -> Centre-Sud | C46: =IF(COUNTRY_INFO!C46=0," ",COUNTRY_INFO!C46) -> Saponé | D46: =IF(OR(COUNTRY_INFO!$T$9:$T$1000="T2 (PZQ)",COUNTRY_INFO!$U$9:$U$1000="T2 (PZQ)"), "T2 (PZQ)", " ") ->  | I46: 0 | M46: 0
A47: =IF(COUNTRY_INFO!A47=0," ",COUNTRY_INFO!A47) -> Burkina Faso | B47: =IF(COUNTRY_INFO!B47=0," ",COUNTRY_INFO!B47) -> Est | C47: =IF(COUNTRY_INFO!C47=0," ",COUNTRY_INFO!C47) -> Bogandé | D47: =IF(OR(COUNTRY_INFO!$T$9:$T$1000="T2 (PZQ)",COUNTRY_INFO!$U$9:$U$1000="T2 (PZQ)"), "T2 (PZQ)", " ") ->  | I47: 0 | M47: 0
A48: =IF(COUNTRY_INFO!A48=0," ",COUNTRY_INFO!A48) -> Burkina Faso | B48: =IF(COUNTRY_INFO!B48=0," ",COUNTRY_INFO!B48) -> Est | C48: =IF(COUNTRY_INFO!C48=0," ",COUNTRY_INFO!C48) -> Diapaga | D48: =IF(OR(COUNTRY_INFO!$T$9:$T$1000="T2 (PZQ)",COUNTRY_INFO!$U$9:$U$1000="T2 (PZQ)"), "T2 (PZQ)", " ") ->  | I48: 0 | M48: 0
A49: =IF(COUNTRY_INFO!A49=0," ",COUNTRY_INFO!A49) -> Burkina Faso | B49: =IF(COUNTRY_INFO!B49=0," ",COUNTRY_INFO!B49) -> Est | C49: =IF(COUNTRY_INFO!C49=0," ",COUNTRY_INFO!C49) -> Fada N'gourma | D49: =IF(OR(COUNTRY_INFO!$T$9:$T$1000="T2 (PZQ)",COUNTRY_INFO!$U$9:$U$1000="T2 (PZQ)"), "T2 (PZQ)", " ") ->  | I49: 0 | M49: 0
A50: =IF(COUNTRY_INFO!A50=0," ",COUNTRY_INFO!A50) -> Burkina Faso | B50: =IF(COUNTRY_INFO!B50=0," ",COUNTRY_INFO!B50) -> Est | C50: =IF(COUNTRY_INFO!C50=0," ",COUNTRY_INFO!C50) -> Gayeri | D50: =IF(OR(COUNTRY_INFO!$T$9:$T$1000="T2 (PZQ)",COUNTRY_INFO!$U$9:$U$1000="T2 (PZQ)"), "T2 (PZQ)", " ") ->  | I50: 0 | M50: 0
A51: =IF(COUNTRY_INFO!A51=0," ",COUNTRY_INFO!A51) -> Burkina Faso | B51: =IF(COUNTRY_INFO!B51=0," ",COUNTRY_INFO!B51) -> Est | C51: =IF(COUNTRY_INFO!C51=0," ",COUNTRY_INFO!C51) -> Manni | D51: =IF(OR(COUNTRY_INFO!$T$9:$T$1000="T2 (PZQ)",COUNTRY_INFO!$U$9:$U$1000="T2 (PZQ)"), "T2 (PZQ)", " ") ->  | I51: 0 | M51: 0
A52: =IF(COUNTRY_INFO!A52=0," ",COUNTRY_INFO!A52) -> Burkina Faso | B52: =IF(COUNTRY_INFO!B52=0," ",COUNTRY_INFO!B52) -> Est | C52: =IF(COUNTRY_INFO!C52=0," ",COUNTRY_INFO!C52) -> Pama | D52: =IF(OR(COUNTRY_INFO!$T$9:$T$1000="T2 (PZQ)",COUNTRY_INFO!$U$9:$U$1000="T2 (PZQ)"), "T2 (PZQ)", " ") ->  | I52: 0 | M52: 0
A53: =IF(COUNTRY_INFO!A53=0," ",COUNTRY_INFO!A53) -> Burkina Faso | B53: =IF(COUNTRY_INFO!B53=0," ",COUNTRY_INFO!B53) -> Hauts-Bassins | C53: =IF(COUNTRY_INFO!C53=0," ",COUNTRY_INFO!C53) -> Dafra | D53: =IF(OR(COUNTRY_INFO!$T$9:$T$1000="T2 (PZQ)",COUNTRY_INFO!$U$9:$U$1000="T2 (PZQ)"), "T2 (PZQ)", " ") ->  | I53: 0 | M53: 0
A54: =IF(COUNTRY_INFO!A54=0," ",COUNTRY_INFO!A54) -> Burkina Faso | B54: =IF(COUNTRY_INFO!B54=0," ",COUNTRY_INFO!B54) -> Hauts-Bassins | C54: =IF(COUNTRY_INFO!C54=0," ",COUNTRY_INFO!C54) -> Dandé | D54: =IF(OR(COUNTRY_INFO!$T$9:$T$1000="T2 (PZQ)",COUNTRY_INFO!$U$9:$U$1000="T2 (PZQ)"), "T2 (PZQ)", " ") ->  | I54: 0 | M54: 0
A55: =IF(COUNTRY_INFO!A55=0," ",COUNTRY_INFO!A55) -> Burkina Faso | B55: =IF(COUNTRY_INFO!B55=0," ",COUNTRY_INFO!B55) -> Hauts-Bassins | C55: =IF(COUNTRY_INFO!C55=0," ",COUNTRY_INFO!C55) -> Dô | D55: =IF(OR(COUNTRY_INFO!$T$9:$T$1000="T2 (PZQ)",COUNTRY_INFO!$U$9:$U$1000="T2 (PZQ)"), "T2 (PZQ)", " ") ->  | I55: 0 | M55: 0
A56: =IF(COUNTRY_INFO!A56=0," ",COUNTRY_INFO!A56) -> Burkina Faso | B56: =IF(COUNTRY_INFO!B56=0," ",COUNTRY_INFO!B56) -> Hauts-Bassins | C56: =IF(COUNTRY_INFO!C56=0," ",COUNTRY_INFO!C56) -> Houndé | D56: =IF(OR(COUNTRY_INFO!$T$9:$T$1000="T2 (PZQ)",COUNTRY_INFO!$U$9:$U$1000="T2 (PZQ)"), "T2 (PZQ)", " ") ->  | I56: 0 | M56: 0
A57: =IF(COUNTRY_INFO!A57=0," ",COUNTRY_INFO!A57) -> Burkina Faso | B57: =IF(COUNTRY_INFO!B57=0," ",COUNTRY_INFO!B57) -> Hauts-Bassins | C57: =IF(COUNTRY_INFO!C57=0," ",COUNTRY_INFO!C57) -> Karangasso-Vigué | D57: =IF(OR(COUNTRY_INFO!$T$9:$T$1000="T2 (PZQ)",COUNTRY_INFO!$U$9:$U$1000="T2 (PZQ)"), "T2 (PZQ)", " ") ->  | I57: 0 | M57: 0
A58: =IF(COUNTRY_INFO!A58=0," ",COUNTRY_INFO!A58) -> Burkina Faso | B58: =IF(COUNTRY_INFO!B58=0," ",COUNTRY_INFO!B58) -> Hauts-Bassins | C58: =IF(COUNTRY_INFO!C58=0," ",COUNTRY_INFO!C58) -> Lena | D58: =IF(OR(COUNTRY_INFO!$T$9:$T$1000="T2 (PZQ)",COUNTRY_INFO!$U$9:$U$1000="T2 (PZQ)"), "T2 (PZQ)", " ") ->  | I58: 0 | M58: 0
A59: =IF(COUNTRY_INFO!A59=0," ",COUNTRY_INFO!A59) -> Burkina Faso | B59: =IF(COUNTRY_INFO!B59=0," ",COUNTRY_INFO!B59) -> Hauts-Bassins | C59: =IF(COUNTRY_INFO!C59=0," ",COUNTRY_INFO!C59) -> N'Dorola | D59: =IF(OR(COUNTRY_INFO!$T$9:$T$1000="T2 (PZQ)",COUNTRY_INFO!$U$9:$U$1000="T2 (PZQ)"), "T2 (PZQ)", " ") ->  | I59: 0 | M59: 0
A60: =IF(COUNTRY_INFO!A60=0," ",COUNTRY_INFO!A60) -> Burkina Faso | B60: =IF(COUNTRY_INFO!B60=0," ",COUNTRY_INFO!B60) -> Hauts-Bassins | C60: =IF(COUNTRY_INFO!C60=0," ",COUNTRY_INFO!C60) -> Orodara | D60: =IF(OR(COUNTRY_INFO!$T$9:$T$1000="T2 (PZQ)",COUNTRY_INFO!$U$9:$U$1000="T2 (PZQ)"), "T2 (PZQ)", " ") ->  | I60: 0 | M60: 0
A61: =IF(COUNTRY_INFO!A61=0," ",COUNTRY_INFO!A61) -> Burkina Faso | B61: =IF(COUNTRY_INFO!B61=0," ",COUNTRY_INFO!B61) -> Nord | C61: =IF(COUNTRY_INFO!C61=0," ",COUNTRY_INFO!C61) -> Gourcy | D61: =IF(OR(COUNTRY_INFO!$T$9:$T$1000="T2 (PZQ)",COUNTRY_INFO!$U$9:$U$1000="T2 (PZQ)"), "T2 (PZQ)", " ") ->  | I61: 0 | M61: 0
A62: =IF(COUNTRY_INFO!A62=0," ",COUNTRY_INFO!A62) -> Burkina Faso | B62: =IF(COUNTRY_INFO!B62=0," ",COUNTRY_INFO!B62) -> Nord | C62: =IF(COUNTRY_INFO!C62=0," ",COUNTRY_INFO!C62) -> Ouahigouya | D62: =IF(OR(COUNTRY_INFO!$T$9:$T$1000="T2 (PZQ)",COUNTRY_INFO!$U$9:$U$1000="T2 (PZQ)"), "T2 (PZQ)", " ") ->  | I62: 0 | M62: 0
A63: =IF(COUNTRY_INFO!A63=0," ",COUNTRY_INFO!A63) -> Burkina Faso | B63: =IF(COUNTRY_INFO!B63=0," ",COUNTRY_INFO!B63) -> Nord | C63: =IF(COUNTRY_INFO!C63=0," ",COUNTRY_INFO!C63) -> Seguenega | D63: =IF(OR(COUNTRY_INFO!$T$9:$T$1000="T2 (PZQ)",COUNTRY_INFO!$U$9:$U$1000="T2 (PZQ)"), "T2 (PZQ)", " ") ->  | I63: 0 | M63: 0
A64: =IF(COUNTRY_INFO!A64=0," ",COUNTRY_INFO!A64) -> Burkina Faso | B64: =IF(COUNTRY_INFO!B64=0," ",COUNTRY_INFO!B64) -> Nord | C64: =IF(COUNTRY_INFO!C64=0," ",COUNTRY_INFO!C64) -> Thiou | D64: =IF(OR(COUNTRY_INFO!$T$9:$T$1000="T2 (PZQ)",COUNTRY_INFO!$U$9:$U$1000="T2 (PZQ)"), "T2 (PZQ)", " ") ->  | I64: 0 | M64: 0
A65: =IF(COUNTRY_INFO!A65=0," ",COUNTRY_INFO!A65) -> Burkina Faso | B65: =IF(COUNTRY_INFO!B65=0," ",COUNTRY_INFO!B65) -> Nord | C65: =IF(COUNTRY_INFO!C65=0," ",COUNTRY_INFO!C65) -> Titao | D65: =IF(OR(COUNTRY_INFO!$T$9:$T$1000="T2 (PZQ)",COUNTRY_INFO!$U$9:$U$1000="T2 (PZQ)"), "T2 (PZQ)", " ") ->  | I65: 0 | M65: 0
A66: =IF(COUNTRY_INFO!A66=0," ",COUNTRY_INFO!A66) -> Burkina Faso | B66: =IF(COUNTRY_INFO!B66=0," ",COUNTRY_INFO!B66) -> Nord | C66: =IF(COUNTRY_INFO!C66=0," ",COUNTRY_INFO!C66) -> Yako | D66: =IF(OR(COUNTRY_INFO!$T$9:$T$1000="T2 (PZQ)",COUNTRY_INFO!$U$9:$U$1000="T2 (PZQ)"), "T2 (PZQ)", " ") ->  | I66: 0 | M66: 0
A67: =IF(COUNTRY_INFO!A67=0," ",COUNTRY_INFO!A67) -> Burkina Faso | B67: =IF(COUNTRY_INFO!B67=0," ",COUNTRY_INFO!B67) -> Plateau Central | C67: =IF(COUNTRY_INFO!C67=0," ",COUNTRY_INFO!C67) -> Boussé | D67: =IF(OR(COUNTRY_INFO!$T$9:$T$1000="T2 (PZQ)",COUNTRY_INFO!$U$9:$U$1000="T2 (PZQ)"), "T2 (PZQ)", " ") ->  | I67: 0 | M67: 0
A68: =IF(COUNTRY_INFO!A68=0," ",COUNTRY_INFO!A68) -> Burkina Faso | B68: =IF(COUNTRY_INFO!B68=0," ",COUNTRY_INFO!B68) -> Plateau Central | C68: =IF(COUNTRY_INFO!C68=0," ",COUNTRY_INFO!C68) -> Ziniaré | D68: =IF(OR(COUNTRY_INFO!$T$9:$T$1000="T2 (PZQ)",COUNTRY_INFO!$U$9:$U$1000="T2 (PZQ)"), "T2 (PZQ)", " ") ->  | I68: 0 | M68: 0
A69: =IF(COUNTRY_INFO!A69=0," ",COUNTRY_INFO!A69) -> Burkina Faso | B69: =IF(COUNTRY_INFO!B69=0," ",COUNTRY_INFO!B69) -> Plateau Central | C69: =IF(COUNTRY_INFO!C69=0," ",COUNTRY_INFO!C69) -> Zorgho | D69: =IF(OR(COUNTRY_INFO!$T$9:$T$1000="T2 (PZQ)",COUNTRY_INFO!$U$9:$U$1000="T2 (PZQ)"), "T2 (PZQ)", " ") ->  | I69: 0 | M69: 0
A70: =IF(COUNTRY_INFO!A70=0," ",COUNTRY_INFO!A70) -> Burkina Faso | B70: =IF(COUNTRY_INFO!B70=0," ",COUNTRY_INFO!B70) -> Sahel | C70: =IF(COUNTRY_INFO!C70=0," ",COUNTRY_INFO!C70) -> Djibo | D70: =IF(OR(COUNTRY_INFO!$T$9:$T$1000="T2 (PZQ)",COUNTRY_INFO!$U$9:$U$1000="T2 (PZQ)"), "T2 (PZQ)", " ") ->  | I70: 0 | M70: 0
A71: =IF(COUNTRY_INFO!A71=0," ",COUNTRY_INFO!A71) -> Burkina Faso | B71: =IF(COUNTRY_INFO!B71=0," ",COUNTRY_INFO!B71) -> Sahel | C71: =IF(COUNTRY_INFO!C71=0," ",COUNTRY_INFO!C71) -> Dori | D71: =IF(OR(COUNTRY_INFO!$T$9:$T$1000="T2 (PZQ)",COUNTRY_INFO!$U$9:$U$1000="T2 (PZQ)"), "T2 (PZQ)", " ") ->  | I71: 0 | M71: 0
A72: =IF(COUNTRY_INFO!A72=0," ",COUNTRY_INFO!A72) -> Burkina Faso | B72: =IF(COUNTRY_INFO!B72=0," ",COUNTRY_INFO!B72) -> Sahel | C72: =IF(COUNTRY_INFO!C72=0," ",COUNTRY_INFO!C72) -> Gorom-Gorom | D72: =IF(OR(COUNTRY_INFO!$T$9:$T$1000="T2 (PZQ)",COUNTRY_INFO!$U$9:$U$1000="T2 (PZQ)"), "T2 (PZQ)", " ") ->  | I72: 0 | M72: 0
A73: =IF(COUNTRY_INFO!A73=0," ",COUNTRY_INFO!A73) -> Burkina Faso | B73: =IF(COUNTRY_INFO!B73=0," ",COUNTRY_INFO!B73) -> Sahel | C73: =IF(COUNTRY_INFO!C73=0," ",COUNTRY_INFO!C73) -> Sebba | D73: =IF(OR(COUNTRY_INFO!$T$9:$T$1000="T2 (PZQ)",COUNTRY_INFO!$U$9:$U$1000="T2 (PZQ)"), "T2 (PZQ)", " ") -> T2 (PZQ) | E73: 15-19/05/2017 | G73: 66254 | H73: 115840 | I73: 182094 | K73: 70066 | L73: 110578 | M73: 180644 | O73: 105.7536149 | P73: 95.45752762 | Q73: 99.20370798
A74: =IF(COUNTRY_INFO!A74=0," ",COUNTRY_INFO!A74) -> Burkina Faso | B74: =IF(COUNTRY_INFO!B74=0," ",COUNTRY_INFO!B74) -> Sud-Ouest | C74: =IF(COUNTRY_INFO!C74=0," ",COUNTRY_INFO!C74) -> Batié | D74: =IF(OR(COUNTRY_INFO!$T$9:$T$1000="T2 (PZQ)",COUNTRY_INFO!$U$9:$U$1000="T2 (PZQ)"), "T2 (PZQ)", " ") -> T2 (PZQ) | E74: 15-19/05/2017 | G74: 28237 | I74: =SUM(F74:H74) -> 28237 | K74: 31298 | M74: =SUM(J74:L74) -> 31298 | N74: =IF(F74<>0, IF(J74/F74*100=0, "-", J74/F74*100), " ") ->  | O74: =IF(G74<>0, IF(K74/G74*100=0, "-", K74/G74*100), " ") -> 110.8403867 | P74: =IF(H74<>0, IF(L74/H74*100=0, "-", L74/H74*100), " ") ->  | Q74: =IF(I74<>0, IF(M74/I74*100=0, "-", M74/I74*100), " ") -> 110.8403867
A75: =IF(COUNTRY_INFO!A75=0," ",COUNTRY_INFO!A75) -> Burkina Faso | B75: =IF(COUNTRY_INFO!B75=0," ",COUNTRY_INFO!B75) -> Sud-Ouest | C75: =IF(COUNTRY_INFO!C75=0," ",COUNTRY_INFO!C75) -> Dano | D75: =IF(OR(COUNTRY_INFO!$T$9:$T$1000="T2 (PZQ)",COUNTRY_INFO!$U$9:$U$1000="T2 (PZQ)"), "T2 (PZQ)", " ") ->  | I75: 0 | M75: 0
A76: =IF(COUNTRY_INFO!A76=0," ",COUNTRY_INFO!A76) -> Burkina Faso | B76: =IF(COUNTRY_INFO!B76=0," ",COUNTRY_INFO!B76) -> Sud-Ouest | C76: =IF(COUNTRY_INFO!C76=0," ",COUNTRY_INFO!C76) -> Diébougou | D76: =IF(OR(COUNTRY_INFO!$T$9:$T$1000="T2 (PZQ)",COUNTRY_INFO!$U$9:$U$1000="T2 (PZQ)"), "T2 (PZQ)", " ") -> T2 (PZQ) | E76: 15-19/05/2017 | G76: 40446 | I76: 40446 | K76: 42954 | M76: 42954 | O76: 106.2008604 | Q76: 106.2008604
A77: =IF(COUNTRY_INFO!A77=0," ",COUNTRY_INFO!A77) -> Burkina Faso | B77: =IF(COUNTRY_INFO!B77=0," ",COUNTRY_INFO!B77) -> Sud-Ouest | C77: =IF(COUNTRY_INFO!C77=0," ",COUNTRY_INFO!C77) -> Gaoua | D77: =IF(OR(COUNTRY_INFO!$T$9:$T$1000="T2 (PZQ)",COUNTRY_INFO!$U$9:$U$1000="T2 (PZQ)"), "T2 (PZQ)", " ") -> T2 (PZQ) | E77: 15-19/05/2017 | G77: 75590 | I77: 75590 | K77: 65763 | M77: 65763 | O77: 86.99960312 | Q77: 86.99960312
A78: =IF(COUNTRY_INFO!A78=0," ",COUNTRY_INFO!A78) -> Burkina Faso | B78: =IF(COUNTRY_INFO!B78=0," ",COUNTRY_INFO!B78) -> Sud-Ouest | C78: =IF(COUNTRY_INFO!C78=0," ",COUNTRY_INFO!C78) -> Kampti | D78: =IF(OR(COUNTRY_INFO!$T$9:$T$1000="T2 (PZQ)",COUNTRY_INFO!$U$9:$U$1000="T2 (PZQ)"), "T2 (PZQ)", " ") -> T2 (PZQ) | E78: 15-19/05/2017 | G78: 26305 | I78: 26305 | K78: 30247 | M78: 30247 | O78: 114.9857442 | Q78: 114.9857442

Sheet T3_R1
A1: T 3 - Albendazole (ALB) ou Mebendazole (MBD) - Tournée 1
A2: Structure administrative, population nécessitant une chimioprévention par groupe d'âge, population traitée par groupe d'âge et couverture
A4: TOTAL | G4: =SUM(G$9:G$1000) -> 0 | H4: 0 | I4: 0 | J4: 0 | K4: 0 | L4: 0 | M4: 0 | N4: 0 | O4: =IF(G4<>0, IF(K4/G4*100=0, "-", K4/G4*100), " ") ->  | P4: =IF(H4<>0, IF(L4/H4*100=0, "-", L4/H4*100), " ") ->  | Q4: =IF(I4<>0, IF(M4/I4*100=0, "-", M4/I4*100), " ") ->  | R4: =IF(J4<>0, IF(N4/J4*100=0, "-", N4/J4*100), " ") -> 
A6: Structure administrative du pays | D6: Mise en oeuvre de la CP | E6: Médica-ment | F6: Date | G6: Population ciblée pour T3 | K6: Population traitée | O6: Couverture du Programme (%)
A7: Pays | B7: Région/Département | C7: District | G7: EAPréS | H7: EAS | I7: Adultes | J7: Total | K7: EAPréS | L7: EAS | M7: Adultes | N7: Total | O7: EAPréS | P7: EAS | Q7: Adultes | R7: Total
A9: =IF(COUNTRY_INFO!A9=0," ",COUNTRY_INFO!A9) -> Burkina Faso | B9: =IF(COUNTRY_INFO!B9=0," ",COUNTRY_INFO!B9) -> Boucle du Mouhoun | C9: =IF(COUNTRY_INFO!C9=0," ",COUNTRY_INFO!C9) -> Boromo | D9: =IF(OR(COUNTRY_INFO!$T$9:$T$1000="T3 (ALB/MBD)",COUNTRY_INFO!$U$9:$U$1000="T3 (ALB/MBD)"), "T3 (ALB/MBD)", " ") ->  | J9: =SUM(G9:I9) -> 0 | N9: =SUM(K9:M9) -> 0 | O9: =IF(G9<>0, IF(K9/G9*100=0, "-", K9/G9*100), " ") -> 
A10: =IF(COUNTRY_INFO!A10=0," ",COUNTRY_INFO!A10) -> Burkina Faso | B10: =IF(COUNTRY_INFO!B10=0," ",COUNTRY_INFO!B10) -> Boucle du Mouhoun | C10: =IF(COUNTRY_INFO!C10=0," ",COUNTRY_INFO!C10) -> Dédougou | D10: =IF(OR(COUNTRY_INFO!$T$9:$T$1000="T3 (ALB/MBD)",COUNTRY_INFO!$U$9:$U$1000="T3 (ALB/MBD)"), "T3 (ALB/MBD)", " ") ->  | J10: =SUM(G10:I10) -> 0 | N10: =SUM(K10:M10) -> 0 | O10: =IF(G10<>0, IF(K10/G10*100=0, "-", K10/G10*100), " ") ->  | P10: =IF(H10<>0, IF(L10/H10*100=0, "-", L10/H10*100), " ") ->  | Q10: =IF(I10<>0, IF(M10/I10*100=0, "-", M10/I10*100), " ") ->  | R10: =IF(J10<>0, IF(N10/J10*100=0, "-", N10/J10*100), " ") -> 
A11: =IF(COUNTRY_INFO!A11=0," ",COUNTRY_INFO!A11) -> Burkina Faso | B11: =IF(COUNTRY_INFO!B11=0," ",COUNTRY_INFO!B11) -> Boucle du Mouhoun | C11: =IF(COUNTRY_INFO!C11=0," ",COUNTRY_INFO!C11) -> Nouna | D11: =IF(OR(COUNTRY_INFO!$T$9:$T$1000="T3 (ALB/MBD)",COUNTRY_INFO!$U$9:$U$1000="T3 (ALB/MBD)"), "T3 (ALB/MBD)", " ") ->  | J11: 0 | N11: 0
A12: =IF(COUNTRY_INFO!A12=0," ",COUNTRY_INFO!A12) -> Burkina Faso | B12: =IF(COUNTRY_INFO!B12=0," ",COUNTRY_INFO!B12) -> Boucle du Mouhoun | C12: =IF(COUNTRY_INFO!C12=0," ",COUNTRY_INFO!C12) -> Solenzo | D12: =IF(OR(COUNTRY_INFO!$T$9:$T$1000="T3 (ALB/MBD)",COUNTRY_INFO!$U$9:$U$1000="T3 (ALB/MBD)"), "T3 (ALB/MBD)", " ") ->  | J12: 0 | N12: 0
A13: =IF(COUNTRY_INFO!A13=0," ",COUNTRY_INFO!A13) -> Burkina Faso | B13: =IF(COUNTRY_INFO!B13=0," ",COUNTRY_INFO!B13) -> Boucle du Mouhoun | C13: =IF(COUNTRY_INFO!C13=0," ",COUNTRY_INFO!C13) -> Toma | D13: =IF(OR(COUNTRY_INFO!$T$9:$T$1000="T3 (ALB/MBD)",COUNTRY_INFO!$U$9:$U$1000="T3 (ALB/MBD)"), "T3 (ALB/MBD)", " ") ->  | J13: 0 | N13: 0
A14: =IF(COUNTRY_INFO!A14=0," ",COUNTRY_INFO!A14) -> Burkina Faso | B14: =IF(COUNTRY_INFO!B14=0," ",COUNTRY_INFO!B14) -> Boucle du Mouhoun | C14: =IF(COUNTRY_INFO!C14=0," ",COUNTRY_INFO!C14) -> Tougan | D14: =IF(OR(COUNTRY_INFO!$T$9:$T$1000="T3 (ALB/MBD)",COUNTRY_INFO!$U$9:$U$1000="T3 (ALB/MBD)"), "T3 (ALB/MBD)", " ") ->  | J14: 0 | N14: 0
A15: =IF(COUNTRY_INFO!A15=0," ",COUNTRY_INFO!A15) -> Burkina Faso | B15: =IF(COUNTRY_INFO!B15=0," ",COUNTRY_INFO!B15) -> Cascades | C15: =IF(COUNTRY_INFO!C15=0," ",COUNTRY_INFO!C15) -> Banfora | D15: =IF(OR(COUNTRY_INFO!$T$9:$T$1000="T3 (ALB/MBD)",COUNTRY_INFO!$U$9:$U$1000="T3 (ALB/MBD)"), "T3 (ALB/MBD)", " ") ->  | J15: 0 | N15: 0
A16: =IF(COUNTRY_INFO!A16=0," ",COUNTRY_INFO!A16) -> Burkina Faso | B16: =IF(COUNTRY_INFO!B16=0," ",COUNTRY_INFO!B16) -> Cascades | C16: =IF(COUNTRY_INFO!C16=0," ",COUNTRY_INFO!C16) -> Mangodara | D16: =IF(OR(COUNTRY_INFO!$T$9:$T$1000="T3 (ALB/MBD)",COUNTRY_INFO!$U$9:$U$1000="T3 (ALB/MBD)"), "T3 (ALB/MBD)", " ") ->  | J16: 0 | N16: 0
A17: =IF(COUNTRY_INFO!A17=0," ",COUNTRY_INFO!A17) -> Burkina Faso | B17: =IF(COUNTRY_INFO!B17=0," ",COUNTRY_INFO!B17) -> Cascades | C17: =IF(COUNTRY_INFO!C17=0," ",COUNTRY_INFO!C17) -> Sindou | D17: =IF(OR(COUNTRY_INFO!$T$9:$T$1000="T3 (ALB/MBD)",COUNTRY_INFO!$U$9:$U$1000="T3 (ALB/MBD)"), "T3 (ALB/MBD)", " ") ->  | J17: 0 | N17: 0
A18: =IF(COUNTRY_INFO!A18=0," ",COUNTRY_INFO!A18) -> Burkina Faso | B18: =IF(COUNTRY_INFO!B18=0," ",COUNTRY_INFO!B18) -> Centre | C18: =IF(COUNTRY_INFO!C18=0," ",COUNTRY_INFO!C18) -> Baskuy | D18: =IF(OR(COUNTRY_INFO!$T$9:$T$1000="T3 (ALB/MBD)",COUNTRY_INFO!$U$9:$U$1000="T3 (ALB/MBD)"), "T3 (ALB/MBD)", " ") ->  | J18: 0 | N18: 0
A19: =IF(COUNTRY_INFO!A19=0," ",COUNTRY_INFO!A19) -> Burkina Faso | B19: =IF(COUNTRY_INFO!B19=0," ",COUNTRY_INFO!B19) -> Centre | C19: =IF(COUNTRY_INFO!C19=0," ",COUNTRY_INFO!C19) -> Bogodogo | D19: =IF(OR(COUNTRY_INFO!$T$9:$T$1000="T3 (ALB/MBD)",COUNTRY_INFO!$U$9:$U$1000="T3 (ALB/MBD)"), "T3 (ALB/MBD)", " ") ->  | J19: 0 | N19: 0
A20: =IF(COUNTRY_INFO!A20=0," ",COUNTRY_INFO!A20) -> Burkina Faso | B20: =IF(COUNTRY_INFO!B20=0," ",COUNTRY_INFO!B20) -> Centre | C20: =IF(COUNTRY_INFO!C20=0," ",COUNTRY_INFO!C20) -> Boulmiougou | D20: =IF(OR(COUNTRY_INFO!$T$9:$T$1000="T3 (ALB/MBD)",COUNTRY_INFO!$U$9:$U$1000="T3 (ALB/MBD)"), "T3 (ALB/MBD)", " ") ->  | J20: 0 | N20: 0
A21: =IF(COUNTRY_INFO!A21=0," ",COUNTRY_INFO!A21) -> Burkina Faso | B21: =IF(COUNTRY_INFO!B21=0," ",COUNTRY_INFO!B21) -> Centre | C21: =IF(COUNTRY_INFO!C21=0," ",COUNTRY_INFO!C21) -> Nongre-Massom | D21: =IF(OR(COUNTRY_INFO!$T$9:$T$1000="T3 (ALB/MBD)",COUNTRY_INFO!$U$9:$U$1000="T3 (ALB/MBD)"), "T3 (ALB/MBD)", " ") ->  | J21: 0 | N21: 0
A22: =IF(COUNTRY_INFO!A22=0," ",COUNTRY_INFO!A22) -> Burkina Faso | B22: =IF(COUNTRY_INFO!B22=0," ",COUNTRY_INFO!B22) -> Centre | C22: =IF(COUNTRY_INFO!C22=0," ",COUNTRY_INFO!C22) -> Sig-Nonghin | D22: =IF(OR(COUNTRY_INFO!$T$9:$T$1000="T3 (ALB/MBD)",COUNTRY_INFO!$U$9:$U$1000="T3 (ALB/MBD)"), "T3 (ALB/MBD)", " ") ->  | J22: 0 | N22: 0
A23: =IF(COUNTRY_INFO!A23=0," ",COUNTRY_INFO!A23) -> Burkina Faso | B23: =IF(COUNTRY_INFO!B23=0," ",COUNTRY_INFO!B23) -> Centre-Est | C23: =IF(COUNTRY_INFO!C23=0," ",COUNTRY_INFO!C23) -> Bittou | D23: =IF(OR(COUNTRY_INFO!$T$9:$T$1000="T3 (ALB/MBD)",COUNTRY_INFO!$U$9:$U$1000="T3 (ALB/MBD)"), "T3 (ALB/MBD)", " ") ->  | J23: 0 | N23: 0
A24: =IF(COUNTRY_INFO!A24=0," ",COUNTRY_INFO!A24) -> Burkina Faso | B24: =IF(COUNTRY_INFO!B24=0," ",COUNTRY_INFO!B24) -> Centre-Est | C24: =IF(COUNTRY_INFO!C24=0," ",COUNTRY_INFO!C24) -> Garango | D24: =IF(OR(COUNTRY_INFO!$T$9:$T$1000="T3 (ALB/MBD)",COUNTRY_INFO!$U$9:$U$1000="T3 (ALB/MBD)"), "T3 (ALB/MBD)", " ") ->  | J24: 0 | N24: 0
A25: =IF(COUNTRY_INFO!A25=0," ",COUNTRY_INFO!A25) -> Burkina Faso | B25: =IF(COUNTRY_INFO!B25=0," ",COUNTRY_INFO!B25) -> Centre-Est | C25: =IF(COUNTRY_INFO!C25=0," ",COUNTRY_INFO!C25) -> Koupela | D25: =IF(OR(COUNTRY_INFO!$T$9:$T$1000="T3 (ALB/MBD)",COUNTRY_INFO!$U$9:$U$1000="T3 (ALB/MBD)"), "T3 (ALB/MBD)", " ") ->  | J25: 0 | N25: 0
A26: =IF(COUNTRY_INFO!A26=0," ",COUNTRY_INFO!A26) -> Burkina Faso | B26: =IF(COUNTRY_INFO!B26=0," ",COUNTRY_INFO!B26) -> Centre-Est | C26: =IF(COUNTRY_INFO!C26=0," ",COUNTRY_INFO!C26) -> Ouargaye | D26: =IF(OR(COUNTRY_INFO!$T$9:$T$1000="T3 (ALB/MBD)",COUNTRY_INFO!$U$9:$U$1000="T3 (ALB/MBD)"), "T3 (ALB/MBD)", " ") ->  | J26: 0 | N26: 0
A27: =IF(COUNTRY_INFO!A27=0," ",COUNTRY_INFO!A27) -> Burkina Faso | B27: =IF(COUNTRY_INFO!B27=0," ",COUNTRY_INFO!B27) -> Centre-Est | C27: =IF(COUNTRY_INFO!C27=0," ",COUNTRY_INFO!C27) -> Pouytenga | D27: =IF(OR(COUNTRY_INFO!$T$9:$T$1000="T3 (ALB/MBD)",COUNTRY_INFO!$U$9:$U$1000="T3 (ALB/MBD)"), "T3 (ALB/MBD)", " ") ->  | J27: 0 | N27: 0
A28: =IF(COUNTRY_INFO!A28=0," ",COUNTRY_INFO!A28) -> Burkina Faso | B28: =IF(COUNTRY_INFO!B28=0," ",COUNTRY_INFO!B28) -> Centre-Est | C28: =IF(COUNTRY_INFO!C28=0," ",COUNTRY_INFO!C28) -> Tenkodogo | D28: =IF(OR(COUNTRY_INFO!$T$9:$T$1000="T3 (ALB/MBD)",COUNTRY_INFO!$U$9:$U$1000="T3 (ALB/MBD)"), "T3 (ALB/MBD)", " ") ->  | J28: 0 | N28: 0
A29: =IF(COUNTRY_INFO!A29=0," ",COUNTRY_INFO!A29) -> Burkina Faso | B29: =IF(COUNTRY_INFO!B29=0," ",COUNTRY_INFO!B29) -> Centre-Est | C29: =IF(COUNTRY_INFO!C29=0," ",COUNTRY_INFO!C29) -> Zabré | D29: =IF(OR(COUNTRY_INFO!$T$9:$T$1000="T3 (ALB/MBD)",COUNTRY_INFO!$U$9:$U$1000="T3 (ALB/MBD)"), "T3 (ALB/MBD)", " ") ->  | J29: 0 | N29: 0
A30: =IF(COUNTRY_INFO!A30=0," ",COUNTRY_INFO!A30) -> Burkina Faso | B30: =IF(COUNTRY_INFO!B30=0," ",COUNTRY_INFO!B30) -> Centre-Nord | C30: =IF(COUNTRY_INFO!C30=0," ",COUNTRY_INFO!C30) -> Barsalogo | D30: =IF(OR(COUNTRY_INFO!$T$9:$T$1000="T3 (ALB/MBD)",COUNTRY_INFO!$U$9:$U$1000="T3 (ALB/MBD)"), "T3 (ALB/MBD)", " ") ->  | J30: 0 | N30: 0
A31: =IF(COUNTRY_INFO!A31=0," ",COUNTRY_INFO!A31) -> Burkina Faso | B31: =IF(COUNTRY_INFO!B31=0," ",COUNTRY_INFO!B31) -> Centre-Nord | C31: =IF(COUNTRY_INFO!C31=0," ",COUNTRY_INFO!C31) -> Boulsa | D31: =IF(OR(COUNTRY_INFO!$T$9:$T$1000="T3 (ALB/MBD)",COUNTRY_INFO!$U$9:$U$1000="T3 (ALB/MBD)"), "T3 (ALB/MBD)", " ") ->  | J31: 0 | N31: 0
A32: =IF(COUNTRY_INFO!A32=0," ",COUNTRY_INFO!A32) -> Burkina Faso | B32: =IF(COUNTRY_INFO!B32=0," ",COUNTRY_INFO!B32) -> Centre-Nord | C32: =IF(COUNTRY_INFO!C32=0," ",COUNTRY_INFO!C32) -> Boussouma | D32: =IF(OR(COUNTRY_INFO!$T$9:$T$1000="T3 (ALB/MBD)",COUNTRY_INFO!$U$9:$U$1000="T3 (ALB/MBD)"), "T3 (ALB/MBD)", " ") ->  | J32: 0 | N32: 0
A33: =IF(COUNTRY_INFO!A33=0," ",COUNTRY_INFO!A33) -> Burkina Faso | B33: =IF(COUNTRY_INFO!B33=0," ",COUNTRY_INFO!B33) -> Centre-Nord | C33: =IF(COUNTRY_INFO!C33=0," ",COUNTRY_INFO!C33) -> Kaya | D33: =IF(OR(COUNTRY_INFO!$T$9:$T$1000="T3 (ALB/MBD)",COUNTRY_INFO!$U$9:$U$1000="T3 (ALB/MBD)"), "T3 (ALB/MBD)", " ") ->  | J33: 0 | N33: 0
A34: =IF(COUNTRY_INFO!A34=0," ",COUNTRY_INFO!A34) -> Burkina Faso | B34: =IF(COUNTRY_INFO!B34=0," ",COUNTRY_INFO!B34) -> Centre-Nord | C34: =IF(COUNTRY_INFO!C34=0," ",COUNTRY_INFO!C34) -> Kongoussi | D34: =IF(OR(COUNTRY_INFO!$T$9:$T$1000="T3 (ALB/MBD)",COUNTRY_INFO!$U$9:$U$1000="T3 (ALB/MBD)"), "T3 (ALB/MBD)", " ") ->  | J34: 0 | N34: 0
A35: =IF(COUNTRY_INFO!A35=0," ",COUNTRY_INFO!A35) -> Burkina Faso | B35: =IF(COUNTRY_INFO!B35=0," ",COUNTRY_INFO!B35) -> Centre-Nord | C35: =IF(COUNTRY_INFO!C35=0," ",COUNTRY_INFO!C35) -> Tougouri | D35: =IF(OR(COUNTRY_INFO!$T$9:$T$1000="T3 (ALB/MBD)",COUNTRY_INFO!$U$9:$U$1000="T3 (ALB/MBD)"), "T3 (ALB/MBD)", " ") ->  | J35: 0 | N35: 0
A36: =IF(COUNTRY_INFO!A36=0," ",COUNTRY_INFO!A36) -> Burkina Faso | B36: =IF(COUNTRY_INFO!B36=0," ",COUNTRY_INFO!B36) -> Centre-Ouest | C36: =IF(COUNTRY_INFO!C36=0," ",COUNTRY_INFO!C36) -> Koudougou | D36: =IF(OR(COUNTRY_INFO!$T$9:$T$1000="T3 (ALB/MBD)",COUNTRY_INFO!$U$9:$U$1000="T3 (ALB/MBD)"), "T3 (ALB/MBD)", " ") ->  | J36: 0 | N36: 0
A37: =IF(COUNTRY_INFO!A37=0," ",COUNTRY_INFO!A37) -> Burkina Faso | B37: =IF(COUNTRY_INFO!B37=0," ",COUNTRY_INFO!B37) -> Centre-Ouest | C37: =IF(COUNTRY_INFO!C37=0," ",COUNTRY_INFO!C37) -> Léo | D37: =IF(OR(COUNTRY_INFO!$T$9:$T$1000="T3 (ALB/MBD)",COUNTRY_INFO!$U$9:$U$1000="T3 (ALB/MBD)"), "T3 (ALB/MBD)", " ") ->  | J37: 0 | N37: 0
A38: =IF(COUNTRY_INFO!A38=0," ",COUNTRY_INFO!A38) -> Burkina Faso | B38: =IF(COUNTRY_INFO!B38=0," ",COUNTRY_INFO!B38) -> Centre-Ouest | C38: =IF(COUNTRY_INFO!C38=0," ",COUNTRY_INFO!C38) -> Nanoro | D38: =IF(OR(COUNTRY_INFO!$T$9:$T$1000="T3 (ALB/MBD)",COUNTRY_INFO!$U$9:$U$1000="T3 (ALB/MBD)"), "T3 (ALB/MBD)", " ") ->  | J38: 0 | N38: 0
A39: =IF(COUNTRY_INFO!A39=0," ",COUNTRY_INFO!A39) -> Burkina Faso | B39: =IF(COUNTRY_INFO!B39=0," ",COUNTRY_INFO!B39) -> Centre-Ouest | C39: =IF(COUNTRY_INFO!C39=0," ",COUNTRY_INFO!C39) -> Réo | D39: =IF(OR(COUNTRY_INFO!$T$9:$T$1000="T3 (ALB/MBD)",COUNTRY_INFO!$U$9:$U$1000="T3 (ALB/MBD)"), "T3 (ALB/MBD)", " ") ->  | J39: 0 | N39: 0
A40: =IF(COUNTRY_INFO!A40=0," ",COUNTRY_INFO!A40) -> Burkina Faso | B40: =IF(COUNTRY_INFO!B40=0," ",COUNTRY_INFO!B40) -> Centre-Ouest | C40: =IF(COUNTRY_INFO!C40=0," ",COUNTRY_INFO!C40) -> Sabou | D40: =IF(OR(COUNTRY_INFO!$T$9:$T$1000="T3 (ALB/MBD)",COUNTRY_INFO!$U$9:$U$1000="T3 (ALB/MBD)"), "T3 (ALB/MBD)", " ") ->  | J40: 0 | N40: 0
A41: =IF(COUNTRY_INFO!A41=0," ",COUNTRY_INFO!A41) -> Burkina Faso | B41: =IF(COUNTRY_INFO!B41=0," ",COUNTRY_INFO!B41) -> Centre-Ouest | C41: =IF(COUNTRY_INFO!C41=0," ",COUNTRY_INFO!C41) -> Sapouy | D41: =IF(OR(COUNTRY_INFO!$T$9:$T$1000="T3 (ALB/MBD)",COUNTRY_INFO!$U$9:$U$1000="T3 (ALB/MBD)"), "T3 (ALB/MBD)", " ") ->  | J41: 0 | N41: 0
A42: =IF(COUNTRY_INFO!A42=0," ",COUNTRY_INFO!A42) -> Burkina Faso | B42: =IF(COUNTRY_INFO!B42=0," ",COUNTRY_INFO!B42) -> Centre-Ouest | C42: =IF(COUNTRY_INFO!C42=0," ",COUNTRY_INFO!C42) -> Tenado | D42: =IF(OR(COUNTRY_INFO!$T$9:$T$1000="T3 (ALB/MBD)",COUNTRY_INFO!$U$9:$U$1000="T3 (ALB/MBD)"), "T3 (ALB/MBD)", " ") ->  | J42: 0 | N42: 0
A43: =IF(COUNTRY_INFO!A43=0," ",COUNTRY_INFO!A43) -> Burkina Faso | B43: =IF(COUNTRY_INFO!B43=0," ",COUNTRY_INFO!B43) -> Centre-Sud | C43: =IF(COUNTRY_INFO!C43=0," ",COUNTRY_INFO!C43) -> Kombissiri | D43: =IF(OR(COUNTRY_INFO!$T$9:$T$1000="T3 (ALB/MBD)",COUNTRY_INFO!$U$9:$U$1000="T3 (ALB/MBD)"), "T3 (ALB/MBD)", " ") ->  | J43: 0 | N43: 0
A44: =IF(COUNTRY_INFO!A44=0," ",COUNTRY_INFO!A44) -> Burkina Faso | B44: =IF(COUNTRY_INFO!B44=0," ",COUNTRY_INFO!B44) -> Centre-Sud | C44: =IF(COUNTRY_INFO!C44=0," ",COUNTRY_INFO!C44) -> Manga | D44: =IF(OR(COUNTRY_INFO!$T$9:$T$1000="T3 (ALB/MBD)",COUNTRY_INFO!$U$9:$U$1000="T3 (ALB/MBD)"), "T3 (ALB/MBD)", " ") ->  | J44: 0 | N44: 0
A45: =IF(COUNTRY_INFO!A45=0," ",COUNTRY_INFO!A45) -> Burkina Faso | B45: =IF(COUNTRY_INFO!B45=0," ",COUNTRY_INFO!B45) -> Centre-Sud | C45: =IF(COUNTRY_INFO!C45=0," ",COUNTRY_INFO!C45) -> Pô | D45: =IF(OR(COUNTRY_INFO!$T$9:$T$1000="T3 (ALB/MBD)",COUNTRY_INFO!$U$9:$U$1000="T3 (ALB/MBD)"), "T3 (ALB/MBD)", " ") ->  | J45: 0 | N45: 0
A46: =IF(COUNTRY_INFO!A46=0," ",COUNTRY_INFO!A46) -> Burkina Faso | B46: =IF(COUNTRY_INFO!B46=0," ",COUNTRY_INFO!B46) -> Centre-Sud | C46: =IF(COUNTRY_INFO!C46=0," ",COUNTRY_INFO!C46) -> Saponé | D46: =IF(OR(COUNTRY_INFO!$T$9:$T$1000="T3 (ALB/MBD)",COUNTRY_INFO!$U$9:$U$1000="T3 (ALB/MBD)"), "T3 (ALB/MBD)", " ") ->  | J46: 0 | N46: 0
A47: =IF(COUNTRY_INFO!A47=0," ",COUNTRY_INFO!A47) -> Burkina Faso | B47: =IF(COUNTRY_INFO!B47=0," ",COUNTRY_INFO!B47) -> Est | C47: =IF(COUNTRY_INFO!C47=0," ",COUNTRY_INFO!C47) -> Bogandé | D47: =IF(OR(COUNTRY_INFO!$T$9:$T$1000="T3 (ALB/MBD)",COUNTRY_INFO!$U$9:$U$1000="T3 (ALB/MBD)"), "T3 (ALB/MBD)", " ") ->  | J47: 0 | N47: 0
A48: =IF(COUNTRY_INFO!A48=0," ",COUNTRY_INFO!A48) -> Burkina Faso | B48: =IF(COUNTRY_INFO!B48=0," ",COUNTRY_INFO!B48) -> Est | C48: =IF(COUNTRY_INFO!C48=0," ",COUNTRY_INFO!C48) -> Diapaga | D48: =IF(OR(COUNTRY_INFO!$T$9:$T$1000="T3 (ALB/MBD)",COUNTRY_INFO!$U$9:$U$1000="T3 (ALB/MBD)"), "T3 (ALB/MBD)", " ") ->  | J48: 0 | N48: 0
A49: =IF(COUNTRY_INFO!A49=0," ",COUNTRY_INFO!A49) -> Burkina Faso | B49: =IF(COUNTRY_INFO!B49=0," ",COUNTRY_INFO!B49) -> Est | C49: =IF(COUNTRY_INFO!C49=0," ",COUNTRY_INFO!C49) -> Fada N'gourma | D49: =IF(OR(COUNTRY_INFO!$T$9:$T$1000="T3 (ALB/MBD)",COUNTRY_INFO!$U$9:$U$1000="T3 (ALB/MBD)"), "T3 (ALB/MBD)", " ") ->  | J49: 0 | N49: 0
A50: =IF(COUNTRY_INFO!A50=0," ",COUNTRY_INFO!A50) -> Burkina Faso | B50: =IF(COUNTRY_INFO!B50=0," ",COUNTRY_INFO!B50) -> Est | C50: =IF(COUNTRY_INFO!C50=0," ",COUNTRY_INFO!C50) -> Gayeri | D50: =IF(OR(COUNTRY_INFO!$T$9:$T$1000="T3 (ALB/MBD)",COUNTRY_INFO!$U$9:$U$1000="T3 (ALB/MBD)"), "T3 (ALB/MBD)", " ") ->  | J50: 0 | N50: 0
A51: =IF(COUNTRY_INFO!A51=0," ",COUNTRY_INFO!A51) -> Burkina Faso | B51: =IF(COUNTRY_INFO!B51=0," ",COUNTRY_INFO!B51) -> Est | C51: =IF(COUNTRY_INFO!C51=0," ",COUNTRY_INFO!C51) -> Manni | D51: =IF(OR(COUNTRY_INFO!$T$9:$T$1000="T3 (ALB/MBD)",COUNTRY_INFO!$U$9:$U$1000="T3 (ALB/MBD)"), "T3 (ALB/MBD)", " ") ->  | J51: 0 | N51: 0
A52: =IF(COUNTRY_INFO!A52=0," ",COUNTRY_INFO!A52) -> Burkina Faso | B52: =IF(COUNTRY_INFO!B52=0," ",COUNTRY_INFO!B52) -> Est | C52: =IF(COUNTRY_INFO!C52=0," ",COUNTRY_INFO!C52) -> Pama | D52: =IF(OR(COUNTRY_INFO!$T$9:$T$1000="T3 (ALB/MBD)",COUNTRY_INFO!$U$9:$U$1000="T3 (ALB/MBD)"), "T3 (ALB/MBD)", " ") ->  | J52: 0 | N52: 0
A53: =IF(COUNTRY_INFO!A53=0," ",COUNTRY_INFO!A53) -> Burkina Faso | B53: =IF(COUNTRY_INFO!B53=0," ",COUNTRY_INFO!B53) -> Hauts-Bassins | C53: =IF(COUNTRY_INFO!C53=0," ",COUNTRY_INFO!C53) -> Dafra | D53: =IF(OR(COUNTRY_INFO!$T$9:$T$1000="T3 (ALB/MBD)",COUNTRY_INFO!$U$9:$U$1000="T3 (ALB/MBD)"), "T3 (ALB/MBD)", " ") ->  | J53: 0 | N53: 0
A54: =IF(COUNTRY_INFO!A54=0," ",COUNTRY_INFO!A54) -> Burkina Faso | B54: =IF(COUNTRY_INFO!B54=0," ",COUNTRY_INFO!B54) -> Hauts-Bassins | C54: =IF(COUNTRY_INFO!C54=0," ",COUNTRY_INFO!C54) -> Dandé | D54: =IF(OR(COUNTRY_INFO!$T$9:$T$1000="T3 (ALB/MBD)",COUNTRY_INFO!$U$9:$U$1000="T3 (ALB/MBD)"), "T3 (ALB/MBD)", " ") ->  | J54: 0 | N54: 0
A55: =IF(COUNTRY_INFO!A55=0," ",COUNTRY_INFO!A55) -> Burkina Faso | B55: =IF(COUNTRY_INFO!B55=0," ",COUNTRY_INFO!B55) -> Hauts-Bassins | C55: =IF(COUNTRY_INFO!C55=0," ",COUNTRY_INFO!C55) -> Dô | D55: =IF(OR(COUNTRY_INFO!$T$9:$T$1000="T3 (ALB/MBD)",COUNTRY_INFO!$U$9:$U$1000="T3 (ALB/MBD)"), "T3 (ALB/MBD)", " ") ->  | J55: 0 | N55: 0
A56: =IF(COUNTRY_INFO!A56=0," ",COUNTRY_INFO!A56) -> Burkina Faso | B56: =IF(COUNTRY_INFO!B56=0," ",COUNTRY_INFO!B56) -> Hauts-Bassins | C56: =IF(COUNTRY_INFO!C56=0," ",COUNTRY_INFO!C56) -> Houndé | D56: =IF(OR(COUNTRY_INFO!$T$9:$T$1000="T3 (ALB/MBD)",COUNTRY_INFO!$U$9:$U$1000="T3 (ALB/MBD)"), "T3 (ALB/MBD)", " ") ->  | J56: 0 | N56: 0
A57: =IF(COUNTRY_INFO!A57=0," ",COUNTRY_INFO!A57) -> Burkina Faso | B57: =IF(COUNTRY_INFO!B57=0," ",COUNTRY_INFO!B57) -> Hauts-Bassins | C57: =IF(COUNTRY_INFO!C57=0," ",COUNTRY_INFO!C57) -> Karangasso-Vigué | D57: =IF(OR(COUNTRY_INFO!$T$9:$T$1000="T3 (ALB/MBD)",COUNTRY_INFO!$U$9:$U$1000="T3 (ALB/MBD)"), "T3 (ALB/MBD)", " ") ->  | J57: 0 | N57: 0
A58: =IF(COUNTRY_INFO!A58=0," ",COUNTRY_INFO!A58) -> Burkina Faso | B58: =IF(COUNTRY_INFO!B58=0," ",COUNTRY_INFO!B58) -> Hauts-Bassins | C58: =IF(COUNTRY_INFO!C58=0," ",COUNTRY_INFO!C58) -> Lena | D58: =IF(OR(COUNTRY_INFO!$T$9:$T$1000="T3 (ALB/MBD)",COUNTRY_INFO!$U$9:$U$1000="T3 (ALB/MBD)"), "T3 (ALB/MBD)", " ") ->  | J58: 0 | N58: 0
A59: =IF(COUNTRY_INFO!A59=0," ",COUNTRY_INFO!A59) -> Burkina Faso | B59: =IF(COUNTRY_INFO!B59=0," ",COUNTRY_INFO!B59) -> Hauts-Bassins | C59: =IF(COUNTRY_INFO!C59=0," ",COUNTRY_INFO!C59) -> N'Dorola | D59: =IF(OR(COUNTRY_INFO!$T$9:$T$1000="T3 (ALB/MBD)",COUNTRY_INFO!$U$9:$U$1000="T3 (ALB/MBD)"), "T3 (ALB/MBD)", " ") ->  | J59: 0 | N59: 0
A60: =IF(COUNTRY_INFO!A60=0," ",COUNTRY_INFO!A60) -> Burkina Faso | B60: =IF(COUNTRY_INFO!B60=0," ",COUNTRY_INFO!B60) -> Hauts-Bassins | C60: =IF(COUNTRY_INFO!C60=0," ",COUNTRY_INFO!C60) -> Orodara | D60: =IF(OR(COUNTRY_INFO!$T$9:$T$1000="T3 (ALB/MBD)",COUNTRY_INFO!$U$9:$U$1000="T3 (ALB/MBD)"), "T3 (ALB/MBD)", " ") ->  | J60: 0 | N60: 0
A61: =IF(COUNTRY_INFO!A61=0," ",COUNTRY_INFO!A61) -> Burkina Faso | B61: =IF(COUNTRY_INFO!B61=0," ",COUNTRY_INFO!B61) -> Nord | C61: =IF(COUNTRY_INFO!C61=0," ",COUNTRY_INFO!C61) -> Gourcy | D61: =IF(OR(COUNTRY_INFO!$T$9:$T$1000="T3 (ALB/MBD)",COUNTRY_INFO!$U$9:$U$1000="T3 (ALB/MBD)"), "T3 (ALB/MBD)", " ") ->  | J61: 0 | N61: 0
A62: =IF(COUNTRY_INFO!A62=0," ",COUNTRY_INFO!A62) -> Burkina Faso | B62: =IF(COUNTRY_INFO!B62=0," ",COUNTRY_INFO!B62) -> Nord | C62: =IF(COUNTRY_INFO!C62=0," ",COUNTRY_INFO!C62) -> Ouahigouya | D62: =IF(OR(COUNTRY_INFO!$T$9:$T$1000="T3 (ALB/MBD)",COUNTRY_INFO!$U$9:$U$1000="T3 (ALB/MBD)"), "T3 (ALB/MBD)", " ") ->  | J62: 0 | N62: 0
A63: =IF(COUNTRY_INFO!A63=0," ",COUNTRY_INFO!A63) -> Burkina Faso | B63: =IF(COUNTRY_INFO!B63=0," ",COUNTRY_INFO!B63) -> Nord | C63: =IF(COUNTRY_INFO!C63=0," ",COUNTRY_INFO!C63) -> Seguenega | D63: =IF(OR(COUNTRY_INFO!$T$9:$T$1000="T3 (ALB/MBD)",COUNTRY_INFO!$U$9:$U$1000="T3 (ALB/MBD)"), "T3 (ALB/MBD)", " ") ->  | J63: 0 | N63: 0
A64: =IF(COUNTRY_INFO!A64=0," ",COUNTRY_INFO!A64) -> Burkina Faso | B64: =IF(COUNTRY_INFO!B64=0," ",COUNTRY_INFO!B64) -> Nord | C64: =IF(COUNTRY_INFO!C64=0," ",COUNTRY_INFO!C64) -> Thiou | D64: =IF(OR(COUNTRY_INFO!$T$9:$T$1000="T3 (ALB/MBD)",COUNTRY_INFO!$U$9:$U$1000="T3 (ALB/MBD)"), "T3 (ALB/MBD)", " ") ->  | J64: 0 | N64: 0
A65: =IF(COUNTRY_INFO!A65=0," ",COUNTRY_INFO!A65) -> Burkina Faso | B65: =IF(COUNTRY_INFO!B65=0," ",COUNTRY_INFO!B65) -> Nord | C65: =IF(COUNTRY_INFO!C65=0," ",COUNTRY_INFO!C65) -> Titao | D65: =IF(OR(COUNTRY_INFO!$T$9:$T$1000="T3 (ALB/MBD)",COUNTRY_INFO!$U$9:$U$1000="T3 (ALB/MBD)"), "T3 (ALB/MBD)", " ") ->  | J65: 0 | N65: 0
A66: =IF(COUNTRY_INFO!A66=0," ",COUNTRY_INFO!A66) -> Burkina Faso | B66: =IF(COUNTRY_INFO!B66=0," ",COUNTRY_INFO!B66) -> Nord | C66: =IF(COUNTRY_INFO!C66=0," ",COUNTRY_INFO!C66) -> Yako | D66: =IF(OR(COUNTRY_INFO!$T$9:$T$1000="T3 (ALB/MBD)",COUNTRY_INFO!$U$9:$U$1000="T3 (ALB/MBD)"), "T3 (ALB/MBD)", " ") ->  | J66: 0 | N66: 0
A67: =IF(COUNTRY_INFO!A67=0," ",COUNTRY_INFO!A67) -> Burkina Faso | B67: =IF(COUNTRY_INFO!B67=0," ",COUNTRY_INFO!B67) -> Plateau Central | C67: =IF(COUNTRY_INFO!C67=0," ",COUNTRY_INFO!C67) -> Boussé | D67: =IF(OR(COUNTRY_INFO!$T$9:$T$1000="T3 (ALB/MBD)",COUNTRY_INFO!$U$9:$U$1000="T3 (ALB/MBD)"), "T3 (ALB/MBD)", " ") ->  | J67: 0 | N67: 0
A68: =IF(COUNTRY_INFO!A68=0," ",COUNTRY_INFO!A68) -> Burkina Faso | B68: =IF(COUNTRY_INFO!B68=0," ",COUNTRY_INFO!B68) -> Plateau Central | C68: =IF(COUNTRY_INFO!C68=0," ",COUNTRY_INFO!C68) -> Ziniaré | D68: =IF(OR(COUNTRY_INFO!$T$9:$T$1000="T3 (ALB/MBD)",COUNTRY_INFO!$U$9:$U$1000="T3 (ALB/MBD)"), "T3 (ALB/MBD)", " ") ->  | J68: 0 | N68: 0
A69: =IF(COUNTRY_INFO!A69=0," ",COUNTRY_INFO!A69) -> Burkina Faso | B69: =IF(COUNTRY_INFO!B69=0," ",COUNTRY_INFO!B69) -> Plateau Central | C69: =IF(COUNTRY_INFO!C69=0," ",COUNTRY_INFO!C69) -> Zorgho | D69: =IF(OR(COUNTRY_INFO!$T$9:$T$1000="T3 (ALB/MBD)",COUNTRY_INFO!$U$9:$U$1000="T3 (ALB/MBD)"), "T3 (ALB/MBD)", " ") ->  | J69: 0 | N69: 0
A70: =IF(COUNTRY_INFO!A70=0," ",COUNTRY_INFO!A70) -> Burkina Faso | B70: =IF(COUNTRY_INFO!B70=0," ",COUNTRY_INFO!B70) -> Sahel | C70: =IF(COUNTRY_INFO!C70=0," ",COUNTRY_INFO!C70) -> Djibo | D70: =IF(OR(COUNTRY_INFO!$T$9:$T$1000="T3 (ALB/MBD)",COUNTRY_INFO!$U$9:$U$1000="T3 (ALB/MBD)"), "T3 (ALB/MBD)", " ") ->  | J70: 0 | N70: 0
A71: =IF(COUNTRY_INFO!A71=0," ",COUNTRY_INFO!A71) -> Burkina Faso | B71: =IF(COUNTRY_INFO!B71=0," ",COUNTRY_INFO!B71) -> Sahel | C71: =IF(COUNTRY_INFO!C71=0," ",COUNTRY_INFO!C71) -> Dori | D71: =IF(OR(COUNTRY_INFO!$T$9:$T$1000="T3 (ALB/MBD)",COUNTRY_INFO!$U$9:$U$1000="T3 (ALB/MBD)"), "T3 (ALB/MBD)", " ") ->  | J71: 0 | N71: 0
A72: =IF(COUNTRY_INFO!A72=0," ",COUNTRY_INFO!A72) -> Burkina Faso | B72: =IF(COUNTRY_INFO!B72=0," ",COUNTRY_INFO!B72) -> Sahel | C72: =IF(COUNTRY_INFO!C72=0," ",COUNTRY_INFO!C72) -> Gorom-Gorom | D72: =IF(OR(COUNTRY_INFO!$T$9:$T$1000="T3 (ALB/MBD)",COUNTRY_INFO!$U$9:$U$1000="T3 (ALB/MBD)"), "T3 (ALB/MBD)", " ") ->  | J72: 0 | N72: 0
A73: =IF(COUNTRY_INFO!A73=0," ",COUNTRY_INFO!A73) -> Burkina Faso | B73: =IF(COUNTRY_INFO!B73=0," ",COUNTRY_INFO!B73) -> Sahel | C73: =IF(COUNTRY_INFO!C73=0," ",COUNTRY_INFO!C73) -> Sebba | D73: =IF(OR(COUNTRY_INFO!$T$9:$T$1000="T3 (ALB/MBD)",COUNTRY_INFO!$U$9:$U$1000="T3 (ALB/MBD)"), "T3 (ALB/MBD)", " ") ->  | J73: 0 | N73: 0
A74: =IF(COUNTRY_INFO!A74=0," ",COUNTRY_INFO!A74) -> Burkina Faso | B74: =IF(COUNTRY_INFO!B74=0," ",COUNTRY_INFO!B74) -> Sud-Ouest | C74: =IF(COUNTRY_INFO!C74=0," ",COUNTRY_INFO!C74) -> Batié | D74: =IF(OR(COUNTRY_INFO!$T$9:$T$1000="T3 (ALB/MBD)",COUNTRY_INFO!$U$9:$U$1000="T3 (ALB/MBD)"), "T3 (ALB/MBD)", " ") ->  | J74: =SUM(G74:I74) -> 0 | N74: =SUM(K74:M74) -> 0 | O74: =IF(G74<>0, IF(K74/G74*100=0, "-", K74/G74*100), " ") ->  | P74: =IF(H74<>0, IF(L74/H74*100=0, "-", L74/H74*100), " ") ->  | Q74: =IF(I74<>0, IF(M74/I74*100=0, "-", M74/I74*100), " ") ->  | R74: =IF(J74<>0, IF(N74/J74*100=0, "-", N74/J74*100), " ") -> 
A75: =IF(COUNTRY_INFO!A75=0," ",COUNTRY_INFO!A75) -> Burkina Faso | B75: =IF(COUNTRY_INFO!B75=0," ",COUNTRY_INFO!B75) -> Sud-Ouest | C75: =IF(COUNTRY_INFO!C75=0," ",COUNTRY_INFO!C75) -> Dano | D75: =IF(OR(COUNTRY_INFO!$T$9:$T$1000="T3 (ALB/MBD)",COUNTRY_INFO!$U$9:$U$1000="T3 (ALB/MBD)"), "T3 (ALB/MBD)", " ") ->  | J75: 0 | N75: 0
A76: =IF(COUNTRY_INFO!A76=0," ",COUNTRY_INFO!A76) -> Burkina Faso | B76: =IF(COUNTRY_INFO!B76=0," ",COUNTRY_INFO!B76) -> Sud-Ouest | C76: =IF(COUNTRY_INFO!C76=0," ",COUNTRY_INFO!C76) -> Diébougou | D76: =IF(OR(COUNTRY_INFO!$T$9:$T$1000="T3 (ALB/MBD)",COUNTRY_INFO!$U$9:$U$1000="T3 (ALB/MBD)"), "T3 (ALB/MBD)", " ") ->  | J76: 0 | N76: 0
A77: =IF(COUNTRY_INFO!A77=0," ",COUNTRY_INFO!A77) -> Burkina Faso | B77: =IF(COUNTRY_INFO!B77=0," ",COUNTRY_INFO!B77) -> Sud-Ouest | C77: =IF(COUNTRY_INFO!C77=0," ",COUNTRY_INFO!C77) -> Gaoua | D77: =IF(OR(COUNTRY_INFO!$T$9:$T$1000="T3 (ALB/MBD)",COUNTRY_INFO!$U$9:$U$1000="T3 (ALB/MBD)"), "T3 (ALB/MBD)", " ") ->  | J77: 0 | N77: 0
A78: =IF(COUNTRY_INFO!A78=0," ",COUNTRY_INFO!A78) -> Burkina Faso | B78: =IF(COUNTRY_INFO!B78=0," ",COUNTRY_INFO!B78) -> Sud-Ouest | C78: =IF(COUNTRY_INFO!C78=0," ",COUNTRY_INFO!C78) -> Kampti | D78: =IF(OR(COUNTRY_INFO!$T$9:$T$1000="T3 (ALB/MBD)",COUNTRY_INFO!$U$9:$U$1000="T3 (ALB/MBD)"), "T3 (ALB/MBD)", " ") ->  | J78: 0 | N78: 0

Sheet T3_R2
A1: T 3 - Albendazole (ALB) ou Mebendazole (MBD) - Tournée 2
A2: Structure administrative, population nécessitant une chimioprévention par groupe d'âge, population traitée par groupe d'âge et couverture
A4: TOTAL | G4: =SUM(G$9:G$1000) -> 0 | H4: 0 | I4: 0 | J4: 0 | K4: 0 | L4: 0 | M4: 0 | N4: 0 | O4: =IF(G4<>0, IF(K4/G4*100=0, "-", K4/G4*100), " ") ->  | P4: =IF(H4<>0, IF(L4/H4*100=0, "-", L4/H4*100), " ") ->  | Q4: =IF(I4<>0, IF(M4/I4*100=0, "-", M4/I4*100), " ") ->  | R4: =IF(J4<>0, IF(N4/J4*100=0, "-", N4/J4*100), " ") -> 
A6: Structure administrative du pays | D6: Mise en oeuvre de la CP | E6: Médica-ment | F6: Date | G6: Population ciblée pour T3 | K6: Population traitée | O6: Couverture du Programme (%)
A7: Pays | B7: Région/Département | C7: District | G7: EAPréS | H7: EAS | I7: Adultes | J7: Total | K7: EAPréS | L7: EAS | M7: Adultes | N7: Total | O7: EAPréS | P7: EAS | Q7: Adultes | R7: Total
A9: =IF(COUNTRY_INFO!A9=0," ",COUNTRY_INFO!A9) -> Burkina Faso | B9: =IF(COUNTRY_INFO!B9=0," ",COUNTRY_INFO!B9) -> Boucle du Mouhoun | C9: =IF(COUNTRY_INFO!C9=0," ",COUNTRY_INFO!C9) -> Boromo | D9: =IF(AND(COUNTRY_INFO!$T$9:$T$1000="T3 (ALB/MBD)",COUNTRY_INFO!$U$9:$U$1000="T3 (ALB/MBD)"), "T3 (ALB/MBD)", " ") ->  | J9: =SUM(G9:I9) -> 0 | N9: =SUM(K9:M9) -> 0 | O9: =IF(G9<>0, IF(K9/G9*100=0, "-", K9/G9*100), " ") -> 
A10: =IF(COUNTRY_INFO!A10=0," ",COUNTRY_INFO!A10) -> Burkina Faso | B10: =IF(COUNTRY_INFO!B10=0," ",COUNTRY_INFO!B10) -> Boucle du Mouhoun | C10: =IF(COUNTRY_INFO!C10=0," ",COUNTRY_INFO!C10) -> Dédougou | D10: =IF(AND(COUNTRY_INFO!$T$9:$T$1000="T3 (ALB/MBD)",COUNTRY_INFO!$U$9:$U$1000="T3 (ALB/MBD)"), "T3 (ALB/MBD)", " ") ->  | J10: =SUM(G10:I10) -> 0 | N10: =SUM(K10:M10) -> 0 | O10: =IF(G10<>0, IF(K10/G10*100=0, "-", K10/G10*100), " ") ->  | P10: =IF(H10<>0, IF(L10/H10*100=0, "-", L10/H10*100), " ") ->  | Q10: =IF(I10<>0, IF(M10/I10*100=0, "-", M10/I10*100), " ") ->  | R10: =IF(J10<>0, IF(N10/J10*100=0, "-", N10/J10*100), " ") -> 
A11: =IF(COUNTRY_INFO!A11=0," ",COUNTRY_INFO!A11) -> Burkina Faso | B11: =IF(COUNTRY_INFO!B11=0," ",COUNTRY_INFO!B11) -> Boucle du Mouhoun | C11: =IF(COUNTRY_INFO!C11=0," ",COUNTRY_INFO!C11) -> Nouna | D11: =IF(AND(COUNTRY_INFO!$T$9:$T$1000="T3 (ALB/MBD)",COUNTRY_INFO!$U$9:$U$1000="T3 (ALB/MBD)"), "T3 (ALB/MBD)", " ") ->  | J11: 0 | N11: 0
A12: =IF(COUNTRY_INFO!A12=0," ",COUNTRY_INFO!A12) -> Burkina Faso | B12: =IF(COUNTRY_INFO!B12=0," ",COUNTRY_INFO!B12) -> Boucle du Mouhoun | C12: =IF(COUNTRY_INFO!C12=0," ",COUNTRY_INFO!C12) -> Solenzo | D12: =IF(AND(COUNTRY_INFO!$T$9:$T$1000="T3 (ALB/MBD)",COUNTRY_INFO!$U$9:$U$1000="T3 (ALB/MBD)"), "T3 (ALB/MBD)", " ") ->  | J12: 0 | N12: 0
A13: =IF(COUNTRY_INFO!A13=0," ",COUNTRY_INFO!A13) -> Burkina Faso | B13: =IF(COUNTRY_INFO!B13=0," ",COUNTRY_INFO!B13) -> Boucle du Mouhoun | C13: =IF(COUNTRY_INFO!C13=0," ",COUNTRY_INFO!C13) -> Toma | D13: =IF(AND(COUNTRY_INFO!$T$9:$T$1000="T3 (ALB/MBD)",COUNTRY_INFO!$U$9:$U$1000="T3 (ALB/MBD)"), "T3 (ALB/MBD)", " ") ->  | J13: 0 | N13: 0
A14: =IF(COUNTRY_INFO!A14=0," ",COUNTRY_INFO!A14) -> Burkina Faso | B14: =IF(COUNTRY_INFO!B14=0," ",COUNTRY_INFO!B14) -> Boucle du Mouhoun | C14: =IF(COUNTRY_INFO!C14=0," ",COUNTRY_INFO!C14) -> Tougan | D14: =IF(AND(COUNTRY_INFO!$T$9:$T$1000="T3 (ALB/MBD)",COUNTRY_INFO!$U$9:$U$1000="T3 (ALB/MBD)"), "T3 (ALB/MBD)", " ") ->  | J14: 0 | N14: 0
A15: =IF(COUNTRY_INFO!A15=0," ",COUNTRY_INFO!A15) -> Burkina Faso | B15: =IF(COUNTRY_INFO!B15=0," ",COUNTRY_INFO!B15) -> Cascades | C15: =IF(COUNTRY_INFO!C15=0," ",COUNTRY_INFO!C15) -> Banfora | D15: =IF(AND(COUNTRY_INFO!$T$9:$T$1000="T3 (ALB/MBD)",COUNTRY_INFO!$U$9:$U$1000="T3 (ALB/MBD)"), "T3 (ALB/MBD)", " ") ->  | J15: 0 | N15: 0
A16: =IF(COUNTRY_INFO!A16=0," ",COUNTRY_INFO!A16) -> Burkina Faso | B16: =IF(COUNTRY_INFO!B16=0," ",COUNTRY_INFO!B16) -> Cascades | C16: =IF(COUNTRY_INFO!C16=0," ",COUNTRY_INFO!C16) -> Mangodara | D16: =IF(AND(COUNTRY_INFO!$T$9:$T$1000="T3 (ALB/MBD)",COUNTRY_INFO!$U$9:$U$1000="T3 (ALB/MBD)"), "T3 (ALB/MBD)", " ") ->  | J16: 0 | N16: 0
A17: =IF(COUNTRY_INFO!A17=0," ",COUNTRY_INFO!A17) -> Burkina Faso | B17: =IF(COUNTRY_INFO!B17=0," ",COUNTRY_INFO!B17) -> Cascades | C17: =IF(COUNTRY_INFO!C17=0," ",COUNTRY_INFO!C17) -> Sindou | D17: =IF(AND(COUNTRY_INFO!$T$9:$T$1000="T3 (ALB/MBD)",COUNTRY_INFO!$U$9:$U$1000="T3 (ALB/MBD)"), "T3 (ALB/MBD)", " ") ->  | J17: 0 | N17: 0
A18: =IF(COUNTRY_INFO!A18=0," ",COUNTRY_INFO!A18) -> Burkina Faso | B18: =IF(COUNTRY_INFO!B18=0," ",COUNTRY_INFO!B18) -> Centre | C18: =IF(COUNTRY_INFO!C18=0," ",COUNTRY_INFO!C18) -> Baskuy | D18: =IF(AND(COUNTRY_INFO!$T$9:$T$1000="T3 (ALB/MBD)",COUNTRY_INFO!$U$9:$U$1000="T3 (ALB/MBD)"), "T3 (ALB/MBD)", " ") ->  | J18: 0 | N18: 0
A19: =IF(COUNTRY_INFO!A19=0," ",COUNTRY_INFO!A19) -> Burkina Faso | B19: =IF(COUNTRY_INFO!B19=0," ",COUNTRY_INFO!B19) -> Centre | C19: =IF(COUNTRY_INFO!C19=0," ",COUNTRY_INFO!C19) -> Bogodogo | D19: =IF(AND(COUNTRY_INFO!$T$9:$T$1000="T3 (ALB/MBD)",COUNTRY_INFO!$U$9:$U$1000="T3 (ALB/MBD)"), "T3 (ALB/MBD)", " ") ->  | J19: 0 | N19: 0
A20: =IF(COUNTRY_INFO!A20=0," ",COUNTRY_INFO!A20) -> Burkina Faso | B20: =IF(COUNTRY_INFO!B20=0," ",COUNTRY_INFO!B20) -> Centre | C20: =IF(COUNTRY_INFO!C20=0," ",COUNTRY_INFO!C20) -> Boulmiougou | D20: =IF(AND(COUNTRY_INFO!$T$9:$T$1000="T3 (ALB/MBD)",COUNTRY_INFO!$U$9:$U$1000="T3 (ALB/MBD)"), "T3 (ALB/MBD)", " ") ->  | J20: 0 | N20: 0
A21: =IF(COUNTRY_INFO!A21=0," ",COUNTRY_INFO!A21) -> Burkina Faso | B21: =IF(COUNTRY_INFO!B21=0," ",COUNTRY_INFO!B21) -> Centre | C21: =IF(COUNTRY_INFO!C21=0," ",COUNTRY_INFO!C21) -> Nongre-Massom | D21: =IF(AND(COUNTRY_INFO!$T$9:$T$1000="T3 (ALB/MBD)",COUNTRY_INFO!$U$9:$U$1000="T3 (ALB/MBD)"), "T3 (ALB/MBD)", " ") ->  | J21: 0 | N21: 0
A22: =IF(COUNTRY_INFO!A22=0," ",COUNTRY_INFO!A22) -> Burkina Faso | B22: =IF(COUNTRY_INFO!B22=0," ",COUNTRY_INFO!B22) -> Centre | C22: =IF(COUNTRY_INFO!C22=0," ",COUNTRY_INFO!C22) -> Sig-Nonghin | D22: =IF(AND(COUNTRY_INFO!$T$9:$T$1000="T3 (ALB/MBD)",COUNTRY_INFO!$U$9:$U$1000="T3 (ALB/MBD)"), "T3 (ALB/MBD)", " ") ->  | J22: 0 | N22: 0
A23: =IF(COUNTRY_INFO!A23=0," ",COUNTRY_INFO!A23) -> Burkina Faso | B23: =IF(COUNTRY_INFO!B23=0," ",COUNTRY_INFO!B23) -> Centre-Est | C23: =IF(COUNTRY_INFO!C23=0," ",COUNTRY_INFO!C23) -> Bittou | D23: =IF(AND(COUNTRY_INFO!$T$9:$T$1000="T3 (ALB/MBD)",COUNTRY_INFO!$U$9:$U$1000="T3 (ALB/MBD)"), "T3 (ALB/MBD)", " ") ->  | J23: 0 | N23: 0
A24: =IF(COUNTRY_INFO!A24=0," ",COUNTRY_INFO!A24) -> Burkina Faso | B24: =IF(COUNTRY_INFO!B24=0," ",COUNTRY_INFO!B24) -> Centre-Est | C24: =IF(COUNTRY_INFO!C24=0," ",COUNTRY_INFO!C24) -> Garango | D24: =IF(AND(COUNTRY_INFO!$T$9:$T$1000="T3 (ALB/MBD)",COUNTRY_INFO!$U$9:$U$1000="T3 (ALB/MBD)"), "T3 (ALB/MBD)", " ") ->  | J24: 0 | N24: 0
A25: =IF(COUNTRY_INFO!A25=0," ",COUNTRY_INFO!A25) -> Burkina Faso | B25: =IF(COUNTRY_INFO!B25=0," ",COUNTRY_INFO!B25) -> Centre-Est | C25: =IF(COUNTRY_INFO!C25=0," ",COUNTRY_INFO!C25) -> Koupela | D25: =IF(AND(COUNTRY_INFO!$T$9:$T$1000="T3 (ALB/MBD)",COUNTRY_INFO!$U$9:$U$1000="T3 (ALB/MBD)"), "T3 (ALB/MBD)", " ") ->  | J25: 0 | N25: 0
A26: =IF(COUNTRY_INFO!A26=0," ",COUNTRY_INFO!A26) -> Burkina Faso | B26: =IF(COUNTRY_INFO!B26=0," ",COUNTRY_INFO!B26) -> Centre-Est | C26: =IF(COUNTRY_INFO!C26=0," ",COUNTRY_INFO!C26) -> Ouargaye | D26: =IF(AND(COUNTRY_INFO!$T$9:$T$1000="T3 (ALB/MBD)",COUNTRY_INFO!$U$9:$U$1000="T3 (ALB/MBD)"), "T3 (ALB/MBD)", " ") ->  | J26: 0 | N26: 0
A27: =IF(COUNTRY_INFO!A27=0," ",COUNTRY_INFO!A27) -> Burkina Faso | B27: =IF(COUNTRY_INFO!B27=0," ",COUNTRY_INFO!B27) -> Centre-Est | C27: =IF(COUNTRY_INFO!C27=0," ",COUNTRY_INFO!C27) -> Pouytenga | D27: =IF(AND(COUNTRY_INFO!$T$9:$T$1000="T3 (ALB/MBD)",COUNTRY_INFO!$U$9:$U$1000="T3 (ALB/MBD)"), "T3 (ALB/MBD)", " ") ->  | J27: 0 | N27: 0
A28: =IF(COUNTRY_INFO!A28=0," ",COUNTRY_INFO!A28) -> Burkina Faso | B28: =IF(COUNTRY_INFO!B28=0," ",COUNTRY_INFO!B28) -> Centre-Est | C28: =IF(COUNTRY_INFO!C28=0," ",COUNTRY_INFO!C28) -> Tenkodogo | D28: =IF(AND(COUNTRY_INFO!$T$9:$T$1000="T3 (ALB/MBD)",COUNTRY_INFO!$U$9:$U$1000="T3 (ALB/MBD)"), "T3 (ALB/MBD)", " ") ->  | J28: 0 | N28: 0
A29: =IF(COUNTRY_INFO!A29=0," ",COUNTRY_INFO!A29) -> Burkina Faso | B29: =IF(COUNTRY_INFO!B29=0," ",COUNTRY_INFO!B29) -> Centre-Est | C29: =IF(COUNTRY_INFO!C29=0," ",COUNTRY_INFO!C29) -> Zabré | D29: =IF(AND(COUNTRY_INFO!$T$9:$T$1000="T3 (ALB/MBD)",COUNTRY_INFO!$U$9:$U$1000="T3 (ALB/MBD)"), "T3 (ALB/MBD)", " ") ->  | J29: 0 | N29: 0
A30: =IF(COUNTRY_INFO!A30=0," ",COUNTRY_INFO!A30) -> Burkina Faso | B30: =IF(COUNTRY_INFO!B30=0," ",COUNTRY_INFO!B30) -> Centre-Nord | C30: =IF(COUNTRY_INFO!C30=0," ",COUNTRY_INFO!C30) -> Barsalogo | D30: =IF(AND(COUNTRY_INFO!$T$9:$T$1000="T3 (ALB/MBD)",COUNTRY_INFO!$U$9:$U$1000="T3 (ALB/MBD)"), "T3 (ALB/MBD)", " ") ->  | J30: 0 | N30: 0
A31: =IF(COUNTRY_INFO!A31=0," ",COUNTRY_INFO!A31) -> Burkina Faso | B31: =IF(COUNTRY_INFO!B31=0," ",COUNTRY_INFO!B31) -> Centre-Nord | C31: =IF(COUNTRY_INFO!C31=0," ",COUNTRY_INFO!C31) -> Boulsa | D31: =IF(AND(COUNTRY_INFO!$T$9:$T$1000="T3 (ALB/MBD)",COUNTRY_INFO!$U$9:$U$1000="T3 (ALB/MBD)"), "T3 (ALB/MBD)", " ") ->  | J31: 0 | N31: 0
A32: =IF(COUNTRY_INFO!A32=0," ",COUNTRY_INFO!A32) -> Burkina Faso | B32: =IF(COUNTRY_INFO!B32=0," ",COUNTRY_INFO!B32) -> Centre-Nord | C32: =IF(COUNTRY_INFO!C32=0," ",COUNTRY_INFO!C32) -> Boussouma | D32: =IF(AND(COUNTRY_INFO!$T$9:$T$1000="T3 (ALB/MBD)",COUNTRY_INFO!$U$9:$U$1000="T3 (ALB/MBD)"), "T3 (ALB/MBD)", " ") ->  | J32: 0 | N32: 0
A33: =IF(COUNTRY_INFO!A33=0," ",COUNTRY_INFO!A33) -> Burkina Faso | B33: =IF(COUNTRY_INFO!B33=0," ",COUNTRY_INFO!B33) -> Centre-Nord | C33: =IF(COUNTRY_INFO!C33=0," ",COUNTRY_INFO!C33) -> Kaya | D33: =IF(AND(COUNTRY_INFO!$T$9:$T$1000="T3 (ALB/MBD)",COUNTRY_INFO!$U$9:$U$1000="T3 (ALB/MBD)"), "T3 (ALB/MBD)", " ") ->  | J33: 0 | N33: 0
A34: =IF(COUNTRY_INFO!A34=0," ",COUNTRY_INFO!A34) -> Burkina Faso | B34: =IF(COUNTRY_INFO!B34=0," ",COUNTRY_INFO!B34) -> Centre-Nord | C34: =IF(COUNTRY_INFO!C34=0," ",COUNTRY_INFO!C34) -> Kongoussi | D34: =IF(AND(COUNTRY_INFO!$T$9:$T$1000="T3 (ALB/MBD)",COUNTRY_INFO!$U$9:$U$1000="T3 (ALB/MBD)"), "T3 (ALB/MBD)", " ") ->  | J34: 0 | N34: 0
A35: =IF(COUNTRY_INFO!A35=0," ",COUNTRY_INFO!A35) -> Burkina Faso | B35: =IF(COUNTRY_INFO!B35=0," ",COUNTRY_INFO!B35) -> Centre-Nord | C35: =IF(COUNTRY_INFO!C35=0," ",COUNTRY_INFO!C35) -> Tougouri | D35: =IF(AND(COUNTRY_INFO!$T$9:$T$1000="T3 (ALB/MBD)",COUNTRY_INFO!$U$9:$U$1000="T3 (ALB/MBD)"), "T3 (ALB/MBD)", " ") ->  | J35: 0 | N35: 0
A36: =IF(COUNTRY_INFO!A36=0," ",COUNTRY_INFO!A36) -> Burkina Faso | B36: =IF(COUNTRY_INFO!B36=0," ",COUNTRY_INFO!B36) -> Centre-Ouest | C36: =IF(COUNTRY_INFO!C36=0," ",COUNTRY_INFO!C36) -> Koudougou | D36: =IF(AND(COUNTRY_INFO!$T$9:$T$1000="T3 (ALB/MBD)",COUNTRY_INFO!$U$9:$U$1000="T3 (ALB/MBD)"), "T3 (ALB/MBD)", " ") ->  | J36: 0 | N36: 0
A37: =IF(COUNTRY_INFO!A37=0," ",COUNTRY_INFO!A37) -> Burkina Faso | B37: =IF(COUNTRY_INFO!B37=0," ",COUNTRY_INFO!B37) -> Centre-Ouest | C37: =IF(COUNTRY_INFO!C37=0," ",COUNTRY_INFO!C37) -> Léo | D37: =IF(AND(COUNTRY_INFO!$T$9:$T$1000="T3 (ALB/MBD)",COUNTRY_INFO!$U$9:$U$1000="T3 (ALB/MBD)"), "T3 (ALB/MBD)", " ") ->  | J37: 0 | N37: 0
A38: =IF(COUNTRY_INFO!A38=0," ",COUNTRY_INFO!A38) -> Burkina Faso | B38: =IF(COUNTRY_INFO!B38=0," ",COUNTRY_INFO!B38) -> Centre-Ouest | C38: =IF(COUNTRY_INFO!C38=0," ",COUNTRY_INFO!C38) -> Nanoro | D38: =IF(AND(COUNTRY_INFO!$T$9:$T$1000="T3 (ALB/MBD)",COUNTRY_INFO!$U$9:$U$1000="T3 (ALB/MBD)"), "T3 (ALB/MBD)", " ") ->  | J38: 0 | N38: 0
A39: =IF(COUNTRY_INFO!A39=0," ",COUNTRY_INFO!A39) -> Burkina Faso | B39: =IF(COUNTRY_INFO!B39=0," ",COUNTRY_INFO!B39) -> Centre-Ouest | C39: =IF(COUNTRY_INFO!C39=0," ",COUNTRY_INFO!C39) -> Réo | D39: =IF(AND(COUNTRY_INFO!$T$9:$T$1000="T3 (ALB/MBD)",COUNTRY_INFO!$U$9:$U$1000="T3 (ALB/MBD)"), "T3 (ALB/MBD)", " ") ->  | J39: 0 | N39: 0
A40: =IF(COUNTRY_INFO!A40=0," ",COUNTRY_INFO!A40) -> Burkina Faso | B40: =IF(COUNTRY_INFO!B40=0," ",COUNTRY_INFO!B40) -> Centre-Ouest | C40: =IF(COUNTRY_INFO!C40=0," ",COUNTRY_INFO!C40) -> Sabou | D40: =IF(AND(COUNTRY_INFO!$T$9:$T$1000="T3 (ALB/MBD)",COUNTRY_INFO!$U$9:$U$1000="T3 (ALB/MBD)"), "T3 (ALB/MBD)", " ") ->  | J40: 0 | N40: 0
A41: =IF(COUNTRY_INFO!A41=0," ",COUNTRY_INFO!A41) -> Burkina Faso | B41: =IF(COUNTRY_INFO!B41=0," ",COUNTRY_INFO!B41) -> Centre-Ouest | C41: =IF(COUNTRY_INFO!C41=0," ",COUNTRY_INFO!C41) -> Sapouy | D41: =IF(AND(COUNTRY_INFO!$T$9:$T$1000="T3 (ALB/MBD)",COUNTRY_INFO!$U$9:$U$1000="T3 (ALB/MBD)"), "T3 (ALB/MBD)", " ") ->  | J41: 0 | N41: 0
A42: =IF(COUNTRY_INFO!A42=0," ",COUNTRY_INFO!A42) -> Burkina Faso | B42: =IF(COUNTRY_INFO!B42=0," ",COUNTRY_INFO!B42) -> Centre-Ouest | C42: =IF(COUNTRY_INFO!C42=0," ",COUNTRY_INFO!C42) -> Tenado | D42: =IF(AND(COUNTRY_INFO!$T$9:$T$1000="T3 (ALB/MBD)",COUNTRY_INFO!$U$9:$U$1000="T3 (ALB/MBD)"), "T3 (ALB/MBD)", " ") ->  | J42: 0 | N42: 0
A43: =IF(COUNTRY_INFO!A43=0," ",COUNTRY_INFO!A43) -> Burkina Faso | B43: =IF(COUNTRY_INFO!B43=0," ",COUNTRY_INFO!B43) -> Centre-Sud | C43: =IF(COUNTRY_INFO!C43=0," ",COUNTRY_INFO!C43) -> Kombissiri | D43: =IF(AND(COUNTRY_INFO!$T$9:$T$1000="T3 (ALB/MBD)",COUNTRY_INFO!$U$9:$U$1000="T3 (ALB/MBD)"), "T3 (ALB/MBD)", " ") ->  | J43: 0 | N43: 0
A44: =IF(COUNTRY_INFO!A44=0," ",COUNTRY_INFO!A44) -> Burkina Faso | B44: =IF(COUNTRY_INFO!B44=0," ",COUNTRY_INFO!B44) -> Centre-Sud | C44: =IF(COUNTRY_INFO!C44=0," ",COUNTRY_INFO!C44) -> Manga | D44: =IF(AND(COUNTRY_INFO!$T$9:$T$1000="T3 (ALB/MBD)",COUNTRY_INFO!$U$9:$U$1000="T3 (ALB/MBD)"), "T3 (ALB/MBD)", " ") ->  | J44: 0 | N44: 0
A45: =IF(COUNTRY_INFO!A45=0," ",COUNTRY_INFO!A45) -> Burkina Faso | B45: =IF(COUNTRY_INFO!B45=0," ",COUNTRY_INFO!B45) -> Centre-Sud | C45: =IF(COUNTRY_INFO!C45=0," ",COUNTRY_INFO!C45) -> Pô | D45: =IF(AND(COUNTRY_INFO!$T$9:$T$1000="T3 (ALB/MBD)",COUNTRY_INFO!$U$9:$U$1000="T3 (ALB/MBD)"), "T3 (ALB/MBD)", " ") ->  | J45: 0 | N45: 0
A46: =IF(COUNTRY_INFO!A46=0," ",COUNTRY_INFO!A46) -> Burkina Faso | B46: =IF(COUNTRY_INFO!B46=0," ",COUNTRY_INFO!B46) -> Centre-Sud | C46: =IF(COUNTRY_INFO!C46=0," ",COUNTRY_INFO!C46) -> Saponé | D46: =IF(AND(COUNTRY_INFO!$T$9:$T$1000="T3 (ALB/MBD)",COUNTRY_INFO!$U$9:$U$1000="T3 (ALB/MBD)"), "T3 (ALB/MBD)", " ") ->  | J46: 0 | N46: 0
A47: =IF(COUNTRY_INFO!A47=0," ",COUNTRY_INFO!A47) -> Burkina Faso | B47: =IF(COUNTRY_INFO!B47=0," ",COUNTRY_INFO!B47) -> Est | C47: =IF(COUNTRY_INFO!C47=0," ",COUNTRY_INFO!C47) -> Bogandé | D47: =IF(AND(COUNTRY_INFO!$T$9:$T$1000="T3 (ALB/MBD)",COUNTRY_INFO!$U$9:$U$1000="T3 (ALB/MBD)"), "T3 (ALB/MBD)", " ") ->  | J47: 0 | N47: 0
A48: =IF(COUNTRY_INFO!A48=0," ",COUNTRY_INFO!A48) -> Burkina Faso | B48: =IF(COUNTRY_INFO!B48=0," ",COUNTRY_INFO!B48) -> Est | C48: =IF(COUNTRY_INFO!C48=0," ",COUNTRY_INFO!C48) -> Diapaga | D48: =IF(AND(COUNTRY_INFO!$T$9:$T$1000="T3 (ALB/MBD)",COUNTRY_INFO!$U$9:$U$1000="T3 (ALB/MBD)"), "T3 (ALB/MBD)", " ") ->  | J48: 0 | N48: 0
A49: =IF(COUNTRY_INFO!A49=0," ",COUNTRY_INFO!A49) -> Burkina Faso | B49: =IF(COUNTRY_INFO!B49=0," ",COUNTRY_INFO!B49) -> Est | C49: =IF(COUNTRY_INFO!C49=0," ",COUNTRY_INFO!C49) -> Fada N'gourma | D49: =IF(AND(COUNTRY_INFO!$T$9:$T$1000="T3 (ALB/MBD)",COUNTRY_INFO!$U$9:$U$1000="T3 (ALB/MBD)"), "T3 (ALB/MBD)", " ") ->  | J49: 0 | N49: 0
A50: =IF(COUNTRY_INFO!A50=0," ",COUNTRY_INFO!A50) -> Burkina Faso | B50: =IF(COUNTRY_INFO!B50=0," ",COUNTRY_INFO!B50) -> Est | C50: =IF(COUNTRY_INFO!C50=0," ",COUNTRY_INFO!C50) -> Gayeri | D50: =IF(AND(COUNTRY_INFO!$T$9:$T$1000="T3 (ALB/MBD)",COUNTRY_INFO!$U$9:$U$1000="T3 (ALB/MBD)"), "T3 (ALB/MBD)", " ") ->  | J50: 0 | N50: 0
A51: =IF(COUNTRY_INFO!A51=0," ",COUNTRY_INFO!A51) -> Burkina Faso | B51: =IF(COUNTRY_INFO!B51=0," ",COUNTRY_INFO!B51) -> Est | C51: =IF(COUNTRY_INFO!C51=0," ",COUNTRY_INFO!C51) -> Manni | D51: =IF(AND(COUNTRY_INFO!$T$9:$T$1000="T3 (ALB/MBD)",COUNTRY_INFO!$U$9:$U$1000="T3 (ALB/MBD)"), "T3 (ALB/MBD)", " ") ->  | J51: 0 | N51: 0
A52: =IF(COUNTRY_INFO!A52=0," ",COUNTRY_INFO!A52) -> Burkina Faso | B52: =IF(COUNTRY_INFO!B52=0," ",COUNTRY_INFO!B52) -> Est | C52: =IF(COUNTRY_INFO!C52=0," ",COUNTRY_INFO!C52) -> Pama | D52: =IF(AND(COUNTRY_INFO!$T$9:$T$1000="T3 (ALB/MBD)",COUNTRY_INFO!$U$9:$U$1000="T3 (ALB/MBD)"), "T3 (ALB/MBD)", " ") ->  | J52: 0 | N52: 0
A53: =IF(COUNTRY_INFO!A53=0," ",COUNTRY_INFO!A53) -> Burkina Faso | B53: =IF(COUNTRY_INFO!B53=0," ",COUNTRY_INFO!B53) -> Hauts-Bassins | C53: =IF(COUNTRY_INFO!C53=0," ",COUNTRY_INFO!C53) -> Dafra | D53: =IF(AND(COUNTRY_INFO!$T$9:$T$1000="T3 (ALB/MBD)",COUNTRY_INFO!$U$9:$U$1000="T3 (ALB/MBD)"), "T3 (ALB/MBD)", " ") ->  | J53: 0 | N53: 0
A54: =IF(COUNTRY_INFO!A54=0," ",COUNTRY_INFO!A54) -> Burkina Faso | B54: =IF(COUNTRY_INFO!B54=0," ",COUNTRY_INFO!B54) -> Hauts-Bassins | C54: =IF(COUNTRY_INFO!C54=0," ",COUNTRY_INFO!C54) -> Dandé | D54: =IF(AND(COUNTRY_INFO!$T$9:$T$1000="T3 (ALB/MBD)",COUNTRY_INFO!$U$9:$U$1000="T3 (ALB/MBD)"), "T3 (ALB/MBD)", " ") ->  | J54: 0 | N54: 0
A55: =IF(COUNTRY_INFO!A55=0," ",COUNTRY_INFO!A55) -> Burkina Faso | B55: =IF(COUNTRY_INFO!B55=0," ",COUNTRY_INFO!B55) -> Hauts-Bassins | C55: =IF(COUNTRY_INFO!C55=0," ",COUNTRY_INFO!C55) -> Dô | D55: =IF(AND(COUNTRY_INFO!$T$9:$T$1000="T3 (ALB/MBD)",COUNTRY_INFO!$U$9:$U$1000="T3 (ALB/MBD)"), "T3 (ALB/MBD)", " ") ->  | J55: 0 | N55: 0
A56: =IF(COUNTRY_INFO!A56=0," ",COUNTRY_INFO!A56) -> Burkina Faso | B56: =IF(COUNTRY_INFO!B56=0," ",COUNTRY_INFO!B56) -> Hauts-Bassins | C56: =IF(COUNTRY_INFO!C56=0," ",COUNTRY_INFO!C56) -> Houndé | D56: =IF(AND(COUNTRY_INFO!$T$9:$T$1000="T3 (ALB/MBD)",COUNTRY_INFO!$U$9:$U$1000="T3 (ALB/MBD)"), "T3 (ALB/MBD)", " ") ->  | J56: 0 | N56: 0
A57: =IF(COUNTRY_INFO!A57=0," ",COUNTRY_INFO!A57) -> Burkina Faso | B57: =IF(COUNTRY_INFO!B57=0," ",COUNTRY_INFO!B57) -> Hauts-Bassins | C57: =IF(COUNTRY_INFO!C57=0," ",COUNTRY_INFO!C57) -> Karangasso-Vigué | D57: =IF(AND(COUNTRY_INFO!$T$9:$T$1000="T3 (ALB/MBD)",COUNTRY_INFO!$U$9:$U$1000="T3 (ALB/MBD)"), "T3 (ALB/MBD)", " ") ->  | J57: 0 | N57: 0
A58: =IF(COUNTRY_INFO!A58=0," ",COUNTRY_INFO!A58) -> Burkina Faso | B58: =IF(COUNTRY_INFO!B58=0," ",COUNTRY_INFO!B58) -> Hauts-Bassins | C58: =IF(COUNTRY_INFO!C58=0," ",COUNTRY_INFO!C58) -> Lena | D58: =IF(AND(COUNTRY_INFO!$T$9:$T$1000="T3 (ALB/MBD)",COUNTRY_INFO!$U$9:$U$1000="T3 (ALB/MBD)"), "T3 (ALB/MBD)", " ") ->  | J58: 0 | N58: 0
A59: =IF(COUNTRY_INFO!A59=0," ",COUNTRY_INFO!A59) -> Burkina Faso | B59: =IF(COUNTRY_INFO!B59=0," ",COUNTRY_INFO!B59) -> Hauts-Bassins | C59: =IF(COUNTRY_INFO!C59=0," ",COUNTRY_INFO!C59) -> N'Dorola | D59: =IF(AND(COUNTRY_INFO!$T$9:$T$1000="T3 (ALB/MBD)",COUNTRY_INFO!$U$9:$U$1000="T3 (ALB/MBD)"), "T3 (ALB/MBD)", " ") ->  | J59: 0 | N59: 0
A60: =IF(COUNTRY_INFO!A60=0," ",COUNTRY_INFO!A60) -> Burkina Faso | B60: =IF(COUNTRY_INFO!B60=0," ",COUNTRY_INFO!B60) -> Hauts-Bassins | C60: =IF(COUNTRY_INFO!C60=0," ",COUNTRY_INFO!C60) -> Orodara | D60: =IF(AND(COUNTRY_INFO!$T$9:$T$1000="T3 (ALB/MBD)",COUNTRY_INFO!$U$9:$U$1000="T3 (ALB/MBD)"), "T3 (ALB/MBD)", " ") ->  | J60: 0 | N60: 0
A61: =IF(COUNTRY_INFO!A61=0," ",COUNTRY_INFO!A61) -> Burkina Faso | B61: =IF(COUNTRY_INFO!B61=0," ",COUNTRY_INFO!B61) -> Nord | C61: =IF(COUNTRY_INFO!C61=0," ",COUNTRY_INFO!C61) -> Gourcy | D61: =IF(AND(COUNTRY_INFO!$T$9:$T$1000="T3 (ALB/MBD)",COUNTRY_INFO!$U$9:$U$1000="T3 (ALB/MBD)"), "T3 (ALB/MBD)", " ") ->  | J61: 0 | N61: 0
A62: =IF(COUNTRY_INFO!A62=0," ",COUNTRY_INFO!A62) -> Burkina Faso | B62: =IF(COUNTRY_INFO!B62=0," ",COUNTRY_INFO!B62) -> Nord | C62: =IF(COUNTRY_INFO!C62=0," ",COUNTRY_INFO!C62) -> Ouahigouya | D62: =IF(AND(COUNTRY_INFO!$T$9:$T$1000="T3 (ALB/MBD)",COUNTRY_INFO!$U$9:$U$1000="T3 (ALB/MBD)"), "T3 (ALB/MBD)", " ") ->  | J62: 0 | N62: 0
A63: =IF(COUNTRY_INFO!A63=0," ",COUNTRY_INFO!A63) -> Burkina Faso | B63: =IF(COUNTRY_INFO!B63=0," ",COUNTRY_INFO!B63) -> Nord | C63: =IF(COUNTRY_INFO!C63=0," ",COUNTRY_INFO!C63) -> Seguenega | D63: =IF(AND(COUNTRY_INFO!$T$9:$T$1000="T3 (ALB/MBD)",COUNTRY_INFO!$U$9:$U$1000="T3 (ALB/MBD)"), "T3 (ALB/MBD)", " ") ->  | J63: 0 | N63: 0
A64: =IF(COUNTRY_INFO!A64=0," ",COUNTRY_INFO!A64) -> Burkina Faso | B64: =IF(COUNTRY_INFO!B64=0," ",COUNTRY_INFO!B64) -> Nord | C64: =IF(COUNTRY_INFO!C64=0," ",COUNTRY_INFO!C64) -> Thiou | D64: =IF(AND(COUNTRY_INFO!$T$9:$T$1000="T3 (ALB/MBD)",COUNTRY_INFO!$U$9:$U$1000="T3 (ALB/MBD)"), "T3 (ALB/MBD)", " ") ->  | J64: 0 | N64: 0
A65: =IF(COUNTRY_INFO!A65=0," ",COUNTRY_INFO!A65) -> Burkina Faso | B65: =IF(COUNTRY_INFO!B65=0," ",COUNTRY_INFO!B65) -> Nord | C65: =IF(COUNTRY_INFO!C65=0," ",COUNTRY_INFO!C65) -> Titao | D65: =IF(AND(COUNTRY_INFO!$T$9:$T$1000="T3 (ALB/MBD)",COUNTRY_INFO!$U$9:$U$1000="T3 (ALB/MBD)"), "T3 (ALB/MBD)", " ") ->  | J65: 0 | N65: 0
A66: =IF(COUNTRY_INFO!A66=0," ",COUNTRY_INFO!A66) -> Burkina Faso | B66: =IF(COUNTRY_INFO!B66=0," ",COUNTRY_INFO!B66) -> Nord | C66: =IF(COUNTRY_INFO!C66=0," ",COUNTRY_INFO!C66) -> Yako | D66: =IF(AND(COUNTRY_INFO!$T$9:$T$1000="T3 (ALB/MBD)",COUNTRY_INFO!$U$9:$U$1000="T3 (ALB/MBD)"), "T3 (ALB/MBD)", " ") ->  | J66: 0 | N66: 0
A67: =IF(COUNTRY_INFO!A67=0," ",COUNTRY_INFO!A67) -> Burkina Faso | B67: =IF(COUNTRY_INFO!B67=0," ",COUNTRY_INFO!B67) -> Plateau Central | C67: =IF(COUNTRY_INFO!C67=0," ",COUNTRY_INFO!C67) -> Boussé | D67: =IF(AND(COUNTRY_INFO!$T$9:$T$1000="T3 (ALB/MBD)",COUNTRY_INFO!$U$9:$U$1000="T3 (ALB/MBD)"), "T3 (ALB/MBD)", " ") ->  | J67: 0 | N67: 0
A68: =IF(COUNTRY_INFO!A68=0," ",COUNTRY_INFO!A68) -> Burkina Faso | B68: =IF(COUNTRY_INFO!B68=0," ",COUNTRY_INFO!B68) -> Plateau Central | C68: =IF(COUNTRY_INFO!C68=0," ",COUNTRY_INFO!C68) -> Ziniaré | D68: =IF(AND(COUNTRY_INFO!$T$9:$T$1000="T3 (ALB/MBD)",COUNTRY_INFO!$U$9:$U$1000="T3 (ALB/MBD)"), "T3 (ALB/MBD)", " ") ->  | J68: 0 | N68: 0
A69: =IF(COUNTRY_INFO!A69=0," ",COUNTRY_INFO!A69) -> Burkina Faso | B69: =IF(COUNTRY_INFO!B69=0," ",COUNTRY_INFO!B69) -> Plateau Central | C69: =IF(COUNTRY_INFO!C69=0," ",COUNTRY_INFO!C69) -> Zorgho | D69: =IF(AND(COUNTRY_INFO!$T$9:$T$1000="T3 (ALB/MBD)",COUNTRY_INFO!$U$9:$U$1000="T3 (ALB/MBD)"), "T3 (ALB/MBD)", " ") ->  | J69: 0 | N69: 0
A70: =IF(COUNTRY_INFO!A70=0," ",COUNTRY_INFO!A70) -> Burkina Faso | B70: =IF(COUNTRY_INFO!B70=0," ",COUNTRY_INFO!B70) -> Sahel | C70: =IF(COUNTRY_INFO!C70=0," ",COUNTRY_INFO!C70) -> Djibo | D70: =IF(AND(COUNTRY_INFO!$T$9:$T$1000="T3 (ALB/MBD)",COUNTRY_INFO!$U$9:$U$1000="T3 (ALB/MBD)"), "T3 (ALB/MBD)", " ") ->  | J70: 0 | N70: 0
A71: =IF(COUNTRY_INFO!A71=0," ",COUNTRY_INFO!A71) -> Burkina Faso | B71: =IF(COUNTRY_INFO!B71=0," ",COUNTRY_INFO!B71) -> Sahel | C71: =IF(COUNTRY_INFO!C71=0," ",COUNTRY_INFO!C71) -> Dori | D71: =IF(AND(COUNTRY_INFO!$T$9:$T$1000="T3 (ALB/MBD)",COUNTRY_INFO!$U$9:$U$1000="T3 (ALB/MBD)"), "T3 (ALB/MBD)", " ") ->  | J71: 0 | N71: 0
A72: =IF(COUNTRY_INFO!A72=0," ",COUNTRY_INFO!A72) -> Burkina Faso | B72: =IF(COUNTRY_INFO!B72=0," ",COUNTRY_INFO!B72) -> Sahel | C72: =IF(COUNTRY_INFO!C72=0," ",COUNTRY_INFO!C72) -> Gorom-Gorom | D72: =IF(AND(COUNTRY_INFO!$T$9:$T$1000="T3 (ALB/MBD)",COUNTRY_INFO!$U$9:$U$1000="T3 (ALB/MBD)"), "T3 (ALB/MBD)", " ") ->  | J72: 0 | N72: 0
A73: =IF(COUNTRY_INFO!A73=0," ",COUNTRY_INFO!A73) -> Burkina Faso | B73: =IF(COUNTRY_INFO!B73=0," ",COUNTRY_INFO!B73) -> Sahel | C73: =IF(COUNTRY_INFO!C73=0," ",COUNTRY_INFO!C73) -> Sebba | D73: =IF(AND(COUNTRY_INFO!$T$9:$T$1000="T3 (ALB/MBD)",COUNTRY_INFO!$U$9:$U$1000="T3 (ALB/MBD)"), "T3 (ALB/MBD)", " ") ->  | J73: 0 | N73: 0
A74: =IF(COUNTRY_INFO!A74=0," ",COUNTRY_INFO!A74) -> Burkina Faso | B74: =IF(COUNTRY_INFO!B74=0," ",COUNTRY_INFO!B74) -> Sud-Ouest | C74: =IF(COUNTRY_INFO!C74=0," ",COUNTRY_INFO!C74) -> Batié | D74: =IF(AND(COUNTRY_INFO!$T$9:$T$1000="T3 (ALB/MBD)",COUNTRY_INFO!$U$9:$U$1000="T3 (ALB/MBD)"), "T3 (ALB/MBD)", " ") ->  | J74: =SUM(G74:I74) -> 0 | N74: =SUM(K74:M74) -> 0 | O74: =IF(G74<>0, IF(K74/G74*100=0, "-", K74/G74*100), " ") ->  | P74: =IF(H74<>0, IF(L74/H74*100=0, "-", L74/H74*100), " ") ->  | Q74: =IF(I74<>0, IF(M74/I74*100=0, "-", M74/I74*100), " ") ->  | R74: =IF(J74<>0, IF(N74/J74*100=0, "-", N74/J74*100), " ") -> 
A75: =IF(COUNTRY_INFO!A75=0," ",COUNTRY_INFO!A75) -> Burkina Faso | B75: =IF(COUNTRY_INFO!B75=0," ",COUNTRY_INFO!B75) -> Sud-Ouest | C75: =IF(COUNTRY_INFO!C75=0," ",COUNTRY_INFO!C75) -> Dano | D75: =IF(AND(COUNTRY_INFO!$T$9:$T$1000="T3 (ALB/MBD)",COUNTRY_INFO!$U$9:$U$1000="T3 (ALB/MBD)"), "T3 (ALB/MBD)", " ") ->  | J75: 0 | N75: 0
A76: =IF(COUNTRY_INFO!A76=0," ",COUNTRY_INFO!A76) -> Burkina Faso | B76: =IF(COUNTRY_INFO!B76=0," ",COUNTRY_INFO!B76) -> Sud-Ouest | C76: =IF(COUNTRY_INFO!C76=0," ",COUNTRY_INFO!C76) -> Diébougou | D76: =IF(AND(COUNTRY_INFO!$T$9:$T$1000="T3 (ALB/MBD)",COUNTRY_INFO!$U$9:$U$1000="T3 (ALB/MBD)"), "T3 (ALB/MBD)", " ") ->  | J76: 0 | N76: 0
A77: =IF(COUNTRY_INFO!A77=0," ",COUNTRY_INFO!A77) -> Burkina Faso | B77: =IF(COUNTRY_INFO!B77=0," ",COUNTRY_INFO!B77) -> Sud-Ouest | C77: =IF(COUNTRY_INFO!C77=0," ",COUNTRY_INFO!C77) -> Gaoua | D77: =IF(AND(COUNTRY_INFO!$T$9:$T$1000="T3 (ALB/MBD)",COUNTRY_INFO!$U$9:$U$1000="T3 (ALB/MBD)"), "T3 (ALB/MBD)", " ") ->  | J77: 0 | N77: 0
A78: =IF(COUNTRY_INFO!A78=0," ",COUNTRY_INFO!A78) -> Burkina Faso | B78: =IF(COUNTRY_INFO!B78=0," ",COUNTRY_INFO!B78) -> Sud-Ouest | C78: =IF(COUNTRY_INFO!C78=0," ",COUNTRY_INFO!C78) -> Kampti | D78: =IF(AND(COUNTRY_INFO!$T$9:$T$1000="T3 (ALB/MBD)",COUNTRY_INFO!$U$9:$U$1000="T3 (ALB/MBD)"), "T3 (ALB/MBD)", " ") ->  | J78: 0 | N78: 0

Sheet DISTRICT
A1: Nombre d'individus traités
A2: Structure administrative, population traitée par groupe d'âge et sexe
A4: TOTAL | D4: =SUM(D$9:D$1000) -> 5530123 | E4: =SUM(E$9:E$1000) -> 2205757 | F4: =SUM(F$9:F$1000) -> 2023641 | G4: =SUM(G$9:G$1000) -> 4229398 | H4: =SUM(H$9:H$1000) -> 4229398 | I4: =IF(D4>0, IF(H4/D4*100<>0, H4/D4*100, "-"),0) -> 76.47927542 | J4: =SUM(J$9:J$1000) -> 260001 | K4: =SUM(K$9:K$1000) -> 102781 | L4: =SUM(L$9:L$1000) -> 104191 | M4: =SUM(M$9:M$1000) -> 4354347 | N4: =SUM(N$9:N$1000) -> 230153 | O4: =IF(J4>0, IF(N4/J4*100<>0, N4/J4*100, "-"),0) -> 88.52004415 | P4: =SUM(P$9:P$1000) -> 0 | Q4: =SUM(Q$9:Q$1000) -> 1487922 | R4: =SUM(R$9:R$1000) -> 1563881 | S4: =SUM(S$9:S$1000) -> 7200405 | T4: =SUM(T$9:T$1000) -> 0 | V4: 0 | X4: =SUM(X$9:X$1000) -> 0 | Y4: =IF(P4>0, IF(X4/P4*100<>0, X4/P4*100, "-"),0) -> 0 | Z4: =SUM(Z$9:Z$1000) -> 4332546.81 | AA4: 2217752 | AB4: 2306672 | AC4: 4545997 | AD4: 1041119.74 | AF4: 496252.4 | AH4: 1537372.14 | AI4: =IF(Z4>0, IF(AH4/Z4*100<>0, AH4/Z4*100, "-"),0) -> 35.4842592
A6: Structure administrative du pays | D6: Population nécessitant la CP pour FL | E6: Population traitée pour la filariose lymphatique | J6: Population nécessitant la CP pour ONCHO | K6: Population traitée pour l'onchocercose | P6: Population nécessitant la CP pour STH | Q6: Population traitée pour les géohelminthiases | Z6: Population nécessitant la CP pour SCH | AA6: Population traitée pour la schistosomiase | AP6: =SUM(AP9:AP1000) -> 219168.0673 | AQ6: 801772.735 | AR6: 3379320.889 | AS6: 3953115.799 | AT6: =SUM(AT9:AT1000) -> 8353377.49 | AU6: =COUNTIF(AU9:AU1000,"Y") -> 27 | AV6: =SUM(AV9:AV1000) -> 0 | AW6: 3314748 | AX6: 4365167.702 | AY6: =SUM(AY9:AY1000) -> 7679915.702 | AZ6: 0 | BA6: 2358694.443 | BB6: 3098707.702 | BC6: 5457402.145 | BD6: =IF(AT6<>0,BC6/AT6,0) -> 0.6533168352
A7: Pays | B7: Région/Département | C7: District | E7: Masculine | F7: Féminine | G7: Total traité | H7: Total traité ayant besoin de CP | I7: (%) | K7: Masculine | L7: Féminine | M7: Total traité | N7: Total traité ayant besoin de CP | O7: (%) | Q7: Masculine | R7: Féminine | S7: Total traité | T7: EAPréS traité ayant besoin de CP | U7: EAPréS (%) | V7: EAS traité ayant besoin de CP | W7: EAS (%) | X7: Total traité ayant besoin de CP | Y7: (%) | AA7: Masculine | AB7: Féminine | AC7: Total traité | AD7: EAS traité ayant besoin de CP | AE7: EAS (%) | AF7: Adultes traité ayant besoin de CP | AG7: Adultes (%) | AH7: Total traité ayant besoin de CP | AI7: (%) | AK7: LF | AL7: ONCHO | AM7: STH | AN7: SCH-SAC | AO7: SCH_Adults | AP7: <1 | AQ7: PreSAC | AR7: SAC | AS7: Adults | AT7: Total | AU7: Dis | AV7: PreSAC | AW7: SAC | AX7: Adults | AY7: Total | AZ7: PreSAC | BA7: SAC | BB7: Adults | BC7: Total | BD7: Coverage
A9: =IF(COUNTRY_INFO!A9=0," ",COUNTRY_INFO!A9) -> Burkina Faso | B9: =IF(COUNTRY_INFO!B9=0," ",COUNTRY_INFO!B9) -> Boucle du Mouhoun | C9: =IF(COUNTRY_INFO!C9=0," ",COUNTRY_INFO!C9) -> Boromo | D9: =COUNTRY_INFO!L9 -> Interrompu | G9: =MAX('MDA1'!M9,'MDA2'!M9) -> 0 | H9: =IF(AND(COUNTRY_INFO!H9>0,COUNTRY_INFO!H9<4),IF(D9>MAX('MDA1'!M9,'MDA2'!M9),MAX('MDA1'!M9,'MDA2'!M9),D9),0) -> 0 | I9: =IF(AND(COUNTRY_INFO!H9>0,COUNTRY_INFO!H9<4), IF(G9/D9*100<>0, IF(G9/D9*100>100,100,G9/D9*100), "-"),0) -> 0 | J9: =COUNTRY_INFO!M9 -> 0 | M9: =MAX('MDA1'!M9,MAX('MDA3'!I9,'MDA3'!L9)+MAX('MDA3'!J9,'MDA3'!M9)) -> 0 | N9: =IF(AND(COUNTRY_INFO!I9>0,COUNTRY_INFO!I9<4),IF(J9>MAX('MDA1'!M9,MAX('MDA3'!I9,'MDA3'!L9)+MAX('MDA3'!J9,'MDA3'!M9)),MAX('MDA1'!M9,MAX('MDA3'!I9,'MDA3'!L9)+MAX('MDA3'!J9,'MDA3'!M9)),J9),0) -> 0 | O9: =IF(AND(COUNTRY_INFO!I9>0,COUNTRY_INFO!I9<4), IF(M9/J9*100<>0, IF(M9/J9*100>100,100,M9/J9*100), "-"),0) -> 0 | P9: =COUNTRY_INFO!N9 -> 0 | Q9: 44995 | R9: 44826 | S9: =SUM(MAX('MDA2'!J9, 'T1'!L9, MAX(T3_R1!K9, T3_R2!K9)), MAX('MDA1'!K9, 'MDA2'!K9, 'T1'!M9, MAX(T3_R1!L9, T3_R2!L9)), MAX('MDA1'!L9, 'MDA2'!L9, 'T1'!N9, MAX(T3_R1!M9, T3_R2!M9))) -> 227381 | T9: =IF(AND(COUNTRY_INFO!J9>1,COUNTRY_INFO!J9<4),IF(COUNTRY_INFO!E9>MAX('MDA2'!J9,'T1'!L9,MAX(T3_R1!K9,T3_R2!K9)),MAX('MDA2'!J9,'T1'!L9,MAX(T3_R1!K9,T3_R2!K9)),COUNTRY_INFO!E9),0) -> 0 | U9: =IF(AND(COUNTRY_INFO!J9>1,COUNTRY_INFO!J9<4), IF(T9/COUNTRY_INFO!E9*100<>0, IF(T9/COUNTRY_INFO!E9*100>100,100,T9/COUNTRY_INFO!E9*100), "-"),0) -> 0 | V9: =IF(AND(COUNTRY_INFO!J9>1,COUNTRY_INFO!J9<4),IF(COUNTRY_INFO!F9>MAX('MDA1'!K9,'MDA2'!K9,'T1'!M9,MAX(T3_R1!L9,T3_R2!L9)),MAX('MDA1'!K9,'MDA2'!K9,'T1'!M9,MAX(T3_R1!L9,T3_R2!L9)),COUNTRY_INFO!F9),0) -> 0 | W9: =IF(AND(COUNTRY_INFO!J9>1,COUNTRY_INFO!J9<4), IF(V9/COUNTRY_INFO!F9*100<>0, IF(V9/COUNTRY_INFO!F9*100>100,100,V9/COUNTRY_INFO!F9*100), "-"),0) -> 0 | X9: =SUM(T9,V9) -> 0 | Y9: =IF(AND(COUNTRY_INFO!J9>1,COUNTRY_INFO!J9<4), IF(S9/P9*100<>0, IF(X9/P9*100>100,100,X9/P9*100), "-"),0) -> 0 | Z9: =COUNTRY_INFO!O9 -> 72786.2 | AA9: 112697 | AB9: 114684 | AC9: =MAX('T1'!L9,'T2'!J9)+MAX('T1'!M9,'T2'!K9)+MAX('T1'!N9,'T2'!L9) -> 227381 | AD9: =IF(COUNTRY_INFO!K9=1,IF(COUNTRY_INFO!F9*0.33>MAX('T1'!M9,'T2'!K9),MAX('T1'!M9,'T2'!K9),COUNTRY_INFO!F9*0.33),IF(COUNTRY_INFO!K9=2,IF(COUNTRY_INFO!F9*0.5>MAX('T1'!M9,'T2'!K9),MAX('T1'!M9,'T2'!K9),COUNTRY_INFO!F9*0.5),IF(COUNTRY_INFO!K9=3,IF(COUNTRY_INFO!F9>MAX('T1'!M9,'T2'!K9),MAX('T1'!M9,'T2'!K9),COUNTRY_INFO!F9),0))) -> 43180 | AE9: =IF(AND(COUNTRY_INFO!K9>0,COUNTRY_INFO!K9<4),IF(Z9>0,IF(COUNTRY_INFO!K9=1, AD9/(COUNTRY_INFO!F9*0.33)*100, IF(COUNTRY_INFO!K9=2, AD9/(COUNTRY_INFO!F9*0.5)*100, IF(COUNTRY_INFO!K9=3, AD9/COUNTRY_INFO!F9*100))),"-"),0) -> 100 | AF9: =IF(COUNTRY_INFO!K9=2,IF(COUNTRY_INFO!G9*0.2>MAX('T1'!N9,'T2'!L9),MAX('T1'!N9,'T2'!L9),COUNTRY_INFO!G9*0.2),IF(COUNTRY_INFO!K9=3,IF(COUNTRY_INFO!G9>MAX('T1'!N9,'T2'!L9),MAX('T1'!N9,'T2'!L9),COUNTRY_INFO!G9),0)) -> 29606.2 | AG9: =IF(AND(COUNTRY_INFO!K9>0,COUNTRY_INFO!K9<4),IF(Z9>0,IF(COUNTRY_INFO!K9=1, 0, IF(COUNTRY_INFO!K9=2, AF9/(COUNTRY_INFO!G9*0.2)*100, IF(COUNTRY_INFO!K9=3, AF9/COUNTRY_INFO!G9*100))),"-"),0) -> 100 | AH9: =SUM(AD9,AF9) -> 72786.2 | AI9: =IF(AND(COUNTRY_INFO!K9>0,COUNTRY_INFO!K9<4), IF(AC9/Z9*100<>0, IF(AH9/Z9*100>100,100,AH9/Z9*100), "-"),0) -> 100 | AK9: =IF(AND(D9<>0, D9<>"Inconnu",D9<>"Interrompu",D9<>"Non requis"),D9/COUNTRY_INFO!D9, 0) -> 0 | AL9: =IF(AND(J9<>0,J9<>"Inconnu",J9<>"Interrompu",J9<>"Non requis"),J9/COUNTRY_INFO!D9, 0) -> 0 | AM9: =IF(AND(P9<>0,P9<>"Inconnu",P9<>"Non requis"),P9/(COUNTRY_INFO!E9+COUNTRY_INFO!F9), 0) -> 0 | AN9: =IF(AND(Z9<>0,Z9<>"Inconnu",Z9<>"Non requis"),IF(COUNTRY_INFO!K9=1,1,IF(COUNTRY_INFO!K9=2,0.5*COUNTRY_INFO!F9/(0.5*COUNTRY_INFO!F9+0.2*COUNTRY_INFO!G9),IF(COUNTRY_INFO!K9=3,COUNTRY_INFO!F9/(COUNTRY_INFO!F9+COUNTRY_INFO!G9)))),0) -> 0.5932443238 | AO9: =IF(AND(Z9<>0,Z9<>"Inconnu",Z9<>"Non requis"),IF(COUNTRY_INFO!K9=1,0,IF(COUNTRY_INFO!K9=2,0.2*COUNTRY_INFO!G9/(0.5*COUNTRY_INFO!F9+0.2*COUNTRY_INFO!G9),IF(COUNTRY_INFO!K9=3,COUNTRY_INFO!G9/(COUNTRY_INFO!F9+COUNTRY_INFO!G9)))),0) -> 0.4067556762 | AP9: =MAX(COUNTRY_INFO!D9*AK9*PROFILE!$G$7,COUNTRY_INFO!D9*AL9*PROFILE!$G$7) -> 0 | AQ9: =MAX(COUNTRY_INFO!D9*AK9*PROFILE!$G$8,COUNTRY_INFO!D9*AL9*PROFILE!$G$8,COUNTRY_INFO!D9*AM9*PROFILE!$G$8) -> 0 | AR9: =MAX(COUNTRY_INFO!D9*AK9*PROFILE!$G$9,COUNTRY_INFO!D9*AL9*PROFILE!$G$9,COUNTRY_INFO!D9*AM9*PROFILE!$G$9,IF(AND(DISTRICT!Z9<>"Inconnu",Z9<>"Non requis"),COUNTRY_INFO!O9*DISTRICT!AN9,0)) -> 43180 | AS9: =MAX(COUNTRY_INFO!D9*AK9*PROFILE!$G$10,COUNTRY_INFO!D9*AL9*PROFILE!$G$10,IF(AND(DISTRICT!Z9<>"Inconnu",Z9<>"Non requis"),COUNTRY_INFO!O9*DISTRICT!AO9,0)) -> 29606.2 | AT9: =SUM(AP9:AS9) -> 72786.2 | AU9: =IF(COUNTIFS(AK9:AN9,">0")=0,0, IF(COUNTIFS(AK9:AN9,">0")<=IF(AND(OR(D9>=0,D9="Non requis",D9="Inconnu",D9="Interrompu"),D9>0,H9>0),1,0)+IF(AND(OR(J9>=0,J9="Non requis",J9="Inconnu",J9="Interrompu"),J9>0,N9>0),1,0)+IF(AND(OR(P9>=0,P9="Non requis",P9="Inconnu"),P9>0,X9>0),1,0)+IF(AND(OR(Z9>=0,Z9="Non requis",Z9="Inconnu"),Z9>0,AH9>0),1,0),"Y",0)) -> Y | AV9: =MAX('MDA2'!J9,'T1'!L9,'T2'!J9,T3_R1!K9,T3_R2!K9) -> 0 | AW9: =MAX('MDA1'!K9,'MDA2'!K9,'MDA3'!I9,'MDA3'!L9,'T1'!M9,'T2'!K9,T3_R1!L9,T3_R2!L9) -> 89821 | AX9: =MAX('MDA1'!L9,'MDA2'!L9,'MDA3'!J9,'MDA3'!M9,'T1'!N9,'T2'!L9,T3_R1!M9,T3_R2!M9) -> 137560 | AY9: =SUM(AV9:AX9) -> 227381 | AZ9: =MAX('MDA2'!J9,T9) -> 0 | BA9: =MAX('MDA1'!K9,'MDA2'!K9,'MDA3'!I9,'MDA3'!L9,V9,AD9) -> 43180 | BB9: =MAX('MDA1'!L9,'MDA2'!L9,'MDA3'!J9,'MDA3'!M9,AF9) -> 29606.2 | BC9: =IF(AT9<SUM(AZ9:BB9), AT9,SUM(AZ9:BB9)) -> 72786.2 | BD9: =IF(AT9<>0,BC9/AT9*100,0) -> 100
A10: =IF(COUNTRY_INFO!A10=0," ",COUNTRY_INFO!A10) -> Burkina Faso | B10: =IF(COUNTRY_INFO!B10=0," ",COUNTRY_INFO!B10) -> Boucle du Mouhoun | C10: =IF(COUNTRY_INFO!C10=0," ",COUNTRY_INFO!C10) -> Dédougou | D10: =COUNTRY_INFO!L10 -> Interrompu | G10: =MAX('MDA1'!M10,'MDA2'!M10) -> 0 | H10: =IF(AND(COUNTRY_INFO!H10>0,COUNTRY_INFO!H10<4),IF(D10>MAX('MDA1'!M10,'MDA2'!M10),MAX('MDA1'!M10,'MDA2'!M10),D10),0) -> 0 | I10: =IF(AND(COUNTRY_INFO!H10>0,COUNTRY_INFO!H10<4), IF(G10/D10*100<>0, IF(G10/D10*100>100,100,G10/D10*100), "-"),0) -> 0 | J10: =COUNTRY_INFO!M10 -> 0 | M10: =MAX('MDA1'!M10,MAX('MDA3'!I10,'MDA3'!L10)+MAX('MDA3'!J10,'MDA3'!M10)) -> 0 | N10: =IF(AND(COUNTRY_INFO!I10>0,COUNTRY_INFO!I10<4),IF(J10>MAX('MDA1'!M10,MAX('MDA3'!I10,'MDA3'!L10)+MAX('MDA3'!J10,'MDA3'!M10)),MAX('MDA1'!M10,MAX('MDA3'!I10,'MDA3'!L10)+MAX('MDA3'!J10,'MDA3'!M10)),J10),0) -> 0 | O10: =IF(AND(COUNTRY_INFO!I10>0,COUNTRY_INFO!I10<4), IF(M10/J10*100<>0, IF(M10/J10*100>100,100,M10/J10*100), "-"),0) -> 0 | P10: =COUNTRY_INFO!N10 -> 0 | Q10: 60832 | R10: 59592 | S10: =SUM(MAX('MDA2'!J10, 'T1'!L10, MAX(T3_R1!K10, T3_R2!K10)), MAX('MDA1'!K10, 'MDA2'!K10, 'T1'!M10, MAX(T3_R1!L10, T3_R2!L10)), MAX('MDA1'!L10, 'MDA2'!L10, 'T1'!N10, MAX(T3_R1!M10, T3_R2!M10))) -> 307817 | T10: =IF(AND(COUNTRY_INFO!J10>1,COUNTRY_INFO!J10<4),IF(COUNTRY_INFO!E10>MAX('MDA2'!J10,'T1'!L10,MAX(T3_R1!K10,T3_R2!K10)),MAX('MDA2'!J10,'T1'!L10,MAX(T3_R1!K10,T3_R2!K10)),COUNTRY_INFO!E10),0) -> 0 | U10: =IF(AND(COUNTRY_INFO!J10>1,COUNTRY_INFO!J10<4), IF(T10/COUNTRY_INFO!E10*100<>0, IF(T10/COUNTRY_INFO!E10*100>100,100,T10/COUNTRY_INFO!E10*100), "-"),0) -> 0 | V10: =IF(AND(COUNTRY_INFO!J10>1,COUNTRY_INFO!J10<4),IF(COUNTRY_INFO!F10>MAX('MDA1'!K10,'MDA2'!K10,'T1'!M10,MAX(T3_R1!L10,T3_R2!L10)),MAX('MDA1'!K10,'MDA2'!K10,'T1'!M10,MAX(T3_R1!L10,T3_R2!L10)),COUNTRY_INFO!F10),0) -> 0 | W10: =IF(AND(COUNTRY_INFO!J10>1,COUNTRY_INFO!J10<4), IF(V10/COUNTRY_INFO!F10*100<>0, IF(V10/COUNTRY_INFO!F10*100>100,100,V10/COUNTRY_INFO!F10*100), "-"),0) -> 0 | X10: =SUM(T10,V10) -> 0 | Y10: =IF(AND(COUNTRY_INFO!J10>1,COUNTRY_INFO!J10<4), IF(S10/P10*100<>0, IF(X10/P10*100>100,100,X10/P10*100), "-"),0) -> 0 | Z10: =COUNTRY_INFO!O10 -> 101204.5 | AA10: 153078 | AB10: 154739 | AC10: =MAX('T1'!L10,'T2'!J10)+MAX('T1'!M10,'T2'!K10)+MAX('T1'!N10,'T2'!L10) -> 307817 | AD10: =IF(COUNTRY_INFO!K10=1,IF(COUNTRY_INFO!F10*0.33>MAX('T1'!M10,'T2'!K10),MAX('T1'!M10,'T2'!K10),COUNTRY_INFO!F10*0.33),IF(COUNTRY_INFO!K10=2,IF(COUNTRY_INFO!F10*0.5>MAX('T1'!M10,'T2'!K10),MAX('T1'!M10,'T2'!K10),COUNTRY_INFO!F10*0.5),IF(COUNTRY_INFO!K10=3,IF(COUNTRY_INFO!F10>MAX('T1'!M10,'T2'!K10),MAX('T1'!M10,'T2'!K10),COUNTRY_INFO!F10),0))) -> 60036.5 | AE10: =IF(AND(COUNTRY_INFO!K10>0,COUNTRY_INFO!K10<4),IF(Z10>0,IF(COUNTRY_INFO!K10=1, AD10/(COUNTRY_INFO!F10*0.33)*100, IF(COUNTRY_INFO!K10=2, AD10/(COUNTRY_INFO!F10*0.5)*100, IF(COUNTRY_INFO!K10=3, AD10/COUNTRY_INFO!F10*100))),"-"),0) -> 100 | AF10: =IF(COUNTRY_INFO!K10=2,IF(COUNTRY_INFO!G10*0.2>MAX('T1'!N10,'T2'!L10),MAX('T1'!N10,'T2'!L10),COUNTRY_INFO!G10*0.2),IF(COUNTRY_INFO!K10=3,IF(COUNTRY_INFO!G10>MAX('T1'!N10,'T2'!L10),MAX('T1'!N10,'T2'!L10),COUNTRY_INFO!G10),0)) -> 41168 | AG10: =IF(AND(COUNTRY_INFO!K10>0,COUNTRY_INFO!K10<4),IF(Z10>0,IF(COUNTRY_INFO!K10=1, 0, IF(COUNTRY_INFO!K10=2, AF10/(COUNTRY_INFO!G10*0.2)*100, IF(COUNTRY_INFO!K10=3, AF10/COUNTRY_INFO!G10*100))),"-"),0) -> 100 | AH10: =SUM(AD10,AF10) -> 101204.5 | AI10: =IF(AND(COUNTRY_INFO!K10>0,COUNTRY_INFO!K10<4), IF(AC10/Z10*100<>0, IF(AH10/Z10*100>100,100,AH10/Z10*100), "-"),0) -> 100 | AK10: =IF(AND(D10<>0, D10<>"Inconnu",D10<>"Interrompu",D10<>"Non requis"),D10/COUNTRY_INFO!D10, 0) -> 0 | AL10: =IF(AND(J10<>0,J10<>"Inconnu",J10<>"Interrompu",J10<>"Non requis"),J10/COUNTRY_INFO!D10, 0) -> 0 | AM10: =IF(AND(P10<>0,P10<>"Inconnu",P10<>"Non requis"),P10/(COUNTRY_INFO!E10+COUNTRY_INFO!F10), 0) -> 0 | AN10: =IF(AND(Z10<>0,Z10<>"Inconnu",Z10<>"Non requis"),IF(COUNTRY_INFO!K10=1,1,IF(COUNTRY_INFO!K10=2,0.5*COUNTRY_INFO!F10/(0.5*COUNTRY_INFO!F10+0.2*COUNTRY_INFO!G10),IF(COUNTRY_INFO!K10=3,COUNTRY_INFO!F10/(COUNTRY_INFO!F10+COUNTRY_INFO!G10)))),0) -> 0.5932196691 | AO10: =IF(AND(Z10<>0,Z10<>"Inconnu",Z10<>"Non requis"),IF(COUNTRY_INFO!K10=1,0,IF(COUNTRY_INFO!K10=2,0.2*COUNTRY_INFO!G10/(0.5*COUNTRY_INFO!F10+0.2*COUNTRY_INFO!G10),IF(COUNTRY_INFO!K10=3,COUNTRY_INFO!G10/(COUNTRY_INFO!F10+COUNTRY_INFO!G10)))),0) -> 0.4067803309 | AP10: =MAX(COUNTRY_INFO!D10*AK10*PROFILE!$G$7,COUNTRY_INFO!D10*AL10*PROFILE!$G$7) -> 0 | AQ10: =MAX(COUNTRY_INFO!D10*AK10*PROFILE!$G$8,COUNTRY_INFO!D10*AL10*PROFILE!$G$8,COUNTRY_INFO!D10*AM10*PROFILE!$G$8) -> 0 | AR10: =MAX(COUNTRY_INFO!D10*AK10*PROFILE!$G$9,COUNTRY_INFO!D10*AL10*PROFILE!$G$9,COUNTRY_INFO!D10*AM10*PROFILE!$G$9,IF(AND(DISTRICT!Z10<>"Inconnu",Z10<>"Non requis"),COUNTRY_INFO!O10*DISTRICT!AN10,0)) -> 60036.5 | AS10: =MAX(COUNTRY_INFO!D10*AK10*PROFILE!$G$10,COUNTRY_INFO!D10*AL10*PROFILE!$G$10,IF(AND(DISTRICT!Z10<>"Inconnu",Z10<>"Non requis"),COUNTRY_INFO!O10*DISTRICT!AO10,0)) -> 41168 | AT10: =SUM(AP10:AS10) -> 101204.5 | AU10: Y | AV10: =MAX('MDA2'!J10,'T1'!L10,'T2'!J10,T3_R1!K10,T3_R2!K10) -> 0 | AW10: =MAX('MDA1'!K10,'MDA2'!K10,'MDA3'!I10,'MDA3'!L10,'T1'!M10,'T2'!K10,T3_R1!L10,T3_R2!L10) -> 123315 | AX10: =MAX('MDA1'!L10,'MDA2'!L10,'MDA3'!J10,'MDA3'!M10,'T1'!N10,'T2'!L10,T3_R1!M10,T3_R2!M10) -> 184502 | AY10: =SUM(AV10:AX10) -> 307817 | AZ10: =MAX('MDA2'!J10,T10) -> 0 | BA10: =MAX('MDA1'!K10,'MDA2'!K10,'MDA3'!I10,'MDA3'!L10,V10,AD10) -> 60036.5 | BB10: =MAX('MDA1'!L10,'MDA2'!L10,'MDA3'!J10,'MDA3'!M10,AF10) -> 41168 | BC10: 101204.5 | BD10: 100
A11: =IF(COUNTRY_INFO!A11=0," ",COUNTRY_INFO!A11) -> Burkina Faso | B11: =IF(COUNTRY_INFO!B11=0," ",COUNTRY_INFO!B11) -> Boucle du Mouhoun | C11: =IF(COUNTRY_INFO!C11=0," ",COUNTRY_INFO!C11) -> Nouna | D11: =COUNTRY_INFO!L11 -> Interrompu | G11: =MAX('MDA1'!M11,'MDA2'!M11) -> 0 | H11: =IF(AND(COUNTRY_INFO!H11>0,COUNTRY_INFO!H11<4),IF(D11>MAX('MDA1'!M11,'MDA2'!M11),MAX('MDA1'!M11,'MDA2'!M11),D11),0) -> 0 | I11: =IF(AND(COUNTRY_INFO!H11>0,COUNTRY_INFO!H11<4), IF(G11/D11*100<>0, IF(G11/D11*100>100,100,G11/D11*100), "-"),0) -> 0 | J11: =COUNTRY_INFO!M11 -> 0 | M11: =MAX('MDA1'!M11,MAX('MDA3'!I11,'MDA3'!L11)+MAX('MDA3'!J11,'MDA3'!M11)) -> 0 | N11: =IF(AND(COUNTRY_INFO!I11>0,COUNTRY_INFO!I11<4),IF(J11>MAX('MDA1'!M11,MAX('MDA3'!I11,'MDA3'!L11)+MAX('MDA3'!J11,'MDA3'!M11)),MAX('MDA1'!M11,MAX('MDA3'!I11,'MDA3'!L11)+MAX('MDA3'!J11,'MDA3'!M11)),J11),0) -> 0 | O11: =IF(AND(COUNTRY_INFO!I11>0,COUNTRY_INFO!I11<4), IF(M11/J11*100<>0, IF(M11/J11*100>100,100,M11/J11*100), "-"),0) -> 0 | P11: =COUNTRY_INFO!N11 -> 0 | Q11: 54167 | R11: 54104 | S11: =SUM(MAX('MDA2'!J11, 'T1'!L11, MAX(T3_R1!K11, T3_R2!K11)), MAX('MDA1'!K11, 'MDA2'!K11, 'T1'!M11, MAX(T3_R1!L11, T3_R2!L11)), MAX('MDA1'!L11, 'MDA2'!L11, 'T1'!N11, MAX(T3_R1!M11, T3_R2!M11))) -> 283095 | T11: =IF(AND(COUNTRY_INFO!J11>1,COUNTRY_INFO!J11<4),IF(COUNTRY_INFO!E11>MAX('MDA2'!J11,'T1'!L11,MAX(T3_R1!K11,T3_R2!K11)),MAX('MDA2'!J11,'T1'!L11,MAX(T3_R1!K11,T3_R2!K11)),COUNTRY_INFO!E11),0) -> 0 | U11: =IF(AND(COUNTRY_INFO!J11>1,COUNTRY_INFO!J11<4), IF(T11/COUNTRY_INFO!E11*100<>0, IF(T11/COUNTRY_INFO!E11*100>100,100,T11/COUNTRY_INFO!E11*100), "-"),0) -> 0 | V11: =IF(AND(COUNTRY_INFO!J11>1,COUNTRY_INFO!J11<4),IF(COUNTRY_INFO!F11>MAX('MDA1'!K11,'MDA2'!K11,'T1'!M11,MAX(T3_R1!L11,T3_R2!L11)),MAX('MDA1'!K11,'MDA2'!K11,'T1'!M11,MAX(T3_R1!L11,T3_R2!L11)),COUNTRY_INFO!F11),0) -> 0 | W11: =IF(AND(COUNTRY_INFO!J11>1,COUNTRY_INFO!J11<4), IF(V11/COUNTRY_INFO!F11*100<>0, IF(V11/COUNTRY_INFO!F11*100>100,100,V11/COUNTRY_INFO!F11*100), "-"),0) -> 0 | X11: 0 | Y11: =IF(AND(COUNTRY_INFO!J11>1,COUNTRY_INFO!J11<4), IF(S11/P11*100<>0, IF(X11/P11*100>100,100,X11/P11*100), "-"),0) -> 0 | Z11: =COUNTRY_INFO!O11 -> 92937.1 | AA11: 142329 | AB11: 140766 | AC11: =MAX('T1'!L11,'T2'!J11)+MAX('T1'!M11,'T2'!K11)+MAX('T1'!N11,'T2'!L11) -> 283095 | AD11: =IF(COUNTRY_INFO!K11=1,IF(COUNTRY_INFO!F11*0.33>MAX('T1'!M11,'T2'!K11),MAX('T1'!M11,'T2'!K11),COUNTRY_INFO!F11*0.33),IF(COUNTRY_INFO!K11=2,IF(COUNTRY_INFO!F11*0.5>MAX('T1'!M11,'T2'!K11),MAX('T1'!M11,'T2'!K11),COUNTRY_INFO!F11*0.5),IF(COUNTRY_INFO!K11=3,IF(COUNTRY_INFO!F11>MAX('T1'!M11,'T2'!K11),MAX('T1'!M11,'T2'!K11),COUNTRY_INFO!F11),0))) -> 55133.5 | AE11: =IF(AND(COUNTRY_INFO!K11>0,COUNTRY_INFO!K11<4),IF(Z11>0,IF(COUNTRY_INFO!K11=1, AD11/(COUNTRY_INFO!F11*0.33)*100, IF(COUNTRY_INFO!K11=2, AD11/(COUNTRY_INFO!F11*0.5)*100, IF(COUNTRY_INFO!K11=3, AD11/COUNTRY_INFO!F11*100))),"-"),0) -> 100 | AF11: =IF(COUNTRY_INFO!K11=2,IF(COUNTRY_INFO!G11*0.2>MAX('T1'!N11,'T2'!L11),MAX('T1'!N11,'T2'!L11),COUNTRY_INFO!G11*0.2),IF(COUNTRY_INFO!K11=3,IF(COUNTRY_INFO!G11>MAX('T1'!N11,'T2'!L11),MAX('T1'!N11,'T2'!L11),COUNTRY_INFO!G11),0)) -> 37803.6 | AG11: =IF(AND(COUNTRY_INFO!K11>0,COUNTRY_INFO!K11<4),IF(Z11>0,IF(COUNTRY_INFO!K11=1, 0, IF(COUNTRY_INFO!K11=2, AF11/(COUNTRY_INFO!G11*0.2)*100, IF(COUNTRY_INFO!K11=3, AF11/COUNTRY_INFO!G11*100))),"-"),0) -> 100 | AH11: 92937.1 | AI11: =IF(AND(COUNTRY_INFO!K11>0,COUNTRY_INFO!K11<4), IF(AC11/Z11*100<>0, IF(AH11/Z11*100>100,100,AH11/Z11*100), "-"),0) -> 100 | AK11: =IF(AND(D11<>0, D11<>"Inconnu",D11<>"Interrompu",D11<>"Non requis"),D11/COUNTRY_INFO!D11, 0) -> 0 | AL11: =IF(AND(J11<>0,J11<>"Inconnu",J11<>"Interrompu",J11<>"Non requis"),J11/COUNTRY_INFO!D11, 0) -> 0 | AM11: =IF(AND(P11<>0,P11<>"Inconnu",P11<>"Non requis"),P11/(COUNTRY_INFO!E11+COUNTRY_INFO!F11), 0) -> 0 | AN11: =IF(AND(Z11<>0,Z11<>"Inconnu",Z11<>"Non requis"),IF(COUNTRY_INFO!K11=1,1,IF(COUNTRY_INFO!K11=2,0.5*COUNTRY_INFO!F11/(0.5*COUNTRY_INFO!F11+0.2*COUNTRY_INFO!G11),IF(COUNTRY_INFO!K11=3,COUNTRY_INFO!F11/(COUNTRY_INFO!F11+COUNTRY_INFO!G11)))),0) -> 0.593234564 | AO11: =IF(AND(Z11<>0,Z11<>"Inconnu",Z11<>"Non requis"),IF(COUNTRY_INFO!K11=1,0,IF(COUNTRY_INFO!K11=2,0.2*COUNTRY_INFO!G11/(0.5*COUNTRY_INFO!F11+0.2*COUNTRY_INFO!G11),IF(COUNTRY_INFO!K11=3,COUNTRY_INFO!G11/(COUNTRY_INFO!F11+COUNTRY_INFO!G11)))),0) -> 0.406765436 | AP11: =MAX(COUNTRY_INFO!D11*AK11*PROFILE!$G$7,COUNTRY_INFO!D11*AL11*PROFILE!$G$7) -> 0 | AQ11: =MAX(COUNTRY_INFO!D11*AK11*PROFILE!$G$8,COUNTRY_INFO!D11*AL11*PROFILE!$G$8,COUNTRY_INFO!D11*AM11*PROFILE!$G$8) -> 0 | AR11: =MAX(COUNTRY_INFO!D11*AK11*PROFILE!$G$9,COUNTRY_INFO!D11*AL11*PROFILE!$G$9,COUNTRY_INFO!D11*AM11*PROFILE!$G$9,IF(AND(DISTRICT!Z11<>"Inconnu",Z11<>"Non requis"),COUNTRY_INFO!O11*DISTRICT!AN11,0)) -> 55133.5 | AS11: =MAX(COUNTRY_INFO!D11*AK11*PROFILE!$G$10,COUNTRY_INFO!D11*AL11*PROFILE!$G$10,IF(AND(DISTRICT!Z11<>"Inconnu",Z11<>"Non requis"),COUNTRY_INFO!O11*DISTRICT!AO11,0)) -> 37803.6 | AT11: 92937.1 | AU11: Y | AV11: =MAX('MDA2'!J11,'T1'!L11,'T2'!J11,T3_R1!K11,T3_R2!K11) -> 0 | AW11: =MAX('MDA1'!K11,'MDA2'!K11,'MDA3'!I11,'MDA3'!L11,'T1'!M11,'T2'!K11,T3_R1!L11,T3_R2!L11) -> 113096 | AX11: =MAX('MDA1'!L11,'MDA2'!L11,'MDA3'!J11,'MDA3'!M11,'T1'!N11,'T2'!L11,T3_R1!M11,T3_R2!M11) -> 169999 | AY11: 283095 | AZ11: =MAX('MDA2'!J11,T11) -> 0 | BA11: =MAX('MDA1'!K11,'MDA2'!K11,'MDA3'!I11,'MDA3'!L11,V11,AD11) -> 55133.5 | BB11: =MAX('MDA1'!L11,'MDA2'!L11,'MDA3'!J11,'MDA3'!M11,AF11) -> 37803.6 | BC11: 92937.1 | BD11: 100
A12: =IF(COUNTRY_INFO!A12=0," ",COUNTRY_INFO!A12) -> Burkina Faso | B12: =IF(COUNTRY_INFO!B12=0," ",COUNTRY_INFO!B12) -> Boucle du Mouhoun | C12: =IF(COUNTRY_INFO!C12=0," ",COUNTRY_INFO!C12) -> Solenzo | D12: =COUNTRY_INFO!L12 -> Interrompu | G12: =MAX('MDA1'!M12,'MDA2'!M12) -> 0 | H12: =IF(AND(COUNTRY_INFO!H12>0,COUNTRY_INFO!H12<4),IF(D12>MAX('MDA1'!M12,'MDA2'!M12),MAX('MDA1'!M12,'MDA2'!M12),D12),0) -> 0 | I12: =IF(AND(COUNTRY_INFO!H12>0,COUNTRY_INFO!H12<4), IF(G12/D12*100<>0, IF(G12/D12*100>100,100,G12/D12*100), "-"),0) -> 0 | J12: =COUNTRY_INFO!M12 -> 0 | M12: =MAX('MDA1'!M12,MAX('MDA3'!I12,'MDA3'!L12)+MAX('MDA3'!J12,'MDA3'!M12)) -> 0 | N12: =IF(AND(COUNTRY_INFO!I12>0,COUNTRY_INFO!I12<4),IF(J12>MAX('MDA1'!M12,MAX('MDA3'!I12,'MDA3'!L12)+MAX('MDA3'!J12,'MDA3'!M12)),MAX('MDA1'!M12,MAX('MDA3'!I12,'MDA3'!L12)+MAX('MDA3'!J12,'MDA3'!M12)),J12),0) -> 0 | O12: =IF(AND(COUNTRY_INFO!I12>0,COUNTRY_INFO!I12<4), IF(M12/J12*100<>0, IF(M12/J12*100>100,100,M12/J12*100), "-"),0) -> 0 | P12: =COUNTRY_INFO!N12 -> 0 | Q12: 55074 | R12: 52196 | S12: =SUM(MAX('MDA2'!J12, 'T1'!L12, MAX(T3_R1!K12, T3_R2!K12)), MAX('MDA1'!K12, 'MDA2'!K12, 'T1'!M12, MAX(T3_R1!L12, T3_R2!L12)), MAX('MDA1'!L12, 'MDA2'!L12, 'T1'!N12, MAX(T3_R1!M12, T3_R2!M12))) -> 281155 | T12: =IF(AND(COUNTRY_INFO!J12>1,COUNTRY_INFO!J12<4),IF(COUNTRY_INFO!E12>MAX('MDA2'!J12,'T1'!L12,MAX(T3_R1!K12,T3_R2!K12)),MAX('MDA2'!J12,'T1'!L12,MAX(T3_R1!K12,T3_R2!K12)),COUNTRY_INFO!E12),0) -> 0 | U12: =IF(AND(COUNTRY_INFO!J12>1,COUNTRY_INFO!J12<4), IF(T12/COUNTRY_INFO!E12*100<>0, IF(T12/COUNTRY_INFO!E12*100>100,100,T12/COUNTRY_INFO!E12*100), "-"),0) -> 0 | V12: =IF(AND(COUNTRY_INFO!J12>1,COUNTRY_INFO!J12<4),IF(COUNTRY_INFO!F12>MAX('MDA1'!K12,'MDA2'!K12,'T1'!M12,MAX(T3_R1!L12,T3_R2!L12)),MAX('MDA1'!K12,'MDA2'!K12,'T1'!M12,MAX(T3_R1!L12,T3_R2!L12)),COUNTRY_INFO!F12),0) -> 0 | W12: =IF(AND(COUNTRY_INFO!J12>1,COUNTRY_INFO!J12<4), IF(V12/COUNTRY_INFO!F12*100<>0, IF(V12/COUNTRY_INFO!F12*100>100,100,V12/COUNTRY_INFO!F12*100), "-"),0) -> 0 | X12: 0 | Y12: =IF(AND(COUNTRY_INFO!J12>1,COUNTRY_INFO!J12<4), IF(S12/P12*100<>0, IF(X12/P12*100>100,100,X12/P12*100), "-"),0) -> 0 | Z12: =COUNTRY_INFO!O12 -> 91294.4 | AA12: 136212 | AB12: 144943 | AC12: =MAX('T1'!L12,'T2'!J12)+MAX('T1'!M12,'T2'!K12)+MAX('T1'!N12,'T2'!L12) -> 281155 | AD12: =IF(COUNTRY_INFO!K12=1,IF(COUNTRY_INFO!F12*0.33>MAX('T1'!M12,'T2'!K12),MAX('T1'!M12,'T2'!K12),COUNTRY_INFO!F12*0.33),IF(COUNTRY_INFO!K12=2,IF(COUNTRY_INFO!F12*0.5>MAX('T1'!M12,'T2'!K12),MAX('T1'!M12,'T2'!K12),COUNTRY_INFO!F12*0.5),IF(COUNTRY_INFO!K12=3,IF(COUNTRY_INFO!F12>MAX('T1'!M12,'T2'!K12),MAX('T1'!M12,'T2'!K12),COUNTRY_INFO!F12),0))) -> 54160 | AE12: =IF(AND(COUNTRY_INFO!K12>0,COUNTRY_INFO!K12<4),IF(Z12>0,IF(COUNTRY_INFO!K12=1, AD12/(COUNTRY_INFO!F12*0.33)*100, IF(COUNTRY_INFO!K12=2, AD12/(COUNTRY_INFO!F12*0.5)*100, IF(COUNTRY_INFO!K12=3, AD12/COUNTRY_INFO!F12*100))),"-"),0) -> 100 | AF12: =IF(COUNTRY_INFO!K12=2,IF(COUNTRY_INFO!G12*0.2>MAX('T1'!N12,'T2'!L12),MAX('T1'!N12,'T2'!L12),COUNTRY_INFO!G12*0.2),IF(COUNTRY_INFO!K12=3,IF(COUNTRY_INFO!G12>MAX('T1'!N12,'T2'!L12),MAX('T1'!N12,'T2'!L12),COUNTRY_INFO!G12),0)) -> 37134.4 | AG12: =IF(AND(COUNTRY_INFO!K12>0,COUNTRY_INFO!K12<4),IF(Z12>0,IF(COUNTRY_INFO!K12=1, 0, IF(COUNTRY_INFO!K12=2, AF12/(COUNTRY_INFO!G12*0.2)*100, IF(COUNTRY_INFO!K12=3, AF12/COUNTRY_INFO!G12*100))),"-"),0) -> 100 | AH12: 91294.4 | AI12: =IF(AND(COUNTRY_INFO!K12>0,COUNTRY_INFO!K12<4), IF(AC12/Z12*100<>0, IF(AH12/Z12*100>100,100,AH12/Z12*100), "-"),0) -> 100 | AK12: =IF(AND(D12<>0, D12<>"Inconnu",D12<>"Interrompu",D12<>"Non requis"),D12/COUNTRY_INFO!D12, 0) -> 0 | AL12: =IF(AND(J12<>0,J12<>"Inconnu",J12<>"Interrompu",J12<>"Non requis"),J12/COUNTRY_INFO!D12, 0) -> 0 | AM12: =IF(AND(P12<>0,P12<>"Inconnu",P12<>"Non requis"),P12/(COUNTRY_INFO!E12+COUNTRY_INFO!F12), 0) -> 0 | AN12: =IF(AND(Z12<>0,Z12<>"Inconnu",Z12<>"Non requis"),IF(COUNTRY_INFO!K12=1,1,IF(COUNTRY_INFO!K12=2,0.5*COUNTRY_INFO!F12/(0.5*COUNTRY_INFO!F12+0.2*COUNTRY_INFO!G12),IF(COUNTRY_INFO!K12=3,COUNTRY_INFO!F12/(COUNTRY_INFO!F12+COUNTRY_INFO!G12)))),0) -> 0.5932455879 | AO12: =IF(AND(Z12<>0,Z12<>"Inconnu",Z12<>"Non requis"),IF(COUNTRY_INFO!K12=1,0,IF(COUNTRY_INFO!K12=2,0.2*COUNTRY_INFO!G12/(0.5*COUNTRY_INFO!F12+0.2*COUNTRY_INFO!G12),IF(COUNTRY_INFO!K12=3,COUNTRY_INFO!G12/(COUNTRY_INFO!F12+COUNTRY_INFO!G12)))),0) -> 0.4067544121 | AP12: =MAX(COUNTRY_INFO!D12*AK12*PROFILE!$G$7,COUNTRY_INFO!D12*AL12*PROFILE!$G$7) -> 0 | AQ12: =MAX(COUNTRY_INFO!D12*AK12*PROFILE!$G$8,COUNTRY_INFO!D12*AL12*PROFILE!$G$8,COUNTRY_INFO!D12*AM12*PROFILE!$G$8) -> 0 | AR12: =MAX(COUNTRY_INFO!D12*AK12*PROFILE!$G$9,COUNTRY_INFO!D12*AL12*PROFILE!$G$9,COUNTRY_INFO!D12*AM12*PROFILE!$G$9,IF(AND(DISTRICT!Z12<>"Inconnu",Z12<>"Non requis"),COUNTRY_INFO!O12*DISTRICT!AN12,0)) -> 54160 | AS12: =MAX(COUNTRY_INFO!D12*AK12*PROFILE!$G$10,COUNTRY_INFO!D12*AL12*PROFILE!$G$10,IF(AND(DISTRICT!Z12<>"Inconnu",Z12<>"Non requis"),COUNTRY_INFO!O12*DISTRICT!AO12,0)) -> 37134.4 | AT12: 91294.4 | AU12: Y | AV12: =MAX('MDA2'!J12,'T1'!L12,'T2'!J12,T3_R1!K12,T3_R2!K12) -> 0 | AW12: =MAX('MDA1'!K12,'MDA2'!K12,'MDA3'!I12,'MDA3'!L12,'T1'!M12,'T2'!K12,T3_R1!L12,T3_R2!L12) -> 109242 | AX12: =MAX('MDA1'!L12,'MDA2'!L12,'MDA3'!J12,'MDA3'!M12,'T1'!N12,'T2'!L12,T3_R1!M12,T3_R2!M12) -> 171913 | AY12: 281155 | AZ12: =MAX('MDA2'!J12,T12) -> 0 | BA12: =MAX('MDA1'!K12,'MDA2'!K12,'MDA3'!I12,'MDA3'!L12,V12,AD12) -> 54160 | BB12: =MAX('MDA1'!L12,'MDA2'!L12,'MDA3'!J12,'MDA3'!M12,AF12) -> 37134.4 | BC12: 91294.4 | BD12: 100
A13: =IF(COUNTRY_INFO!A13=0," ",COUNTRY_INFO!A13) -> Burkina Faso | B13: =IF(COUNTRY_INFO!B13=0," ",COUNTRY_INFO!B13) -> Boucle du Mouhoun | C13: =IF(COUNTRY_INFO!C13=0," ",COUNTRY_INFO!C13) -> Toma | D13: =COUNTRY_INFO!L13 -> Interrompu | G13: =MAX('MDA1'!M13,'MDA2'!M13) -> 0 | H13: =IF(AND(COUNTRY_INFO!H13>0,COUNTRY_INFO!H13<4),IF(D13>MAX('MDA1'!M13,'MDA2'!M13),MAX('MDA1'!M13,'MDA2'!M13),D13),0) -> 0 | I13: =IF(AND(COUNTRY_INFO!H13>0,COUNTRY_INFO!H13<4), IF(G13/D13*100<>0, IF(G13/D13*100>100,100,G13/D13*100), "-"),0) -> 0 | J13: =COUNTRY_INFO!M13 -> 0 | M13: =MAX('MDA1'!M13,MAX('MDA3'!I13,'MDA3'!L13)+MAX('MDA3'!J13,'MDA3'!M13)) -> 0 | N13: =IF(AND(COUNTRY_INFO!I13>0,COUNTRY_INFO!I13<4),IF(J13>MAX('MDA1'!M13,MAX('MDA3'!I13,'MDA3'!L13)+MAX('MDA3'!J13,'MDA3'!M13)),MAX('MDA1'!M13,MAX('MDA3'!I13,'MDA3'!L13)+MAX('MDA3'!J13,'MDA3'!M13)),J13),0) -> 0 | O13: =IF(AND(COUNTRY_INFO!I13>0,COUNTRY_INFO!I13<4), IF(M13/J13*100<>0, IF(M13/J13*100>100,100,M13/J13*100), "-"),0) -> 0 | P13: =COUNTRY_INFO!N13 -> 0 | Q13: 32765 | R13: 32595 | S13: =SUM(MAX('MDA2'!J13, 'T1'!L13, MAX(T3_R1!K13, T3_R2!K13)), MAX('MDA1'!K13, 'MDA2'!K13, 'T1'!M13, MAX(T3_R1!L13, T3_R2!L13)), MAX('MDA1'!L13, 'MDA2'!L13, 'T1'!N13, MAX(T3_R1!M13, T3_R2!M13))) -> 175225 | T13: =IF(AND(COUNTRY_INFO!J13>1,COUNTRY_INFO!J13<4),IF(COUNTRY_INFO!E13>MAX('MDA2'!J13,'T1'!L13,MAX(T3_R1!K13,T3_R2!K13)),MAX('MDA2'!J13,'T1'!L13,MAX(T3_R1!K13,T3_R2!K13)),COUNTRY_INFO!E13),0) -> 0 | U13: =IF(AND(COUNTRY_INFO!J13>1,COUNTRY_INFO!J13<4), IF(T13/COUNTRY_INFO!E13*100<>0, IF(T13/COUNTRY_INFO!E13*100>100,100,T13/COUNTRY_INFO!E13*100), "-"),0) -> 0 | V13: =IF(AND(COUNTRY_INFO!J13>1,COUNTRY_INFO!J13<4),IF(COUNTRY_INFO!F13>MAX('MDA1'!K13,'MDA2'!K13,'T1'!M13,MAX(T3_R1!L13,T3_R2!L13)),MAX('MDA1'!K13,'MDA2'!K13,'T1'!M13,MAX(T3_R1!L13,T3_R2!L13)),COUNTRY_INFO!F13),0) -> 0 | W13: =IF(AND(COUNTRY_INFO!J13>1,COUNTRY_INFO!J13<4), IF(V13/COUNTRY_INFO!F13*100<>0, IF(V13/COUNTRY_INFO!F13*100>100,100,V13/COUNTRY_INFO!F13*100), "-"),0) -> 0 | X13: 0 | Y13: =IF(AND(COUNTRY_INFO!J13>1,COUNTRY_INFO!J13<4), IF(S13/P13*100<>0, IF(X13/P13*100>100,100,X13/P13*100), "-"),0) -> 0 | Z13: =COUNTRY_INFO!O13 -> 54347.2 | AA13: 85957 | AB13: 89268 | AC13: =MAX('T1'!L13,'T2'!J13)+MAX('T1'!M13,'T2'!K13)+MAX('T1'!N13,'T2'!L13) -> 175225 | AD13: =IF(COUNTRY_INFO!K13=1,IF(COUNTRY_INFO!F13*0.33>MAX('T1'!M13,'T2'!K13),MAX('T1'!M13,'T2'!K13),COUNTRY_INFO!F13*0.33),IF(COUNTRY_INFO!K13=2,IF(COUNTRY_INFO!F13*0.5>MAX('T1'!M13,'T2'!K13),MAX('T1'!M13,'T2'!K13),COUNTRY_INFO!F13*0.5),IF(COUNTRY_INFO!K13=3,IF(COUNTRY_INFO!F13>MAX('T1'!M13,'T2'!K13),MAX('T1'!M13,'T2'!K13),COUNTRY_INFO!F13),0))) -> 32240 | AE13: =IF(AND(COUNTRY_INFO!K13>0,COUNTRY_INFO!K13<4),IF(Z13>0,IF(COUNTRY_INFO!K13=1, AD13/(COUNTRY_INFO!F13*0.33)*100, IF(COUNTRY_INFO!K13=2, AD13/(COUNTRY_INFO!F13*0.5)*100, IF(COUNTRY_INFO!K13=3, AD13/COUNTRY_INFO!F13*100))),"-"),0) -> 100 | AF13: =IF(COUNTRY_INFO!K13=2,IF(COUNTRY_INFO!G13*0.2>MAX('T1'!N13,'T2'!L13),MAX('T1'!N13,'T2'!L13),COUNTRY_INFO!G13*0.2),IF(COUNTRY_INFO!K13=3,IF(COUNTRY_INFO!G13>MAX('T1'!N13,'T2'!L13),MAX('T1'!N13,'T2'!L13),COUNTRY_INFO!G13),0)) -> 22107.2 | AG13: =IF(AND(COUNTRY_INFO!K13>0,COUNTRY_INFO!K13<4),IF(Z13>0,IF(COUNTRY_INFO!K13=1, 0, IF(COUNTRY_INFO!K13=2, AF13/(COUNTRY_INFO!G13*0.2)*100, IF(COUNTRY_INFO!K13=3, AF13/COUNTRY_INFO!G13*100))),"-"),0) -> 100 | AH13: 54347.2 | AI13: =IF(AND(COUNTRY_INFO!K13>0,COUNTRY_INFO!K13<4), IF(AC13/Z13*100<>0, IF(AH13/Z13*100>100,100,AH13/Z13*100), "-"),0) -> 100 | AK13: =IF(AND(D13<>0, D13<>"Inconnu",D13<>"Interrompu",D13<>"Non requis"),D13/COUNTRY_INFO!D13, 0) -> 0 | AL13: =IF(AND(J13<>0,J13<>"Inconnu",J13<>"Interrompu",J13<>"Non requis"),J13/COUNTRY_INFO!D13, 0) -> 0 | AM13: =IF(AND(P13<>0,P13<>"Inconnu",P13<>"Non requis"),P13/(COUNTRY_INFO!E13+COUNTRY_INFO!F13), 0) -> 0 | AN13: =IF(AND(Z13<>0,Z13<>"Inconnu",Z13<>"Non requis"),IF(COUNTRY_INFO!K13=1,1,IF(COUNTRY_INFO!K13=2,0.5*COUNTRY_INFO!F13/(0.5*COUNTRY_INFO!F13+0.2*COUNTRY_INFO!G13),IF(COUNTRY_INFO!K13=3,COUNTRY_INFO!F13/(COUNTRY_INFO!F13+COUNTRY_INFO!G13)))),0) -> 0.5932228339 | AO13: =IF(AND(Z13<>0,Z13<>"Inconnu",Z13<>"Non requis"),IF(COUNTRY_INFO!K13=1,0,IF(COUNTRY_INFO!K13=2,0.2*COUNTRY_INFO!G13/(0.5*COUNTRY_INFO!F13+0.2*COUNTRY_INFO!G13),IF(COUNTRY_INFO!K13=3,COUNTRY_INFO!G13/(COUNTRY_INFO!F13+COUNTRY_INFO!G13)))),0) -> 0.4067771661 | AP13: =MAX(COUNTRY_INFO!D13*AK13*PROFILE!$G$7,COUNTRY_INFO!D13*AL13*PROFILE!$G$7) -> 0 | AQ13: =MAX(COUNTRY_INFO!D13*AK13*PROFILE!$G$8,COUNTRY_INFO!D13*AL13*PROFILE!$G$8,COUNTRY_INFO!D13*AM13*PROFILE!$G$8) -> 0 | AR13: =MAX(COUNTRY_INFO!D13*AK13*PROFILE!$G$9,COUNTRY_INFO!D13*AL13*PROFILE!$G$9,COUNTRY_INFO!D13*AM13*PROFILE!$G$9,IF(AND(DISTRICT!Z13<>"Inconnu",Z13<>"Non requis"),COUNTRY_INFO!O13*DISTRICT!AN13,0)) -> 32240 | AS13: =MAX(COUNTRY_INFO!D13*AK13*PROFILE!$G$10,COUNTRY_INFO!D13*AL13*PROFILE!$G$10,IF(AND(DISTRICT!Z13<>"Inconnu",Z13<>"Non requis"),COUNTRY_INFO!O13*DISTRICT!AO13,0)) -> 22107.2 | AT13: 54347.2 | AU13: Y | AV13: =MAX('MDA2'!J13,'T1'!L13,'T2'!J13,T3_R1!K13,T3_R2!K13) -> 0 | AW13: =MAX('MDA1'!K13,'MDA2'!K13,'MDA3'!I13,'MDA3'!L13,'T1'!M13,'T2'!K13,T3_R1!L13,T3_R2!L13) -> 65384 | AX13: =MAX('MDA1'!L13,'MDA2'!L13,'MDA3'!J13,'MDA3'!M13,'T1'!N13,'T2'!L13,T3_R1!M13,T3_R2!M13) -> 109841 | AY13: 175225 | AZ13: =MAX('MDA2'!J13,T13) -> 0 | BA13: =MAX('MDA1'!K13,'MDA2'!K13,'MDA3'!I13,'MDA3'!L13,V13,AD13) -> 32240 | BB13: =MAX('MDA1'!L13,'MDA2'!L13,'MDA3'!J13,'MDA3'!M13,AF13) -> 22107.2 | BC13: 54347.2 | BD13: 100
A14: =IF(COUNTRY_INFO!A14=0," ",COUNTRY_INFO!A14) -> Burkina Faso | B14: =IF(COUNTRY_INFO!B14=0," ",COUNTRY_INFO!B14) -> Boucle du Mouhoun | C14: =IF(COUNTRY_INFO!C14=0," ",COUNTRY_INFO!C14) -> Tougan | D14: =COUNTRY_INFO!L14 -> Interrompu | G14: =MAX('MDA1'!M14,'MDA2'!M14) -> 0 | H14: =IF(AND(COUNTRY_INFO!H14>0,COUNTRY_INFO!H14<4),IF(D14>MAX('MDA1'!M14,'MDA2'!M14),MAX('MDA1'!M14,'MDA2'!M14),D14),0) -> 0 | I14: =IF(AND(COUNTRY_INFO!H14>0,COUNTRY_INFO!H14<4), IF(G14/D14*100<>0, IF(G14/D14*100>100,100,G14/D14*100), "-"),0) -> 0 | J14: =COUNTRY_INFO!M14 -> 0 | M14: =MAX('MDA1'!M14,MAX('MDA3'!I14,'MDA3'!L14)+MAX('MDA3'!J14,'MDA3'!M14)) -> 0 | N14: =IF(AND(COUNTRY_INFO!I14>0,COUNTRY_INFO!I14<4),IF(J14>MAX('MDA1'!M14,MAX('MDA3'!I14,'MDA3'!L14)+MAX('MDA3'!J14,'MDA3'!M14)),MAX('MDA1'!M14,MAX('MDA3'!I14,'MDA3'!L14)+MAX('MDA3'!J14,'MDA3'!M14)),J14),0) -> 0 | O14: =IF(AND(COUNTRY_INFO!I14>0,COUNTRY_INFO!I14<4), IF(M14/J14*100<>0, IF(M14/J14*100>100,100,M14/J14*100), "-"),0) -> 0 | P14: =COUNTRY_INFO!N14 -> 0 | Q14: 43044 | R14: 43461 | S14: =SUM(MAX('MDA2'!J14, 'T1'!L14, MAX(T3_R1!K14, T3_R2!K14)), MAX('MDA1'!K14, 'MDA2'!K14, 'T1'!M14, MAX(T3_R1!L14, T3_R2!L14)), MAX('MDA1'!L14, 'MDA2'!L14, 'T1'!N14, MAX(T3_R1!M14, T3_R2!M14))) -> 224027 | T14: =IF(AND(COUNTRY_INFO!J14>1,COUNTRY_INFO!J14<4),IF(COUNTRY_INFO!E14>MAX('MDA2'!J14,'T1'!L14,MAX(T3_R1!K14,T3_R2!K14)),MAX('MDA2'!J14,'T1'!L14,MAX(T3_R1!K14,T3_R2!K14)),COUNTRY_INFO!E14),0) -> 0 | U14: =IF(AND(COUNTRY_INFO!J14>1,COUNTRY_INFO!J14<4), IF(T14/COUNTRY_INFO!E14*100<>0, IF(T14/COUNTRY_INFO!E14*100>100,100,T14/COUNTRY_INFO!E14*100), "-"),0) -> 0 | V14: =IF(AND(COUNTRY_INFO!J14>1,COUNTRY_INFO!J14<4),IF(COUNTRY_INFO!F14>MAX('MDA1'!K14,'MDA2'!K14,'T1'!M14,MAX(T3_R1!L14,T3_R2!L14)),MAX('MDA1'!K14,'MDA2'!K14,'T1'!M14,MAX(T3_R1!L14,T3_R2!L14)),COUNTRY_INFO!F14),0) -> 0 | W14: =IF(AND(COUNTRY_INFO!J14>1,COUNTRY_INFO!J14<4), IF(V14/COUNTRY_INFO!F14*100<>0, IF(V14/COUNTRY_INFO!F14*100>100,100,V14/COUNTRY_INFO!F14*100), "-"),0) -> 0 | X14: 0 | Y14: =IF(AND(COUNTRY_INFO!J14>1,COUNTRY_INFO!J14<4), IF(S14/P14*100<>0, IF(X14/P14*100>100,100,X14/P14*100), "-"),0) -> 0 | Z14: =COUNTRY_INFO!O14 -> 72604.2 | AA14: 110605 | AB14: 113422 | AC14: =MAX('T1'!L14,'T2'!J14)+MAX('T1'!M14,'T2'!K14)+MAX('T1'!N14,'T2'!L14) -> 224027 | AD14: =IF(COUNTRY_INFO!K14=1,IF(COUNTRY_INFO!F14*0.33>MAX('T1'!M14,'T2'!K14),MAX('T1'!M14,'T2'!K14),COUNTRY_INFO!F14*0.33),IF(COUNTRY_INFO!K14=2,IF(COUNTRY_INFO!F14*0.5>MAX('T1'!M14,'T2'!K14),MAX('T1'!M14,'T2'!K14),COUNTRY_INFO!F14*0.5),IF(COUNTRY_INFO!K14=3,IF(COUNTRY_INFO!F14>MAX('T1'!M14,'T2'!K14),MAX('T1'!M14,'T2'!K14),COUNTRY_INFO!F14),0))) -> 43071 | AE14: =IF(AND(COUNTRY_INFO!K14>0,COUNTRY_INFO!K14<4),IF(Z14>0,IF(COUNTRY_INFO!K14=1, AD14/(COUNTRY_INFO!F14*0.33)*100, IF(COUNTRY_INFO!K14=2, AD14/(COUNTRY_INFO!F14*0.5)*100, IF(COUNTRY_INFO!K14=3, AD14/COUNTRY_INFO!F14*100))),"-"),0) -> 100 | AF14: =IF(COUNTRY_INFO!K14=2,IF(COUNTRY_INFO!G14*0.2>MAX('T1'!N14,'T2'!L14),MAX('T1'!N14,'T2'!L14),COUNTRY_INFO!G14*0.2),IF(COUNTRY_INFO!K14=3,IF(COUNTRY_INFO!G14>MAX('T1'!N14,'T2'!L14),MAX('T1'!N14,'T2'!L14),COUNTRY_INFO!G14),0)) -> 29533.2 | AG14: =IF(AND(COUNTRY_INFO!K14>0,COUNTRY_INFO!K14<4),IF(Z14>0,IF(COUNTRY_INFO!K14=1, 0, IF(COUNTRY_INFO!K14=2, AF14/(COUNTRY_INFO!G14*0.2)*100, IF(COUNTRY_INFO!K14=3, AF14/COUNTRY_INFO!G14*100))),"-"),0) -> 100 | AH14: 72604.2 | AI14: =IF(AND(COUNTRY_INFO!K14>0,COUNTRY_INFO!K14<4), IF(AC14/Z14*100<>0, IF(AH14/Z14*100>100,100,AH14/Z14*100), "-"),0) -> 100 | AK14: =IF(AND(D14<>0, D14<>"Inconnu",D14<>"Interrompu",D14<>"Non requis"),D14/COUNTRY_INFO!D14, 0) -> 0 | AL14: =IF(AND(J14<>0,J14<>"Inconnu",J14<>"Interrompu",J14<>"Non requis"),J14/COUNTRY_INFO!D14, 0) -> 0 | AM14: =IF(AND(P14<>0,P14<>"Inconnu",P14<>"Non requis"),P14/(COUNTRY_INFO!E14+COUNTRY_INFO!F14), 0) -> 0 | AN14: =IF(AND(Z14<>0,Z14<>"Inconnu",Z14<>"Non requis"),IF(COUNTRY_INFO!K14=1,1,IF(COUNTRY_INFO!K14=2,0.5*COUNTRY_INFO!F14/(0.5*COUNTRY_INFO!F14+0.2*COUNTRY_INFO!G14),IF(COUNTRY_INFO!K14=3,COUNTRY_INFO!F14/(COUNTRY_INFO!F14+COUNTRY_INFO!G14)))),0) -> 0.5932301437 | AO14: =IF(AND(Z14<>0,Z14<>"Inconnu",Z14<>"Non requis"),IF(COUNTRY_INFO!K14=1,0,IF(COUNTRY_INFO!K14=2,0.2*COUNTRY_INFO!G14/(0.5*COUNTRY_INFO!F14+0.2*COUNTRY_INFO!G14),IF(COUNTRY_INFO!K14=3,COUNTRY_INFO!G14/(COUNTRY_INFO!F14+COUNTRY_INFO!G14)))),0) -> 0.4067698563 | AP14: =MAX(COUNTRY_INFO!D14*AK14*PROFILE!$G$7,COUNTRY_INFO!D14*AL14*PROFILE!$G$7) -> 0 | AQ14: =MAX(COUNTRY_INFO!D14*AK14*PROFILE!$G$8,COUNTRY_INFO!D14*AL14*PROFILE!$G$8,COUNTRY_INFO!D14*AM14*PROFILE!$G$8) -> 0 | AR14: =MAX(COUNTRY_INFO!D14*AK14*PROFILE!$G$9,COUNTRY_INFO!D14*AL14*PROFILE!$G$9,COUNTRY_INFO!D14*AM14*PROFILE!$G$9,IF(AND(DISTRICT!Z14<>"Inconnu",Z14<>"Non requis"),COUNTRY_INFO!O14*DISTRICT!AN14,0)) -> 43071 | AS14: =MAX(COUNTRY_INFO!D14*AK14*PROFILE!$G$10,COUNTRY_INFO!D14*AL14*PROFILE!$G$10,IF(AND(DISTRICT!Z14<>"Inconnu",Z14<>"Non requis"),COUNTRY_INFO!O14*DISTRICT!AO14,0)) -> 29533.2 | AT14: 72604.2 | AU14: Y | AV14: =MAX('MDA2'!J14,'T1'!L14,'T2'!J14,T3_R1!K14,T3_R2!K14) -> 0 | AW14: =MAX('MDA1'!K14,'MDA2'!K14,'MDA3'!I14,'MDA3'!L14,'T1'!M14,'T2'!K14,T3_R1!L14,T3_R2!L14) -> 91669 | AX14: =MAX('MDA1'!L14,'MDA2'!L14,'MDA3'!J14,'MDA3'!M14,'T1'!N14,'T2'!L14,T3_R1!M14,T3_R2!M14) -> 132358 | AY14: 224027 | AZ14: =MAX('MDA2'!J14,T14) -> 0 | BA14: =MAX('MDA1'!K14,'MDA2'!K14,'MDA3'!I14,'MDA3'!L14,V14,AD14) -> 43071 | BB14: =MAX('MDA1'!L14,'MDA2'!L14,'MDA3'!J14,'MDA3'!M14,AF14) -> 29533.2 | BC14: 72604.2 | BD14: 100
A15: =IF(COUNTRY_INFO!A15=0," ",COUNTRY_INFO!A15) -> Burkina Faso | B15: =IF(COUNTRY_INFO!B15=0," ",COUNTRY_INFO!B15) -> Cascades | C15: =IF(COUNTRY_INFO!C15=0," ",COUNTRY_INFO!C15) -> Banfora | D15: =COUNTRY_INFO!L15 -> Interrompu | G15: =MAX('MDA1'!M15,'MDA2'!M15) -> 0 | H15: =IF(AND(COUNTRY_INFO!H15>0,COUNTRY_INFO!H15<4),IF(D15>MAX('MDA1'!M15,'MDA2'!M15),MAX('MDA1'!M15,'MDA2'!M15),D15),0) -> 0 | I15: =IF(AND(COUNTRY_INFO!H15>0,COUNTRY_INFO!H15<4), IF(G15/D15*100<>0, IF(G15/D15*100>100,100,G15/D15*100), "-"),0) -> 0 | J15: =COUNTRY_INFO!M15 -> 56955 | K15: 22805 | L15: 21423 | M15: =MAX('MDA1'!M15,MAX('MDA3'!I15,'MDA3'!L15)+MAX('MDA3'!J15,'MDA3'!M15)) -> 45194 | N15: =IF(AND(COUNTRY_INFO!I15>0,COUNTRY_INFO!I15<4),IF(J15>MAX('MDA1'!M15,MAX('MDA3'!I15,'MDA3'!L15)+MAX('MDA3'!J15,'MDA3'!M15)),MAX('MDA1'!M15,MAX('MDA3'!I15,'MDA3'!L15)+MAX('MDA3'!J15,'MDA3'!M15)),J15),0) -> 45194 | O15: =IF(AND(COUNTRY_INFO!I15>0,COUNTRY_INFO!I15<4), IF(M15/J15*100<>0, IF(M15/J15*100>100,100,M15/J15*100), "-"),0) -> 79.35036432 | P15: =COUNTRY_INFO!N15 -> 0 | S15: =SUM(MAX('MDA2'!J15, 'T1'!L15, MAX(T3_R1!K15, T3_R2!K15)), MAX('MDA1'!K15, 'MDA2'!K15, 'T1'!M15, MAX(T3_R1!L15, T3_R2!L15)), MAX('MDA1'!L15, 'MDA2'!L15, 'T1'!N15, MAX(T3_R1!M15, T3_R2!M15))) -> 0 | T15: =IF(AND(COUNTRY_INFO!J15>1,COUNTRY_INFO!J15<4),IF(COUNTRY_INFO!E15>MAX('MDA2'!J15,'T1'!L15,MAX(T3_R1!K15,T3_R2!K15)),MAX('MDA2'!J15,'T1'!L15,MAX(T3_R1!K15,T3_R2!K15)),COUNTRY_INFO!E15),0) -> 0 | U15: =IF(AND(COUNTRY_INFO!J15>1,COUNTRY_INFO!J15<4), IF(T15/COUNTRY_INFO!E15*100<>0, IF(T15/COUNTRY_INFO!E15*100>100,100,T15/COUNTRY_INFO!E15*100), "-"),0) -> 0 | V15: =IF(AND(COUNTRY_INFO!J15>1,COUNTRY_INFO!J15<4),IF(COUNTRY_INFO!F15>MAX('MDA1'!K15,'MDA2'!K15,'T1'!M15,MAX(T3_R1!L15,T3_R2!L15)),MAX('MDA1'!K15,'MDA2'!K15,'T1'!M15,MAX(T3_R1!L15,T3_R2!L15)),COUNTRY_INFO!F15),0) -> 0 | W15: =IF(AND(COUNTRY_INFO!J15>1,COUNTRY_INFO!J15<4), IF(V15/COUNTRY_INFO!F15*100<>0, IF(V15/COUNTRY_INFO!F15*100>100,100,V15/COUNTRY_INFO!F15*100), "-"),0) -> 0 | X15: 0 | Y15: =IF(AND(COUNTRY_INFO!J15>1,COUNTRY_INFO!J15<4), IF(S15/P15*100<>0, IF(X15/P15*100>100,100,X15/P15*100), "-"),0) -> 0 | Z15: =COUNTRY_INFO!O15 -> 99624.8 | AC15: =MAX('T1'!L15,'T2'!J15)+MAX('T1'!M15,'T2'!K15)+MAX('T1'!N15,'T2'!L15) -> 0 | AD15: =IF(COUNTRY_INFO!K15=1,IF(COUNTRY_INFO!F15*0.33>MAX('T1'!M15,'T2'!K15),MAX('T1'!M15,'T2'!K15),COUNTRY_INFO!F15*0.33),IF(COUNTRY_INFO!K15=2,IF(COUNTRY_INFO!F15*0.5>MAX('T1'!M15,'T2'!K15),MAX('T1'!M15,'T2'!K15),COUNTRY_INFO!F15*0.5),IF(COUNTRY_INFO!K15=3,IF(COUNTRY_INFO!F15>MAX('T1'!M15,'T2'!K15),MAX('T1'!M15,'T2'!K15),COUNTRY_INFO!F15),0))) -> 0 | AE15: =IF(AND(COUNTRY_INFO!K15>0,COUNTRY_INFO!K15<4),IF(Z15>0,IF(COUNTRY_INFO!K15=1, AD15/(COUNTRY_INFO!F15*0.33)*100, IF(COUNTRY_INFO!K15=2, AD15/(COUNTRY_INFO!F15*0.5)*100, IF(COUNTRY_INFO!K15=3, AD15/COUNTRY_INFO!F15*100))),"-"),0) -> 0 | AF15: =IF(COUNTRY_INFO!K15=2,IF(COUNTRY_INFO!G15*0.2>MAX('T1'!N15,'T2'!L15),MAX('T1'!N15,'T2'!L15),COUNTRY_INFO!G15*0.2),IF(COUNTRY_INFO!K15=3,IF(COUNTRY_INFO!G15>MAX('T1'!N15,'T2'!L15),MAX('T1'!N15,'T2'!L15),COUNTRY_INFO!G15),0)) -> 0 | AG15: =IF(AND(COUNTRY_INFO!K15>0,COUNTRY_INFO!K15<4),IF(Z15>0,IF(COUNTRY_INFO!K15=1, 0, IF(COUNTRY_INFO!K15=2, AF15/(COUNTRY_INFO!G15*0.2)*100, IF(COUNTRY_INFO!K15=3, AF15/COUNTRY_INFO!G15*100))),"-"),0) -> 0 | AH15: 0 | AI15: =IF(AND(COUNTRY_INFO!K15>0,COUNTRY_INFO!K15<4), IF(AC15/Z15*100<>0, IF(AH15/Z15*100>100,100,AH15/Z15*100), "-"),0) -> - | AK15: =IF(AND(D15<>0, D15<>"Inconnu",D15<>"Interrompu",D15<>"Non requis"),D15/COUNTRY_INFO!D15, 0) -> 0 | AL15: =IF(AND(J15<>0,J15<>"Inconnu",J15<>"Interrompu",J15<>"Non requis"),J15/COUNTRY_INFO!D15, 0) -> 0.1451090197 | AM15: =IF(AND(P15<>0,P15<>"Inconnu",P15<>"Non requis"),P15/(COUNTRY_INFO!E15+COUNTRY_INFO!F15), 0) -> 0 | AN15: =IF(AND(Z15<>0,Z15<>"Inconnu",Z15<>"Non requis"),IF(COUNTRY_INFO!K15=1,1,IF(COUNTRY_INFO!K15=2,0.5*COUNTRY_INFO!F15/(0.5*COUNTRY_INFO!F15+0.2*COUNTRY_INFO!G15),IF(COUNTRY_INFO!K15=3,COUNTRY_INFO!F15/(COUNTRY_INFO!F15+COUNTRY_INFO!G15)))),0) -> 0.5707213465 | AO15: =IF(AND(Z15<>0,Z15<>"Inconnu",Z15<>"Non requis"),IF(COUNTRY_INFO!K15=1,0,IF(COUNTRY_INFO!K15=2,0.2*COUNTRY_INFO!G15/(0.5*COUNTRY_INFO!F15+0.2*COUNTRY_INFO!G15),IF(COUNTRY_INFO!K15=3,COUNTRY_INFO!G15/(COUNTRY_INFO!F15+COUNTRY_INFO!G15)))),0) -> 0.4292786535 | AP15: =MAX(COUNTRY_INFO!D15*AK15*PROFILE!$G$7,COUNTRY_INFO!D15*AL15*PROFILE!$G$7) -> 2195.759531 | AQ15: =MAX(COUNTRY_INFO!D15*AK15*PROFILE!$G$8,COUNTRY_INFO!D15*AL15*PROFILE!$G$8,COUNTRY_INFO!D15*AM15*PROFILE!$G$8) -> 8032.648854 | AR15: =MAX(COUNTRY_INFO!D15*AK15*PROFILE!$G$9,COUNTRY_INFO!D15*AL15*PROFILE!$G$9,COUNTRY_INFO!D15*AM15*PROFILE!$G$9,IF(AND(DISTRICT!Z15<>"Inconnu",Z15<>"Non requis"),COUNTRY_INFO!O15*DISTRICT!AN15,0)) -> 56858 | AS15: =MAX(COUNTRY_INFO!D15*AK15*PROFILE!$G$10,COUNTRY_INFO!D15*AL15*PROFILE!$G$10,IF(AND(DISTRICT!Z15<>"Inconnu",Z15<>"Non requis"),COUNTRY_INFO!O15*DISTRICT!AO15,0)) -> 42766.8 | AT15: 109853.2084 | AU15: 0 | AV15: =MAX('MDA2'!J15,'T1'!L15,'T2'!J15,T3_R1!K15,T3_R2!K15) -> 0 | AW15: =MAX('MDA1'!K15,'MDA2'!K15,'MDA3'!I15,'MDA3'!L15,'T1'!M15,'T2'!K15,T3_R1!L15,T3_R2!L15) -> 17818 | AX15: =MAX('MDA1'!L15,'MDA2'!L15,'MDA3'!J15,'MDA3'!M15,'T1'!N15,'T2'!L15,T3_R1!M15,T3_R2!M15) -> 27376 | AY15: 45194 | AZ15: =MAX('MDA2'!J15,T15) -> 0 | BA15: =MAX('MDA1'!K15,'MDA2'!K15,'MDA3'!I15,'MDA3'!L15,V15,AD15) -> 17818 | BB15: =MAX('MDA1'!L15,'MDA2'!L15,'MDA3'!J15,'MDA3'!M15,AF15) -> 27376 | BC15: 45194 | BD15: 41.14035508
A16: =IF(COUNTRY_INFO!A16=0," ",COUNTRY_INFO!A16) -> Burkina Faso | B16: =IF(COUNTRY_INFO!B16=0," ",COUNTRY_INFO!B16) -> Cascades | C16: =IF(COUNTRY_INFO!C16=0," ",COUNTRY_INFO!C16) -> Mangodara | D16: =COUNTRY_INFO!L16 -> Interrompu | G16: =MAX('MDA1'!M16,'MDA2'!M16) -> 0 | H16: =IF(AND(COUNTRY_INFO!H16>0,COUNTRY_INFO!H16<4),IF(D16>MAX('MDA1'!M16,'MDA2'!M16),MAX('MDA1'!M16,'MDA2'!M16),D16),0) -> 0 | I16: =IF(AND(COUNTRY_INFO!H16>0,COUNTRY_INFO!H16<4), IF(G16/D16*100<>0, IF(G16/D16*100>100,100,G16/D16*100), "-"),0) -> 0 | J16: =COUNTRY_INFO!M16 -> 9182 | K16: 3610 | L16: 3544 | M16: =MAX('MDA1'!M16,MAX('MDA3'!I16,'MDA3'!L16)+MAX('MDA3'!J16,'MDA3'!M16)) -> 7405 | N16: =IF(AND(COUNTRY_INFO!I16>0,COUNTRY_INFO!I16<4),IF(J16>MAX('MDA1'!M16,MAX('MDA3'!I16,'MDA3'!L16)+MAX('MDA3'!J16,'MDA3'!M16)),MAX('MDA1'!M16,MAX('MDA3'!I16,'MDA3'!L16)+MAX('MDA3'!J16,'MDA3'!M16)),J16),0) -> 7405 | O16: =IF(AND(COUNTRY_INFO!I16>0,COUNTRY_INFO!I16<4), IF(M16/J16*100<>0, IF(M16/J16*100>100,100,M16/J16*100), "-"),0) -> 80.64691788 | P16: =COUNTRY_INFO!N16 -> 0 | S16: =SUM(MAX('MDA2'!J16, 'T1'!L16, MAX(T3_R1!K16, T3_R2!K16)), MAX('MDA1'!K16, 'MDA2'!K16, 'T1'!M16, MAX(T3_R1!L16, T3_R2!L16)), MAX('MDA1'!L16, 'MDA2'!L16, 'T1'!N16, MAX(T3_R1!M16, T3_R2!M16))) -> 0 | T16: =IF(AND(COUNTRY_INFO!J16>1,COUNTRY_INFO!J16<4),IF(COUNTRY_INFO!E16>MAX('MDA2'!J16,'T1'!L16,MAX(T3_R1!K16,T3_R2!K16)),MAX('MDA2'!J16,'T1'!L16,MAX(T3_R1!K16,T3_R2!K16)),COUNTRY_INFO!E16),0) -> 0 | U16: =IF(AND(COUNTRY_INFO!J16>1,COUNTRY_INFO!J16<4), IF(T16/COUNTRY_INFO!E16*100<>0, IF(T16/COUNTRY_INFO!E16*100>100,100,T16/COUNTRY_INFO!E16*100), "-"),0) -> 0 | V16: =IF(AND(COUNTRY_INFO!J16>1,COUNTRY_INFO!J16<4),IF(COUNTRY_INFO!F16>MAX('MDA1'!K16,'MDA2'!K16,'T1'!M16,MAX(T3_R1!L16,T3_R2!L16)),MAX('MDA1'!K16,'MDA2'!K16,'T1'!M16,MAX(T3_R1!L16,T3_R2!L16)),COUNTRY_INFO!F16),0) -> 0 | W16: =IF(AND(COUNTRY_INFO!J16>1,COUNTRY_INFO!J16<4), IF(V16/COUNTRY_INFO!F16*100<>0, IF(V16/COUNTRY_INFO!F16*100>100,100,V16/COUNTRY_INFO!F16*100), "-"),0) -> 0 | X16: 0 | Y16: =IF(AND(COUNTRY_INFO!J16>1,COUNTRY_INFO!J16<4), IF(S16/P16*100<>0, IF(X16/P16*100>100,100,X16/P16*100), "-"),0) -> 0 | Z16: =COUNTRY_INFO!O16 -> 58309 | AC16: =MAX('T1'!L16,'T2'!J16)+MAX('T1'!M16,'T2'!K16)+MAX('T1'!N16,'T2'!L16) -> 0 | AD16: =IF(COUNTRY_INFO!K16=1,IF(COUNTRY_INFO!F16*0.33>MAX('T1'!M16,'T2'!K16),MAX('T1'!M16,'T2'!K16),COUNTRY_INFO!F16*0.33),IF(COUNTRY_INFO!K16=2,IF(COUNTRY_INFO!F16*0.5>MAX('T1'!M16,'T2'!K16),MAX('T1'!M16,'T2'!K16),COUNTRY_INFO!F16*0.5),IF(COUNTRY_INFO!K16=3,IF(COUNTRY_INFO!F16>MAX('T1'!M16,'T2'!K16),MAX('T1'!M16,'T2'!K16),COUNTRY_INFO!F16),0))) -> 0 | AE16: =IF(AND(COUNTRY_INFO!K16>0,COUNTRY_INFO!K16<4),IF(Z16>0,IF(COUNTRY_INFO!K16=1, AD16/(COUNTRY_INFO!F16*0.33)*100, IF(COUNTRY_INFO!K16=2, AD16/(COUNTRY_INFO!F16*0.5)*100, IF(COUNTRY_INFO!K16=3, AD16/COUNTRY_INFO!F16*100))),"-"),0) -> 0 | AF16: =IF(COUNTRY_INFO!K16=2,IF(COUNTRY_INFO!G16*0.2>MAX('T1'!N16,'T2'!L16),MAX('T1'!N16,'T2'!L16),COUNTRY_INFO!G16*0.2),IF(COUNTRY_INFO!K16=3,IF(COUNTRY_INFO!G16>MAX('T1'!N16,'T2'!L16),MAX('T1'!N16,'T2'!L16),COUNTRY_INFO!G16),0)) -> 0 | AG16: =IF(AND(COUNTRY_INFO!K16>0,COUNTRY_INFO!K16<4),IF(Z16>0,IF(COUNTRY_INFO!K16=1, 0, IF(COUNTRY_INFO!K16=2, AF16/(COUNTRY_INFO!G16*0.2)*100, IF(COUNTRY_INFO!K16=3, AF16/COUNTRY_INFO!G16*100))),"-"),0) -> 0 | AH16: 0 | AI16: =IF(AND(COUNTRY_INFO!K16>0,COUNTRY_INFO!K16<4), IF(AC16/Z16*100<>0, IF(AH16/Z16*100>100,100,AH16/Z16*100), "-"),0) -> - | AK16: =IF(AND(D16<>0, D16<>"Inconnu",D16<>"Interrompu",D16<>"Non requis"),D16/COUNTRY_INFO!D16, 0) -> 0 | AL16: =IF(AND(J16<>0,J16<>"Inconnu",J16<>"Interrompu",J16<>"Non requis"),J16/COUNTRY_INFO!D16, 0) -> 0.0398666192 | AM16: =IF(AND(P16<>0,P16<>"Inconnu",P16<>"Non requis"),P16/(COUNTRY_INFO!E16+COUNTRY_INFO!F16), 0) -> 0 | AN16: =IF(AND(Z16<>0,Z16<>"Inconnu",Z16<>"Non requis"),IF(COUNTRY_INFO!K16=1,1,IF(COUNTRY_INFO!K16=2,0.5*COUNTRY_INFO!F16/(0.5*COUNTRY_INFO!F16+0.2*COUNTRY_INFO!G16),IF(COUNTRY_INFO!K16=3,COUNTRY_INFO!F16/(COUNTRY_INFO!F16+COUNTRY_INFO!G16)))),0) -> 0.6023941416 | AO16: =IF(AND(Z16<>0,Z16<>"Inconnu",Z16<>"Non requis"),IF(COUNTRY_INFO!K16=1,0,IF(COUNTRY_INFO!K16=2,0.2*COUNTRY_INFO!G16/(0.5*COUNTRY_INFO!F16+0.2*COUNTRY_INFO!G16),IF(COUNTRY_INFO!K16=3,COUNTRY_INFO!G16/(COUNTRY_INFO!F16+COUNTRY_INFO!G16)))),0) -> 0.3976058584 | AP16: =MAX(COUNTRY_INFO!D16*AK16*PROFILE!$G$7,COUNTRY_INFO!D16*AL16*PROFILE!$G$7) -> 353.9893603 | AQ16: =MAX(COUNTRY_INFO!D16*AK16*PROFILE!$G$8,COUNTRY_INFO!D16*AL16*PROFILE!$G$8,COUNTRY_INFO!D16*AM16*PROFILE!$G$8) -> 1294.983439 | AR16: =MAX(COUNTRY_INFO!D16*AK16*PROFILE!$G$9,COUNTRY_INFO!D16*AL16*PROFILE!$G$9,COUNTRY_INFO!D16*AM16*PROFILE!$G$9,IF(AND(DISTRICT!Z16<>"Inconnu",Z16<>"Non requis"),COUNTRY_INFO!O16*DISTRICT!AN16,0)) -> 35125 | AS16: =MAX(COUNTRY_INFO!D16*AK16*PROFILE!$G$10,COUNTRY_INFO!D16*AL16*PROFILE!$G$10,IF(AND(DISTRICT!Z16<>"Inconnu",Z16<>"Non requis"),COUNTRY_INFO!O16*DISTRICT!AO16,0)) -> 23184 | AT16: 59957.9728 | AU16: 0 | AV16: =MAX('MDA2'!J16,'T1'!L16,'T2'!J16,T3_R1!K16,T3_R2!K16) -> 0 | AW16: =MAX('MDA1'!K16,'MDA2'!K16,'MDA3'!I16,'MDA3'!L16,'T1'!M16,'T2'!K16,T3_R1!L16,T3_R2!L16) -> 3204 | AX16: =MAX('MDA1'!L16,'MDA2'!L16,'MDA3'!J16,'MDA3'!M16,'T1'!N16,'T2'!L16,T3_R1!M16,T3_R2!M16) -> 4201 | AY16: 7405 | AZ16: =MAX('MDA2'!J16,T16) -> 0 | BA16: =MAX('MDA1'!K16,'MDA2'!K16,'MDA3'!I16,'MDA3'!L16,V16,AD16) -> 3204 | BB16: =MAX('MDA1'!L16,'MDA2'!L16,'MDA3'!J16,'MDA3'!M16,AF16) -> 4201 | BC16: 7405 | BD16: 12.35031749
A17: =IF(COUNTRY_INFO!A17=0," ",COUNTRY_INFO!A17) -> Burkina Faso | B17: =IF(COUNTRY_INFO!B17=0," ",COUNTRY_INFO!B17) -> Cascades | C17: =IF(COUNTRY_INFO!C17=0," ",COUNTRY_INFO!C17) -> Sindou | D17: =COUNTRY_INFO!L17 -> Interrompu | G17: =MAX('MDA1'!M17,'MDA2'!M17) -> 0 | H17: =IF(AND(COUNTRY_INFO!H17>0,COUNTRY_INFO!H17<4),IF(D17>MAX('MDA1'!M17,'MDA2'!M17),MAX('MDA1'!M17,'MDA2'!M17),D17),0) -> 0 | I17: =IF(AND(COUNTRY_INFO!H17>0,COUNTRY_INFO!H17<4), IF(G17/D17*100<>0, IF(G17/D17*100>100,100,G17/D17*100), "-"),0) -> 0 | J17: =COUNTRY_INFO!M17 -> 0 | M17: =MAX('MDA1'!M17,MAX('MDA3'!I17,'MDA3'!L17)+MAX('MDA3'!J17,'MDA3'!M17)) -> 0 | N17: =IF(AND(COUNTRY_INFO!I17>0,COUNTRY_INFO!I17<4),IF(J17>MAX('MDA1'!M17,MAX('MDA3'!I17,'MDA3'!L17)+MAX('MDA3'!J17,'MDA3'!M17)),MAX('MDA1'!M17,MAX('MDA3'!I17,'MDA3'!L17)+MAX('MDA3'!J17,'MDA3'!M17)),J17),0) -> 0 | O17: =IF(AND(COUNTRY_INFO!I17>0,COUNTRY_INFO!I17<4), IF(M17/J17*100<>0, IF(M17/J17*100>100,100,M17/J17*100), "-"),0) -> 0 | P17: =COUNTRY_INFO!N17 -> 0 | S17: =SUM(MAX('MDA2'!J17, 'T1'!L17, MAX(T3_R1!K17, T3_R2!K17)), MAX('MDA1'!K17, 'MDA2'!K17, 'T1'!M17, MAX(T3_R1!L17, T3_R2!L17)), MAX('MDA1'!L17, 'MDA2'!L17, 'T1'!N17, MAX(T3_R1!M17, T3_R2!M17))) -> 0 | T17: =IF(AND(COUNTRY_INFO!J17>1,COUNTRY_INFO!J17<4),IF(COUNTRY_INFO!E17>MAX('MDA2'!J17,'T1'!L17,MAX(T3_R1!K17,T3_R2!K17)),MAX('MDA2'!J17,'T1'!L17,MAX(T3_R1!K17,T3_R2!K17)),COUNTRY_INFO!E17),0) -> 0 | U17: =IF(AND(COUNTRY_INFO!J17>1,COUNTRY_INFO!J17<4), IF(T17/COUNTRY_INFO!E17*100<>0, IF(T17/COUNTRY_INFO!E17*100>100,100,T17/COUNTRY_INFO!E17*100), "-"),0) -> 0 | V17: =IF(AND(COUNTRY_INFO!J17>1,COUNTRY_INFO!J17<4),IF(COUNTRY_INFO!F17>MAX('MDA1'!K17,'MDA2'!K17,'T1'!M17,MAX(T3_R1!L17,T3_R2!L17)),MAX('MDA1'!K17,'MDA2'!K17,'T1'!M17,MAX(T3_R1!L17,T3_R2!L17)),COUNTRY_INFO!F17),0) -> 0 | W17: =IF(AND(COUNTRY_INFO!J17>1,COUNTRY_INFO!J17<4), IF(V17/COUNTRY_INFO!F17*100<>0, IF(V17/COUNTRY_INFO!F17*100>100,100,V17/COUNTRY_INFO!F17*100), "-"),0) -> 0 | X17: 0 | Y17: =IF(AND(COUNTRY_INFO!J17>1,COUNTRY_INFO!J17<4), IF(S17/P17*100<>0, IF(X17/P17*100>100,100,X17/P17*100), "-"),0) -> 0 | Z17: =COUNTRY_INFO!O17 -> 43456.9 | AC17: =MAX('T1'!L17,'T2'!J17)+MAX('T1'!M17,'T2'!K17)+MAX('T1'!N17,'T2'!L17) -> 0 | AD17: =IF(COUNTRY_INFO!K17=1,IF(COUNTRY_INFO!F17*0.33>MAX('T1'!M17,'T2'!K17),MAX('T1'!M17,'T2'!K17),COUNTRY_INFO!F17*0.33),IF(COUNTRY_INFO!K17=2,IF(COUNTRY_INFO!F17*0.5>MAX('T1'!M17,'T2'!K17),MAX('T1'!M17,'T2'!K17),COUNTRY_INFO!F17*0.5),IF(COUNTRY_INFO!K17=3,IF(COUNTRY_INFO!F17>MAX('T1'!M17,'T2'!K17),MAX('T1'!M17,'T2'!K17),COUNTRY_INFO!F17),0))) -> 0 | AE17: =IF(AND(COUNTRY_INFO!K17>0,COUNTRY_INFO!K17<4),IF(Z17>0,IF(COUNTRY_INFO!K17=1, AD17/(COUNTRY_INFO!F17*0.33)*100, IF(COUNTRY_INFO!K17=2, AD17/(COUNTRY_INFO!F17*0.5)*100, IF(COUNTRY_INFO!K17=3, AD17/COUNTRY_INFO!F17*100))),"-"),0) -> 0 | AF17: =IF(COUNTRY_INFO!K17=2,IF(COUNTRY_INFO!G17*0.2>MAX('T1'!N17,'T2'!L17),MAX('T1'!N17,'T2'!L17),COUNTRY_INFO!G17*0.2),IF(COUNTRY_INFO!K17=3,IF(COUNTRY_INFO!G17>MAX('T1'!N17,'T2'!L17),MAX('T1'!N17,'T2'!L17),COUNTRY_INFO!G17),0)) -> 0 | AG17: =IF(AND(COUNTRY_INFO!K17>0,COUNTRY_INFO!K17<4),IF(Z17>0,IF(COUNTRY_INFO!K17=1, 0, IF(COUNTRY_INFO!K17=2, AF17/(COUNTRY_INFO!G17*0.2)*100, IF(COUNTRY_INFO!K17=3, AF17/COUNTRY_INFO!G17*100))),"-"),0) -> 0 | AH17: 0 | AI17: =IF(AND(COUNTRY_INFO!K17>0,COUNTRY_INFO!K17<4), IF(AC17/Z17*100<>0, IF(AH17/Z17*100>100,100,AH17/Z17*100), "-"),0) -> - | AK17: =IF(AND(D17<>0, D17<>"Inconnu",D17<>"Interrompu",D17<>"Non requis"),D17/COUNTRY_INFO!D17, 0) -> 0 | AL17: =IF(AND(J17<>0,J17<>"Inconnu",J17<>"Interrompu",J17<>"Non requis"),J17/COUNTRY_INFO!D17, 0) -> 0 | AM17: =IF(AND(P17<>0,P17<>"Inconnu",P17<>"Non requis"),P17/(COUNTRY_INFO!E17+COUNTRY_INFO!F17), 0) -> 0 | AN17: =IF(AND(Z17<>0,Z17<>"Inconnu",Z17<>"Non requis"),IF(COUNTRY_INFO!K17=1,1,IF(COUNTRY_INFO!K17=2,0.5*COUNTRY_INFO!F17/(0.5*COUNTRY_INFO!F17+0.2*COUNTRY_INFO!G17),IF(COUNTRY_INFO!K17=3,COUNTRY_INFO!F17/(COUNTRY_INFO!F17+COUNTRY_INFO!G17)))),0) -> 0.5824046354 | AO17: =IF(AND(Z17<>0,Z17<>"Inconnu",Z17<>"Non requis"),IF(COUNTRY_INFO!K17=1,0,IF(COUNTRY_INFO!K17=2,0.2*COUNTRY_INFO!G17/(0.5*COUNTRY_INFO!F17+0.2*COUNTRY_INFO!G17),IF(COUNTRY_INFO!K17=3,COUNTRY_INFO!G17/(COUNTRY_INFO!F17+COUNTRY_INFO!G17)))),0) -> 0.4175953646 | AP17: =MAX(COUNTRY_INFO!D17*AK17*PROFILE!$G$7,COUNTRY_INFO!D17*AL17*PROFILE!$G$7) -> 0 | AQ17: =MAX(COUNTRY_INFO!D17*AK17*PROFILE!$G$8,COUNTRY_INFO!D17*AL17*PROFILE!$G$8,COUNTRY_INFO!D17*AM17*PROFILE!$G$8) -> 0 | AR17: =MAX(COUNTRY_INFO!D17*AK17*PROFILE!$G$9,COUNTRY_INFO!D17*AL17*PROFILE!$G$9,COUNTRY_INFO!D17*AM17*PROFILE!$G$9,IF(AND(DISTRICT!Z17<>"Inconnu",Z17<>"Non requis"),COUNTRY_INFO!O17*DISTRICT!AN17,0)) -> 25309.5 | AS17: =MAX(COUNTRY_INFO!D17*AK17*PROFILE!$G$10,COUNTRY_INFO!D17*AL17*PROFILE!$G$10,IF(AND(DISTRICT!Z17<>"Inconnu",Z17<>"Non requis"),COUNTRY_INFO!O17*DISTRICT!AO17,0)) -> 18147.4 | AT17: 43456.9 | AU17: 0 | AV17: =MAX('MDA2'!J17,'T1'!L17,'T2'!J17,T3_R1!K17,T3_R2!K17) -> 0 | AW17: =MAX('MDA1'!K17,'MDA2'!K17,'MDA3'!I17,'MDA3'!L17,'T1'!M17,'T2'!K17,T3_R1!L17,T3_R2!L17) -> 0 | AX17: =MAX('MDA1'!L17,'MDA2'!L17,'MDA3'!J17,'MDA3'!M17,'T1'!N17,'T2'!L17,T3_R1!M17,T3_R2!M17) -> 0 | AY17: 0 | AZ17: =MAX('MDA2'!J17,T17) -> 0 | BA17: =MAX('MDA1'!K17,'MDA2'!K17,'MDA3'!I17,'MDA3'!L17,V17,AD17) -> 0 | BB17: =MAX('MDA1'!L17,'MDA2'!L17,'MDA3'!J17,'MDA3'!M17,AF17) -> 0 | BC17: 0 | BD17: 0
A18: =IF(COUNTRY_INFO!A18=0," ",COUNTRY_INFO!A18) -> Burkina Faso | B18: =IF(COUNTRY_INFO!B18=0," ",COUNTRY_INFO!B18) -> Centre | C18: =IF(COUNTRY_INFO!C18=0," ",COUNTRY_INFO!C18) -> Baskuy | D18: =COUNTRY_INFO!L18 -> Interrompu | G18: =MAX('MDA1'!M18,'MDA2'!M18) -> 0 | H18: =IF(AND(COUNTRY_INFO!H18>0,COUNTRY_INFO!H18<4),IF(D18>MAX('MDA1'!M18,'MDA2'!M18),MAX('MDA1'!M18,'MDA2'!M18),D18),0) -> 0 | I18: =IF(AND(COUNTRY_INFO!H18>0,COUNTRY_INFO!H18<4), IF(G18/D18*100<>0, IF(G18/D18*100>100,100,G18/D18*100), "-"),0) -> 0 | J18: =COUNTRY_INFO!M18 -> 0 | M18: =MAX('MDA1'!M18,MAX('MDA3'!I18,'MDA3'!L18)+MAX('MDA3'!J18,'MDA3'!M18)) -> 0 | N18: =IF(AND(COUNTRY_INFO!I18>0,COUNTRY_INFO!I18<4),IF(J18>MAX('MDA1'!M18,MAX('MDA3'!I18,'MDA3'!L18)+MAX('MDA3'!J18,'MDA3'!M18)),MAX('MDA1'!M18,MAX('MDA3'!I18,'MDA3'!L18)+MAX('MDA3'!J18,'MDA3'!M18)),J18),0) -> 0 | O18: =IF(AND(COUNTRY_INFO!I18>0,COUNTRY_INFO!I18<4), IF(M18/J18*100<>0, IF(M18/J18*100>100,100,M18/J18*100), "-"),0) -> 0 | P18: =COUNTRY_INFO!N18 -> 0 | S18: =SUM(MAX('MDA2'!J18, 'T1'!L18, MAX(T3_R1!K18, T3_R2!K18)), MAX('MDA1'!K18, 'MDA2'!K18, 'T1'!M18, MAX(T3_R1!L18, T3_R2!L18)), MAX('MDA1'!L18, 'MDA2'!L18, 'T1'!N18, MAX(T3_R1!M18, T3_R2!M18))) -> 0 | T18: =IF(AND(COUNTRY_INFO!J18>1,COUNTRY_INFO!J18<4),IF(COUNTRY_INFO!E18>MAX('MDA2'!J18,'T1'!L18,MAX(T3_R1!K18,T3_R2!K18)),MAX('MDA2'!J18,'T1'!L18,MAX(T3_R1!K18,T3_R2!K18)),COUNTRY_INFO!E18),0) -> 0 | U18: =IF(AND(COUNTRY_INFO!J18>1,COUNTRY_INFO!J18<4), IF(T18/COUNTRY_INFO!E18*100<>0, IF(T18/COUNTRY_INFO!E18*100>100,100,T18/COUNTRY_INFO!E18*100), "-"),0) -> 0 | V18: =IF(AND(COUNTRY_INFO!J18>1,COUNTRY_INFO!J18<4),IF(COUNTRY_INFO!F18>MAX('MDA1'!K18,'MDA2'!K18,'T1'!M18,MAX(T3_R1!L18,T3_R2!L18)),MAX('MDA1'!K18,'MDA2'!K18,'T1'!M18,MAX(T3_R1!L18,T3_R2!L18)),COUNTRY_INFO!F18),0) -> 0 | W18: =IF(AND(COUNTRY_INFO!J18>1,COUNTRY_INFO!J18<4), IF(V18/COUNTRY_INFO!F18*100<>0, IF(V18/COUNTRY_INFO!F18*100>100,100,V18/COUNTRY_INFO!F18*100), "-"),0) -> 0 | X18: 0 | Y18: =IF(AND(COUNTRY_INFO!J18>1,COUNTRY_INFO!J18<4), IF(S18/P18*100<>0, IF(X18/P18*100>100,100,X18/P18*100), "-"),0) -> 0 | Z18: =COUNTRY_INFO!O18 -> 74073.1 | AC18: =MAX('T1'!L18,'T2'!J18)+MAX('T1'!M18,'T2'!K18)+MAX('T1'!N18,'T2'!L18) -> 0 | AD18: =IF(COUNTRY_INFO!K18=1,IF(COUNTRY_INFO!F18*0.33>MAX('T1'!M18,'T2'!K18),MAX('T1'!M18,'T2'!K18),COUNTRY_INFO!F18*0.33),IF(COUNTRY_INFO!K18=2,IF(COUNTRY_INFO!F18*0.5>MAX('T1'!M18,'T2'!K18),MAX('T1'!M18,'T2'!K18),COUNTRY_INFO!F18*0.5),IF(COUNTRY_INFO!K18=3,IF(COUNTRY_INFO!F18>MAX('T1'!M18,'T2'!K18),MAX('T1'!M18,'T2'!K18),COUNTRY_INFO!F18),0))) -> 0 | AE18: =IF(AND(COUNTRY_INFO!K18>0,COUNTRY_INFO!K18<4),IF(Z18>0,IF(COUNTRY_INFO!K18=1, AD18/(COUNTRY_INFO!F18*0.33)*100, IF(COUNTRY_INFO!K18=2, AD18/(COUNTRY_INFO!F18*0.5)*100, IF(COUNTRY_INFO!K18=3, AD18/COUNTRY_INFO!F18*100))),"-"),0) -> 0 | AF18: =IF(COUNTRY_INFO!K18=2,IF(COUNTRY_INFO!G18*0.2>MAX('T1'!N18,'T2'!L18),MAX('T1'!N18,'T2'!L18),COUNTRY_INFO!G18*0.2),IF(COUNTRY_INFO!K18=3,IF(COUNTRY_INFO!G18>MAX('T1'!N18,'T2'!L18),MAX('T1'!N18,'T2'!L18),COUNTRY_INFO!G18),0)) -> 0 | AG18: =IF(AND(COUNTRY_INFO!K18>0,COUNTRY_INFO!K18<4),IF(Z18>0,IF(COUNTRY_INFO!K18=1, 0, IF(COUNTRY_INFO!K18=2, AF18/(COUNTRY_INFO!G18*0.2)*100, IF(COUNTRY_INFO!K18=3, AF18/COUNTRY_INFO!G18*100))),"-"),0) -> 0 | AH18: 0 | AI18: =IF(AND(COUNTRY_INFO!K18>0,COUNTRY_INFO!K18<4), IF(AC18/Z18*100<>0, IF(AH18/Z18*100>100,100,AH18/Z18*100), "-"),0) -> - | AK18: =IF(AND(D18<>0, D18<>"Inconnu",D18<>"Interrompu",D18<>"Non requis"),D18/COUNTRY_INFO!D18, 0) -> 0 | AL18: =IF(AND(J18<>0,J18<>"Inconnu",J18<>"Interrompu",J18<>"Non requis"),J18/COUNTRY_INFO!D18, 0) -> 0 | AM18: =IF(AND(P18<>0,P18<>"Inconnu",P18<>"Non requis"),P18/(COUNTRY_INFO!E18+COUNTRY_INFO!F18), 0) -> 0 | AN18: =IF(AND(Z18<>0,Z18<>"Inconnu",Z18<>"Non requis"),IF(COUNTRY_INFO!K18=1,1,IF(COUNTRY_INFO!K18=2,0.5*COUNTRY_INFO!F18/(0.5*COUNTRY_INFO!F18+0.2*COUNTRY_INFO!G18),IF(COUNTRY_INFO!K18=3,COUNTRY_INFO!F18/(COUNTRY_INFO!F18+COUNTRY_INFO!G18)))),0) -> 0.4157312169 | AO18: =IF(AND(Z18<>0,Z18<>"Inconnu",Z18<>"Non requis"),IF(COUNTRY_INFO!K18=1,0,IF(COUNTRY_INFO!K18=2,0.2*COUNTRY_INFO!G18/(0.5*COUNTRY_INFO!F18+0.2*COUNTRY_INFO!G18),IF(COUNTRY_INFO!K18=3,COUNTRY_INFO!G18/(COUNTRY_INFO!F18+COUNTRY_INFO!G18)))),0) -> 0.5842687831 | AP18: =MAX(COUNTRY_INFO!D18*AK18*PROFILE!$G$7,COUNTRY_INFO!D18*AL18*PROFILE!$G$7) -> 0 | AQ18: =MAX(COUNTRY_INFO!D18*AK18*PROFILE!$G$8,COUNTRY_INFO!D18*AL18*PROFILE!$G$8,COUNTRY_INFO!D18*AM18*PROFILE!$G$8) -> 0 | AR18: =MAX(COUNTRY_INFO!D18*AK18*PROFILE!$G$9,COUNTRY_INFO!D18*AL18*PROFILE!$G$9,COUNTRY_INFO!D18*AM18*PROFILE!$G$9,IF(AND(DISTRICT!Z18<>"Inconnu",Z18<>"Non requis"),COUNTRY_INFO!O18*DISTRICT!AN18,0)) -> 30794.5 | AS18: =MAX(COUNTRY_INFO!D18*AK18*PROFILE!$G$10,COUNTRY_INFO!D18*AL18*PROFILE!$G$10,IF(AND(DISTRICT!Z18<>"Inconnu",Z18<>"Non requis"),COUNTRY_INFO!O18*DISTRICT!AO18,0)) -> 43278.6 | AT18: 74073.1 | AU18: 0 | AV18: =MAX('MDA2'!J18,'T1'!L18,'T2'!J18,T3_R1!K18,T3_R2!K18) -> 0 | AW18: =MAX('MDA1'!K18,'MDA2'!K18,'MDA3'!I18,'MDA3'!L18,'T1'!M18,'T2'!K18,T3_R1!L18,T3_R2!L18) -> 0 | AX18: =MAX('MDA1'!L18,'MDA2'!L18,'MDA3'!J18,'MDA3'!M18,'T1'!N18,'T2'!L18,T3_R1!M18,T3_R2!M18) -> 0 | AY18: 0 | AZ18: =MAX('MDA2'!J18,T18) -> 0 | BA18: =MAX('MDA1'!K18,'MDA2'!K18,'MDA3'!I18,'MDA3'!L18,V18,AD18) -> 0 | BB18: =MAX('MDA1'!L18,'MDA2'!L18,'MDA3'!J18,'MDA3'!M18,AF18) -> 0 | BC18: 0 | BD18: 0
